Workbook

Sheet Startseite
H3: Futterberechnungsprogramm für Schweine in Anlehnung an die
H4: GfE- und DLG-Versorgungsempfehlungen von 2006, 2008, 2010 und 2014
H5: Ferkel und Mast nach Rechenmeister LWK NRW 2010, 2014 und 2016
F7: Ansprechpartner: | J7: Johannes Hilgers
J8: Tel.: | K8: 02838 7761283
J9: Mobil: | K9: 0172 9164592
J10: E-Mail: | K10: johanneshilgers@t-online.de

Sheet Anleitung
K7: 2018 Version 1

Sheet Futterberechnung
Z3: 2018 Version 1
B4: Rheinischer Erzeugerring für Mastschweine e.V.
E5: Betrieb: | H5: Mustermann | X5: Datum: | Z5: 2018-08-01
E6: Berater: | H6: ………………………………………………………. | X6: Tel.Nr.: | Z6: ……………………………
E7: Futtermischung für: | H7: =C33&" " -> Vormast 28 - 40 Kg LM für 850 g TZ* | P7: Getreide = Richtpreise Ernte 2017/18 | X7: Tel.Nr.: | Z7: ……………………………
E8: Mischergröße in t: | H8: 1 | J8: =IF(OR(B10="m",B10="w",'Futterkurve Mast'!T6="HP"),Orientierungswerte!D35,"") ->  | X8: gültig bis: | Z8: ……………………………
C10: Geschlecht
E11: Netto-Preis | F11: Anteil in FM | G11: Anteil bei 88% TM | H11: in Mi-scher | I11: TM | J11: Roh-pro-tein XP | K11: pcv XP | L11: Roh-faser XF | M11: ME EFF | N11: ME MFF | O11: Lys | P11: pcv Lys | Q11: M&C | R11: pcv M+C | S11: Thr | T11: pcv Thr | U11: Trp | V11: pcv Trp | W11: Ca | X11: P | Y11: v. P | Z11: v. P m. Phy | AA11: Mg | AB11: Na | AC11: €/dt
B12: FM-Nr. | C12: Futtermittel + % RP in der FM | E12: €/dt | F12: % | G12: % | H12: kg | I12: Anteil in g/kg | M12: MJ/kg | O12: Anteile in g je kg | AC12: Anteil
B13: =IF($C13=""," ",VLOOKUP($C13,Futtermittel!$A$8:$CG$171,2,FALSE)) -> 49 | C13: eigener Weizen 10% RP Ø 2018 | E13: 17.42 | F13: 0.5385 | G13: =IF(F13="","",I13/I$30) -> 0.5346996828 | H13: =IF(F13=""," ",$H$8*F13*1000) -> 538.5 | I13: =IF($C13=""," ",VLOOKUP($C13,Futtermittel!$A$8:$CG$171,8,FALSE)*$F13) -> 473.88 | J13: =IF($C13=""," ",VLOOKUP($C13,Futtermittel!$A$8:$CG$171,9,FALSE)*$F13) -> 53.33304 | K13: =IF($C13=""," ",VLOOKUP($C13,Futtermittel!$A$8:$CG$171,10,FALSE)*$F13) -> 47.999736 | L13: =IF($C13=""," ",VLOOKUP($C13,Futtermittel!$A$8:$CG$171,11,FALSE)*$F13) -> 14.200245 | M13: =IF($C13=""," ",VLOOKUP($C13,Futtermittel!$A$8:$CG$171,12,FALSE)*$F13) -> 7.338270894 | N13: =IF($C13=""," ",VLOOKUP(C13,Futtermittel!$A$8:$CG$171,13,FALSE)*$F13) -> 7.377467232 | O13: =IF($C13=""," ",VLOOKUP($C13,Futtermittel!$A$8:$CG$171,14,FALSE)*$F13) -> 1.7128608 | P13: =IF($C13=""," ",VLOOKUP($C13,Futtermittel!$A$8:$CG$171,15,FALSE)*$F13) -> 1.507317504 | Q13: =IF($C13=""," ",VLOOKUP($C13,Futtermittel!$A$8:$CG$171,16,FALSE)*$F13) -> 1.9769412 | R13: =IF($C13=""," ",VLOOKUP($C13,Futtermittel!$A$8:$CG$171,17,FALSE)*$F13) -> 1.785836884 | S13: =IF($C13=""," ",VLOOKUP($C13,Futtermittel!$A$8:$CG$171,18,FALSE)*$F13) -> 1.3897608 | T13: =IF($C13=""," ",VLOOKUP($C13,Futtermittel!$A$8:$CG$171,19,FALSE)*$F13) -> 1.25078472 | U13: =IF($C13=""," ",VLOOKUP($C13,Futtermittel!$A$8:$CG$171,20,FALSE)*$F13) -> 0.7487304 | V13: =IF($C13=""," ",VLOOKUP($C13,Futtermittel!$A$8:$CG$171,21,FALSE)*$F13) -> 0.658882752 | W13: =IF($C13=""," ",VLOOKUP($C13,Futtermittel!$A$8:$CG$171,22,FALSE)*$F13) -> 0.37695 | X13: =IF($C13=""," ",VLOOKUP($C13,Futtermittel!$A$8:$CG$171,23,FALSE)*$F13) -> 1.77705 | Y13: =IF($C13=""," ",VLOOKUP($C13,Futtermittel!$A$8:$CG$171,24,FALSE)*$F13) -> 1.06623 | Z13: =IF($C13=""," ",VLOOKUP($C13,Futtermittel!$A$8:$CG$171,25,FALSE)*$F13) -> 1.1550825 | AA13: =IF($C13=""," ",VLOOKUP($C13,Futtermittel!$A$8:$CG$171,26,FALSE)*$F13) -> 0.59235 | AB13: =IF($C13=""," ",VLOOKUP($C13,Futtermittel!$A$8:$CG$171,27,FALSE)*$F13) -> 0.1077 | AC13: =IF(E13*F13=0," ",E13*F13) -> 9.38067
B14: =IF($C14=""," ",VLOOKUP($C14,Futtermittel!$A$8:$CG$171,2,FALSE)) -> 11 | C14: eigene Gerste 10% RP Ø 2018 | E14: 16.39 | F14: 0.25 | G14: =IF(F14="","",I14/I$30) -> 0.248235693 | H14: =IF(F14=""," ",$H$8*F14*1000) -> 250 | I14: =IF($C14=""," ",VLOOKUP($C14,Futtermittel!$A$8:$CG$171,8,FALSE)*$F14) -> 220 | J14: =IF($C14=""," ",VLOOKUP($C14,Futtermittel!$A$8:$CG$171,9,FALSE)*$F14) -> 24.2825 | K14: =IF($C14=""," ",VLOOKUP($C14,Futtermittel!$A$8:$CG$171,10,FALSE)*$F14) -> 17.726225 | L14: =IF($C14=""," ",VLOOKUP($C14,Futtermittel!$A$8:$CG$171,11,FALSE)*$F14) -> 13.8975 | M14: =IF($C14=""," ",VLOOKUP($C14,Futtermittel!$A$8:$CG$171,12,FALSE)*$F14) -> 3.128135797 | N14: =IF($C14=""," ",VLOOKUP(C14,Futtermittel!$A$8:$CG$171,13,FALSE)*$F14) -> 3.123278605 | O14: =IF($C14=""," ",VLOOKUP($C14,Futtermittel!$A$8:$CG$171,14,FALSE)*$F14) -> 0.81065 | P14: =IF($C14=""," ",VLOOKUP($C14,Futtermittel!$A$8:$CG$171,15,FALSE)*$F14) -> 0.5917745 | Q14: =IF($C14=""," ",VLOOKUP($C14,Futtermittel!$A$8:$CG$171,16,FALSE)*$F14) -> 1.003475 | R14: =IF($C14=""," ",VLOOKUP($C14,Futtermittel!$A$8:$CG$171,17,FALSE)*$F14) -> 0.8402782763 | S14: =IF($C14=""," ",VLOOKUP($C14,Futtermittel!$A$8:$CG$171,18,FALSE)*$F14) -> 0.878475 | T14: =IF($C14=""," ",VLOOKUP($C14,Futtermittel!$A$8:$CG$171,19,FALSE)*$F14) -> 0.667641 | U14: =IF($C14=""," ",VLOOKUP($C14,Futtermittel!$A$8:$CG$171,20,FALSE)*$F14) -> 0.292825 | V14: =IF($C14=""," ",VLOOKUP($C14,Futtermittel!$A$8:$CG$171,21,FALSE)*$F14) -> 0.222547 | W14: =IF($C14=""," ",VLOOKUP($C14,Futtermittel!$A$8:$CG$171,22,FALSE)*$F14) -> 0.1078 | X14: =IF($C14=""," ",VLOOKUP($C14,Futtermittel!$A$8:$CG$171,23,FALSE)*$F14) -> 0.875 | Y14: =IF($C14=""," ",VLOOKUP($C14,Futtermittel!$A$8:$CG$171,24,FALSE)*$F14) -> 0.39375 | Z14: =IF($C14=""," ",VLOOKUP($C14,Futtermittel!$A$8:$CG$171,25,FALSE)*$F14) -> 0.56875 | AA14: =IF($C14=""," ",VLOOKUP($C14,Futtermittel!$A$8:$CG$171,26,FALSE)*$F14) -> 0.275 | AB14: =IF($C14=""," ",VLOOKUP($C14,Futtermittel!$A$8:$CG$171,27,FALSE)*$F14) -> 0.03793103448 | AC14: =IF(E14*F14=0," ",E14*F14) -> 4.0975
B15: =IF($C15=""," ",VLOOKUP($C15,Futtermittel!$A$8:$CG$171,2,FALSE)) -> 100 | C15: Sojaschrot HP 47% RP | E15: 38 | F15: 0.161 | G15: =IF(F15="","",I15/I$30) -> 0.1616804202 | H15: 161 | I15: =IF($C15=""," ",VLOOKUP($C15,Futtermittel!$A$8:$CG$171,8,FALSE)*$F15) -> 143.29 | J15: =IF($C15=""," ",VLOOKUP($C15,Futtermittel!$A$8:$CG$171,9,FALSE)*$F15) -> 75.67 | K15: =IF($C15=""," ",VLOOKUP($C15,Futtermittel!$A$8:$CG$171,10,FALSE)*$F15) -> 62.0494 | L15: =IF($C15=""," ",VLOOKUP($C15,Futtermittel!$A$8:$CG$171,11,FALSE)*$F15) -> 8.372 | M15: =IF($C15=""," ",VLOOKUP($C15,Futtermittel!$A$8:$CG$171,12,FALSE)*$F15) -> 2.230996803 | N15: =IF($C15=""," ",VLOOKUP(C15,Futtermittel!$A$8:$CG$171,13,FALSE)*$F15) -> 2.228462019 | O15: =IF($C15=""," ",VLOOKUP($C15,Futtermittel!$A$8:$CG$171,14,FALSE)*$F15) -> 4.631655318 | P15: =IF($C15=""," ",VLOOKUP($C15,Futtermittel!$A$8:$CG$171,15,FALSE)*$F15) -> 4.029540127 | Q15: =IF($C15=""," ",VLOOKUP($C15,Futtermittel!$A$8:$CG$171,16,FALSE)*$F15) -> 2.12709175 | R15: =IF($C15=""," ",VLOOKUP($C15,Futtermittel!$A$8:$CG$171,17,FALSE)*$F15) -> 1.771703805 | S15: =IF($C15=""," ",VLOOKUP($C15,Futtermittel!$A$8:$CG$171,18,FALSE)*$F15) -> 3.254761364 | T15: =IF($C15=""," ",VLOOKUP($C15,Futtermittel!$A$8:$CG$171,19,FALSE)*$F15) -> 2.799094773 | U15: =IF($C15=""," ",VLOOKUP($C15,Futtermittel!$A$8:$CG$171,20,FALSE)*$F15) -> 1.000944318 | V15: =IF($C15=""," ",VLOOKUP($C15,Futtermittel!$A$8:$CG$171,21,FALSE)*$F15) -> 0.8608121136 | W15: =IF($C15=""," ",VLOOKUP($C15,Futtermittel!$A$8:$CG$171,22,FALSE)*$F15) -> 0.5126385417 | X15: =IF($C15=""," ",VLOOKUP($C15,Futtermittel!$A$8:$CG$171,23,FALSE)*$F15) -> 1.079171928 | Y15: =IF($C15=""," ",VLOOKUP($C15,Futtermittel!$A$8:$CG$171,24,FALSE)*$F15) -> 0.4316687711 | Z15: =IF($C15=""," ",VLOOKUP($C15,Futtermittel!$A$8:$CG$171,25,FALSE)*$F15) -> 0.8093789459 | AA15: =IF($C15=""," ",VLOOKUP($C15,Futtermittel!$A$8:$CG$171,26,FALSE)*$F15) -> 0.4543085668 | AB15: =IF($C15=""," ",VLOOKUP($C15,Futtermittel!$A$8:$CG$171,27,FALSE)*$F15) -> 0.0272251 | AC15: 6.118
B16: =IF($C16=""," ",VLOOKUP($C16,Futtermittel!$A$8:$CG$171,2,FALSE)) -> 140 | C16: Rapsöl / Pflanzenöl DLG 2014 | E16: 97 | F16: 0.0155 | G16: 0.01747184358 | H16: 15.5 | I16: =IF($C16=""," ",VLOOKUP($C16,Futtermittel!$A$8:$CG$171,8,FALSE)*$F16) -> 15.4845 | J16: =IF($C16=""," ",VLOOKUP($C16,Futtermittel!$A$8:$CG$171,9,FALSE)*$F16) -> 0 | K16: =IF($C16=""," ",VLOOKUP($C16,Futtermittel!$A$8:$CG$171,10,FALSE)*$F16) -> 0 | L16: =IF($C16=""," ",VLOOKUP($C16,Futtermittel!$A$8:$CG$171,11,FALSE)*$F16) -> 0 | M16: =IF($C16=""," ",VLOOKUP($C16,Futtermittel!$A$8:$CG$171,12,FALSE)*$F16) -> 0.603352876 | N16: =IF($C16=""," ",VLOOKUP(C16,Futtermittel!$A$8:$CG$171,13,FALSE)*$F16) -> 0.502696093 | O16: =IF($C16=""," ",VLOOKUP($C16,Futtermittel!$A$8:$CG$171,14,FALSE)*$F16) -> 0 | P16: =IF($C16=""," ",VLOOKUP($C16,Futtermittel!$A$8:$CG$171,15,FALSE)*$F16) -> 0 | Q16: =IF($C16=""," ",VLOOKUP($C16,Futtermittel!$A$8:$CG$171,16,FALSE)*$F16) -> 0 | R16: =IF($C16=""," ",VLOOKUP($C16,Futtermittel!$A$8:$CG$171,17,FALSE)*$F16) -> 0 | S16: =IF($C16=""," ",VLOOKUP($C16,Futtermittel!$A$8:$CG$171,18,FALSE)*$F16) -> 0 | T16: =IF($C16=""," ",VLOOKUP($C16,Futtermittel!$A$8:$CG$171,19,FALSE)*$F16) -> 0 | U16: =IF($C16=""," ",VLOOKUP($C16,Futtermittel!$A$8:$CG$171,20,FALSE)*$F16) -> 0 | V16: =IF($C16=""," ",VLOOKUP($C16,Futtermittel!$A$8:$CG$171,21,FALSE)*$F16) -> 0 | W16: =IF($C16=""," ",VLOOKUP($C16,Futtermittel!$A$8:$CG$171,22,FALSE)*$F16) -> 0 | X16: =IF($C16=""," ",VLOOKUP($C16,Futtermittel!$A$8:$CG$171,23,FALSE)*$F16) -> 0 | Y16: =IF($C16=""," ",VLOOKUP($C16,Futtermittel!$A$8:$CG$171,24,FALSE)*$F16) -> 0 | Z16: =IF($C16=""," ",VLOOKUP($C16,Futtermittel!$A$8:$CG$171,25,FALSE)*$F16) -> 0 | AA16: =IF($C16=""," ",VLOOKUP($C16,Futtermittel!$A$8:$CG$171,26,FALSE)*$F16) -> 0 | AB16: =IF($C16=""," ",VLOOKUP($C16,Futtermittel!$A$8:$CG$171,27,FALSE)*$F16) -> 0 | AC16: 1.5035
B17: =IF($C17=""," ",VLOOKUP($C17,Futtermittel!$A$8:$CG$171,2,FALSE)) ->  | I17: =IF($C17=""," ",VLOOKUP($C17,Futtermittel!$A$8:$CG$171,8,FALSE)*$F17) ->  | J17: =IF($C17=""," ",VLOOKUP($C17,Futtermittel!$A$8:$CG$171,9,FALSE)*$F17) ->  | K17: =IF($C17=""," ",VLOOKUP($C17,Futtermittel!$A$8:$CG$171,10,FALSE)*$F17) ->  | L17: =IF($C17=""," ",VLOOKUP($C17,Futtermittel!$A$8:$CG$171,11,FALSE)*$F17) ->  | M17: =IF($C17=""," ",VLOOKUP($C17,Futtermittel!$A$8:$CG$171,12,FALSE)*$F17) ->  | N17: =IF($C17=""," ",VLOOKUP(C17,Futtermittel!$A$8:$CG$171,13,FALSE)*$F17) ->  | O17: =IF($C17=""," ",VLOOKUP($C17,Futtermittel!$A$8:$CG$171,14,FALSE)*$F17) ->  | P17: =IF($C17=""," ",VLOOKUP($C17,Futtermittel!$A$8:$CG$171,15,FALSE)*$F17) ->  | Q17: =IF($C17=""," ",VLOOKUP($C17,Futtermittel!$A$8:$CG$171,16,FALSE)*$F17) ->  | R17: =IF($C17=""," ",VLOOKUP($C17,Futtermittel!$A$8:$CG$171,17,FALSE)*$F17) ->  | S17: =IF($C17=""," ",VLOOKUP($C17,Futtermittel!$A$8:$CG$171,18,FALSE)*$F17) ->  | T17: =IF($C17=""," ",VLOOKUP($C17,Futtermittel!$A$8:$CG$171,19,FALSE)*$F17) ->  | U17: =IF($C17=""," ",VLOOKUP($C17,Futtermittel!$A$8:$CG$171,20,FALSE)*$F17) ->  | V17: =IF($C17=""," ",VLOOKUP($C17,Futtermittel!$A$8:$CG$171,21,FALSE)*$F17) ->  | W17: =IF($C17=""," ",VLOOKUP($C17,Futtermittel!$A$8:$CG$171,22,FALSE)*$F17) ->  | X17: =IF($C17=""," ",VLOOKUP($C17,Futtermittel!$A$8:$CG$171,23,FALSE)*$F17) ->  | Y17: =IF($C17=""," ",VLOOKUP($C17,Futtermittel!$A$8:$CG$171,24,FALSE)*$F17) ->  | Z17: =IF($C17=""," ",VLOOKUP($C17,Futtermittel!$A$8:$CG$171,25,FALSE)*$F17) ->  | AA17: =IF($C17=""," ",VLOOKUP($C17,Futtermittel!$A$8:$CG$171,26,FALSE)*$F17) ->  | AB17: =IF($C17=""," ",VLOOKUP($C17,Futtermittel!$A$8:$CG$171,27,FALSE)*$F17) -> 
B18: =IF($C18=""," ",VLOOKUP($C18,Futtermittel!$A$8:$CG$171,2,FALSE)) ->  | I18: =IF($C18=""," ",VLOOKUP($C18,Futtermittel!$A$8:$CG$171,8,FALSE)*$F18) ->  | J18: =IF($C18=""," ",VLOOKUP($C18,Futtermittel!$A$8:$CG$171,9,FALSE)*$F18) ->  | K18: =IF($C18=""," ",VLOOKUP($C18,Futtermittel!$A$8:$CG$171,10,FALSE)*$F18) ->  | L18: =IF($C18=""," ",VLOOKUP($C18,Futtermittel!$A$8:$CG$171,11,FALSE)*$F18) ->  | M18: =IF($C18=""," ",VLOOKUP($C18,Futtermittel!$A$8:$CG$171,12,FALSE)*$F18) ->  | N18: =IF($C18=""," ",VLOOKUP(C18,Futtermittel!$A$8:$CG$171,13,FALSE)*$F18) ->  | O18: =IF($C18=""," ",VLOOKUP($C18,Futtermittel!$A$8:$CG$171,14,FALSE)*$F18) ->  | P18: =IF($C18=""," ",VLOOKUP($C18,Futtermittel!$A$8:$CG$171,15,FALSE)*$F18) ->  | Q18: =IF($C18=""," ",VLOOKUP($C18,Futtermittel!$A$8:$CG$171,16,FALSE)*$F18) ->  | R18: =IF($C18=""," ",VLOOKUP($C18,Futtermittel!$A$8:$CG$171,17,FALSE)*$F18) ->  | S18: =IF($C18=""," ",VLOOKUP($C18,Futtermittel!$A$8:$CG$171,18,FALSE)*$F18) ->  | T18: =IF($C18=""," ",VLOOKUP($C18,Futtermittel!$A$8:$CG$171,19,FALSE)*$F18) ->  | U18: =IF($C18=""," ",VLOOKUP($C18,Futtermittel!$A$8:$CG$171,20,FALSE)*$F18) ->  | V18: =IF($C18=""," ",VLOOKUP($C18,Futtermittel!$A$8:$CG$171,21,FALSE)*$F18) ->  | W18: =IF($C18=""," ",VLOOKUP($C18,Futtermittel!$A$8:$CG$171,22,FALSE)*$F18) ->  | X18: =IF($C18=""," ",VLOOKUP($C18,Futtermittel!$A$8:$CG$171,23,FALSE)*$F18) ->  | Y18: =IF($C18=""," ",VLOOKUP($C18,Futtermittel!$A$8:$CG$171,24,FALSE)*$F18) ->  | Z18: =IF($C18=""," ",VLOOKUP($C18,Futtermittel!$A$8:$CG$171,25,FALSE)*$F18) ->  | AA18: =IF($C18=""," ",VLOOKUP($C18,Futtermittel!$A$8:$CG$171,26,FALSE)*$F18) ->  | AB18: =IF($C18=""," ",VLOOKUP($C18,Futtermittel!$A$8:$CG$171,27,FALSE)*$F18) -> 
B19: =IF($C19=""," ",VLOOKUP($C19,Futtermittel!$A$8:$CG$171,2,FALSE)) ->  | I19: =IF($C19=""," ",VLOOKUP($C19,Futtermittel!$A$8:$CG$171,8,FALSE)*$F19) ->  | J19: =IF($C19=""," ",VLOOKUP($C19,Futtermittel!$A$8:$CG$171,9,FALSE)*$F19) ->  | K19: =IF($C19=""," ",VLOOKUP($C19,Futtermittel!$A$8:$CG$171,10,FALSE)*$F19) ->  | L19: =IF($C19=""," ",VLOOKUP($C19,Futtermittel!$A$8:$CG$171,11,FALSE)*$F19) ->  | M19: =IF($C19=""," ",VLOOKUP($C19,Futtermittel!$A$8:$CG$171,12,FALSE)*$F19) ->  | N19: =IF($C19=""," ",VLOOKUP(C19,Futtermittel!$A$8:$CG$171,13,FALSE)*$F19) ->  | O19: =IF($C19=""," ",VLOOKUP($C19,Futtermittel!$A$8:$CG$171,14,FALSE)*$F19) ->  | P19: =IF($C19=""," ",VLOOKUP($C19,Futtermittel!$A$8:$CG$171,15,FALSE)*$F19) ->  | Q19: =IF($C19=""," ",VLOOKUP($C19,Futtermittel!$A$8:$CG$171,16,FALSE)*$F19) ->  | R19: =IF($C19=""," ",VLOOKUP($C19,Futtermittel!$A$8:$CG$171,17,FALSE)*$F19) ->  | S19: =IF($C19=""," ",VLOOKUP($C19,Futtermittel!$A$8:$CG$171,18,FALSE)*$F19) ->  | T19: =IF($C19=""," ",VLOOKUP($C19,Futtermittel!$A$8:$CG$171,19,FALSE)*$F19) ->  | U19: =IF($C19=""," ",VLOOKUP($C19,Futtermittel!$A$8:$CG$171,20,FALSE)*$F19) ->  | V19: =IF($C19=""," ",VLOOKUP($C19,Futtermittel!$A$8:$CG$171,21,FALSE)*$F19) ->  | W19: =IF($C19=""," ",VLOOKUP($C19,Futtermittel!$A$8:$CG$171,22,FALSE)*$F19) ->  | X19: =IF($C19=""," ",VLOOKUP($C19,Futtermittel!$A$8:$CG$171,23,FALSE)*$F19) ->  | Y19: =IF($C19=""," ",VLOOKUP($C19,Futtermittel!$A$8:$CG$171,24,FALSE)*$F19) ->  | Z19: =IF($C19=""," ",VLOOKUP($C19,Futtermittel!$A$8:$CG$171,25,FALSE)*$F19) ->  | AA19: =IF($C19=""," ",VLOOKUP($C19,Futtermittel!$A$8:$CG$171,26,FALSE)*$F19) ->  | AB19: =IF($C19=""," ",VLOOKUP($C19,Futtermittel!$A$8:$CG$171,27,FALSE)*$F19) ->  | AC19: =IF(E19*F19=0," ",E19*F19) -> 
B20: =IF($C20=""," ",VLOOKUP($C20,Futtermittel!$A$8:$CG$171,2,FALSE)) ->  | I20: =IF($C20=""," ",VLOOKUP($C20,Futtermittel!$A$8:$CG$171,8,FALSE)*$F20) ->  | J20: =IF($C20=""," ",VLOOKUP($C20,Futtermittel!$A$8:$CG$171,9,FALSE)*$F20) ->  | K20: =IF($C20=""," ",VLOOKUP($C20,Futtermittel!$A$8:$CG$171,10,FALSE)*$F20) ->  | L20: =IF($C20=""," ",VLOOKUP($C20,Futtermittel!$A$8:$CG$171,11,FALSE)*$F20) ->  | M20: =IF($C20=""," ",VLOOKUP($C20,Futtermittel!$A$8:$CG$171,12,FALSE)*$F20) ->  | N20: =IF($C20=""," ",VLOOKUP(C20,Futtermittel!$A$8:$CG$171,13,FALSE)*$F20) ->  | O20: =IF($C20=""," ",VLOOKUP($C20,Futtermittel!$A$8:$CG$171,14,FALSE)*$F20) ->  | P20: =IF($C20=""," ",VLOOKUP($C20,Futtermittel!$A$8:$CG$171,15,FALSE)*$F20) ->  | Q20: =IF($C20=""," ",VLOOKUP($C20,Futtermittel!$A$8:$CG$171,16,FALSE)*$F20) ->  | R20: =IF($C20=""," ",VLOOKUP($C20,Futtermittel!$A$8:$CG$171,17,FALSE)*$F20) ->  | S20: =IF($C20=""," ",VLOOKUP($C20,Futtermittel!$A$8:$CG$171,18,FALSE)*$F20) ->  | T20: =IF($C20=""," ",VLOOKUP($C20,Futtermittel!$A$8:$CG$171,19,FALSE)*$F20) ->  | U20: =IF($C20=""," ",VLOOKUP($C20,Futtermittel!$A$8:$CG$171,20,FALSE)*$F20) ->  | V20: =IF($C20=""," ",VLOOKUP($C20,Futtermittel!$A$8:$CG$171,21,FALSE)*$F20) ->  | W20: =IF($C20=""," ",VLOOKUP($C20,Futtermittel!$A$8:$CG$171,22,FALSE)*$F20) ->  | X20: =IF($C20=""," ",VLOOKUP($C20,Futtermittel!$A$8:$CG$171,23,FALSE)*$F20) ->  | Y20: =IF($C20=""," ",VLOOKUP($C20,Futtermittel!$A$8:$CG$171,24,FALSE)*$F20) ->  | Z20: =IF($C20=""," ",VLOOKUP($C20,Futtermittel!$A$8:$CG$171,25,FALSE)*$F20) ->  | AA20: =IF($C20=""," ",VLOOKUP($C20,Futtermittel!$A$8:$CG$171,26,FALSE)*$F20) ->  | AB20: =IF($C20=""," ",VLOOKUP($C20,Futtermittel!$A$8:$CG$171,27,FALSE)*$F20) ->  | AC20: =IF(E20*F20=0," ",E20*F20) -> 
B21: =IF($C21=""," ",VLOOKUP($C21,Futtermittel!$A$8:$CG$171,2,FALSE)) ->  | I21: =IF($C21=""," ",VLOOKUP($C21,Futtermittel!$A$8:$CG$171,8,FALSE)*$F21) ->  | J21: =IF($C21=""," ",VLOOKUP($C21,Futtermittel!$A$8:$CG$171,9,FALSE)*$F21) ->  | K21: =IF($C21=""," ",VLOOKUP($C21,Futtermittel!$A$8:$CG$171,10,FALSE)*$F21) ->  | L21: =IF($C21=""," ",VLOOKUP($C21,Futtermittel!$A$8:$CG$171,11,FALSE)*$F21) ->  | M21: =IF($C21=""," ",VLOOKUP($C21,Futtermittel!$A$8:$CG$171,12,FALSE)*$F21) ->  | N21: =IF($C21=""," ",VLOOKUP(C21,Futtermittel!$A$8:$CG$171,13,FALSE)*$F21) ->  | O21: =IF($C21=""," ",VLOOKUP($C21,Futtermittel!$A$8:$CG$171,14,FALSE)*$F21) ->  | P21: =IF($C21=""," ",VLOOKUP($C21,Futtermittel!$A$8:$CG$171,15,FALSE)*$F21) ->  | Q21: =IF($C21=""," ",VLOOKUP($C21,Futtermittel!$A$8:$CG$171,16,FALSE)*$F21) ->  | R21: =IF($C21=""," ",VLOOKUP($C21,Futtermittel!$A$8:$CG$171,17,FALSE)*$F21) ->  | S21: =IF($C21=""," ",VLOOKUP($C21,Futtermittel!$A$8:$CG$171,18,FALSE)*$F21) ->  | T21: =IF($C21=""," ",VLOOKUP($C21,Futtermittel!$A$8:$CG$171,19,FALSE)*$F21) ->  | U21: =IF($C21=""," ",VLOOKUP($C21,Futtermittel!$A$8:$CG$171,20,FALSE)*$F21) ->  | V21: =IF($C21=""," ",VLOOKUP($C21,Futtermittel!$A$8:$CG$171,21,FALSE)*$F21) ->  | W21: =IF($C21=""," ",VLOOKUP($C21,Futtermittel!$A$8:$CG$171,22,FALSE)*$F21) ->  | X21: =IF($C21=""," ",VLOOKUP($C21,Futtermittel!$A$8:$CG$171,23,FALSE)*$F21) ->  | Y21: =IF($C21=""," ",VLOOKUP($C21,Futtermittel!$A$8:$CG$171,24,FALSE)*$F21) ->  | Z21: =IF($C21=""," ",VLOOKUP($C21,Futtermittel!$A$8:$CG$171,25,FALSE)*$F21) ->  | AA21: =IF($C21=""," ",VLOOKUP($C21,Futtermittel!$A$8:$CG$171,26,FALSE)*$F21) ->  | AB21: =IF($C21=""," ",VLOOKUP($C21,Futtermittel!$A$8:$CG$171,27,FALSE)*$F21) -> 
B22: =IF($C22=""," ",VLOOKUP($C22,Futtermittel!$A$8:$CG$171,2,FALSE)) ->  | I22: =IF($C22=""," ",VLOOKUP($C22,Futtermittel!$A$8:$CG$171,8,FALSE)*$F22) ->  | J22: =IF($C22=""," ",VLOOKUP($C22,Futtermittel!$A$8:$CG$171,9,FALSE)*$F22) ->  | K22: =IF($C22=""," ",VLOOKUP($C22,Futtermittel!$A$8:$CG$171,10,FALSE)*$F22) ->  | L22: =IF($C22=""," ",VLOOKUP($C22,Futtermittel!$A$8:$CG$171,11,FALSE)*$F22) ->  | M22: =IF($C22=""," ",VLOOKUP($C22,Futtermittel!$A$8:$CG$171,12,FALSE)*$F22) ->  | N22: =IF($C22=""," ",VLOOKUP(C22,Futtermittel!$A$8:$CG$171,13,FALSE)*$F22) ->  | O22: =IF($C22=""," ",VLOOKUP($C22,Futtermittel!$A$8:$CG$171,14,FALSE)*$F22) ->  | P22: =IF($C22=""," ",VLOOKUP($C22,Futtermittel!$A$8:$CG$171,15,FALSE)*$F22) ->  | Q22: =IF($C22=""," ",VLOOKUP($C22,Futtermittel!$A$8:$CG$171,16,FALSE)*$F22) ->  | R22: =IF($C22=""," ",VLOOKUP($C22,Futtermittel!$A$8:$CG$171,17,FALSE)*$F22) ->  | S22: =IF($C22=""," ",VLOOKUP($C22,Futtermittel!$A$8:$CG$171,18,FALSE)*$F22) ->  | T22: =IF($C22=""," ",VLOOKUP($C22,Futtermittel!$A$8:$CG$171,19,FALSE)*$F22) ->  | U22: =IF($C22=""," ",VLOOKUP($C22,Futtermittel!$A$8:$CG$171,20,FALSE)*$F22) ->  | V22: =IF($C22=""," ",VLOOKUP($C22,Futtermittel!$A$8:$CG$171,21,FALSE)*$F22) ->  | W22: =IF($C22=""," ",VLOOKUP($C22,Futtermittel!$A$8:$CG$171,22,FALSE)*$F22) ->  | X22: =IF($C22=""," ",VLOOKUP($C22,Futtermittel!$A$8:$CG$171,23,FALSE)*$F22) ->  | Y22: =IF($C22=""," ",VLOOKUP($C22,Futtermittel!$A$8:$CG$171,24,FALSE)*$F22) ->  | Z22: =IF($C22=""," ",VLOOKUP($C22,Futtermittel!$A$8:$CG$171,25,FALSE)*$F22) ->  | AA22: =IF($C22=""," ",VLOOKUP($C22,Futtermittel!$A$8:$CG$171,26,FALSE)*$F22) ->  | AB22: =IF($C22=""," ",VLOOKUP($C22,Futtermittel!$A$8:$CG$171,27,FALSE)*$F22) -> 
B23: =IF($C23=""," ",VLOOKUP($C23,Futtermittel!$A$8:$CG$171,2,FALSE)) ->  | I23: =IF($C23=""," ",VLOOKUP($C23,Futtermittel!$A$8:$CG$171,8,FALSE)*$F23) ->  | J23: =IF($C23=""," ",VLOOKUP($C23,Futtermittel!$A$8:$CG$171,9,FALSE)*$F23) ->  | K23: =IF($C23=""," ",VLOOKUP($C23,Futtermittel!$A$8:$CG$171,10,FALSE)*$F23) ->  | L23: =IF($C23=""," ",VLOOKUP($C23,Futtermittel!$A$8:$CG$171,11,FALSE)*$F23) ->  | M23: =IF($C23=""," ",VLOOKUP($C23,Futtermittel!$A$8:$CG$171,12,FALSE)*$F23) ->  | N23: =IF($C23=""," ",VLOOKUP(C23,Futtermittel!$A$8:$CG$171,13,FALSE)*$F23) ->  | O23: =IF($C23=""," ",VLOOKUP($C23,Futtermittel!$A$8:$CG$171,14,FALSE)*$F23) ->  | P23: =IF($C23=""," ",VLOOKUP($C23,Futtermittel!$A$8:$CG$171,15,FALSE)*$F23) ->  | Q23: =IF($C23=""," ",VLOOKUP($C23,Futtermittel!$A$8:$CG$171,16,FALSE)*$F23) ->  | R23: =IF($C23=""," ",VLOOKUP($C23,Futtermittel!$A$8:$CG$171,17,FALSE)*$F23) ->  | S23: =IF($C23=""," ",VLOOKUP($C23,Futtermittel!$A$8:$CG$171,18,FALSE)*$F23) ->  | T23: =IF($C23=""," ",VLOOKUP($C23,Futtermittel!$A$8:$CG$171,19,FALSE)*$F23) ->  | U23: =IF($C23=""," ",VLOOKUP($C23,Futtermittel!$A$8:$CG$171,20,FALSE)*$F23) ->  | V23: =IF($C23=""," ",VLOOKUP($C23,Futtermittel!$A$8:$CG$171,21,FALSE)*$F23) ->  | W23: =IF($C23=""," ",VLOOKUP($C23,Futtermittel!$A$8:$CG$171,22,FALSE)*$F23) ->  | X23: =IF($C23=""," ",VLOOKUP($C23,Futtermittel!$A$8:$CG$171,23,FALSE)*$F23) ->  | Y23: =IF($C23=""," ",VLOOKUP($C23,Futtermittel!$A$8:$CG$171,24,FALSE)*$F23) ->  | Z23: =IF($C23=""," ",VLOOKUP($C23,Futtermittel!$A$8:$CG$171,25,FALSE)*$F23) ->  | AA23: =IF($C23=""," ",VLOOKUP($C23,Futtermittel!$A$8:$CG$171,26,FALSE)*$F23) ->  | AB23: =IF($C23=""," ",VLOOKUP($C23,Futtermittel!$A$8:$CG$171,27,FALSE)*$F23) -> 
B24: EF-Nr. | C24: Ergänzungsfutter | D24: VQ in % | G24: =IF(F24="","",I24/I$2941) ->  | AC24: =IF(E24*F24=0," ",E24*F24) -> 
B25: =IF($C25=""," ",VLOOKUP($C25,Ergänzungsfutter!$A$11:$Q$35,3,FALSE)) ->  | D25: 0.85 | G25: =IF(F25="","",I25/I$30) ->  | I25: =IF($C25=""," ",VLOOKUP($C25,Ergänzungsfutter!$A$11:$BE$35,5,FALSE)*$F25) ->  | J25: =IF($C25=""," ",VLOOKUP($C25,Ergänzungsfutter!$A$11:$BE$35,6,FALSE)*$F25) ->  | K25: =IF($C25=""," ",VLOOKUP($C25,Ergänzungsfutter!$A$11:$BE$35,6,FALSE)*$F25*D25) ->  | L25: =IF($C25=""," ",VLOOKUP($C25,Ergänzungsfutter!$A$11:$BE$35,7,FALSE)*$F25) ->  | M25: =IF($C25=""," ",IF(VLOOKUP($C25,Ergänzungsfutter!$A$11:$BE$35,8,FALSE)=" ",0,VLOOKUP($C25,Ergänzungsfutter!$A$11:$BE$35,8,FALSE)*$F25)) ->  | N25: =IF($C25=""," ",IF(VLOOKUP($C25,Ergänzungsfutter!$A$11:$BE$35,8,FALSE)=" ",0,VLOOKUP($C25,Ergänzungsfutter!$A$11:$BE$35,8,FALSE)*$F25)) ->  | O25: =IF($C25=""," ",VLOOKUP($C25,Ergänzungsfutter!$A$11:$BE$35,9,FALSE)*$F25) ->  | P25: =IF($C25=""," ",VLOOKUP($C25,Ergänzungsfutter!$A$11:$BE$35,9,FALSE)*$F25*D25) ->  | Q25: =IF($C25=""," ",VLOOKUP($C25,Ergänzungsfutter!$A$11:$BE$35,10,FALSE)*$F25) ->  | R25: =IF($C25=""," ",VLOOKUP($C25,Ergänzungsfutter!$A$11:$BE$35,10,FALSE)*$F25*D25) ->  | S25: =IF($C25=""," ",VLOOKUP($C25,Ergänzungsfutter!$A$11:$BE$35,11,FALSE)*$F25) ->  | T25: =IF($C25=""," ",VLOOKUP($C25,Ergänzungsfutter!$A$11:$BE$35,11,FALSE)*$F25*D25) ->  | U25: =IF($C25=""," ",VLOOKUP($C25,Ergänzungsfutter!$A$11:$BE$35,12,FALSE)*$F25) ->  | V25: =IF($C25=""," ",VLOOKUP($C25,Ergänzungsfutter!$A$11:$BE$35,12,FALSE)*$F25*D25) ->  | W25: =IF($C25=""," ",VLOOKUP($C25,Ergänzungsfutter!$A$11:$BE$35,13,FALSE)*$F25) ->  | X25: =IF($C25=""," ",VLOOKUP($C25,Ergänzungsfutter!$A$11:$BE$35,14,FALSE)*$F25) ->  | Y25: =IF($C25=""," ",VLOOKUP($C25,Ergänzungsfutter!$A$11:$BE$35,15,FALSE)*$F25) ->  | Z25: =IF($C25=""," ",IF(Y25>VLOOKUP($C25,Ergänzungsfutter!$A$11:$BE$35,14,FALSE)*$F25*0.65,Y25,VLOOKUP($C25,Ergänzungsfutter!$A$11:$BE$35,14,FALSE)*$F25*0.65)) ->  | AA25: =IF($C25=""," ",VLOOKUP($C25,Ergänzungsfutter!$A$11:$BE$35,16,FALSE)*$F25) ->  | AB25: =IF($C25=""," ",VLOOKUP($C25,Ergänzungsfutter!$A$11:$BE$35,17,FALSE)*$F25) -> 
B26: =IF($C26=""," ",VLOOKUP($C26,Ergänzungsfutter!$A$11:$Q$35,3,FALSE)) ->  | G26: =IF(F26="","",I26/I$30) ->  | I26: =IF($C26=""," ",VLOOKUP($C26,Ergänzungsfutter!$A$11:$BE$35,5,FALSE)*$F26) ->  | J26: =IF($C26=""," ",VLOOKUP($C26,Ergänzungsfutter!$A$11:$BE$35,6,FALSE)*$F26) ->  | K26: =IF($C26=""," ",VLOOKUP($C26,Ergänzungsfutter!$A$11:$BE$35,6,FALSE)*$F26*D26) ->  | L26: =IF($C26=""," ",VLOOKUP($C26,Ergänzungsfutter!$A$11:$BE$35,7,FALSE)*$F26) ->  | M26: =IF($C26=""," ",IF(VLOOKUP($C26,Ergänzungsfutter!$A$11:$BE$35,8,FALSE)=" ",0,VLOOKUP($C26,Ergänzungsfutter!$A$11:$BE$35,8,FALSE)*$F26)) ->  | N26: =IF($C26=""," ",IF(VLOOKUP($C26,Ergänzungsfutter!$A$11:$BE$35,8,FALSE)=" ",0,VLOOKUP($C26,Ergänzungsfutter!$A$11:$BE$35,8,FALSE)*$F26)) ->  | O26: =IF($C26=""," ",VLOOKUP($C26,Ergänzungsfutter!$A$11:$BE$35,9,FALSE)*$F26) ->  | P26: =IF($C26=""," ",VLOOKUP($C26,Ergänzungsfutter!$A$11:$BE$35,9,FALSE)*$F26*D26) ->  | Q26: =IF($C26=""," ",VLOOKUP($C26,Ergänzungsfutter!$A$11:$BE$35,10,FALSE)*$F26) ->  | R26: =IF($C26=""," ",VLOOKUP($C26,Ergänzungsfutter!$A$11:$BE$35,10,FALSE)*$F26*D26) ->  | S26: =IF($C26=""," ",VLOOKUP($C26,Ergänzungsfutter!$A$11:$BE$35,11,FALSE)*$F26) ->  | T26: =IF($C26=""," ",VLOOKUP($C26,Ergänzungsfutter!$A$11:$BE$35,11,FALSE)*$F26*D26) ->  | U26: =IF($C26=""," ",VLOOKUP($C26,Ergänzungsfutter!$A$11:$BE$35,12,FALSE)*$F26) ->  | V26: =IF($C26=""," ",VLOOKUP($C26,Ergänzungsfutter!$A$11:$BE$35,12,FALSE)*$F26*D26) ->  | W26: =IF($C26=""," ",VLOOKUP($C26,Ergänzungsfutter!$A$11:$BE$35,13,FALSE)*$F26) ->  | X26: =IF($C26=""," ",VLOOKUP($C26,Ergänzungsfutter!$A$11:$BE$35,14,FALSE)*$F26) ->  | Y26: =IF($C26=""," ",VLOOKUP($C26,Ergänzungsfutter!$A$11:$BE$35,15,FALSE)*$F26) ->  | Z26: =IF($C26=""," ",IF(Y26>VLOOKUP($C26,Ergänzungsfutter!$A$11:$BE$35,14,FALSE)*$F26*0.65,Y26,VLOOKUP($C26,Ergänzungsfutter!$A$11:$BE$35,14,FALSE)*$F26*0.65)) ->  | AA26: =IF($C26=""," ",VLOOKUP($C26,Ergänzungsfutter!$A$11:$BE$35,16,FALSE)*$F26) ->  | AB26: =IF($C26=""," ",VLOOKUP($C26,Ergänzungsfutter!$A$11:$BE$35,17,FALSE)*$F26) -> 
B27: Nr. | C27: Mineralfutter | G27: =IF(F27="","",I27/I$2944) -> 
A28: 2 | B28: =IF($C28=""," ",VLOOKUP($C28,Mineralfutter!$A$11:$BE$25,3,FALSE)) -> 5 | C28: Opti. MinFu VM 850g TZ 3,5% + Phytase 17/18 | E28: 84 | F28: 0.035 | G28: =IF(F28="","",I28/I$30) -> 0.03791236039 | H28: 35 | I28: =IF($C28=""," ",VLOOKUP($C28,Mineralfutter!$A$11:$BE$25,5,FALSE)*$F28) -> 33.6 | J28: =IF($C28=""," ",VLOOKUP($C28,Mineralfutter!$A$11:$BE$25,6,FALSE)*$F28) -> 6.950868021 | K28: =IF($C28=""," ",VLOOKUP($C28,Mineralfutter!$A$11:$BE$25,6,FALSE)*$F28) -> 6.950868021 | L28: =IF($C28=""," ",VLOOKUP($C28,Mineralfutter!$A$11:$BE$25,7,FALSE)*$F28) -> 0 | M28: =IF($C28=""," ",IF(VLOOKUP($C28,Mineralfutter!$A$11:$BE$25,8,FALSE)=" ",0,VLOOKUP($C28,Mineralfutter!$A$11:$BE$25,8,FALSE)*$F28)) -> 0.1425138362 | N28: =IF($C28=""," ",IF(VLOOKUP($C28,Mineralfutter!$A$11:$BE$25,19,FALSE)=" ",0,VLOOKUP($C28,Mineralfutter!$A$11:$BE$25,19,FALSE)*$F28)) -> 0.1494497017 | O28: =IF($C28=""," ",VLOOKUP($C28,Mineralfutter!$A$11:$BE$25,9,FALSE)*$F28) -> 4.025 | P28: =IF($C28=""," ",VLOOKUP($C28,Mineralfutter!$A$11:$BE$25,9,FALSE)*$F28) -> 4.025 | Q28: =IF($C28=""," ",VLOOKUP($C28,Mineralfutter!$A$11:$BE$25,10,FALSE)*$F28) -> 1.225 | R28: =IF($C28=""," ",VLOOKUP($C28,Mineralfutter!$A$11:$BE$25,10,FALSE)*$F28) -> 1.225 | S28: =IF($C28=""," ",VLOOKUP($C28,Mineralfutter!$A$11:$BE$25,11,FALSE)*$F28) -> 1.75 | T28: =IF($C28=""," ",VLOOKUP($C28,Mineralfutter!$A$11:$BE$25,11,FALSE)*$F28) -> 1.75 | U28: =IF($C28=""," ",VLOOKUP($C28,Mineralfutter!$A$11:$BE$25,12,FALSE)*$F28) -> 0 | V28: =IF($C28=""," ",VLOOKUP($C28,Mineralfutter!$A$11:$BE$25,12,FALSE)*$F28) -> 0 | W28: =IF($C28=""," ",VLOOKUP($C28,Mineralfutter!$A$11:$BE$25,13,FALSE)*$F28) -> 5.6 | X28: =IF($C28=""," ",VLOOKUP($C28,Mineralfutter!$A$11:$BE$25,14,FALSE)*$F28) -> 0.7 | Y28: =IF($C28=""," ",VLOOKUP($C28,Mineralfutter!$A$11:$BE$25,15,FALSE)*$F28) -> 0.56 | Z28: =IF($C28=""," ",VLOOKUP($C28,Mineralfutter!$A$11:$BE$25,15,FALSE)*$F28) -> 0.56 | AA28: =IF($C28=""," ",VLOOKUP($C28,Mineralfutter!$A$11:$BE$25,16,FALSE)*$F28) -> 0 | AB28: =IF($C28=""," ",VLOOKUP($C28,Mineralfutter!$A$11:$BE$25,17,FALSE)*$F28) -> 1.925 | AC28: 2.94
B29: =IF($C29=""," ",VLOOKUP($C29,Mineralfutter!$A$11:$BE$25,3,FALSE)) ->  | G29: =IF(F29="","",I29/I$30) ->  | I29: =IF($C29=""," ",VLOOKUP($C29,Mineralfutter!$A$11:$BE$25,5,FALSE)*$F29) ->  | J29: =IF($C29=""," ",VLOOKUP($C29,Mineralfutter!$A$11:$BE$25,6,FALSE)*$F29) ->  | K29: =IF($C29=""," ",VLOOKUP($C29,Mineralfutter!$A$11:$BE$25,6,FALSE)*$F29) ->  | L29: =IF($C29=""," ",VLOOKUP($C29,Mineralfutter!$A$11:$BE$25,7,FALSE)*$F29) ->  | M29: =IF($C29=""," ",IF(VLOOKUP($C29,Mineralfutter!$A$11:$BE$25,8,FALSE)=" ",0,VLOOKUP($C29,Mineralfutter!$A$11:$BE$25,8,FALSE)*$F29)) ->  | N29: =IF($C29=""," ",IF(VLOOKUP($C29,Mineralfutter!$A$11:$BE$25,19,FALSE)=" ",0,VLOOKUP($C29,Mineralfutter!$A$11:$BE$25,19,FALSE)*$F29)) ->  | O29: =IF($C29=""," ",VLOOKUP($C29,Mineralfutter!$A$11:$BE$25,9,FALSE)*$F29) ->  | P29: =IF($C29=""," ",VLOOKUP($C29,Mineralfutter!$A$11:$BE$25,9,FALSE)*$F29) ->  | Q29: =IF($C29=""," ",VLOOKUP($C29,Mineralfutter!$A$11:$BE$25,10,FALSE)*$F29) ->  | R29: =IF($C29=""," ",VLOOKUP($C29,Mineralfutter!$A$11:$BE$25,10,FALSE)*$F29) ->  | S29: =IF($C29=""," ",VLOOKUP($C29,Mineralfutter!$A$11:$BE$25,11,FALSE)*$F29) ->  | T29: =IF($C29=""," ",VLOOKUP($C29,Mineralfutter!$A$11:$BE$25,11,FALSE)*$F29) ->  | U29: =IF($C29=""," ",VLOOKUP($C29,Mineralfutter!$A$11:$BE$25,12,FALSE)*$F29) ->  | V29: =IF($C29=""," ",VLOOKUP($C29,Mineralfutter!$A$11:$BE$25,12,FALSE)*$F29) ->  | W29: =IF($C29=""," ",VLOOKUP($C29,Mineralfutter!$A$11:$BE$25,13,FALSE)*$F29) ->  | X29: =IF($C29=""," ",VLOOKUP($C29,Mineralfutter!$A$11:$BE$25,14,FALSE)*$F29) ->  | Y29: =IF($C29=""," ",VLOOKUP($C29,Mineralfutter!$A$11:$BE$25,15,FALSE)*$F29) ->  | Z29: =IF($C29=""," ",VLOOKUP($C29,Mineralfutter!$A$11:$BE$25,15,FALSE)*$F29) ->  | AA29: =IF($C29=""," ",VLOOKUP($C29,Mineralfutter!$A$11:$BE$25,16,FALSE)*$F29) ->  | AB29: =IF($C29=""," ",VLOOKUP($C29,Mineralfutter!$A$11:$BE$25,17,FALSE)*$F29) -> 
C30: Summe | E30: =AC30 -> 24.03967 | F30: =IF(SUM(F13:F29,F36:F37)=0," ",SUM(F13:F29,F36:F37)) -> 1 | I30: =IF(F30=" "," ",SUM(I13:I29,I36*$F36,I37*$F37)) -> 886.2545 | J30: =IF(I30=" "," ",SUM(J13:J29,J36*$F36,J37*$F37)) -> 160.236408 | K30: 134.726229 | L30: 36.469745 | M30: =IF(L30=" "," ",SUM(M13:M29,N36*$F36,N37*$F37)) -> 13.44327021 | N30: =IF(F30=" "," ",IF(N37="",(0.021503*J30+0.032497*I63+0.016309*J63+0.014701*M63-0.02107*L30),IF(N36=" ",(0.021503*J30+0.032497*I63+0.016309*J63+0.014701*M63-0.02107*L30),SUM(N13:N29)+N36*F36+N37*F37))) -> 13.38140493 | O30: =IF(M30=" "," ",SUM(O13:O29,O36*$F36,O37*$F37)) -> 11.18016612 | P30: 10.15363213 | Q30: 6.33250795 | R30: 5.622818966 | S30: 7.272997164 | T30: 6.467520493 | U30: 2.042499718 | V30: 1.742241866 | W30: 6.597388542 | X30: 4.431221928 | Y30: 2.451648771 | Z30: 3.093211446 | AA30: 1.321658567 | AB30: 2.097856134 | AC30: =IF(SUM(AC13:AC29,AC36:AC37)=0," ",SUM(AC13:AC29,AC36:AC37)) -> 24.03967
C31: Summe auf 88% TM umgerechnet | E31: =AC31 -> 23.87001657 | F31: =F30 -> 1 | I31: 880 | J31: =IF($F31=" "," ",ROUND($I31*J30/$I30*$F31,0)) -> 159 | K31: =IF($F31=" "," ",ROUND($I31*K30/$I30*$F31,0)) -> 134 | L31: =IF($F31=" "," ",ROUND($I31*L30/$I30*$F31,0)) -> 36 | M31: =IF($F31=" "," ",ROUND($I31*M30/$I30*$F31,2)) -> 13.35 | N31: =IF($F31=" "," ",ROUND($I31*N30/$I30*$F31,2)) -> 13.29 | O31: =IF($F31=" "," ",ROUND($I31*O30/$I30*$F31,1)) -> 11.1 | P31: 10.1 | Q31: 6.3 | R31: 5.6 | S31: 7.2 | T31: 6.4 | U31: 2 | V31: 1.7 | W31: 6.6 | X31: 4.4 | Y31: 2.4 | Z31: 3.1 | AA31: 1.3 | AB31: 2.1 | AC31: =IF(AC30=" "," ",AC30*I31/I30) -> 23.87001657
B32: OW-Nr. | C32: aus Tabelle Orientierungswerte in g
B33: =IF($C33=""," ",VLOOKUP($C33,Orientierungswerte!A13:AZ126,2,FALSE)) -> 10 | C33: Vormast 28 - 40 Kg LM für 850 g TZ* | E33: - | F33: =F30 -> 1 | I33: =I31 -> 880 | J33: =IF($C33=""," ",ROUND(VLOOKUP($C$33,Orientierungswerte!$A$13:$AZ$126,5,FALSE)*$F$33,0)) -> 170 | K33: =IF($C33=""," ",ROUND(VLOOKUP($C$33,Orientierungswerte!$A$13:$AZ$126,6,FALSE)*$F$33,0)) -> 151 | L33: =IF($C33=""," ",ROUND(VLOOKUP($C33,Orientierungswerte!$A$13:$AZ$126,28,FALSE)*$F$33,0)) -> 40 | M33: =IF($C33=""," ",ROUND(VLOOKUP($C$33,Orientierungswerte!$A$13:$AZ$126,4,FALSE)*$F$33,2)) -> 13.4 | N33: =IF($C33=""," ",ROUND(VLOOKUP($C$33,Orientierungswerte!$A$13:$AZ$126,4,FALSE)*$F$33,2)) -> 13.4 | O33: =IF($C33=""," ",ROUND(VLOOKUP($C$33,Orientierungswerte!$A$13:$AZ$126,7,FALSE)*$F$33,1)) -> 11.4 | P33: =IF($C33=""," ",ROUND(VLOOKUP($C$33,Orientierungswerte!$A$13:$AZ$126,8,FALSE)*$F$33,1)) -> 10.2 | Q33: =IF($C33=""," ",ROUND(VLOOKUP($C$33,Orientierungswerte!$A$13:$AZ$126,9,FALSE)*$F$33,1)) -> 6.2 | R33: =IF($C33=""," ",ROUND(VLOOKUP($C$33,Orientierungswerte!$A$13:$AZ$126,10,FALSE)*$F$33,1)) -> 5.6 | S33: =IF($C33=""," ",ROUND(VLOOKUP($C$33,Orientierungswerte!$A$13:$AZ$126,11,FALSE)*$F$33,1)) -> 7.2 | T33: =IF($C33=""," ",ROUND(VLOOKUP($C$33,Orientierungswerte!$A$13:$AZ$126,12,FALSE)*$F$33,1)) -> 6.6 | U33: =IF($C33=""," ",ROUND(VLOOKUP($C$33,Orientierungswerte!$A$13:$AZ$126,13,FALSE)*$F$33,1)) -> 2.1 | V33: =IF($C33=""," ",ROUND(VLOOKUP($C$33,Orientierungswerte!$A$13:$AZ$126,14,FALSE)*$F$33,1)) -> 1.8 | W33: =IF($C33=""," ",ROUND(VLOOKUP($C$33,Orientierungswerte!$A$13:$AZ$126,15,FALSE)*$F$33,1)) -> 6.5 | X33: =IF($C33=""," ",ROUND(VLOOKUP($C$33,Orientierungswerte!$A$13:$AZ$126,16,FALSE)*$F$33,1)) -> 4.5 | Y33: =IF($C33=""," ",ROUND(VLOOKUP($C$33,Orientierungswerte!$A$13:$AZ$126,17,FALSE)*$F$33,1)) -> 3 | Z33: =IF($C33=""," ",ROUND(VLOOKUP($C$33,Orientierungswerte!$A$13:$AZ$126,17,FALSE)*$F$33,1)) -> 3 | AA33: =IF($C33=""," ",ROUND(VLOOKUP($C$33,Orientierungswerte!$A$13:$AZ$126,18,FALSE)*$F$33,1)) -> 1 | AB33: =IF($C33=""," ",ROUND(VLOOKUP($C$33,Orientierungswerte!$A$13:$AZ$126,19,FALSE)*$F$33,1)) -> 2 | AC33: -
C34: Differenz Mischung zu Orientierungswert | E34: - | F34: =IF($C$33=""," ",ROUND((1-F31)*-1,4)) -> 0 | I34: =IF($C$33=""," ",ROUND(I31-I33,)) -> 0 | J34: =IF($C$33=""," ",ROUND(J31-J33,)) -> -11 | K34: =IF($C$33=""," ",ROUND(K31-K33,0)) -> -17 | L34: =IF($C$33=""," ",ROUND(L31-L33,0)) -> -4 | M34: =IF($C$33=""," ",ROUND(M31-M33,2)) -> -0.05 | N34: =IF($C$33=""," ",ROUND(N31-N33,2)) -> -0.11 | O34: =IF($C$33=""," ",ROUND(O31-O33,1)) -> -0.3 | P34: -0.1 | Q34: 0.1 | R34: 0 | S34: 0 | T34: -0.2 | U34: -0.1 | V34: -0.1 | W34: 0.1 | X34: -0.1 | Y34: -0.6 | Z34: 0.1 | AA34: 0.3 | AB34: 0.1 | AC34: -
B35: erforderliches Mineral- oder Ergänzungsfutter | F35: Anteil % | J35: =IF(F$36=0," ",O35*954/780+Q35*584/990+S35*731/980+U35*853/980) ->  | K35: =IF(F$36=0," ",IF(J35>200,J35*0.8,J35)) ->  | M35: =IF(F$36=0," ",O35*21.3/780+Q35*13/990+S35*16.3/980+U35*19/980) -> 
C36: opt. Mineralfutter in g/kg: | G36: =IF(F36="","",I36*F36/I$30) ->  | H36: =IF(F36=""," ",$H$8*F36*1000) ->  | I36: =IF($F36=0,0,960) -> 0 | J36: =IF($F36=0,0,O36*954/780+Q36*584/990+S36*731/980+U36*853/980) -> 0 | K36: =IF(F$36=0,0,J36) -> 0 | M36: =IF($F36=0,0,O36*19.56/780+Q36*11.97/990+S36*14.99/980+U36*17.49/980) -> 0 | N36: =IF($F36=0,0,O36*20.51/780+Q36*12.56/990+S36*15.72/980+U36*18.34/980) -> 0 | O36: 115 | P36: =O36 -> 115 | Q36: 35 | R36: =Q36 -> 35 | S36: 50 | T36: =S36 -> 50 | V36: =U36 -> 0 | W36: 160 | X36: 20 | Y36: =IF(F36=0,0,X36*0.8) -> 0 | Z36: =Y36 -> 0 | AB36: 55 | AC36: =IF(F36*E36=0,0,F36*E36) -> 0
C37: opt. Ergänzungsfutter in g/kg: | D37: 0.85 | G37: =IF(F37="","",I37*F37/I$30) ->  | H37: =IF(F37=""," ",$H$8*F37*1000) ->  | I37: =IF($F37=0,0,890) -> 0 | K37: =IF(F37=0,0,J37*D37) -> 0 | M37: =N37 -> 0 | P37: =IF(O37=0,0,O37*D37) -> 0 | R37: =IF(Q37=0,0,Q37*D37) -> 0 | T37: =IF(S37=0,0,S37*D37) -> 0 | V37: =IF(U37=0,0,U37*D37) -> 0 | Y37: =IF(F37=0,0,X37*0.75) -> 0 | Z37: =IF(F37=0,0,X37*0.75) -> 0 | AC37: =IF(F37*E37=0,0,F37*E37) -> 0
B38: pcv VQ Lys | X38: Ca / vP
F39: Lys / ME | I39: pcv Lys/ ME | L39: pcv. Lys. / pcv. M. & C. / pcv. Thr. / pcv. Trp. | T39: Ca / P | W39: mit Phytase | X39: =IF(F30=" "," ",W30/Z30) -> 2.13286051 | Y39: =IF(F30=0," ",1) -> 1 | Z39: Lys / 100g RP
B40: =IF(F30=" "," ",P31/O31) -> 0.9099099099 | C40: in der Mischung | F40: =IF(F30=" "," ",O31/M31) -> 0.8314606742 | G40: =IF(F30<=0," ",1) -> 1 | I40: =IF(F30=" "," ",P31/M31) -> 0.7565543071 | J40: =IF(L30<=0," ",1) -> 1 | L40: =IF(F30<=0," ",1) -> 1 | M40: / | N40: =IF(F30=" "," ",R30/P30) -> 0.5537741464 | O40: / | P40: =IF(F30=" "," ",T30/P30) -> 0.6369662018 | Q40: / | R40: =IF(F30=" "," ",V30/P30) -> 0.1715880429 | T40: =IF(F30=" "," ",W30/X30) -> 1.488841825 | U40: =IF(F30=0," ",1) -> 1 | W40: ohne | X40: =IF(F30=" "," ",W30/Y30) -> 2.691000693 | Y40: =IF(F30=0," ",1) -> 1 | AA40: =IF(L30=" "," ",P31*100/J31) -> 6.352201258 | AB40: =IF(L30=0," ",100) -> 100
B41: =IF(P33=" "," ",P33/O33) -> 0.8947368421 | C41: Orientierungswerte | F41: =IF($B$33=" "," ",ROUND(VLOOKUP($B$33,Orientierungswerte!$B$13:$X$114,23,TRUE),2)) -> 0.85 | G41: =IF($B$33=" ",1,ROUND(VLOOKUP($B$33,Orientierungswerte!$B$13:$X$114,19,TRUE),2)) -> 1 | I41: =IF($B$33=" "," ",ROUND(VLOOKUP($B$33,Orientierungswerte!$B$13:$AB$114,24,TRUE),2)) -> 0.76 | J41: =IF($B$33=" ",1,ROUND(VLOOKUP($B$33,Orientierungswerte!$B$13:$X$114,19,TRUE),2)) -> 1 | L41: =IF($B$33=" ",1,ROUND(VLOOKUP($B$33,Orientierungswerte!$B$13:$X$114,19,TRUE),2)) -> 1 | M41: / | N41: =IF($B$33=" "," ",ROUND(VLOOKUP($B$33,Orientierungswerte!$B$13:$X$114,20,TRUE),2)) -> 0.54 | O41: / | P41: =IF($B$33=" "," ",ROUND(VLOOKUP($B$33,Orientierungswerte!$B$13:$X$114,21,TRUE),2)) -> 0.63 | Q41: / | R41: =IF($B$33=" "," ",ROUND(VLOOKUP($B$33,Orientierungswerte!$B$13:$X$114,22,TRUE),2)) -> 0.18 | T41: =IF($B$33=" "," ",ROUND(VLOOKUP($B$33,Orientierungswerte!$B$13:$AA$114,25,TRUE),2)) -> 1.45 | U41: =IF($B$33=" ",1,ROUND(VLOOKUP($B$33,Orientierungswerte!$B$13:$X$114,19,TRUE),2)) -> 1 | X41: =IF($B$33=" "," ",ROUND(VLOOKUP($B$33,Orientierungswerte!$B$13:$AA$114,26,TRUE),2)) -> 2.18 | Y41: =IF($B$33=" ",1,ROUND(VLOOKUP($B$33,Orientierungswerte!$B$13:$X$114,19,TRUE),2)) -> 1 | AA41: =IF($B$33=" "," ",ROUND(P33*100/J33,2)) -> 6 | AB41: =IF($B$33=" ",1,ROUND(VLOOKUP($B$33,Orientierungswerte!$B$13:$X$114,19,TRUE)*100,0)) -> 100
E44: Preis | F44: Anteil | G44: Met | H44: pcv Met | I44: Roh-fett XL | J44: Stär-ke S | K44: Zu-cker Z | L44: Roh-asche XA | M44: org. Rest | N44: Poly-en-säure | O44: Linol-säure | P44: Lino-len-säure | Q44: Vit A in IE | R44: Vit D in IE | S44: Vit E in mg | T44: KAB BE in mmol | U44: SBK in meq | V44: BfS | W44: NDF om | X44: ADF om | Y44: NfE | Z44: NE_GP | AA44: NE_S | AB44: Kali-um K | AC44: DON | AD44: ZEA
B45: FM-Nr. | C45: Futtermittel + % RP in der FM | E45: €/dt | F45: % | G45: Anteil in g/kg | Q45: pro kg | V45: Anteil in g/kg | Z45: MJ/kg | AB45: g/kg | AC45: mg pro kg
B46: =B13 -> 49 | C46: =IF(C13=""," ",C13) -> eigener Weizen 10% RP Ø 2018 | E46: =IF(E13=""," ",E13) -> 17.42 | F46: 0.5385 | G46: =IF($C13=""," ",VLOOKUP(C13,Futtermittel!$A$8:$CG$171,29,FALSE)*$F13) -> 0.6410304 | H46: =IF($C13=""," ",VLOOKUP(C13,Futtermittel!$A$8:$CG$171,30,FALSE)*$F13) -> 0.564106752 | I46: =IF($C13=""," ",VLOOKUP(C13,Futtermittel!$A$8:$CG$171,31,FALSE)*$F13) -> 9.50991 | J46: =IF($C13=""," ",VLOOKUP(C13,Futtermittel!$A$8:$CG$171,32,FALSE)*$F13) -> 322.3461 | K46: =IF($C13=""," ",VLOOKUP(C13,Futtermittel!$A$8:$CG$171,33,FALSE)*$F13) -> 15.078 | L46: =IF($C13=""," ",VLOOKUP(C13,Futtermittel!$A$8:$CG$171,34,FALSE)*$F13) -> 8.9391 | M46: =IF($C13=""," ",VLOOKUP(C13,Futtermittel!$A$8:$CG$171,36,FALSE)*$F13) -> 65.551605 | N46: =IF($C13=""," ",VLOOKUP($C13,Futtermittel!$A$8:$CG$171,37,FALSE)*$F13) -> 5.842725 | O46: =IF($C13=""," ",VLOOKUP($C13,Futtermittel!$A$8:$CG$171,38,FALSE)*$F13) -> 5.3715375 | P46: =IF($C13=""," ",VLOOKUP($C13,Futtermittel!$A$8:$CG$171,39,FALSE)*$F13) -> 0.4711875 | Q46: =IF($C13=""," ",VLOOKUP($C13,Futtermittel!$A$8:$CG$171,40,FALSE)*$F13) -> 0 | R46: =IF($C13=""," ",VLOOKUP($C13,Futtermittel!$A$8:$CG$171,41,FALSE)*$F13) -> 0 | S46: =IF($C13=""," ",VLOOKUP($C13,Futtermittel!$A$8:$CG$171,42,FALSE)*$F13) -> 0 | T46: =IF($C13=""," ",VLOOKUP($C13,Futtermittel!$A$8:$CG$171,43,FALSE)*$F13) -> -13.348338 | U46: =IF($C13=""," ",VLOOKUP($C13,Futtermittel!$A$8:$CG$171,44,FALSE)*$F13) -> 169.712583 | V46: =IF($C13=""," ",VLOOKUP($C13,Futtermittel!$A$8:$CG$171,45,FALSE)*$F13) -> 27.29683425 | W46: =IF($C13=""," ",VLOOKUP($C13,Futtermittel!$A$8:$CG$171,54,FALSE)*$F13) -> 92.5855974 | X46: =IF($C13=""," ",VLOOKUP($C13,Futtermittel!$A$8:$CG$171,53,FALSE)*$F13) -> 19.880343 | Y46: =IF($C13=""," ",VLOOKUP($C13,Futtermittel!$A$8:$CG$171,46,FALSE)*$F13) -> 387.897705 | Z46: =IF($C13=""," ",VLOOKUP($C13,Futtermittel!$A$8:$CG$171,56,FALSE)*$F13) -> 5.418203296 | AA46: =IF($C13=""," ",VLOOKUP($C13,Futtermittel!$A$8:$CG$171,57,FALSE)*$F13) -> 5.558657294 | AB46: =IF($C13=""," ",VLOOKUP($C13,Futtermittel!$A$8:$CG$171,28,FALSE)*$F13) -> 2.0463 | AC46: =IF($C13=""," ",VLOOKUP($C13,Futtermittel!$A$8:$CG$171,58,FALSE)*$F13) -> 0 | AD46: =IF($C13=""," ",VLOOKUP($C13,Futtermittel!$A$8:$CG$171,59,FALSE)*$F13) -> 0
B47: 11 | C47: eigene Gerste 10% RP Ø 2018 | E47: 16.39 | F47: 0.25 | G47: =IF($C14=""," ",VLOOKUP(C14,Futtermittel!$A$8:$CG$171,29,FALSE)*$F14) -> 0.317825 | H47: =IF($C14=""," ",VLOOKUP(C14,Futtermittel!$A$8:$CG$171,30,FALSE)*$F14) -> 0.2606165 | I47: =IF($C14=""," ",VLOOKUP(C14,Futtermittel!$A$8:$CG$171,31,FALSE)*$F14) -> 5.9475 | J47: =IF($C14=""," ",VLOOKUP(C14,Futtermittel!$A$8:$CG$171,32,FALSE)*$F14) -> 125.575 | K47: =IF($C14=""," ",VLOOKUP(C14,Futtermittel!$A$8:$CG$171,33,FALSE)*$F14) -> 5.75 | L47: =IF($C14=""," ",VLOOKUP(C14,Futtermittel!$A$8:$CG$171,34,FALSE)*$F14) -> 5.9 | M47: =IF($C14=""," ",VLOOKUP(C14,Futtermittel!$A$8:$CG$171,36,FALSE)*$F14) -> 44.3975 | N47: =IF($C14=""," ",VLOOKUP($C14,Futtermittel!$A$8:$CG$171,37,FALSE)*$F14) -> 3.762758621 | O47: =IF($C14=""," ",VLOOKUP($C14,Futtermittel!$A$8:$CG$171,38,FALSE)*$F14) -> 3.459310345 | P47: =IF($C14=""," ",VLOOKUP($C14,Futtermittel!$A$8:$CG$171,39,FALSE)*$F14) -> 0.3034482759 | Q47: =IF($C14=""," ",VLOOKUP($C14,Futtermittel!$A$8:$CG$171,40,FALSE)*$F14) -> 0 | R47: =IF($C14=""," ",VLOOKUP($C14,Futtermittel!$A$8:$CG$171,41,FALSE)*$F14) -> 0 | S47: =IF($C14=""," ",VLOOKUP($C14,Futtermittel!$A$8:$CG$171,42,FALSE)*$F14) -> 0 | T47: =IF($C14=""," ",VLOOKUP($C14,Futtermittel!$A$8:$CG$171,43,FALSE)*$F14) -> -11.11420948 | U47: =IF($C14=""," ",VLOOKUP($C14,Futtermittel!$A$8:$CG$171,44,FALSE)*$F14) -> 76.242342 | V47: =IF($C14=""," ",VLOOKUP($C14,Futtermittel!$A$8:$CG$171,45,FALSE)*$F14) -> 23.87385 | W47: =IF($C14=""," ",VLOOKUP($C14,Futtermittel!$A$8:$CG$171,54,FALSE)*$F14) -> 92.25064655 | X47: =IF($C14=""," ",VLOOKUP($C14,Futtermittel!$A$8:$CG$171,53,FALSE)*$F14) -> 12.00722701 | Y47: =IF($C14=""," ",VLOOKUP($C14,Futtermittel!$A$8:$CG$171,46,FALSE)*$F14) -> 169.9725 | Z47: =IF($C14=""," ",VLOOKUP($C14,Futtermittel!$A$8:$CG$171,56,FALSE)*$F14) -> 1.906664696 | AA47: =IF($C14=""," ",VLOOKUP($C14,Futtermittel!$A$8:$CG$171,57,FALSE)*$F14) -> 1.987500265 | AB47: =IF($C14=""," ",VLOOKUP($C14,Futtermittel!$A$8:$CG$171,28,FALSE)*$F14) -> 1.1 | AC47: =IF($C14=""," ",VLOOKUP($C14,Futtermittel!$A$8:$CG$171,58,FALSE)*$F14) -> 0 | AD47: =IF($C14=""," ",VLOOKUP($C14,Futtermittel!$A$8:$CG$171,59,FALSE)*$F14) -> 0
B48: 100 | C48: Sojaschrot HP 47% RP | E48: 38 | F48: 0.161 | G48: =IF($C15=""," ",VLOOKUP(C15,Futtermittel!$A$8:$CG$171,29,FALSE)*$F15) -> 1.014647614 | H48: =IF($C15=""," ",VLOOKUP(C15,Futtermittel!$A$8:$CG$171,30,FALSE)*$F15) -> 0.8928899 | I48: =IF($C15=""," ",VLOOKUP(C15,Futtermittel!$A$8:$CG$171,31,FALSE)*$F15) -> 3.059 | J48: =IF($C15=""," ",VLOOKUP(C15,Futtermittel!$A$8:$CG$171,32,FALSE)*$F15) -> 6.762 | K48: =IF($C15=""," ",VLOOKUP(C15,Futtermittel!$A$8:$CG$171,33,FALSE)*$F15) -> 14.651 | L48: =IF($C15=""," ",VLOOKUP(C15,Futtermittel!$A$8:$CG$171,34,FALSE)*$F15) -> 10.787 | M48: =IF($C15=""," ",VLOOKUP(C15,Futtermittel!$A$8:$CG$171,36,FALSE)*$F15) -> 38.64 | N48: =IF($C15=""," ",VLOOKUP($C15,Futtermittel!$A$8:$CG$171,37,FALSE)*$F15) -> 1.65186 | O48: =IF($C15=""," ",VLOOKUP($C15,Futtermittel!$A$8:$CG$171,38,FALSE)*$F15) -> 1.5295 | P48: =IF($C15=""," ",VLOOKUP($C15,Futtermittel!$A$8:$CG$171,39,FALSE)*$F15) -> 0.12236 | Q48: =IF($C15=""," ",VLOOKUP($C15,Futtermittel!$A$8:$CG$171,40,FALSE)*$F15) -> 0 | R48: =IF($C15=""," ",VLOOKUP($C15,Futtermittel!$A$8:$CG$171,41,FALSE)*$F15) -> 0 | S48: =IF($C15=""," ",VLOOKUP($C15,Futtermittel!$A$8:$CG$171,42,FALSE)*$F15) -> 0 | T48: =IF($C15=""," ",VLOOKUP($C15,Futtermittel!$A$8:$CG$171,43,FALSE)*$F15) -> 57.35972564 | U48: =IF($C15=""," ",VLOOKUP($C15,Futtermittel!$A$8:$CG$171,44,FALSE)*$F15) -> 221.5789366 | V48: =IF($C15=""," ",VLOOKUP($C15,Futtermittel!$A$8:$CG$171,45,FALSE)*$F15) -> 27.73386 | W48: =IF($C15=""," ",VLOOKUP($C15,Futtermittel!$A$8:$CG$171,54,FALSE)*$F15) -> 20.80496364 | X48: =IF($C15=""," ",VLOOKUP($C15,Futtermittel!$A$8:$CG$171,53,FALSE)*$F15) -> 14.8304 | Y48: =IF($C15=""," ",VLOOKUP($C15,Futtermittel!$A$8:$CG$171,46,FALSE)*$F15) -> 45.402 | Z48: =IF($C15=""," ",VLOOKUP($C15,Futtermittel!$A$8:$CG$171,56,FALSE)*$F15) -> 1.407005161 | AA48: =IF($C15=""," ",VLOOKUP($C15,Futtermittel!$A$8:$CG$171,57,FALSE)*$F15) -> 1.461381076 | AB48: =IF($C15=""," ",VLOOKUP($C15,Futtermittel!$A$8:$CG$171,28,FALSE)*$F15) -> 3.324328 | AC48: =IF($C15=""," ",VLOOKUP($C15,Futtermittel!$A$8:$CG$171,58,FALSE)*$F15) -> 0 | AD48: =IF($C15=""," ",VLOOKUP($C15,Futtermittel!$A$8:$CG$171,59,FALSE)*$F15) -> 0
B49: 140 | C49: Rapsöl / Pflanzenöl DLG 2014 | E49: 97 | F49: 0.0155 | G49: =IF($C16=""," ",VLOOKUP(C16,Futtermittel!$A$8:$CG$171,29,FALSE)*$F16) -> 0 | H49: =IF($C16=""," ",VLOOKUP(C16,Futtermittel!$A$8:$CG$171,30,FALSE)*$F16) -> 0 | I49: =IF($C16=""," ",VLOOKUP(C16,Futtermittel!$A$8:$CG$171,31,FALSE)*$F16) -> 15.469 | J49: =IF($C16=""," ",VLOOKUP(C16,Futtermittel!$A$8:$CG$171,32,FALSE)*$F16) -> 0 | K49: =IF($C16=""," ",VLOOKUP(C16,Futtermittel!$A$8:$CG$171,33,FALSE)*$F16) -> 0 | L49: =IF($C16=""," ",VLOOKUP(C16,Futtermittel!$A$8:$CG$171,34,FALSE)*$F16) -> 0 | M49: =IF($C16=""," ",VLOOKUP(C16,Futtermittel!$A$8:$CG$171,36,FALSE)*$F16) -> 0 | N49: =IF($C16=""," ",VLOOKUP($C16,Futtermittel!$A$8:$CG$171,37,FALSE)*$F16) -> 4.4795 | O49: =IF($C16=""," ",VLOOKUP($C16,Futtermittel!$A$8:$CG$171,38,FALSE)*$F16) -> 3.0938 | P49: =IF($C16=""," ",VLOOKUP($C16,Futtermittel!$A$8:$CG$171,39,FALSE)*$F16) -> 1.39221 | Q49: =IF($C16=""," ",VLOOKUP($C16,Futtermittel!$A$8:$CG$171,40,FALSE)*$F16) -> 0 | R49: =IF($C16=""," ",VLOOKUP($C16,Futtermittel!$A$8:$CG$171,41,FALSE)*$F16) -> 0 | S49: =IF($C16=""," ",VLOOKUP($C16,Futtermittel!$A$8:$CG$171,42,FALSE)*$F16) -> 0 | T49: =IF($C16=""," ",VLOOKUP($C16,Futtermittel!$A$8:$CG$171,43,FALSE)*$F16) -> 0 | U49: =IF($C16=""," ",VLOOKUP($C16,Futtermittel!$A$8:$CG$171,44,FALSE)*$F16) -> 0 | V49: =IF($C16=""," ",VLOOKUP($C16,Futtermittel!$A$8:$CG$171,45,FALSE)*$F16) -> 0 | W49: =IF($C16=""," ",VLOOKUP($C16,Futtermittel!$A$8:$CG$171,54,FALSE)*$F16) -> 0 | X49: =IF($C16=""," ",VLOOKUP($C16,Futtermittel!$A$8:$CG$171,53,FALSE)*$F16) -> 0 | Y49: =IF($C16=""," ",VLOOKUP($C16,Futtermittel!$A$8:$CG$171,46,FALSE)*$F16) -> 0 | Z49: =IF($C16=""," ",VLOOKUP($C16,Futtermittel!$A$8:$CG$171,56,FALSE)*$F16) -> 0.4698382473 | AA49: =IF($C16=""," ",VLOOKUP($C16,Futtermittel!$A$8:$CG$171,57,FALSE)*$F16) -> 0.475003046 | AB49: =IF($C16=""," ",VLOOKUP($C16,Futtermittel!$A$8:$CG$171,28,FALSE)*$F16) -> 0 | AC49: =IF($C16=""," ",VLOOKUP($C16,Futtermittel!$A$8:$CG$171,58,FALSE)*$F16) -> 0 | AD49: =IF($C16=""," ",VLOOKUP($C16,Futtermittel!$A$8:$CG$171,59,FALSE)*$F16) -> 0
G50: =IF($C17=""," ",VLOOKUP(C17,Futtermittel!$A$8:$CG$171,29,FALSE)*$F17) ->  | H50: =IF($C17=""," ",VLOOKUP(C17,Futtermittel!$A$8:$CG$171,30,FALSE)*$F17) ->  | I50: =IF($C17=""," ",VLOOKUP(C17,Futtermittel!$A$8:$CG$171,31,FALSE)*$F17) ->  | J50: =IF($C17=""," ",VLOOKUP(C17,Futtermittel!$A$8:$CG$171,32,FALSE)*$F17) ->  | K50: =IF($C17=""," ",VLOOKUP(C17,Futtermittel!$A$8:$CG$171,33,FALSE)*$F17) ->  | L50: =IF($C17=""," ",VLOOKUP(C17,Futtermittel!$A$8:$CG$171,34,FALSE)*$F17) ->  | M50: =IF($C17=""," ",VLOOKUP(C17,Futtermittel!$A$8:$CG$171,36,FALSE)*$F17) ->  | N50: =IF($C17=""," ",VLOOKUP($C17,Futtermittel!$A$8:$CG$171,37,FALSE)*$F17) ->  | O50: =IF($C17=""," ",VLOOKUP($C17,Futtermittel!$A$8:$CG$171,38,FALSE)*$F17) ->  | P50: =IF($C17=""," ",VLOOKUP($C17,Futtermittel!$A$8:$CG$171,39,FALSE)*$F17) ->  | Q50: =IF($C17=""," ",VLOOKUP($C17,Futtermittel!$A$8:$CG$171,40,FALSE)*$F17) ->  | R50: =IF($C17=""," ",VLOOKUP($C17,Futtermittel!$A$8:$CG$171,41,FALSE)*$F17) ->  | S50: =IF($C17=""," ",VLOOKUP($C17,Futtermittel!$A$8:$CG$171,42,FALSE)*$F17) ->  | T50: =IF($C17=""," ",VLOOKUP($C17,Futtermittel!$A$8:$CG$171,43,FALSE)*$F17) ->  | U50: =IF($C17=""," ",VLOOKUP($C17,Futtermittel!$A$8:$CG$171,44,FALSE)*$F17) ->  | V50: =IF($C17=""," ",VLOOKUP($C17,Futtermittel!$A$8:$CG$171,45,FALSE)*$F17) ->  | W50: =IF($C17=""," ",VLOOKUP($C17,Futtermittel!$A$8:$CG$171,54,FALSE)*$F17) ->  | X50: =IF($C17=""," ",VLOOKUP($C17,Futtermittel!$A$8:$CG$171,53,FALSE)*$F17) ->  | Y50: =IF($C17=""," ",VLOOKUP($C17,Futtermittel!$A$8:$CG$171,46,FALSE)*$F17) ->  | Z50: =IF($C17=""," ",VLOOKUP($C17,Futtermittel!$A$8:$CG$171,56,FALSE)*$F17) ->  | AA50: =IF($C17=""," ",VLOOKUP($C17,Futtermittel!$A$8:$CG$171,57,FALSE)*$F17) ->  | AB50: =IF($C17=""," ",VLOOKUP($C17,Futtermittel!$A$8:$CG$171,28,FALSE)*$F17) ->  | AC50: =IF($C17=""," ",VLOOKUP($C17,Futtermittel!$A$8:$CG$171,58,FALSE)*$F17) ->  | AD50: =IF($C17=""," ",VLOOKUP($C17,Futtermittel!$A$8:$CG$171,59,FALSE)*$F17) -> 
G51: =IF($C18=""," ",VLOOKUP(C18,Futtermittel!$A$8:$CG$171,29,FALSE)*$F18) ->  | H51: =IF($C18=""," ",VLOOKUP(C18,Futtermittel!$A$8:$CG$171,30,FALSE)*$F18) ->  | I51: =IF($C18=""," ",VLOOKUP(C18,Futtermittel!$A$8:$CG$171,31,FALSE)*$F18) ->  | J51: =IF($C18=""," ",VLOOKUP(C18,Futtermittel!$A$8:$CG$171,32,FALSE)*$F18) ->  | K51: =IF($C18=""," ",VLOOKUP(C18,Futtermittel!$A$8:$CG$171,33,FALSE)*$F18) ->  | L51: =IF($C18=""," ",VLOOKUP(C18,Futtermittel!$A$8:$CG$171,34,FALSE)*$F18) ->  | M51: =IF($C18=""," ",VLOOKUP(C18,Futtermittel!$A$8:$CG$171,36,FALSE)*$F18) ->  | N51: =IF($C18=""," ",VLOOKUP($C18,Futtermittel!$A$8:$CG$171,37,FALSE)*$F18) ->  | O51: =IF($C18=""," ",VLOOKUP($C18,Futtermittel!$A$8:$CG$171,38,FALSE)*$F18) ->  | P51: =IF($C18=""," ",VLOOKUP($C18,Futtermittel!$A$8:$CG$171,39,FALSE)*$F18) ->  | Q51: =IF($C18=""," ",VLOOKUP($C18,Futtermittel!$A$8:$CG$171,40,FALSE)*$F18) ->  | R51: =IF($C18=""," ",VLOOKUP($C18,Futtermittel!$A$8:$CG$171,41,FALSE)*$F18) ->  | S51: =IF($C18=""," ",VLOOKUP($C18,Futtermittel!$A$8:$CG$171,42,FALSE)*$F18) ->  | T51: =IF($C18=""," ",VLOOKUP($C18,Futtermittel!$A$8:$CG$171,43,FALSE)*$F18) ->  | U51: =IF($C18=""," ",VLOOKUP($C18,Futtermittel!$A$8:$CG$171,44,FALSE)*$F18) ->  | V51: =IF($C18=""," ",VLOOKUP($C18,Futtermittel!$A$8:$CG$171,45,FALSE)*$F18) ->  | W51: =IF($C18=""," ",VLOOKUP($C18,Futtermittel!$A$8:$CG$171,54,FALSE)*$F18) ->  | X51: =IF($C18=""," ",VLOOKUP($C18,Futtermittel!$A$8:$CG$171,53,FALSE)*$F18) ->  | Y51: =IF($C18=""," ",VLOOKUP($C18,Futtermittel!$A$8:$CG$171,46,FALSE)*$F18) ->  | Z51: =IF($C18=""," ",VLOOKUP($C18,Futtermittel!$A$8:$CG$171,56,FALSE)*$F18) ->  | AA51: =IF($C18=""," ",VLOOKUP($C18,Futtermittel!$A$8:$CG$171,57,FALSE)*$F18) ->  | AB51: =IF($C18=""," ",VLOOKUP($C18,Futtermittel!$A$8:$CG$171,28,FALSE)*$F18) ->  | AC51: =IF($C18=""," ",VLOOKUP($C18,Futtermittel!$A$8:$CG$171,58,FALSE)*$F18) ->  | AD51: =IF($C18=""," ",VLOOKUP($C18,Futtermittel!$A$8:$CG$171,59,FALSE)*$F18) -> 
G52: =IF($C19=""," ",VLOOKUP(C19,Futtermittel!$A$8:$CG$171,29,FALSE)*$F19) ->  | H52: =IF($C19=""," ",VLOOKUP(C19,Futtermittel!$A$8:$CG$171,30,FALSE)*$F19) ->  | I52: =IF($C19=""," ",VLOOKUP(C19,Futtermittel!$A$8:$CG$171,31,FALSE)*$F19) ->  | J52: =IF($C19=""," ",VLOOKUP(C19,Futtermittel!$A$8:$CG$171,32,FALSE)*$F19) ->  | K52: =IF($C19=""," ",VLOOKUP(C19,Futtermittel!$A$8:$CG$171,33,FALSE)*$F19) ->  | L52: =IF($C19=""," ",VLOOKUP(C19,Futtermittel!$A$8:$CG$171,34,FALSE)*$F19) ->  | M52: =IF($C19=""," ",VLOOKUP(C19,Futtermittel!$A$8:$CG$171,36,FALSE)*$F19) ->  | N52: =IF($C19=""," ",VLOOKUP($C19,Futtermittel!$A$8:$CG$171,37,FALSE)*$F19) ->  | O52: =IF($C19=""," ",VLOOKUP($C19,Futtermittel!$A$8:$CG$171,38,FALSE)*$F19) ->  | P52: =IF($C19=""," ",VLOOKUP($C19,Futtermittel!$A$8:$CG$171,39,FALSE)*$F19) ->  | Q52: =IF($C19=""," ",VLOOKUP($C19,Futtermittel!$A$8:$CG$171,40,FALSE)*$F19) ->  | R52: =IF($C19=""," ",VLOOKUP($C19,Futtermittel!$A$8:$CG$171,41,FALSE)*$F19) ->  | S52: =IF($C19=""," ",VLOOKUP($C19,Futtermittel!$A$8:$CG$171,42,FALSE)*$F19) ->  | T52: =IF($C19=""," ",VLOOKUP($C19,Futtermittel!$A$8:$CG$171,43,FALSE)*$F19) ->  | U52: =IF($C19=""," ",VLOOKUP($C19,Futtermittel!$A$8:$CG$171,44,FALSE)*$F19) ->  | V52: =IF($C19=""," ",VLOOKUP($C19,Futtermittel!$A$8:$CG$171,45,FALSE)*$F19) ->  | W52: =IF($C19=""," ",VLOOKUP($C19,Futtermittel!$A$8:$CG$171,54,FALSE)*$F19) ->  | X52: =IF($C19=""," ",VLOOKUP($C19,Futtermittel!$A$8:$CG$171,53,FALSE)*$F19) ->  | Y52: =IF($C19=""," ",VLOOKUP($C19,Futtermittel!$A$8:$CG$171,46,FALSE)*$F19) ->  | Z52: =IF($C19=""," ",VLOOKUP($C19,Futtermittel!$A$8:$CG$171,56,FALSE)*$F19) ->  | AA52: =IF($C19=""," ",VLOOKUP($C19,Futtermittel!$A$8:$CG$171,57,FALSE)*$F19) ->  | AB52: =IF($C19=""," ",VLOOKUP($C19,Futtermittel!$A$8:$CG$171,28,FALSE)*$F19) ->  | AC52: =IF($C19=""," ",VLOOKUP($C19,Futtermittel!$A$8:$CG$171,58,FALSE)*$F19) ->  | AD52: =IF($C19=""," ",VLOOKUP($C19,Futtermittel!$A$8:$CG$171,59,FALSE)*$F19) -> 
G53: =IF($C20=""," ",VLOOKUP(C20,Futtermittel!$A$8:$CG$171,29,FALSE)*$F20) ->  | H53: =IF($C20=""," ",VLOOKUP(C20,Futtermittel!$A$8:$CG$171,30,FALSE)*$F20) ->  | I53: =IF($C20=""," ",VLOOKUP(C20,Futtermittel!$A$8:$CG$171,31,FALSE)*$F20) ->  | J53: =IF($C20=""," ",VLOOKUP(C20,Futtermittel!$A$8:$CG$171,32,FALSE)*$F20) ->  | K53: =IF($C20=""," ",VLOOKUP(C20,Futtermittel!$A$8:$CG$171,33,FALSE)*$F20) ->  | L53: =IF($C20=""," ",VLOOKUP(C20,Futtermittel!$A$8:$CG$171,34,FALSE)*$F20) ->  | M53: =IF($C20=""," ",VLOOKUP(C20,Futtermittel!$A$8:$CG$171,36,FALSE)*$F20) ->  | N53: =IF($C20=""," ",VLOOKUP($C20,Futtermittel!$A$8:$CG$171,37,FALSE)*$F20) ->  | O53: =IF($C20=""," ",VLOOKUP($C20,Futtermittel!$A$8:$CG$171,38,FALSE)*$F20) ->  | P53: =IF($C20=""," ",VLOOKUP($C20,Futtermittel!$A$8:$CG$171,39,FALSE)*$F20) ->  | Q53: =IF($C20=""," ",VLOOKUP($C20,Futtermittel!$A$8:$CG$171,40,FALSE)*$F20) ->  | R53: =IF($C20=""," ",VLOOKUP($C20,Futtermittel!$A$8:$CG$171,41,FALSE)*$F20) ->  | S53: =IF($C20=""," ",VLOOKUP($C20,Futtermittel!$A$8:$CG$171,42,FALSE)*$F20) ->  | T53: =IF($C20=""," ",VLOOKUP($C20,Futtermittel!$A$8:$CG$171,43,FALSE)*$F20) ->  | U53: =IF($C20=""," ",VLOOKUP($C20,Futtermittel!$A$8:$CG$171,44,FALSE)*$F20) ->  | V53: =IF($C20=""," ",VLOOKUP($C20,Futtermittel!$A$8:$CG$171,45,FALSE)*$F20) ->  | W53: =IF($C20=""," ",VLOOKUP($C20,Futtermittel!$A$8:$CG$171,54,FALSE)*$F20) ->  | X53: =IF($C20=""," ",VLOOKUP($C20,Futtermittel!$A$8:$CG$171,53,FALSE)*$F20) ->  | Y53: =IF($C20=""," ",VLOOKUP($C20,Futtermittel!$A$8:$CG$171,46,FALSE)*$F20) ->  | Z53: =IF($C20=""," ",VLOOKUP($C20,Futtermittel!$A$8:$CG$171,56,FALSE)*$F20) ->  | AA53: =IF($C20=""," ",VLOOKUP($C20,Futtermittel!$A$8:$CG$171,57,FALSE)*$F20) ->  | AB53: =IF($C20=""," ",VLOOKUP($C20,Futtermittel!$A$8:$CG$171,28,FALSE)*$F20) ->  | AC53: =IF($C20=""," ",VLOOKUP($C20,Futtermittel!$A$8:$CG$171,58,FALSE)*$F20) ->  | AD53: =IF($C20=""," ",VLOOKUP($C20,Futtermittel!$A$8:$CG$171,59,FALSE)*$F20) -> 
B54: =B21 ->  | E54: =IF(E21=""," ",E21) ->  | F54: =IF(F21=""," ",F21) ->  | G54: =IF($C21=""," ",VLOOKUP(C21,Futtermittel!$A$8:$CG$171,29,FALSE)*$F21) ->  | H54: =IF($C21=""," ",VLOOKUP(C21,Futtermittel!$A$8:$CG$171,30,FALSE)*$F21) ->  | I54: =IF($C21=""," ",VLOOKUP(C21,Futtermittel!$A$8:$CG$171,31,FALSE)*$F21) ->  | J54: =IF($C21=""," ",VLOOKUP(C21,Futtermittel!$A$8:$CG$171,32,FALSE)*$F21) ->  | K54: =IF($C21=""," ",VLOOKUP(C21,Futtermittel!$A$8:$CG$171,33,FALSE)*$F21) ->  | L54: =IF($C21=""," ",VLOOKUP(C21,Futtermittel!$A$8:$CG$171,34,FALSE)*$F21) ->  | M54: =IF($C21=""," ",VLOOKUP(C21,Futtermittel!$A$8:$CG$171,36,FALSE)*$F21) ->  | N54: =IF($C21=""," ",VLOOKUP($C21,Futtermittel!$A$8:$CG$171,37,FALSE)*$F21) ->  | O54: =IF($C21=""," ",VLOOKUP($C21,Futtermittel!$A$8:$CG$171,38,FALSE)*$F21) ->  | P54: =IF($C21=""," ",VLOOKUP($C21,Futtermittel!$A$8:$CG$171,39,FALSE)*$F21) ->  | Q54: =IF($C21=""," ",VLOOKUP($C21,Futtermittel!$A$8:$CG$171,40,FALSE)*$F21) ->  | R54: =IF($C21=""," ",VLOOKUP($C21,Futtermittel!$A$8:$CG$171,41,FALSE)*$F21) ->  | S54: =IF($C21=""," ",VLOOKUP($C21,Futtermittel!$A$8:$CG$171,42,FALSE)*$F21) ->  | T54: =IF($C21=""," ",VLOOKUP($C21,Futtermittel!$A$8:$CG$171,43,FALSE)*$F21) ->  | U54: =IF($C21=""," ",VLOOKUP($C21,Futtermittel!$A$8:$CG$171,44,FALSE)*$F21) ->  | V54: =IF($C21=""," ",VLOOKUP($C21,Futtermittel!$A$8:$CG$171,45,FALSE)*$F21) ->  | W54: =IF($C21=""," ",VLOOKUP($C21,Futtermittel!$A$8:$CG$171,54,FALSE)*$F21) ->  | X54: =IF($C21=""," ",VLOOKUP($C21,Futtermittel!$A$8:$CG$171,53,FALSE)*$F21) ->  | Y54: =IF($C21=""," ",VLOOKUP($C21,Futtermittel!$A$8:$CG$171,46,FALSE)*$F21) ->  | Z54: =IF($C21=""," ",VLOOKUP($C21,Futtermittel!$A$8:$CG$171,56,FALSE)*$F21) ->  | AA54: =IF($C21=""," ",VLOOKUP($C21,Futtermittel!$A$8:$CG$171,57,FALSE)*$F21) ->  | AB54: =IF($C21=""," ",VLOOKUP($C21,Futtermittel!$A$8:$CG$171,28,FALSE)*$F21) ->  | AC54: =IF($C21=""," ",VLOOKUP($C21,Futtermittel!$A$8:$CG$171,58,FALSE)*$F21) ->  | AD54: =IF($C21=""," ",VLOOKUP($C21,Futtermittel!$A$8:$CG$171,59,FALSE)*$F21) -> 
F55: =IF(F22=""," ",F22) ->  | G55: =IF($C22=""," ",VLOOKUP(C22,Futtermittel!$A$8:$CG$171,29,FALSE)*$F22) ->  | H55: =IF($C22=""," ",VLOOKUP(C22,Futtermittel!$A$8:$CG$171,30,FALSE)*$F22) ->  | I55: =IF($C22=""," ",VLOOKUP(C22,Futtermittel!$A$8:$CG$171,31,FALSE)*$F22) ->  | J55: =IF($C22=""," ",VLOOKUP(C22,Futtermittel!$A$8:$CG$171,32,FALSE)*$F22) ->  | K55: =IF($C22=""," ",VLOOKUP(C22,Futtermittel!$A$8:$CG$171,33,FALSE)*$F22) ->  | L55: =IF($C22=""," ",VLOOKUP(C22,Futtermittel!$A$8:$CG$171,34,FALSE)*$F22) ->  | M55: =IF($C22=""," ",VLOOKUP(C22,Futtermittel!$A$8:$CG$171,36,FALSE)*$F22) ->  | N55: =IF($C22=""," ",VLOOKUP($C22,Futtermittel!$A$8:$CG$171,37,FALSE)*$F22) ->  | O55: =IF($C22=""," ",VLOOKUP($C22,Futtermittel!$A$8:$CG$171,38,FALSE)*$F22) ->  | P55: =IF($C22=""," ",VLOOKUP($C22,Futtermittel!$A$8:$CG$171,39,FALSE)*$F22) ->  | Q55: =IF($C22=""," ",VLOOKUP($C22,Futtermittel!$A$8:$CG$171,40,FALSE)*$F22) ->  | R55: =IF($C22=""," ",VLOOKUP($C22,Futtermittel!$A$8:$CG$171,41,FALSE)*$F22) ->  | S55: =IF($C22=""," ",VLOOKUP($C22,Futtermittel!$A$8:$CG$171,42,FALSE)*$F22) ->  | T55: =IF($C22=""," ",VLOOKUP($C22,Futtermittel!$A$8:$CG$171,43,FALSE)*$F22) ->  | U55: =IF($C22=""," ",VLOOKUP($C22,Futtermittel!$A$8:$CG$171,44,FALSE)*$F22) ->  | V55: =IF($C22=""," ",VLOOKUP($C22,Futtermittel!$A$8:$CG$171,45,FALSE)*$F22) ->  | W55: =IF($C22=""," ",VLOOKUP($C22,Futtermittel!$A$8:$CG$171,54,FALSE)*$F22) ->  | X55: =IF($C22=""," ",VLOOKUP($C22,Futtermittel!$A$8:$CG$171,53,FALSE)*$F22) ->  | Y55: =IF($C22=""," ",VLOOKUP($C22,Futtermittel!$A$8:$CG$171,46,FALSE)*$F22) ->  | Z55: =IF($C22=""," ",VLOOKUP($C22,Futtermittel!$A$8:$CG$171,56,FALSE)*$F22) ->  | AA55: =IF($C22=""," ",VLOOKUP($C22,Futtermittel!$A$8:$CG$171,57,FALSE)*$F22) ->  | AB55: =IF($C22=""," ",VLOOKUP($C22,Futtermittel!$A$8:$CG$171,28,FALSE)*$F22) ->  | AC55: =IF($C22=""," ",VLOOKUP($C22,Futtermittel!$A$8:$CG$171,58,FALSE)*$F22) ->  | AD55: =IF($C22=""," ",VLOOKUP($C22,Futtermittel!$A$8:$CG$171,59,FALSE)*$F22) -> 
F56: =IF(F23=""," ",F23) ->  | G56: =IF($C23=""," ",VLOOKUP(C23,Futtermittel!$A$8:$CG$171,29,FALSE)*$F23) ->  | H56: =IF($C23=""," ",VLOOKUP(C23,Futtermittel!$A$8:$CG$171,30,FALSE)*$F23) ->  | I56: =IF($C23=""," ",VLOOKUP(C23,Futtermittel!$A$8:$CG$171,31,FALSE)*$F23) ->  | J56: =IF($C23=""," ",VLOOKUP(C23,Futtermittel!$A$8:$CG$171,32,FALSE)*$F23) ->  | K56: =IF($C23=""," ",VLOOKUP(C23,Futtermittel!$A$8:$CG$171,33,FALSE)*$F23) ->  | L56: =IF($C23=""," ",VLOOKUP(C23,Futtermittel!$A$8:$CG$171,34,FALSE)*$F23) ->  | M56: =IF($C23=""," ",VLOOKUP(C23,Futtermittel!$A$8:$CG$171,36,FALSE)*$F23) ->  | N56: =IF($C23=""," ",VLOOKUP($C23,Futtermittel!$A$8:$CG$171,37,FALSE)*$F23) ->  | O56: =IF($C23=""," ",VLOOKUP($C23,Futtermittel!$A$8:$CG$171,38,FALSE)*$F23) ->  | P56: =IF($C23=""," ",VLOOKUP($C23,Futtermittel!$A$8:$CG$171,39,FALSE)*$F23) ->  | Q56: =IF($C23=""," ",VLOOKUP($C23,Futtermittel!$A$8:$CG$171,40,FALSE)*$F23) ->  | R56: =IF($C23=""," ",VLOOKUP($C23,Futtermittel!$A$8:$CG$171,41,FALSE)*$F23) ->  | S56: =IF($C23=""," ",VLOOKUP($C23,Futtermittel!$A$8:$CG$171,42,FALSE)*$F23) ->  | T56: =IF($C23=""," ",VLOOKUP($C23,Futtermittel!$A$8:$CG$171,43,FALSE)*$F23) ->  | U56: =IF($C23=""," ",VLOOKUP($C23,Futtermittel!$A$8:$CG$171,44,FALSE)*$F23) ->  | V56: =IF($C23=""," ",VLOOKUP($C23,Futtermittel!$A$8:$CG$171,45,FALSE)*$F23) ->  | W56: =IF($C23=""," ",VLOOKUP($C23,Futtermittel!$A$8:$CG$171,54,FALSE)*$F23) ->  | X56: =IF($C23=""," ",VLOOKUP($C23,Futtermittel!$A$8:$CG$171,53,FALSE)*$F23) ->  | Y56: =IF($C23=""," ",VLOOKUP($C23,Futtermittel!$A$8:$CG$171,46,FALSE)*$F23) ->  | Z56: =IF($C23=""," ",VLOOKUP($C23,Futtermittel!$A$8:$CG$171,56,FALSE)*$F23) ->  | AA56: =IF($C23=""," ",VLOOKUP($C23,Futtermittel!$A$8:$CG$171,57,FALSE)*$F23) ->  | AB56: =IF($C23=""," ",VLOOKUP($C23,Futtermittel!$A$8:$CG$171,28,FALSE)*$F23) ->  | AC56: =IF($C23=""," ",VLOOKUP($C23,Futtermittel!$A$8:$CG$171,58,FALSE)*$F23) ->  | AD56: =IF($C23=""," ",VLOOKUP($C23,Futtermittel!$A$8:$CG$171,59,FALSE)*$F23) -> 
B57: EF-Nr. | C57: Ergänzungsfutter | D57: VQ in %
C58: =IF(C25=""," ",C25) ->  | D58: 0.85 | G58: =IF($C25=""," ",VLOOKUP($C25,Ergänzungsfutter!$A$11:$BE$35,20,FALSE)*$F25) ->  | H58: =IF($C25=""," ",VLOOKUP($C25,Ergänzungsfutter!$A$11:$BE$35,20,FALSE)*$F25*D25) ->  | I58: =IF($C25=""," ",VLOOKUP($C25,Ergänzungsfutter!$A$11:$BE$35,21,FALSE)*$F25) ->  | J58: =IF($C25=""," ",VLOOKUP($C25,Ergänzungsfutter!$A$11:$BE$35,22,FALSE)*$F25) ->  | K58: =IF($C25=""," ",VLOOKUP($C25,Ergänzungsfutter!$A$11:$BE$35,23,FALSE)*$F25) ->  | L58: =IF($C25=""," ",VLOOKUP($C25,Ergänzungsfutter!$A$11:$BE$35,24,FALSE)*$F25) ->  | M58: =IF($C25=""," ",VLOOKUP($C25,Ergänzungsfutter!$A$11:$BE$35,24,FALSE)*$F25) ->  | N58: =IF($C25=""," ",VLOOKUP($C25,Ergänzungsfutter!$A$11:$BE$35,27,FALSE)*$F25) ->  | O58: =IF($C25=""," ",VLOOKUP($C25,Ergänzungsfutter!$A$11:$BE$35,28,FALSE)*$F25) ->  | P58: =IF($C25=""," ",VLOOKUP($C25,Ergänzungsfutter!$A$11:$BE$35,29,FALSE)*$F25) ->  | Q58: =IF($C25=""," ",VLOOKUP($C25,Ergänzungsfutter!$A$11:$BE$35,30,FALSE)*$F25) ->  | R58: =IF($C25=""," ",VLOOKUP($C25,Ergänzungsfutter!$A$11:$BE$35,31,FALSE)*$F25) ->  | S58: =IF($C25=""," ",VLOOKUP($C25,Ergänzungsfutter!$A$11:$BE$35,32,FALSE)*$F25) ->  | T58: =IF($C25=""," ",VLOOKUP($C25,Ergänzungsfutter!$A$11:$BE$35,33,FALSE)*$F25) ->  | U58: =IF($C25=""," ",VLOOKUP($C25,Ergänzungsfutter!$A$11:$BE$35,34,FALSE)*$F25) ->  | V58: =IF($C25=""," ",VLOOKUP($C25,Ergänzungsfutter!$A$11:$BE$35,35,FALSE)*$F25) ->  | W58: =IF($C25=""," ",VLOOKUP($C25,Ergänzungsfutter!$A$11:$BE$35,36,FALSE)*$F25) ->  | X58: =IF($C25=""," ",VLOOKUP($C25,Ergänzungsfutter!$A$11:$BE$35,35,FALSE)*$F25) ->  | Y58: =IF($C25=""," ",VLOOKUP($C25,Ergänzungsfutter!$A$11:$BE$35,37,FALSE)*$F25) ->  | Z58: =IF($C25=""," ",VLOOKUP($C25,Ergänzungsfutter!$A$11:$BE$35,38,FALSE)*$F25) ->  | AA58: =IF($C25=""," ",VLOOKUP($C25,Ergänzungsfutter!$A$11:$BE$35,39,FALSE)*$F25) ->  | AB58: =IF($C25=""," ",VLOOKUP($C25,Ergänzungsfutter!$A$11:$BE$35,37,FALSE)*$F25) ->  | AC58: =IF($C25=""," ",VLOOKUP($C25,Ergänzungsfutter!$A$11:$BE$35,40,FALSE)*$F25) ->  | AD58: =IF($C25=""," ",VLOOKUP($C25,Ergänzungsfutter!$A$11:$BE$35,41,FALSE)*$F25) -> 
C59: =IF(C26=""," ",C26) ->  | G59: =IF($C26=""," ",VLOOKUP($C26,Ergänzungsfutter!$A$11:$BE$35,20,FALSE)*$F26) ->  | H59: =IF($C26=""," ",VLOOKUP($C26,Ergänzungsfutter!$A$11:$BE$35,20,FALSE)*$F26*D26) ->  | I59: =IF($C26=""," ",VLOOKUP($C26,Ergänzungsfutter!$A$11:$BE$35,21,FALSE)*$F26) ->  | J59: =IF($C26=""," ",VLOOKUP($C26,Ergänzungsfutter!$A$11:$BE$35,22,FALSE)*$F26) ->  | K59: =IF($C26=""," ",VLOOKUP($C26,Ergänzungsfutter!$A$11:$BE$35,23,FALSE)*$F26) ->  | L59: =IF($C26=""," ",VLOOKUP($C26,Ergänzungsfutter!$A$11:$BE$35,24,FALSE)*$F26) ->  | M59: =IF($C26=""," ",VLOOKUP($C26,Ergänzungsfutter!$A$11:$BE$35,24,FALSE)*$F26) ->  | N59: =IF($C26=""," ",VLOOKUP($C26,Ergänzungsfutter!$A$11:$BE$35,27,FALSE)*$F26) ->  | O59: =IF($C26=""," ",VLOOKUP($C26,Ergänzungsfutter!$A$11:$BE$35,28,FALSE)*$F26) ->  | P59: =IF($C26=""," ",VLOOKUP($C26,Ergänzungsfutter!$A$11:$BE$35,29,FALSE)*$F26) ->  | Q59: =IF($C26=""," ",VLOOKUP($C26,Ergänzungsfutter!$A$11:$BE$35,30,FALSE)*$F26) ->  | R59: =IF($C26=""," ",VLOOKUP($C26,Ergänzungsfutter!$A$11:$BE$35,31,FALSE)*$F26) ->  | S59: =IF($C26=""," ",VLOOKUP($C26,Ergänzungsfutter!$A$11:$BE$35,32,FALSE)*$F26) ->  | T59: =IF($C26=""," ",VLOOKUP($C26,Ergänzungsfutter!$A$11:$BE$35,33,FALSE)*$F26) ->  | U59: =IF($C26=""," ",VLOOKUP($C26,Ergänzungsfutter!$A$11:$BE$35,34,FALSE)*$F26) ->  | V59: =IF($C26=""," ",VLOOKUP($C26,Ergänzungsfutter!$A$11:$BE$35,35,FALSE)*$F26) ->  | W59: =IF($C26=""," ",VLOOKUP($C26,Ergänzungsfutter!$A$11:$BE$35,36,FALSE)*$F26) ->  | X59: =IF($C26=""," ",VLOOKUP($C26,Ergänzungsfutter!$A$11:$BE$35,35,FALSE)*$F26) ->  | Y59: =IF($C26=""," ",VLOOKUP($C26,Ergänzungsfutter!$A$11:$BE$35,37,FALSE)*$F26) ->  | Z59: =IF($C26=""," ",VLOOKUP($C26,Ergänzungsfutter!$A$11:$BE$35,38,FALSE)*$F26) ->  | AA59: =IF($C26=""," ",VLOOKUP($C26,Ergänzungsfutter!$A$11:$BE$35,39,FALSE)*$F26) ->  | AB59: =IF($C26=""," ",VLOOKUP($C26,Ergänzungsfutter!$A$11:$BE$35,37,FALSE)*$F26) ->  | AC59: =IF($C26=""," ",VLOOKUP($C26,Ergänzungsfutter!$A$11:$BE$35,40,FALSE)*$F26) ->  | AD59: =IF($C26=""," ",VLOOKUP($C26,Ergänzungsfutter!$A$11:$BE$35,41,FALSE)*$F26) -> 
B60: Nr. | C60: Mineralfutter
B61: =B28 -> 5 | C61: =IF(C28=""," ",C28) -> Opti. MinFu VM 850g TZ 3,5% + Phytase 17/18 | E61: =IF(E28=""," ",E28) -> 84 | F61: =IF(F28=""," ",F28) -> 0.035 | G61: =IF($C28=""," ",VLOOKUP($C28,Mineralfutter!$A$11:$BE$25,10,FALSE)*$F28) -> 1.225 | H61: =IF($C28=""," ",VLOOKUP($C28,Mineralfutter!$A$11:$BE$25,10,FALSE)*$F28) -> 1.225 | I61: =IF($C28=""," ",VLOOKUP($C28,Mineralfutter!$A$11:$BE$25,21,FALSE)*$F28) -> 0 | J61: =IF($C28=""," ",VLOOKUP($C28,Mineralfutter!$A$11:$BE$25,22,FALSE)*$F28) -> 0 | K61: =IF($C28=""," ",VLOOKUP($C28,Mineralfutter!$A$11:$BE$25,23,FALSE)*$F28) -> 0 | L61: =IF($C28=""," ",VLOOKUP($C28,Mineralfutter!$A$11:$BE$25,24,FALSE)*$F28) -> 22.75 | N61: =IF($C28=""," ",VLOOKUP($C28,Mineralfutter!$A$11:$BE$25,27,FALSE)*$F28) -> 0 | O61: =IF($C28=""," ",VLOOKUP($C28,Mineralfutter!$A$11:$BE$25,28,FALSE)*$F28) -> 0 | P61: =IF($C28=""," ",VLOOKUP($C28,Mineralfutter!$A$11:$BE$25,29,FALSE)*$F28) -> 0 | Q61: =IF($C28=""," ",VLOOKUP($C28,Mineralfutter!$A$11:$BE$25,30,FALSE)*$F28) -> 6055 | R61: =IF($C28=""," ",VLOOKUP($C28,Mineralfutter!$A$11:$BE$25,31,FALSE)*$F28) -> 1513.75 | S61: =IF($C28=""," ",VLOOKUP($C28,Mineralfutter!$A$11:$BE$25,32,FALSE)*$F28) -> 61.25 | T61: =IF($C28=""," ",VLOOKUP($C28,Mineralfutter!$A$11:$BE$25,33,FALSE)*$F28) -> 274.9983521 | U61: =IF($C28=""," ",VLOOKUP($C28,Mineralfutter!$A$11:$BE$25,34,FALSE)*$F28) -> 130.1611701 | Z61: =IF($C28=""," ",VLOOKUP($C28,Mineralfutter!$A$11:$BE$25,35,FALSE)*$F28) -> 0.1111054737 | AA61: =IF($C28=""," ",VLOOKUP($C28,Mineralfutter!$A$11:$BE$25,36,FALSE)*$F28) -> 0.1124574134 | AB61: =IF($C28=""," ",VLOOKUP($C28,Mineralfutter!$A$11:$BE$25,37,FALSE)*$F28) -> 0 | AC61: =IF($C28=""," ",VLOOKUP($C28,Mineralfutter!$A$11:$BE$25,37,FALSE)*$F28) -> 0 | AD61: =IF($C28=""," ",VLOOKUP($C28,Mineralfutter!$A$11:$BE$25,38,FALSE)*$F28) -> 0
B62: =B29 ->  | C62: =IF(C29=""," ",C29) ->  | E62: =IF(E29=""," ",E29) ->  | F62: =IF(F29=""," ",F29) ->  | G62: =IF($C29=""," ",VLOOKUP($C29,Mineralfutter!$A$11:$BE$25,10,FALSE)*$F29) ->  | H62: =IF($C29=""," ",VLOOKUP($C29,Mineralfutter!$A$11:$BE$25,10,FALSE)*$F29) ->  | I62: =IF($C29=""," ",VLOOKUP($C29,Mineralfutter!$A$11:$BE$25,21,FALSE)*$F29) ->  | J62: =IF($C29=""," ",VLOOKUP($C29,Mineralfutter!$A$11:$BE$25,22,FALSE)*$F29) ->  | K62: =IF($C29=""," ",VLOOKUP($C29,Mineralfutter!$A$11:$BE$25,23,FALSE)*$F29) ->  | L62: =IF($C29=""," ",VLOOKUP($C29,Mineralfutter!$A$11:$BE$25,24,FALSE)*$F29) ->  | N62: =IF($C29=""," ",VLOOKUP($C29,Mineralfutter!$A$11:$BE$25,27,FALSE)*$F29) ->  | O62: =IF($C29=""," ",VLOOKUP($C29,Mineralfutter!$A$11:$BE$25,28,FALSE)*$F29) ->  | P62: =IF($C29=""," ",VLOOKUP($C29,Mineralfutter!$A$11:$BE$25,29,FALSE)*$F29) ->  | Q62: =IF($C29=""," ",VLOOKUP($C29,Mineralfutter!$A$11:$BE$25,30,FALSE)*$F29) ->  | R62: =IF($C29=""," ",VLOOKUP($C29,Mineralfutter!$A$11:$BE$25,31,FALSE)*$F29) ->  | S62: =IF($C29=""," ",VLOOKUP($C29,Mineralfutter!$A$11:$BE$25,32,FALSE)*$F29) ->  | T62: =IF($C29=""," ",VLOOKUP($C29,Mineralfutter!$A$11:$BE$25,33,FALSE)*$F29) ->  | U62: =IF($C29=""," ",VLOOKUP($C29,Mineralfutter!$A$11:$BE$25,34,FALSE)*$F29) ->  | Z62: =IF($C29=""," ",VLOOKUP($C29,Mineralfutter!$A$11:$BE$25,35,FALSE)*$F29) ->  | AA62: =IF($C29=""," ",VLOOKUP($C29,Mineralfutter!$A$11:$BE$25,36,FALSE)*$F29) ->  | AB62: =IF($C29=""," ",VLOOKUP($C29,Mineralfutter!$A$11:$BE$25,37,FALSE)*$F29) ->  | AC62: =IF($C29=""," ",VLOOKUP($C29,Mineralfutter!$A$11:$BE$25,37,FALSE)*$F29) ->  | AD62: =IF($C29=""," ",VLOOKUP($C29,Mineralfutter!$A$11:$BE$25,38,FALSE)*$F29) -> 
C63: Summe | E63: =AC30 -> 24.03967 | F63: =IF(SUM(F13:F29,F36:F37)=0," ",SUM(F13:F29,F36:F37)) -> 1 | G63: =IF(F30=" "," ",SUM(G46:G62,Q36*$F36,Q37*$F37*0.525)) -> 3.198503014 | H63: =IF(F30=" "," ",SUM(H46:H62,R36*$F36,R37*$F37*0.525)) -> 2.942613152 | I63: =IF(F30=" "," ",SUM(I46:I62)) -> 33.98541 | J63: =IF(F30=" "," ",SUM(J46:J62)) -> 454.6831 | K63: =IF(F30=" "," ",SUM(K46:K62)) -> 35.479 | L63: =IF(F30=" "," ",SUM(L46:L62,F36*650)) -> 48.3761 | M63: =IF(G30=" "," ",SUM(M46:M62)) -> 148.589105 | N63: =IF(F30=" "," ",SUM(N46:N62)) -> 15.73684362 | O63: =IF(F30=" "," ",SUM(O46:O62)) -> 13.45414784 | P63: =IF(F30=" "," ",SUM(P46:P62)) -> 2.289205776 | Q63: =IF(F30=" "," ",SUM(Q46:Q62)) -> 6055 | R63: =IF(F30=" "," ",SUM(R46:R62)) -> 1513.75 | S63: =IF(F30=" "," ",SUM(S46:S62)) -> 61.25 | T63: =IF(F30=" "," ",SUM(T46:T62)) -> 307.8955303 | U63: =IF(F30=" "," ",SUM(U46:U62)) -> 597.6950316 | V63: =IF(F30=" "," ",SUM(V46:V62)) -> 78.90454425 | W63: =IF(H30=" "," ",SUM(W46:W62)) -> 205.6412076 | X63: =IF(I30=" "," ",SUM(X46:X62)) -> 46.71797001 | Y63: =IF(H30=" "," ",SUM(Y46:Y62)) -> 603.272205 | Z63: =IF(K30=" "," ",SUM(Z46:Z62)) -> 9.312816874 | AA63: =IF(J30=" "," ",SUM(AA46:AA62)) -> 9.594999095 | AB63: =IF(AA30=" "," ",SUM(AB46:AB62,AK36*$F36,AK37*$F37*0.525)) -> 6.470628 | AC63: =IF(N30=" "," ",SUM(AC46:AC62)) -> 0 | AD63: =IF(M30=" "," ",SUM(AD46:AD62)) -> 0
C64: Summe auf 88% TM umgerechnet | E64: =AC31 -> 23.87001657 | F64: =F30 -> 1 | G64: =IF($F31=" "," ",ROUND($I31*G63/$I30*$F31,1)) -> 3.2 | H64: =IF($F31=" "," ",ROUND($I31*H63/$I30*$F31,1)) -> 2.9 | I64: =IF($F31=" "," ",ROUND($I31*I63/$I30*$F31,0)) -> 34 | J64: =IF($F31=" "," ",ROUND($I31*J63/$I30*$F31,0)) -> 451 | K64: =IF($F31=" "," ",ROUND($I31*K63/$I30*$F31,0)) -> 35 | L64: =IF($F31=" "," ",ROUND($I31*L63/$I30*$F31,0)) -> 48 | M64: =IF($F31=" "," ",ROUND($I31*M63/$I30*$F31,0)) -> 148 | N64: =IF($F31=" "," ",ROUND($I31*N63/$I30*$F31,1)) -> 15.6 | O64: =IF($F31=" "," ",ROUND($I31*O63/$I30*$F31,1)) -> 13.4 | P64: =IF($F31=" "," ",ROUND($I31*P63/$I30*$F31,1)) -> 2.3 | Q64: =IF($F31=" "," ",ROUND($I31*Q63/$I30*$F31,0)) -> 6012 | R64: =IF($F31=" "," ",ROUND($I31*R63/$I30*$F31,0)) -> 1503 | S64: =IF($F31=" "," ",ROUND($I31*S63/$I30*$F31,0)) -> 61 | T64: =IF($F31=" "," ",ROUND($I31*T63/$I30*$F31,0)) -> 306 | U64: =IF($F31=" "," ",ROUND($I31*U63/$I30*$F31,0)) -> 593 | V64: =IF($F31=" "," ",ROUND($I31*V63/$I30*$F31,1)) -> 78.3 | W64: 204.2 | X64: 46.4 | Y64: =IF($F31=" "," ",ROUND($I31*Y63/$I30*$F31,1)) -> 599 | Z64: 9.2 | AA64: 9.5 | AB64: =IF($F31=" "," ",ROUND($I31*AB63/$I30*$F31,1)) -> 6.4 | AC64: =IF($F31=" "," ",ROUND($I31*AC63/$I30*$F31,2)) -> 0 | AD64: =IF($F31=" "," ",ROUND($I31*AD63/$I30*$F31,2)) -> 0
B65: OW-Nr. | C65: aus Tabelle Orientierungswerte in g
B66: =B33 -> 10 | C66: =IF(C33=""," ",C33) -> Vormast 28 - 40 Kg LM für 850 g TZ* | E66: - | F66: =F30 -> 1 | G66: =IF($C33=""," ",ROUND(VLOOKUP($C$33,Orientierungswerte!$A$13:$AZ$126,30,FALSE)*$F$33,1)) -> 3.2 | H66: =IF($C33=""," ",ROUND(VLOOKUP($C$33,Orientierungswerte!$A$13:$AZ$126,31,FALSE)*$F$33,1)) -> 2.9 | I66: =IF($C33=""," ",ROUND(VLOOKUP($C$33,Orientierungswerte!$A$13:$AZ$126,33,FALSE)*$F$33,0)) -> 0 | J66: =IF($C33=""," ",ROUND(VLOOKUP($C$33,Orientierungswerte!$A$13:$AZ$126,34,FALSE)*$F$33,0)) -> 0 | K66: =IF($C33=""," ",ROUND(VLOOKUP($C$33,Orientierungswerte!$A$13:$AZ$126,35,FALSE)*$F$33,0)) -> 0 | L66: =IF($C33=""," ",ROUND(VLOOKUP($C$33,Orientierungswerte!$A$13:$AZ$126,36,FALSE)*$F$33,0)) -> 0 | M66: =IF($C33=""," ",ROUND(VLOOKUP($C$33,Orientierungswerte!$A$13:$AZ$126,36,FALSE)*$F$33,0)) -> 0 | N66: =IF($C33=""," ",ROUND(VLOOKUP($C$33,Orientierungswerte!$A$13:$AZ$126,37,FALSE)*$F$33,1)) -> 18 | O66: =IF($C33=""," ",ROUND(VLOOKUP($C$33,Orientierungswerte!$A$13:$AZ$126,38,FALSE)*$F$33,1)) -> 10 | P66: =IF($C33=""," ",ROUND(VLOOKUP($C$33,Orientierungswerte!$A$13:$AZ$126,39,FALSE)*$F$33,1)) -> 0 | Q66: =IF($C33=""," ",ROUND(VLOOKUP($C$33,Orientierungswerte!$A$13:$AZ$126,40,FALSE)*$F$33,0)) -> 6000 | R66: =IF($C33=""," ",ROUND(VLOOKUP($C$33,Orientierungswerte!$A$13:$AZ$126,41,FALSE)*$F$33,0)) -> 1500 | S66: =IF($C33=""," ",ROUND(VLOOKUP($C$33,Orientierungswerte!$A$13:$AZ$126,42,FALSE)*$F$33,0)) -> 60 | T66: =IF($C33=""," ",ROUND(VLOOKUP($C$33,Orientierungswerte!$A$13:$AZ$126,43,FALSE)*$F$33,1)) -> 0 | U66: =IF($C33=""," ",ROUND(VLOOKUP($C$33,Orientierungswerte!$A$13:$AZ$126,44,FALSE)*$F$33,1)) -> 0 | V66: =IF($C33=""," ",ROUND(VLOOKUP($C$33,Orientierungswerte!$A$13:$AZ$126,47,FALSE)*$F$33,1)) -> 0 | W66: =IF($C33=""," ",ROUND(VLOOKUP($C$33,Orientierungswerte!$A$13:$AZ$126,46,FALSE)*$F$33,1)) -> 120 | X66: =IF($C33=""," ",ROUND(VLOOKUP($C$33,Orientierungswerte!$A$13:$AZ$126,45,FALSE)*$F$33,1)) -> 70 | Y66: =IF($C33=""," ",ROUND(VLOOKUP($C$33,Orientierungswerte!$A$13:$AZ$126,49,FALSE)*$F$33,1)) -> 0 | Z66: =IF($C33=""," ",ROUND(VLOOKUP($C$33,Orientierungswerte!$A$13:$AZ$126,48,FALSE)*$F$33,1)) -> 9.9 | AA66: =IF($C33=""," ",ROUND(VLOOKUP($C$33,Orientierungswerte!$A$13:$AZ$126,49,FALSE)*$F$33,1)) -> 0 | AC66: =IF($C33=""," ",ROUND(VLOOKUP($C$33,Orientierungswerte!$A$13:$AZ$126,50,FALSE)*$F$33,2)) -> 1 | AD66: =IF($C33=""," ",ROUND(VLOOKUP($C$33,Orientierungswerte!$A$13:$AZ$126,51,FALSE)*$F$33,2)) -> 0.25
C67: Differenz Mischung zu Orientierungswert | E67: - | F67: =IF($C$33=""," ",ROUND((1-F31)*-1,4)) -> 0 | G67: =IF($C$33=""," ",ROUND(G64-G66,1)) -> 0 | H67: =IF($C$33=""," ",ROUND(H64-H66,1)) -> 0 | I67: =IF($C$33=""," ",ROUND(I64-I66,0)) -> 34 | J67: =IF($C$33=""," ",ROUND(J64-J66,0)) -> 451 | K67: =IF($C$33=""," ",ROUND(K64-K66,0)) -> 35 | L67: =IF($C$33=""," ",ROUND(L64-L66,0)) -> 48 | M67: =IF($C$33=""," ",ROUND(M64-M66,0)) -> 148 | N67: =IF($C$33=""," ",ROUND(N64-N66,1)) -> -2.4 | O67: =IF($C$33=""," ",ROUND(O64-O66,1)) -> 3.4 | P67: =IF($C$33=""," ",ROUND(P64-P66,1)) -> 2.3 | Q67: =IF($C$33=""," ",ROUND(Q64-Q66,0)) -> 12 | R67: 3 | S67: 1 | T67: 306 | U67: 593 | V67: 78 | W67: =IF($C$33=""," ",ROUND(W64-W66,0)) -> 84 | X67: =IF($C$33=""," ",ROUND(X64-X66,0)) -> -24 | Y67: =IF($C$33=""," ",ROUND(Y64-Y66,0)) -> 599 | Z67: =IF($C$33=""," ",Z64-Z66) -> -0.7 | AA67: =IF($C$33=""," ",AA64-AA66) -> 9.5 | AB67: =IF($C$33=""," ",ROUND(AB64-AB66,1)) -> 6.4 | AC67: =IF($C$33=""," ",ROUND(AC64-AC66,2)) -> -1 | AD67: =IF($C$33=""," ",ROUND(AD64-AD66,2)) -> -0.25

Sheet Ausdruck
L9: Datum: | M9: =Futterberechnung!$Z$5 -> 2018-08-01
B10: Betrieb: | C10: =Futterberechnung!H5 -> Mustermann
B11: Futtermischung für: | C11: =IF(Futterberechnung!H7="","",Futterberechnung!H7) -> Vormast 28 - 40 Kg LM für 850 g TZ* | H11: =IF(Futterberechnung!P7="","",Futterberechnung!P7) -> Getreide = Richtpreise Ernte 2017/18
C12: =Futterberechnung!J8 -> 
B14: Futtermittel | C14: Preis / dt | D14: Anteile in % FM | E14: Anteile bei 88% TM | F14: in Mischer | H14: Inhaltsstoffe in 1 kg Futtermittel | L14: Soll | M14: Differenz
B15: =IF(Futterberechnung!C13="","",Futterberechnung!C13) -> eigener Weizen 10% RP Ø 2018 | C15: =IF(Futterberechnung!E13="","",Futterberechnung!E13) -> 17.42 | D15: =IF(Futterberechnung!F13="","",Futterberechnung!F13) -> 0.5385 | E15: =IF(Futterberechnung!G13="","",Futterberechnung!G13) -> 0.5346996828 | F15: =IF(Futterberechnung!H13="","",Futterberechnung!H13) -> 538.5 | I15: in | J15: in der FM | K15: in 88% TM | L15: in 88% TM
B16: =IF(Futterberechnung!C14="","",Futterberechnung!C14) -> eigene Gerste 10% RP Ø 2018 | C16: =IF(Futterberechnung!E14="","",Futterberechnung!E14) -> 16.39 | D16: =IF(Futterberechnung!F14="","",Futterberechnung!F14) -> 0.25 | E16: =IF(Futterberechnung!G14="","",Futterberechnung!G14) -> 0.248235693 | F16: =IF(Futterberechnung!H14="","",Futterberechnung!H14) -> 250 | H16: TM | I16: g | J16: =IF(Futterberechnung!I30="","",Futterberechnung!I30) -> 886.2545 | K16: =IF(Futterberechnung!I31="","",Futterberechnung!I31) -> 880
B17: =IF(Futterberechnung!C15="","",Futterberechnung!C15) -> Sojaschrot HP 47% RP | C17: =IF(Futterberechnung!E15="","",Futterberechnung!E15) -> 38 | D17: =IF(Futterberechnung!F15="","",Futterberechnung!F15) -> 0.161 | E17: =IF(Futterberechnung!G15="","",Futterberechnung!G15) -> 0.1616804202 | F17: =IF(Futterberechnung!H15="","",Futterberechnung!H15) -> 161 | H17: MES EFF* | I17: MJ | J17: =IF(Futterberechnung!$M$30="","",Futterberechnung!$M$30) -> 13.44327021 | K17: =IF(Futterberechnung!$M$31="","",Futterberechnung!$M$31) -> 13.35 | L17: =IF(Futterberechnung!$M$33="","",Futterberechnung!$M$33) -> 13.4 | M17: =IF(Futterberechnung!$M$34="","",Futterberechnung!$M$34) -> -0.05
B18: =IF(Futterberechnung!C16="","",Futterberechnung!C16) -> Rapsöl / Pflanzenöl DLG 2014 | C18: =IF(Futterberechnung!E16="","",Futterberechnung!E16) -> 97 | D18: =IF(Futterberechnung!F16="","",Futterberechnung!F16) -> 0.0155 | E18: =IF(Futterberechnung!G16="","",Futterberechnung!G16) -> 0.01747184358 | F18: =IF(Futterberechnung!H16="","",Futterberechnung!H16) -> 15.5 | H18: MES MFF* | I18: MJ | J18: =IF(Futterberechnung!$N$30="","",Futterberechnung!$N$30) -> 13.38140493 | K18: =IF(Futterberechnung!$N$31="","",Futterberechnung!$N$31) -> 13.29 | L18: =IF(Futterberechnung!$N$33="","",Futterberechnung!$N$33) -> 13.4 | M18: =IF(Futterberechnung!$N$34="","",Futterberechnung!$N$34) -> -0.11
B19: =IF(Futterberechnung!C17="","",Futterberechnung!C17) ->  | C19: =IF(Futterberechnung!E17="","",Futterberechnung!E17) ->  | D19: =IF(Futterberechnung!F17="","",Futterberechnung!F17) ->  | E19: =IF(Futterberechnung!G17="","",Futterberechnung!G17) ->  | F19: =IF(Futterberechnung!H17="","",Futterberechnung!H17) ->  | H19: Rohprotein (XP) | I19: g | J19: =IF(Futterberechnung!$J$30="","",Futterberechnung!$J$30) -> 160.236408 | K19: =IF(Futterberechnung!$J$31="","",Futterberechnung!$J$31) -> 159 | L19: =IF(Futterberechnung!$J$33="","",Futterberechnung!$J$33) -> 170 | M19: =IF(Futterberechnung!$J$34="","",Futterberechnung!$J$34) -> -11
B20: =IF(Futterberechnung!C18="","",Futterberechnung!C18) ->  | C20: =IF(Futterberechnung!E18="","",Futterberechnung!E18) ->  | D20: =IF(Futterberechnung!F18="","",Futterberechnung!F18) ->  | E20: =IF(Futterberechnung!G18="","",Futterberechnung!G18) ->  | F20: =IF(Futterberechnung!H18="","",Futterberechnung!H18) ->  | H20: Lys | I20: g | J20: =IF(Futterberechnung!$O$30="","",Futterberechnung!$O$30) -> 11.18016612 | K20: =IF(Futterberechnung!$O$31="","",Futterberechnung!$O$31) -> 11.1 | L20: =IF(Futterberechnung!$O$33="","",Futterberechnung!$O$33) -> 11.4 | M20: =IF(Futterberechnung!$O$34="","",Futterberechnung!$O$34) -> -0.3
B21: =IF(Futterberechnung!C19="","",Futterberechnung!C19) ->  | C21: =IF(Futterberechnung!E19="","",Futterberechnung!E19) ->  | D21: =IF(Futterberechnung!F19="","",Futterberechnung!F19) ->  | E21: =IF(Futterberechnung!G19="","",Futterberechnung!G19) ->  | F21: =IF(Futterberechnung!H19="","",Futterberechnung!H19) ->  | H21: pcv Lys | I21: g | J21: =IF(Futterberechnung!$P$30="","",Futterberechnung!$P$30) -> 10.15363213 | K21: =IF(Futterberechnung!$P$31="","",Futterberechnung!$P$31) -> 10.1 | L21: =IF(Futterberechnung!$P$33="","",Futterberechnung!$P$33) -> 10.2 | M21: =IF(Futterberechnung!$P$34="","",Futterberechnung!$P$34) -> -0.1
B22: =IF(Futterberechnung!C20="","",Futterberechnung!C20) ->  | C22: =IF(Futterberechnung!E20="","",Futterberechnung!E20) ->  | D22: =IF(Futterberechnung!F20="","",Futterberechnung!F20) ->  | E22: =IF(Futterberechnung!G20="","",Futterberechnung!G20) ->  | F22: =IF(Futterberechnung!H20="","",Futterberechnung!H20) ->  | H22: Met | I22: g | J22: =IF(Futterberechnung!$G$63="","",Futterberechnung!$G$63) -> 3.198503014 | K22: =IF(Futterberechnung!$G$64="","",Futterberechnung!$G$64) -> 3.2 | L22: =IF(Futterberechnung!$G$66="","",Futterberechnung!$G$66) -> 3.2 | M22: =IF(Futterberechnung!$G67="","",Futterberechnung!$G$67) -> 0
B23: =IF(Futterberechnung!C21="","",Futterberechnung!C21) ->  | C23: =IF(Futterberechnung!E21="","",Futterberechnung!E21) ->  | D23: =IF(Futterberechnung!F21="","",Futterberechnung!F21) ->  | E23: =IF(Futterberechnung!G21="","",Futterberechnung!G21) ->  | F23: =IF(Futterberechnung!H21="","",Futterberechnung!H21) ->  | H23: pcv Met | I23: g | J23: =IF(Futterberechnung!$H$63="","",Futterberechnung!$H$63) -> 2.942613152 | K23: =IF(Futterberechnung!$H$64="","",Futterberechnung!$H$64) -> 2.9 | L23: =IF(Futterberechnung!$H$66="","",Futterberechnung!$H$66) -> 2.9 | M23: =IF(Futterberechnung!$H67="","",Futterberechnung!$H$67) -> 0
B24: =IF(Futterberechnung!C22="","",Futterberechnung!C22) ->  | C24: =IF(Futterberechnung!E22="","",Futterberechnung!E22) ->  | D24: =IF(Futterberechnung!F22="","",Futterberechnung!F22) ->  | E24: =IF(Futterberechnung!G22="","",Futterberechnung!G22) ->  | F24: =IF(Futterberechnung!H22="","",Futterberechnung!H22) ->  | H24: Met + Cys | I24: g | J24: =IF(Futterberechnung!$Q$30="","",Futterberechnung!$Q$30) -> 6.33250795 | K24: =IF(Futterberechnung!$Q$31="","",Futterberechnung!$Q$31) -> 6.3 | L24: =IF(Futterberechnung!$Q$33="","",Futterberechnung!$Q$33) -> 6.2 | M24: =IF(Futterberechnung!$Q$34="","",Futterberechnung!$Q$34) -> 0.1
B25: =IF(Futterberechnung!C23="","",Futterberechnung!C23) ->  | C25: =IF(Futterberechnung!E23="","",Futterberechnung!E23) ->  | D25: =IF(Futterberechnung!F23="","",Futterberechnung!F23) ->  | E25: =IF(Futterberechnung!G23="","",Futterberechnung!G23) ->  | F25: =IF(Futterberechnung!H23="","",Futterberechnung!H23) ->  | H25: pcv Met + Cys | I25: g | J25: =IF(Futterberechnung!$R$30="","",Futterberechnung!$R$30) -> 5.622818966 | K25: =IF(Futterberechnung!$R$31="","",Futterberechnung!$R$31) -> 5.6 | L25: =IF(Futterberechnung!$R$33="","",Futterberechnung!$R$33) -> 5.6 | M25: =IF(Futterberechnung!$R$34="","",Futterberechnung!$R$34) -> 0
B26: =IF(Futterberechnung!C24="","",Futterberechnung!C24) -> Ergänzungsfutter | C26: =IF(Futterberechnung!E24="","",Futterberechnung!E24) ->  | D26: =IF(Futterberechnung!F24="","",Futterberechnung!F24) ->  | E26: =IF(Futterberechnung!G24="","",Futterberechnung!G24) ->  | F26: =IF(Futterberechnung!H24="","",Futterberechnung!H24) ->  | H26: Thr | I26: g | J26: =IF(Futterberechnung!$S$30="","",Futterberechnung!$S$30) -> 7.272997164 | K26: =IF(Futterberechnung!$S$31="","",Futterberechnung!$S$31) -> 7.2 | L26: =IF(Futterberechnung!$S$33="","",Futterberechnung!$S$33) -> 7.2 | M26: =IF(Futterberechnung!$S$34="","",Futterberechnung!$S$34) -> 0
B27: =IF(Futterberechnung!C25="","",Futterberechnung!C25) ->  | C27: =IF(Futterberechnung!E25="","",Futterberechnung!E25) ->  | D27: =IF(Futterberechnung!F25="","",Futterberechnung!F25) ->  | E27: =IF(Futterberechnung!G25="","",Futterberechnung!G25) ->  | F27: =IF(Futterberechnung!H25="","",Futterberechnung!H25) ->  | H27: pcv Thr | I27: g | J27: =IF(Futterberechnung!$T$30="","",Futterberechnung!$T$30) -> 6.467520493 | K27: =IF(Futterberechnung!$T$31="","",Futterberechnung!$T$31) -> 6.4 | L27: =IF(Futterberechnung!$T$33="","",Futterberechnung!$T$33) -> 6.6 | M27: =IF(Futterberechnung!$T$34="","",Futterberechnung!$T$34) -> -0.2
B28: =IF(Futterberechnung!C26="","",Futterberechnung!C26) ->  | C28: =IF(Futterberechnung!E26="","",Futterberechnung!E26) ->  | D28: =IF(Futterberechnung!F26="","",Futterberechnung!F26) ->  | E28: =IF(Futterberechnung!G26="","",Futterberechnung!G26) ->  | F28: =IF(Futterberechnung!H26="","",Futterberechnung!H26) ->  | H28: Trp | I28: g | J28: =IF(Futterberechnung!$U$30="","",Futterberechnung!$U$30) -> 2.042499718 | K28: =IF(Futterberechnung!$U$31="","",Futterberechnung!$U$31) -> 2 | L28: =IF(Futterberechnung!$U$33="","",Futterberechnung!$U$33) -> 2.1 | M28: =IF(Futterberechnung!$U$34="","",Futterberechnung!$U$34) -> -0.1
B29: =IF(Futterberechnung!C27="","",Futterberechnung!C27) -> Mineralfutter | C29: =IF(Futterberechnung!E27="","",Futterberechnung!E27) ->  | D29: =IF(Futterberechnung!F27="","",Futterberechnung!F27) ->  | E29: =IF(Futterberechnung!G27="","",Futterberechnung!G27) ->  | F29: =IF(Futterberechnung!H27="","",Futterberechnung!H27) ->  | H29: pcv Trp | I29: g | J29: =IF(Futterberechnung!$V$30="","",Futterberechnung!$V$30) -> 1.742241866 | K29: =IF(Futterberechnung!$V$31="","",Futterberechnung!$V$31) -> 1.7 | L29: =IF(Futterberechnung!$V$33="","",Futterberechnung!$V$33) -> 1.8 | M29: =IF(Futterberechnung!$V$34="","",Futterberechnung!$V$34) -> -0.1
B30: =IF(Futterberechnung!C28="","",Futterberechnung!C28) -> Opti. MinFu VM 850g TZ 3,5% + Phytase 17/18 | C30: =IF(Futterberechnung!E28="","",Futterberechnung!E28) -> 84 | D30: =IF(Futterberechnung!F28="","",Futterberechnung!F28) -> 0.035 | E30: =IF(Futterberechnung!G28="","",Futterberechnung!G28) -> 0.03791236039 | F30: =IF(Futterberechnung!H28="","",Futterberechnung!H28) -> 35 | H30: Rohfaser (XF) | I30: g | J30: =IF(Futterberechnung!$L$30="","",Futterberechnung!$L$30) -> 36.469745 | K30: =IF(Futterberechnung!$L$31="","",Futterberechnung!$L$31) -> 36 | L30: =IF(Futterberechnung!$L$33="","",Futterberechnung!$L$33) -> 40 | M30: =IF(Futterberechnung!$L$34="","",Futterberechnung!$L$34) -> -4
B31: =IF(Futterberechnung!C29="","",Futterberechnung!C29) ->  | C31: =IF(Futterberechnung!E29="","",Futterberechnung!E29) ->  | D31: =IF(Futterberechnung!F29="","",Futterberechnung!F29) ->  | E31: =IF(Futterberechnung!G29="","",Futterberechnung!G29) ->  | F31: =IF(Futterberechnung!H29="","",Futterberechnung!H29) ->  | H31: NDFom | I31: g | J31: =IF(Futterberechnung!$W$63="","",Futterberechnung!$W$63) -> 205.6412076 | K31: =IF(Futterberechnung!$W$64="","",Futterberechnung!$W$64) -> 204.2 | L31: =IF(Futterberechnung!$W$66=0,"",Futterberechnung!$W$66) -> 120 | M31: =IF($L$31="","",Futterberechnung!$W$67) -> 84
B32: Futterkosten / Summe / Mischergröße | C32: =IF(Futterberechnung!E30="","",Futterberechnung!E30) -> 24.03967 | D32: =IF(Futterberechnung!F30="","",Futterberechnung!F30) -> 1 | F32: =IF(F15="","",SUM(F15:F31)) -> 1000 | H32: ADFom | I32: g | J32: =IF(Futterberechnung!$X$63="","",Futterberechnung!$X$63) -> 46.71797001 | K32: =IF(Futterberechnung!$X$64="","",Futterberechnung!$X$64) -> 46.4 | L32: =IF(Futterberechnung!$X$66=0,"",Futterberechnung!$X$66) -> 70 | M32: =IF($L$32="","",Futterberechnung!$X$67) -> -24
B33: Futterkosten auf 88% TM umgerechnet | C33: =IF(Futterberechnung!E31="","",Futterberechnung!E31) -> 23.87001657 | F33: =IF(Futterberechnung!H31="","",Futterberechnung!H31) ->  | H33: BfS | I33: g | J33: =IF(Futterberechnung!$V$63="","",Futterberechnung!$V$63) -> 78.90454425 | K33: =IF(Futterberechnung!$V$64="","",Futterberechnung!$V$64) -> 78.3 | L33: =IF(Futterberechnung!$V$66=0,"",Futterberechnung!$V$66) ->  | M33: =IF($L$33="","",Futterberechnung!$V$67) -> 
H34: Ca | I34: g | J34: =IF(Futterberechnung!$W$30="","",Futterberechnung!$W$30) -> 6.597388542 | K34: =IF(Futterberechnung!$W$31="","",Futterberechnung!$W$31) -> 6.6 | L34: =IF(Futterberechnung!$W$33="","",Futterberechnung!$W$33) -> 6.5 | M34: =IF(Futterberechnung!$W$34="","",Futterberechnung!$W$34) -> 0.1
H35: P | I35: g | J35: =IF(Futterberechnung!$X$30="","",Futterberechnung!$X$30) -> 4.431221928 | K35: =IF(Futterberechnung!$X$31="","",Futterberechnung!$X$31) -> 4.4 | L35: =IF(Futterberechnung!$X$33="","",Futterberechnung!$X$33) -> 4.5 | M35: =IF(Futterberechnung!$X$34="","",Futterberechnung!$X$34) -> -0.1
H36: v.P | I36: g | J36: =IF(Futterberechnung!$Y$30="","",Futterberechnung!$Y$30) -> 2.451648771 | K36: =IF(Futterberechnung!$Y$31="","",Futterberechnung!$Y$31) -> 2.4 | L36: =IF(Futterberechnung!$Y$33="","",Futterberechnung!$Y$33) -> 3 | M36: =IF(Futterberechnung!$Y$34="","",Futterberechnung!$Y$34) -> -0.6
H37: v.P + Phytase | I37: g | J37: =IF(Futterberechnung!$Z$30="","",Futterberechnung!$Z$30) -> 3.093211446 | K37: =IF(Futterberechnung!$Z$31="","",Futterberechnung!$Z$31) -> 3.1 | L37: =IF(Futterberechnung!$Z$33="","",Futterberechnung!$Z$33) -> 3 | M37: =IF(Futterberechnung!$Z$34="","",Futterberechnung!$Z$34) -> 0.1
H38: Na | I38: g | J38: =IF(Futterberechnung!$AB$30="","",Futterberechnung!$AB$30) -> 2.097856134 | K38: =IF(Futterberechnung!$AB$31="","",Futterberechnung!$AB$31) -> 2.1 | L38: =IF(Futterberechnung!$AB$33="","",Futterberechnung!$AB$33) -> 2 | M38: =IF(Futterberechnung!$AB$34="","",Futterberechnung!$AB$34) -> 0.1
H39: Mg | I39: g | J39: =IF(Futterberechnung!$AA$30="","",Futterberechnung!$AA$30) -> 1.321658567 | K39: =IF(Futterberechnung!$AA$31="","",Futterberechnung!$AA$31) -> 1.3 | L39: =IF(Futterberechnung!$AA$33="","",Futterberechnung!$AA$33) -> 1 | M39: =IF(Futterberechnung!$AA$34="","",Futterberechnung!$AA$34) -> 0.3
H40: Polyensäuren | I40: g | J40: =IF(Futterberechnung!$N$63="","",Futterberechnung!$N$63) -> 15.73684362 | K40: =IF(Futterberechnung!$N$64="","",Futterberechnung!$N$64) -> 15.6 | L40: =IF(Futterberechnung!$N$66="","",Futterberechnung!$N$66) -> 18 | M40: =IF(Futterberechnung!$N$67="","",Futterberechnung!$N$67) -> -2.4
H41: Vit. A | I41: IE | J41: =IF(Futterberechnung!$Q$63="","",Futterberechnung!$Q$63) -> 6055 | K41: =IF(Futterberechnung!$Q$64="","",Futterberechnung!$Q$64) -> 6012 | L41: =IF(Futterberechnung!$Q$66="","",Futterberechnung!$Q$66) -> 6000 | M41: =IF(Futterberechnung!$Q$67="","",Futterberechnung!$Q$67) -> 12
H42: Vit. D3 | I42: IE | J42: =IF(Futterberechnung!$R$63="","",Futterberechnung!$R$63) -> 1513.75 | K42: =IF(Futterberechnung!$R$64="","",Futterberechnung!$R$64) -> 1503 | L42: =IF(Futterberechnung!$R$66="","",Futterberechnung!$R$66) -> 1500 | M42: =IF(Futterberechnung!$R$67="","",Futterberechnung!$R$67) -> 3
H43: Vit. E | I43: mg | J43: =IF(Futterberechnung!$S$63="","",Futterberechnung!$S$63) -> 61.25 | K43: =IF(Futterberechnung!$S$64="","",Futterberechnung!$S$64) -> 61 | L43: =IF(Futterberechnung!$S$66="","",Futterberechnung!$S$66) -> 60 | M43: =IF(Futterberechnung!$S$67="","",Futterberechnung!$S$67) -> 1
B45: Aminosäurenverhältnis (AS-Verältnis) | C45: pcv M + C | D45: pcv Thr | E45: pcv Trp | H45: Ca / P | I45: /1 | J45: =IF(K45="","",K45) -> 1.488841825 | K45: =IF(Futterberechnung!$T$40="","",Futterberechnung!$T$40) -> 1.488841825 | L45: =IF(Futterberechnung!$T$41="","",Futterberechnung!$T$41) -> 1.45 | M45: =IF(K45="","",K45-L45) -> 0.03884182493
B46: AS-Verhältnis in der Ration pcv Lysin 1 / | C46: =IF(Futterberechnung!N40="","",Futterberechnung!N40) -> 0.5537741464 | D46: =IF(Futterberechnung!P40="","",Futterberechnung!P40) -> 0.6369662018 | E46: =IF(Futterberechnung!R40="","",Futterberechnung!R40) -> 0.1715880429 | H46: Ca / vP | I46: /1 | J46: 2.691000693 | K46: =IF(Futterberechnung!$X$40="","",Futterberechnung!$X$40) -> 2.691000693 | L46: =IF(Futterberechnung!$X$41="","",Futterberechnung!$X$41) -> 2.18 | M46: 0.5110006928
B47: Orientierungswert AS-Verhältnis pcv Lysin 1 / | C47: =IF(Futterberechnung!N41="","",Futterberechnung!N41) -> 0.54 | D47: =IF(Futterberechnung!P41="","",Futterberechnung!P41) -> 0.63 | E47: =IF(Futterberechnung!R41="","",Futterberechnung!R41) -> 0.18 | H47: Ca / vP + Phytase | I47: /1 | J47: 2.13286051 | K47: =IF(Futterberechnung!$X$39="","",Futterberechnung!$X$39) -> 2.13286051 | L47: =IF(Futterberechnung!$X$41="","",Futterberechnung!$X$41) -> 2.18 | M47: -0.04713949009
B48: Differenz | C48: =IF(C46="","",C46-C47) -> 0.01377414635 | D48: =IF(D46="","",D46-D47) -> 0.006966201789 | E48: =IF(E46="","",E46-E47) -> -0.008411957102 | H48: Lys / MES EFF* | I48: g/MJ | J48: 0.8314606742 | K48: =IF(Futterberechnung!$F$40="","",Futterberechnung!$F$40) -> 0.8314606742 | L48: =IF(Futterberechnung!$F$41="","",Futterberechnung!$F$41) -> 0.85 | M48: -0.01853932584
H49: pcv Lys / MES EFF* | I49: g/MJ | J49: 0.7565543071 | K49: =IF(Futterberechnung!$I$40="","",Futterberechnung!$I$40) -> 0.7565543071 | L49: =IF(Futterberechnung!$I$41="","",Futterberechnung!$I$41) -> 0.76 | M49: -0.003445692884
H50: Lys in 100g RP | I50: g | J50: 6.352201258 | K50: =IF(Futterberechnung!$AA$40="","",Futterberechnung!$AA$40) -> 6.352201258 | L50: =IF(Futterberechnung!$AA$41="","",Futterberechnung!$AA$41) -> 6 | M50: 0.3522012579
H51: Kosten / 10 MJ MES EFF* | J51: =IF(Futterberechnung!$M$31="","",$C$32/100/Futterberechnung!$M$30*10) -> 0.1788230812 | K51: =IF(Futterberechnung!$M$31="","",$C$33/100/Futterberechnung!$M$31*10) -> 0.1788016222
H53: * EFF=Einzelfutterformel und MFF=Mischfutterformel (EFF ist genauer!)
B54: KAB oder DCAB oder BE in 100% TM der Ration | C54: =IF(Futterberechnung!T64="","",Futterberechnung!T64/88*100) -> 347.7272727
B55: Harn-pH bei Fütterung dieser Ration | C55: =IF(C54="","",6.19+0.0031*C54+3*10^-6*C54^2) -> 7.630697314
B57: Basenüberschuß (BE) | D57: Harn pH
B58: 100 % TM | C58: in 88 %TM
B59: 500 | C59: =B59*0.88 -> 440 | D59: 8.5
B60: 400 | C60: =B60*0.88 -> 352 | D60: 7.9
B61: 300 | C61: 264 | D61: 7.4
B62: 200 | C62: 176 | D62: 6.9
B63: 100 | C63: 88 | D63: 6.5
B64: 0 | C64: 0 | D64: 6.2
B65: -100 | C65: -88 | D65: 5.9
B66: -200 | C66: -176 | D66: 5.7
B67: -400 | C67: -352 | D67: 5.4

Sheet Futterberechnung (2)
Z3: 2018 Version 1
B4: Rheinischer Erzeugerring für Mastschweine e.V.
E5: Betrieb: | H5: Mustermann | X5: Datum: | Z5: 2018-08-01
E6: Berater: | H6: =Futterberechnung!H6 -> ………………………………………………………. | X6: Tel.Nr.: | Z6: =Futterberechnung!Z6 -> ……………………………
E7: Futtermischung für: | H7: =C33&" " -> Anfangsmast ab 40 Kg LM für 850 g TZ* | P7: Getreide = Richtpreise Ernte 2017/18 | X7: Tel.Nr.: | Z7: =Futterberechnung!Z7 -> ……………………………
E8: Mischergröße in t: | H8: =Futterberechnung!H8 -> 1 | J8: =IF(OR(B10="m",B10="w",'Futterkurve Mast'!T6="HP"),Orientierungswerte!D35,"") ->  | X8: gültig bis: | Z8: =Futterberechnung!Z8 -> ……………………………
B10: =IF(Futterberechnung!B10=0,"",Futterberechnung!B10) ->  | C10: Geschlecht
E11: Netto-Preis | F11: Anteil in FM | G11: Anteil bei 88% TM | H11: in Mi-scher | I11: TM | J11: Roh-pro-tein XP | K11: pcv XP | L11: Roh-faser XF | M11: ME EFF | N11: ME MFF | O11: Lys | P11: pcv Lys | Q11: M&C | R11: pcv M+C | S11: Thr | T11: pcv Thr | U11: Trp | V11: pcv Trp | W11: Ca | X11: P | Y11: v. P | Z11: v. P m. Phy | AA11: Mg | AB11: Na | AC11: €/dt
B12: FM-Nr. | C12: Futtermittel + % RP in der FM | E12: €/dt | F12: % | G12: % | H12: kg | I12: Anteil in g/kg | M12: MJ/kg | O12: Anteile in g je kg | AC12: Anteil
B13: =IF($C13=""," ",VLOOKUP($C13,Futtermittel!$A$8:$CG$171,2,FALSE)) -> 49 | C13: =IF(Futterberechnung!C13="","",Futterberechnung!C13) -> eigener Weizen 10% RP Ø 2018 | E13: =IF(Futterberechnung!E13="","",Futterberechnung!E13) -> 17.42 | F13: 0.51 | G13: =IF(F13="","",I13/I$30) -> 0.506884389 | H13: =IF(F13=""," ",$H$8*F13*1000) -> 510 | I13: =IF($C13=""," ",VLOOKUP($C13,Futtermittel!$A$8:$CG$171,8,FALSE)*$F13) -> 448.8 | J13: =IF($C13=""," ",VLOOKUP($C13,Futtermittel!$A$8:$CG$171,9,FALSE)*$F13) -> 50.5104 | K13: =IF($C13=""," ",VLOOKUP($C13,Futtermittel!$A$8:$CG$171,10,FALSE)*$F13) -> 45.45936 | L13: =IF($C13=""," ",VLOOKUP($C13,Futtermittel!$A$8:$CG$171,11,FALSE)*$F13) -> 13.4487 | M13: =IF($C13=""," ",VLOOKUP($C13,Futtermittel!$A$8:$CG$171,12,FALSE)*$F13) -> 6.94989444 | N13: =IF($C13=""," ",VLOOKUP(C13,Futtermittel!$A$8:$CG$171,13,FALSE)*$F13) -> 6.98701632 | O13: =IF($C13=""," ",VLOOKUP($C13,Futtermittel!$A$8:$CG$171,14,FALSE)*$F13) -> 1.622208 | P13: =IF($C13=""," ",VLOOKUP($C13,Futtermittel!$A$8:$CG$171,15,FALSE)*$F13) -> 1.42754304 | Q13: =IF($C13=""," ",VLOOKUP($C13,Futtermittel!$A$8:$CG$171,16,FALSE)*$F13) -> 1.872312 | R13: =IF($C13=""," ",VLOOKUP($C13,Futtermittel!$A$8:$CG$171,17,FALSE)*$F13) -> 1.69132184 | S13: =IF($C13=""," ",VLOOKUP($C13,Futtermittel!$A$8:$CG$171,18,FALSE)*$F13) -> 1.316208 | T13: =IF($C13=""," ",VLOOKUP($C13,Futtermittel!$A$8:$CG$171,19,FALSE)*$F13) -> 1.1845872 | U13: =IF($C13=""," ",VLOOKUP($C13,Futtermittel!$A$8:$CG$171,20,FALSE)*$F13) -> 0.709104 | V13: =IF($C13=""," ",VLOOKUP($C13,Futtermittel!$A$8:$CG$171,21,FALSE)*$F13) -> 0.62401152 | W13: =IF($C13=""," ",VLOOKUP($C13,Futtermittel!$A$8:$CG$171,22,FALSE)*$F13) -> 0.357 | X13: =IF($C13=""," ",VLOOKUP($C13,Futtermittel!$A$8:$CG$171,23,FALSE)*$F13) -> 1.683 | Y13: =IF($C13=""," ",VLOOKUP($C13,Futtermittel!$A$8:$CG$171,24,FALSE)*$F13) -> 1.0098 | Z13: =IF($C13=""," ",VLOOKUP($C13,Futtermittel!$A$8:$CG$171,25,FALSE)*$F13) -> 1.09395 | AA13: =IF($C13=""," ",VLOOKUP($C13,Futtermittel!$A$8:$CG$171,26,FALSE)*$F13) -> 0.561 | AB13: =IF($C13=""," ",VLOOKUP($C13,Futtermittel!$A$8:$CG$171,27,FALSE)*$F13) -> 0.102 | AC13: =IFERROR(IF(E13*F13=0," ",E13*F13),"") -> 8.8842
B14: =IF($C14=""," ",VLOOKUP($C14,Futtermittel!$A$8:$CG$171,2,FALSE)) -> 11 | C14: =IF(Futterberechnung!C14="","",Futterberechnung!C14) -> eigene Gerste 10% RP Ø 2018 | E14: =IF(Futterberechnung!E14="","",Futterberechnung!E14) -> 16.39 | F14: 0.314 | G14: =IF(F14="","",I14/I$30) -> 0.3120817611 | H14: =IF(F14=""," ",$H$8*F14*1000) -> 314 | I14: =IF($C14=""," ",VLOOKUP($C14,Futtermittel!$A$8:$CG$171,8,FALSE)*$F14) -> 276.32 | J14: =IF($C14=""," ",VLOOKUP($C14,Futtermittel!$A$8:$CG$171,9,FALSE)*$F14) -> 30.49882 | K14: =IF($C14=""," ",VLOOKUP($C14,Futtermittel!$A$8:$CG$171,10,FALSE)*$F14) -> 22.2641386 | L14: =IF($C14=""," ",VLOOKUP($C14,Futtermittel!$A$8:$CG$171,11,FALSE)*$F14) -> 17.45526 | M14: =IF($C14=""," ",VLOOKUP($C14,Futtermittel!$A$8:$CG$171,12,FALSE)*$F14) -> 3.928938562 | N14: =IF($C14=""," ",VLOOKUP(C14,Futtermittel!$A$8:$CG$171,13,FALSE)*$F14) -> 3.922837928 | O14: =IF($C14=""," ",VLOOKUP($C14,Futtermittel!$A$8:$CG$171,14,FALSE)*$F14) -> 1.0181764 | P14: =IF($C14=""," ",VLOOKUP($C14,Futtermittel!$A$8:$CG$171,15,FALSE)*$F14) -> 0.743268772 | Q14: =IF($C14=""," ",VLOOKUP($C14,Futtermittel!$A$8:$CG$171,16,FALSE)*$F14) -> 1.2603646 | R14: =IF($C14=""," ",VLOOKUP($C14,Futtermittel!$A$8:$CG$171,17,FALSE)*$F14) -> 1.055389515 | S14: =IF($C14=""," ",VLOOKUP($C14,Futtermittel!$A$8:$CG$171,18,FALSE)*$F14) -> 1.1033646 | T14: =IF($C14=""," ",VLOOKUP($C14,Futtermittel!$A$8:$CG$171,19,FALSE)*$F14) -> 0.838557096 | U14: =IF($C14=""," ",VLOOKUP($C14,Futtermittel!$A$8:$CG$171,20,FALSE)*$F14) -> 0.3677882 | V14: =IF($C14=""," ",VLOOKUP($C14,Futtermittel!$A$8:$CG$171,21,FALSE)*$F14) -> 0.279519032 | W14: =IF($C14=""," ",VLOOKUP($C14,Futtermittel!$A$8:$CG$171,22,FALSE)*$F14) -> 0.1353968 | X14: =IF($C14=""," ",VLOOKUP($C14,Futtermittel!$A$8:$CG$171,23,FALSE)*$F14) -> 1.099 | Y14: =IF($C14=""," ",VLOOKUP($C14,Futtermittel!$A$8:$CG$171,24,FALSE)*$F14) -> 0.49455 | Z14: =IF($C14=""," ",VLOOKUP($C14,Futtermittel!$A$8:$CG$171,25,FALSE)*$F14) -> 0.71435 | AA14: =IF($C14=""," ",VLOOKUP($C14,Futtermittel!$A$8:$CG$171,26,FALSE)*$F14) -> 0.3454 | AB14: =IF($C14=""," ",VLOOKUP($C14,Futtermittel!$A$8:$CG$171,27,FALSE)*$F14) -> 0.04764137931 | AC14: 5.14646
B15: =IF($C15=""," ",VLOOKUP($C15,Futtermittel!$A$8:$CG$171,2,FALSE)) -> 100 | C15: =IF(Futterberechnung!C15="","",Futterberechnung!C15) -> Sojaschrot HP 47% RP | E15: =IF(Futterberechnung!E15="","",Futterberechnung!E15) -> 38 | F15: 0.13 | G15: =IF(F15="","",I15/I$30) -> 0.1306740727 | H15: 130 | I15: =IF($C15=""," ",VLOOKUP($C15,Futtermittel!$A$8:$CG$171,8,FALSE)*$F15) -> 115.7 | J15: =IF($C15=""," ",VLOOKUP($C15,Futtermittel!$A$8:$CG$171,9,FALSE)*$F15) -> 61.1 | K15: =IF($C15=""," ",VLOOKUP($C15,Futtermittel!$A$8:$CG$171,10,FALSE)*$F15) -> 50.102 | L15: =IF($C15=""," ",VLOOKUP($C15,Futtermittel!$A$8:$CG$171,11,FALSE)*$F15) -> 6.76 | M15: =IF($C15=""," ",VLOOKUP($C15,Futtermittel!$A$8:$CG$171,12,FALSE)*$F15) -> 1.80142599 | N15: =IF($C15=""," ",VLOOKUP(C15,Futtermittel!$A$8:$CG$171,13,FALSE)*$F15) -> 1.79937927 | O15: =IF($C15=""," ",VLOOKUP($C15,Futtermittel!$A$8:$CG$171,14,FALSE)*$F15) -> 3.739845909 | P15: =IF($C15=""," ",VLOOKUP($C15,Futtermittel!$A$8:$CG$171,15,FALSE)*$F15) -> 3.253665941 | Q15: =IF($C15=""," ",VLOOKUP($C15,Futtermittel!$A$8:$CG$171,16,FALSE)*$F15) -> 1.7175275 | R15: =IF($C15=""," ",VLOOKUP($C15,Futtermittel!$A$8:$CG$171,17,FALSE)*$F15) -> 1.43056829 | S15: =IF($C15=""," ",VLOOKUP($C15,Futtermittel!$A$8:$CG$171,18,FALSE)*$F15) -> 2.628068182 | T15: =IF($C15=""," ",VLOOKUP($C15,Futtermittel!$A$8:$CG$171,19,FALSE)*$F15) -> 2.260138636 | U15: =IF($C15=""," ",VLOOKUP($C15,Futtermittel!$A$8:$CG$171,20,FALSE)*$F15) -> 0.8082159091 | V15: =IF($C15=""," ",VLOOKUP($C15,Futtermittel!$A$8:$CG$171,21,FALSE)*$F15) -> 0.6950656818 | W15: =IF($C15=""," ",VLOOKUP($C15,Futtermittel!$A$8:$CG$171,22,FALSE)*$F15) -> 0.4139317418 | X15: =IF($C15=""," ",VLOOKUP($C15,Futtermittel!$A$8:$CG$171,23,FALSE)*$F15) -> 0.8713810598 | Y15: =IF($C15=""," ",VLOOKUP($C15,Futtermittel!$A$8:$CG$171,24,FALSE)*$F15) -> 0.3485524239 | Z15: =IF($C15=""," ",VLOOKUP($C15,Futtermittel!$A$8:$CG$171,25,FALSE)*$F15) -> 0.6535357948 | AA15: =IF($C15=""," ",VLOOKUP($C15,Futtermittel!$A$8:$CG$171,26,FALSE)*$F15) -> 0.3668330043 | AB15: =IF($C15=""," ",VLOOKUP($C15,Futtermittel!$A$8:$CG$171,27,FALSE)*$F15) -> 0.021983 | AC15: 4.94
B16: =IF($C16=""," ",VLOOKUP($C16,Futtermittel!$A$8:$CG$171,2,FALSE)) -> 140 | C16: =IF(Futterberechnung!C16="","",Futterberechnung!C16) -> Rapsöl / Pflanzenöl DLG 2014 | E16: =IF(Futterberechnung!E16="","",Futterberechnung!E16) -> 97 | F16: 0.011 | G16: 0.01241121335 | H16: 11 | I16: =IF($C16=""," ",VLOOKUP($C16,Futtermittel!$A$8:$CG$171,8,FALSE)*$F16) -> 10.989 | J16: =IF($C16=""," ",VLOOKUP($C16,Futtermittel!$A$8:$CG$171,9,FALSE)*$F16) -> 0 | K16: =IF($C16=""," ",VLOOKUP($C16,Futtermittel!$A$8:$CG$171,10,FALSE)*$F16) -> 0 | L16: =IF($C16=""," ",VLOOKUP($C16,Futtermittel!$A$8:$CG$171,11,FALSE)*$F16) -> 0 | M16: =IF($C16=""," ",VLOOKUP($C16,Futtermittel!$A$8:$CG$171,12,FALSE)*$F16) -> 0.428185912 | N16: =IF($C16=""," ",VLOOKUP(C16,Futtermittel!$A$8:$CG$171,13,FALSE)*$F16) -> 0.356752066 | O16: =IF($C16=""," ",VLOOKUP($C16,Futtermittel!$A$8:$CG$171,14,FALSE)*$F16) -> 0 | P16: =IF($C16=""," ",VLOOKUP($C16,Futtermittel!$A$8:$CG$171,15,FALSE)*$F16) -> 0 | Q16: =IF($C16=""," ",VLOOKUP($C16,Futtermittel!$A$8:$CG$171,16,FALSE)*$F16) -> 0 | R16: =IF($C16=""," ",VLOOKUP($C16,Futtermittel!$A$8:$CG$171,17,FALSE)*$F16) -> 0 | S16: =IF($C16=""," ",VLOOKUP($C16,Futtermittel!$A$8:$CG$171,18,FALSE)*$F16) -> 0 | T16: =IF($C16=""," ",VLOOKUP($C16,Futtermittel!$A$8:$CG$171,19,FALSE)*$F16) -> 0 | U16: =IF($C16=""," ",VLOOKUP($C16,Futtermittel!$A$8:$CG$171,20,FALSE)*$F16) -> 0 | V16: =IF($C16=""," ",VLOOKUP($C16,Futtermittel!$A$8:$CG$171,21,FALSE)*$F16) -> 0 | W16: =IF($C16=""," ",VLOOKUP($C16,Futtermittel!$A$8:$CG$171,22,FALSE)*$F16) -> 0 | X16: =IF($C16=""," ",VLOOKUP($C16,Futtermittel!$A$8:$CG$171,23,FALSE)*$F16) -> 0 | Y16: =IF($C16=""," ",VLOOKUP($C16,Futtermittel!$A$8:$CG$171,24,FALSE)*$F16) -> 0 | Z16: =IF($C16=""," ",VLOOKUP($C16,Futtermittel!$A$8:$CG$171,25,FALSE)*$F16) -> 0 | AA16: =IF($C16=""," ",VLOOKUP($C16,Futtermittel!$A$8:$CG$171,26,FALSE)*$F16) -> 0 | AB16: =IF($C16=""," ",VLOOKUP($C16,Futtermittel!$A$8:$CG$171,27,FALSE)*$F16) -> 0 | AC16: 1.067
B17: =IF($C17=""," ",VLOOKUP($C17,Futtermittel!$A$8:$CG$171,2,FALSE)) ->  | C17: =IF(Futterberechnung!C17="","",Futterberechnung!C17) ->  | E17: =IF(Futterberechnung!E17="","",Futterberechnung!E17) ->  | I17: =IF($C17=""," ",VLOOKUP($C17,Futtermittel!$A$8:$CG$171,8,FALSE)*$F17) ->  | J17: =IF($C17=""," ",VLOOKUP($C17,Futtermittel!$A$8:$CG$171,9,FALSE)*$F17) ->  | K17: =IF($C17=""," ",VLOOKUP($C17,Futtermittel!$A$8:$CG$171,10,FALSE)*$F17) ->  | L17: =IF($C17=""," ",VLOOKUP($C17,Futtermittel!$A$8:$CG$171,11,FALSE)*$F17) ->  | M17: =IF($C17=""," ",VLOOKUP($C17,Futtermittel!$A$8:$CG$171,12,FALSE)*$F17) ->  | N17: =IF($C17=""," ",VLOOKUP(C17,Futtermittel!$A$8:$CG$171,13,FALSE)*$F17) ->  | O17: =IF($C17=""," ",VLOOKUP($C17,Futtermittel!$A$8:$CG$171,14,FALSE)*$F17) ->  | P17: =IF($C17=""," ",VLOOKUP($C17,Futtermittel!$A$8:$CG$171,15,FALSE)*$F17) ->  | Q17: =IF($C17=""," ",VLOOKUP($C17,Futtermittel!$A$8:$CG$171,16,FALSE)*$F17) ->  | R17: =IF($C17=""," ",VLOOKUP($C17,Futtermittel!$A$8:$CG$171,17,FALSE)*$F17) ->  | S17: =IF($C17=""," ",VLOOKUP($C17,Futtermittel!$A$8:$CG$171,18,FALSE)*$F17) ->  | T17: =IF($C17=""," ",VLOOKUP($C17,Futtermittel!$A$8:$CG$171,19,FALSE)*$F17) ->  | U17: =IF($C17=""," ",VLOOKUP($C17,Futtermittel!$A$8:$CG$171,20,FALSE)*$F17) ->  | V17: =IF($C17=""," ",VLOOKUP($C17,Futtermittel!$A$8:$CG$171,21,FALSE)*$F17) ->  | W17: =IF($C17=""," ",VLOOKUP($C17,Futtermittel!$A$8:$CG$171,22,FALSE)*$F17) ->  | X17: =IF($C17=""," ",VLOOKUP($C17,Futtermittel!$A$8:$CG$171,23,FALSE)*$F17) ->  | Y17: =IF($C17=""," ",VLOOKUP($C17,Futtermittel!$A$8:$CG$171,24,FALSE)*$F17) ->  | Z17: =IF($C17=""," ",VLOOKUP($C17,Futtermittel!$A$8:$CG$171,25,FALSE)*$F17) ->  | AA17: =IF($C17=""," ",VLOOKUP($C17,Futtermittel!$A$8:$CG$171,26,FALSE)*$F17) ->  | AB17: =IF($C17=""," ",VLOOKUP($C17,Futtermittel!$A$8:$CG$171,27,FALSE)*$F17) ->  | AC17: =IFERROR(IF(E17*F17=0," ",E17*F17),"") -> 
B18: =IF($C18=""," ",VLOOKUP($C18,Futtermittel!$A$8:$CG$171,2,FALSE)) ->  | C18: =IF(Futterberechnung!C18="","",Futterberechnung!C18) ->  | E18: =IF(Futterberechnung!E18="","",Futterberechnung!E18) ->  | I18: =IF($C18=""," ",VLOOKUP($C18,Futtermittel!$A$8:$CG$171,8,FALSE)*$F18) ->  | J18: =IF($C18=""," ",VLOOKUP($C18,Futtermittel!$A$8:$CG$171,9,FALSE)*$F18) ->  | K18: =IF($C18=""," ",VLOOKUP($C18,Futtermittel!$A$8:$CG$171,10,FALSE)*$F18) ->  | L18: =IF($C18=""," ",VLOOKUP($C18,Futtermittel!$A$8:$CG$171,11,FALSE)*$F18) ->  | M18: =IF($C18=""," ",VLOOKUP($C18,Futtermittel!$A$8:$CG$171,12,FALSE)*$F18) ->  | N18: =IF($C18=""," ",VLOOKUP(C18,Futtermittel!$A$8:$CG$171,13,FALSE)*$F18) ->  | O18: =IF($C18=""," ",VLOOKUP($C18,Futtermittel!$A$8:$CG$171,14,FALSE)*$F18) ->  | P18: =IF($C18=""," ",VLOOKUP($C18,Futtermittel!$A$8:$CG$171,15,FALSE)*$F18) ->  | Q18: =IF($C18=""," ",VLOOKUP($C18,Futtermittel!$A$8:$CG$171,16,FALSE)*$F18) ->  | R18: =IF($C18=""," ",VLOOKUP($C18,Futtermittel!$A$8:$CG$171,17,FALSE)*$F18) ->  | S18: =IF($C18=""," ",VLOOKUP($C18,Futtermittel!$A$8:$CG$171,18,FALSE)*$F18) ->  | T18: =IF($C18=""," ",VLOOKUP($C18,Futtermittel!$A$8:$CG$171,19,FALSE)*$F18) ->  | U18: =IF($C18=""," ",VLOOKUP($C18,Futtermittel!$A$8:$CG$171,20,FALSE)*$F18) ->  | V18: =IF($C18=""," ",VLOOKUP($C18,Futtermittel!$A$8:$CG$171,21,FALSE)*$F18) ->  | W18: =IF($C18=""," ",VLOOKUP($C18,Futtermittel!$A$8:$CG$171,22,FALSE)*$F18) ->  | X18: =IF($C18=""," ",VLOOKUP($C18,Futtermittel!$A$8:$CG$171,23,FALSE)*$F18) ->  | Y18: =IF($C18=""," ",VLOOKUP($C18,Futtermittel!$A$8:$CG$171,24,FALSE)*$F18) ->  | Z18: =IF($C18=""," ",VLOOKUP($C18,Futtermittel!$A$8:$CG$171,25,FALSE)*$F18) ->  | AA18: =IF($C18=""," ",VLOOKUP($C18,Futtermittel!$A$8:$CG$171,26,FALSE)*$F18) ->  | AB18: =IF($C18=""," ",VLOOKUP($C18,Futtermittel!$A$8:$CG$171,27,FALSE)*$F18) -> 
B19: =IF($C19=""," ",VLOOKUP($C19,Futtermittel!$A$8:$CG$171,2,FALSE)) ->  | C19: =IF(Futterberechnung!C19="","",Futterberechnung!C19) ->  | E19: =IF(Futterberechnung!E19="","",Futterberechnung!E19) ->  | I19: =IF($C19=""," ",VLOOKUP($C19,Futtermittel!$A$8:$CG$171,8,FALSE)*$F19) ->  | J19: =IF($C19=""," ",VLOOKUP($C19,Futtermittel!$A$8:$CG$171,9,FALSE)*$F19) ->  | K19: =IF($C19=""," ",VLOOKUP($C19,Futtermittel!$A$8:$CG$171,10,FALSE)*$F19) ->  | L19: =IF($C19=""," ",VLOOKUP($C19,Futtermittel!$A$8:$CG$171,11,FALSE)*$F19) ->  | M19: =IF($C19=""," ",VLOOKUP($C19,Futtermittel!$A$8:$CG$171,12,FALSE)*$F19) ->  | N19: =IF($C19=""," ",VLOOKUP(C19,Futtermittel!$A$8:$CG$171,13,FALSE)*$F19) ->  | O19: =IF($C19=""," ",VLOOKUP($C19,Futtermittel!$A$8:$CG$171,14,FALSE)*$F19) ->  | P19: =IF($C19=""," ",VLOOKUP($C19,Futtermittel!$A$8:$CG$171,15,FALSE)*$F19) ->  | Q19: =IF($C19=""," ",VLOOKUP($C19,Futtermittel!$A$8:$CG$171,16,FALSE)*$F19) ->  | R19: =IF($C19=""," ",VLOOKUP($C19,Futtermittel!$A$8:$CG$171,17,FALSE)*$F19) ->  | S19: =IF($C19=""," ",VLOOKUP($C19,Futtermittel!$A$8:$CG$171,18,FALSE)*$F19) ->  | T19: =IF($C19=""," ",VLOOKUP($C19,Futtermittel!$A$8:$CG$171,19,FALSE)*$F19) ->  | U19: =IF($C19=""," ",VLOOKUP($C19,Futtermittel!$A$8:$CG$171,20,FALSE)*$F19) ->  | V19: =IF($C19=""," ",VLOOKUP($C19,Futtermittel!$A$8:$CG$171,21,FALSE)*$F19) ->  | W19: =IF($C19=""," ",VLOOKUP($C19,Futtermittel!$A$8:$CG$171,22,FALSE)*$F19) ->  | X19: =IF($C19=""," ",VLOOKUP($C19,Futtermittel!$A$8:$CG$171,23,FALSE)*$F19) ->  | Y19: =IF($C19=""," ",VLOOKUP($C19,Futtermittel!$A$8:$CG$171,24,FALSE)*$F19) ->  | Z19: =IF($C19=""," ",VLOOKUP($C19,Futtermittel!$A$8:$CG$171,25,FALSE)*$F19) ->  | AA19: =IF($C19=""," ",VLOOKUP($C19,Futtermittel!$A$8:$CG$171,26,FALSE)*$F19) ->  | AB19: =IF($C19=""," ",VLOOKUP($C19,Futtermittel!$A$8:$CG$171,27,FALSE)*$F19) -> 
B20: =IF($C20=""," ",VLOOKUP($C20,Futtermittel!$A$8:$CG$171,2,FALSE)) ->  | C20: =IF(Futterberechnung!C20="","",Futterberechnung!C20) ->  | E20: =IF(Futterberechnung!E20="","",Futterberechnung!E20) ->  | I20: =IF($C20=""," ",VLOOKUP($C20,Futtermittel!$A$8:$CG$171,8,FALSE)*$F20) ->  | J20: =IF($C20=""," ",VLOOKUP($C20,Futtermittel!$A$8:$CG$171,9,FALSE)*$F20) ->  | K20: =IF($C20=""," ",VLOOKUP($C20,Futtermittel!$A$8:$CG$171,10,FALSE)*$F20) ->  | L20: =IF($C20=""," ",VLOOKUP($C20,Futtermittel!$A$8:$CG$171,11,FALSE)*$F20) ->  | M20: =IF($C20=""," ",VLOOKUP($C20,Futtermittel!$A$8:$CG$171,12,FALSE)*$F20) ->  | N20: =IF($C20=""," ",VLOOKUP(C20,Futtermittel!$A$8:$CG$171,13,FALSE)*$F20) ->  | O20: =IF($C20=""," ",VLOOKUP($C20,Futtermittel!$A$8:$CG$171,14,FALSE)*$F20) ->  | P20: =IF($C20=""," ",VLOOKUP($C20,Futtermittel!$A$8:$CG$171,15,FALSE)*$F20) ->  | Q20: =IF($C20=""," ",VLOOKUP($C20,Futtermittel!$A$8:$CG$171,16,FALSE)*$F20) ->  | R20: =IF($C20=""," ",VLOOKUP($C20,Futtermittel!$A$8:$CG$171,17,FALSE)*$F20) ->  | S20: =IF($C20=""," ",VLOOKUP($C20,Futtermittel!$A$8:$CG$171,18,FALSE)*$F20) ->  | T20: =IF($C20=""," ",VLOOKUP($C20,Futtermittel!$A$8:$CG$171,19,FALSE)*$F20) ->  | U20: =IF($C20=""," ",VLOOKUP($C20,Futtermittel!$A$8:$CG$171,20,FALSE)*$F20) ->  | V20: =IF($C20=""," ",VLOOKUP($C20,Futtermittel!$A$8:$CG$171,21,FALSE)*$F20) ->  | W20: =IF($C20=""," ",VLOOKUP($C20,Futtermittel!$A$8:$CG$171,22,FALSE)*$F20) ->  | X20: =IF($C20=""," ",VLOOKUP($C20,Futtermittel!$A$8:$CG$171,23,FALSE)*$F20) ->  | Y20: =IF($C20=""," ",VLOOKUP($C20,Futtermittel!$A$8:$CG$171,24,FALSE)*$F20) ->  | Z20: =IF($C20=""," ",VLOOKUP($C20,Futtermittel!$A$8:$CG$171,25,FALSE)*$F20) ->  | AA20: =IF($C20=""," ",VLOOKUP($C20,Futtermittel!$A$8:$CG$171,26,FALSE)*$F20) ->  | AB20: =IF($C20=""," ",VLOOKUP($C20,Futtermittel!$A$8:$CG$171,27,FALSE)*$F20) -> 
B21: =IF($C21=""," ",VLOOKUP($C21,Futtermittel!$A$8:$CG$171,2,FALSE)) ->  | C21: =IF(Futterberechnung!C21="","",Futterberechnung!C21) ->  | E21: =IF(Futterberechnung!E21="","",Futterberechnung!E21) ->  | I21: =IF($C21=""," ",VLOOKUP($C21,Futtermittel!$A$8:$CG$171,8,FALSE)*$F21) ->  | J21: =IF($C21=""," ",VLOOKUP($C21,Futtermittel!$A$8:$CG$171,9,FALSE)*$F21) ->  | K21: =IF($C21=""," ",VLOOKUP($C21,Futtermittel!$A$8:$CG$171,10,FALSE)*$F21) ->  | L21: =IF($C21=""," ",VLOOKUP($C21,Futtermittel!$A$8:$CG$171,11,FALSE)*$F21) ->  | M21: =IF($C21=""," ",VLOOKUP($C21,Futtermittel!$A$8:$CG$171,12,FALSE)*$F21) ->  | N21: =IF($C21=""," ",VLOOKUP(C21,Futtermittel!$A$8:$CG$171,13,FALSE)*$F21) ->  | O21: =IF($C21=""," ",VLOOKUP($C21,Futtermittel!$A$8:$CG$171,14,FALSE)*$F21) ->  | P21: =IF($C21=""," ",VLOOKUP($C21,Futtermittel!$A$8:$CG$171,15,FALSE)*$F21) ->  | Q21: =IF($C21=""," ",VLOOKUP($C21,Futtermittel!$A$8:$CG$171,16,FALSE)*$F21) ->  | R21: =IF($C21=""," ",VLOOKUP($C21,Futtermittel!$A$8:$CG$171,17,FALSE)*$F21) ->  | S21: =IF($C21=""," ",VLOOKUP($C21,Futtermittel!$A$8:$CG$171,18,FALSE)*$F21) ->  | T21: =IF($C21=""," ",VLOOKUP($C21,Futtermittel!$A$8:$CG$171,19,FALSE)*$F21) ->  | U21: =IF($C21=""," ",VLOOKUP($C21,Futtermittel!$A$8:$CG$171,20,FALSE)*$F21) ->  | V21: =IF($C21=""," ",VLOOKUP($C21,Futtermittel!$A$8:$CG$171,21,FALSE)*$F21) ->  | W21: =IF($C21=""," ",VLOOKUP($C21,Futtermittel!$A$8:$CG$171,22,FALSE)*$F21) ->  | X21: =IF($C21=""," ",VLOOKUP($C21,Futtermittel!$A$8:$CG$171,23,FALSE)*$F21) ->  | Y21: =IF($C21=""," ",VLOOKUP($C21,Futtermittel!$A$8:$CG$171,24,FALSE)*$F21) ->  | Z21: =IF($C21=""," ",VLOOKUP($C21,Futtermittel!$A$8:$CG$171,25,FALSE)*$F21) ->  | AA21: =IF($C21=""," ",VLOOKUP($C21,Futtermittel!$A$8:$CG$171,26,FALSE)*$F21) ->  | AB21: =IF($C21=""," ",VLOOKUP($C21,Futtermittel!$A$8:$CG$171,27,FALSE)*$F21) -> 
B22: =IF($C22=""," ",VLOOKUP($C22,Futtermittel!$A$8:$CG$171,2,FALSE)) ->  | C22: =IF(Futterberechnung!C22="","",Futterberechnung!C22) ->  | E22: =IF(Futterberechnung!E22="","",Futterberechnung!E22) ->  | I22: =IF($C22=""," ",VLOOKUP($C22,Futtermittel!$A$8:$CG$171,8,FALSE)*$F22) ->  | J22: =IF($C22=""," ",VLOOKUP($C22,Futtermittel!$A$8:$CG$171,9,FALSE)*$F22) ->  | K22: =IF($C22=""," ",VLOOKUP($C22,Futtermittel!$A$8:$CG$171,10,FALSE)*$F22) ->  | L22: =IF($C22=""," ",VLOOKUP($C22,Futtermittel!$A$8:$CG$171,11,FALSE)*$F22) ->  | M22: =IF($C22=""," ",VLOOKUP($C22,Futtermittel!$A$8:$CG$171,12,FALSE)*$F22) ->  | N22: =IF($C22=""," ",VLOOKUP(C22,Futtermittel!$A$8:$CG$171,13,FALSE)*$F22) ->  | O22: =IF($C22=""," ",VLOOKUP($C22,Futtermittel!$A$8:$CG$171,14,FALSE)*$F22) ->  | P22: =IF($C22=""," ",VLOOKUP($C22,Futtermittel!$A$8:$CG$171,15,FALSE)*$F22) ->  | Q22: =IF($C22=""," ",VLOOKUP($C22,Futtermittel!$A$8:$CG$171,16,FALSE)*$F22) ->  | R22: =IF($C22=""," ",VLOOKUP($C22,Futtermittel!$A$8:$CG$171,17,FALSE)*$F22) ->  | S22: =IF($C22=""," ",VLOOKUP($C22,Futtermittel!$A$8:$CG$171,18,FALSE)*$F22) ->  | T22: =IF($C22=""," ",VLOOKUP($C22,Futtermittel!$A$8:$CG$171,19,FALSE)*$F22) ->  | U22: =IF($C22=""," ",VLOOKUP($C22,Futtermittel!$A$8:$CG$171,20,FALSE)*$F22) ->  | V22: =IF($C22=""," ",VLOOKUP($C22,Futtermittel!$A$8:$CG$171,21,FALSE)*$F22) ->  | W22: =IF($C22=""," ",VLOOKUP($C22,Futtermittel!$A$8:$CG$171,22,FALSE)*$F22) ->  | X22: =IF($C22=""," ",VLOOKUP($C22,Futtermittel!$A$8:$CG$171,23,FALSE)*$F22) ->  | Y22: =IF($C22=""," ",VLOOKUP($C22,Futtermittel!$A$8:$CG$171,24,FALSE)*$F22) ->  | Z22: =IF($C22=""," ",VLOOKUP($C22,Futtermittel!$A$8:$CG$171,25,FALSE)*$F22) ->  | AA22: =IF($C22=""," ",VLOOKUP($C22,Futtermittel!$A$8:$CG$171,26,FALSE)*$F22) ->  | AB22: =IF($C22=""," ",VLOOKUP($C22,Futtermittel!$A$8:$CG$171,27,FALSE)*$F22) -> 
B23: =IF($C23=""," ",VLOOKUP($C23,Futtermittel!$A$8:$CG$171,2,FALSE)) ->  | C23: =IF(Futterberechnung!C23="","",Futterberechnung!C23) ->  | E23: =IF(Futterberechnung!E23="","",Futterberechnung!E23) ->  | I23: =IF($C23=""," ",VLOOKUP($C23,Futtermittel!$A$8:$CG$171,8,FALSE)*$F23) ->  | J23: =IF($C23=""," ",VLOOKUP($C23,Futtermittel!$A$8:$CG$171,9,FALSE)*$F23) ->  | K23: =IF($C23=""," ",VLOOKUP($C23,Futtermittel!$A$8:$CG$171,10,FALSE)*$F23) ->  | L23: =IF($C23=""," ",VLOOKUP($C23,Futtermittel!$A$8:$CG$171,11,FALSE)*$F23) ->  | M23: =IF($C23=""," ",VLOOKUP($C23,Futtermittel!$A$8:$CG$171,12,FALSE)*$F23) ->  | N23: =IF($C23=""," ",VLOOKUP(C23,Futtermittel!$A$8:$CG$171,13,FALSE)*$F23) ->  | O23: =IF($C23=""," ",VLOOKUP($C23,Futtermittel!$A$8:$CG$171,14,FALSE)*$F23) ->  | P23: =IF($C23=""," ",VLOOKUP($C23,Futtermittel!$A$8:$CG$171,15,FALSE)*$F23) ->  | Q23: =IF($C23=""," ",VLOOKUP($C23,Futtermittel!$A$8:$CG$171,16,FALSE)*$F23) ->  | R23: =IF($C23=""," ",VLOOKUP($C23,Futtermittel!$A$8:$CG$171,17,FALSE)*$F23) ->  | S23: =IF($C23=""," ",VLOOKUP($C23,Futtermittel!$A$8:$CG$171,18,FALSE)*$F23) ->  | T23: =IF($C23=""," ",VLOOKUP($C23,Futtermittel!$A$8:$CG$171,19,FALSE)*$F23) ->  | U23: =IF($C23=""," ",VLOOKUP($C23,Futtermittel!$A$8:$CG$171,20,FALSE)*$F23) ->  | V23: =IF($C23=""," ",VLOOKUP($C23,Futtermittel!$A$8:$CG$171,21,FALSE)*$F23) ->  | W23: =IF($C23=""," ",VLOOKUP($C23,Futtermittel!$A$8:$CG$171,22,FALSE)*$F23) ->  | X23: =IF($C23=""," ",VLOOKUP($C23,Futtermittel!$A$8:$CG$171,23,FALSE)*$F23) ->  | Y23: =IF($C23=""," ",VLOOKUP($C23,Futtermittel!$A$8:$CG$171,24,FALSE)*$F23) ->  | Z23: =IF($C23=""," ",VLOOKUP($C23,Futtermittel!$A$8:$CG$171,25,FALSE)*$F23) ->  | AA23: =IF($C23=""," ",VLOOKUP($C23,Futtermittel!$A$8:$CG$171,26,FALSE)*$F23) ->  | AB23: =IF($C23=""," ",VLOOKUP($C23,Futtermittel!$A$8:$CG$171,27,FALSE)*$F23) -> 
B24: EF-Nr. | C24: Ergänzungsfutter | D24: VQ in % | G24: =IF(F24="","",I24/I$2941) -> 
B25: =IF($C25=""," ",VLOOKUP($C25,Ergänzungsfutter!$A$11:$Q$35,3,FALSE)) ->  | D25: 0.85 | G25: =IF(F25="","",I25/I$30) ->  | I25: =IF($C25=""," ",VLOOKUP($C25,Ergänzungsfutter!$A$11:$BE$35,5,FALSE)*$F25) ->  | J25: =IF($C25=""," ",VLOOKUP($C25,Ergänzungsfutter!$A$11:$BE$35,6,FALSE)*$F25) ->  | K25: =IF($C25=""," ",VLOOKUP($C25,Ergänzungsfutter!$A$11:$BE$35,6,FALSE)*$F25*D25) ->  | L25: =IF($C25=""," ",VLOOKUP($C25,Ergänzungsfutter!$A$11:$BE$35,7,FALSE)*$F25) ->  | M25: =IF($C25=""," ",IF(VLOOKUP($C25,Ergänzungsfutter!$A$11:$BE$35,8,FALSE)=" ",0,VLOOKUP($C25,Ergänzungsfutter!$A$11:$BE$35,8,FALSE)*$F25)) ->  | N25: =IF($C25=""," ",IF(VLOOKUP($C25,Ergänzungsfutter!$A$11:$BE$35,8,FALSE)=" ",0,VLOOKUP($C25,Ergänzungsfutter!$A$11:$BE$35,8,FALSE)*$F25)) ->  | O25: =IF($C25=""," ",VLOOKUP($C25,Ergänzungsfutter!$A$11:$BE$35,9,FALSE)*$F25) ->  | P25: =IF($C25=""," ",VLOOKUP($C25,Ergänzungsfutter!$A$11:$BE$35,9,FALSE)*$F25*D25) ->  | Q25: =IF($C25=""," ",VLOOKUP($C25,Ergänzungsfutter!$A$11:$BE$35,10,FALSE)*$F25) ->  | R25: =IF($C25=""," ",VLOOKUP($C25,Ergänzungsfutter!$A$11:$BE$35,10,FALSE)*$F25*D25) ->  | S25: =IF($C25=""," ",VLOOKUP($C25,Ergänzungsfutter!$A$11:$BE$35,11,FALSE)*$F25) ->  | T25: =IF($C25=""," ",VLOOKUP($C25,Ergänzungsfutter!$A$11:$BE$35,11,FALSE)*$F25*D25) ->  | U25: =IF($C25=""," ",VLOOKUP($C25,Ergänzungsfutter!$A$11:$BE$35,12,FALSE)*$F25) ->  | V25: =IF($C25=""," ",VLOOKUP($C25,Ergänzungsfutter!$A$11:$BE$35,12,FALSE)*$F25*D25) ->  | W25: =IF($C25=""," ",VLOOKUP($C25,Ergänzungsfutter!$A$11:$BE$35,13,FALSE)*$F25) ->  | X25: =IF($C25=""," ",VLOOKUP($C25,Ergänzungsfutter!$A$11:$BE$35,14,FALSE)*$F25) ->  | Y25: =IF($C25=""," ",VLOOKUP($C25,Ergänzungsfutter!$A$11:$BE$35,15,FALSE)*$F25) ->  | Z25: =IF($C25=""," ",IF(Y25>VLOOKUP($C25,Ergänzungsfutter!$A$11:$BE$35,14,FALSE)*$F25*0.65,Y25,VLOOKUP($C25,Ergänzungsfutter!$A$11:$BE$35,14,FALSE)*$F25*0.65)) ->  | AA25: =IF($C25=""," ",VLOOKUP($C25,Ergänzungsfutter!$A$11:$BE$35,16,FALSE)*$F25) ->  | AB25: =IF($C25=""," ",VLOOKUP($C25,Ergänzungsfutter!$A$11:$BE$35,17,FALSE)*$F25) -> 
B26: =IF($C26=""," ",VLOOKUP($C26,Ergänzungsfutter!$A$11:$Q$35,3,FALSE)) ->  | G26: =IF(F26="","",I26/I$30) ->  | I26: =IF($C26=""," ",VLOOKUP($C26,Ergänzungsfutter!$A$11:$BE$35,5,FALSE)*$F26) ->  | J26: =IF($C26=""," ",VLOOKUP($C26,Ergänzungsfutter!$A$11:$BE$35,6,FALSE)*$F26) ->  | K26: =IF($C26=""," ",VLOOKUP($C26,Ergänzungsfutter!$A$11:$BE$35,6,FALSE)*$F26*D26) ->  | L26: =IF($C26=""," ",VLOOKUP($C26,Ergänzungsfutter!$A$11:$BE$35,7,FALSE)*$F26) ->  | M26: =IF($C26=""," ",IF(VLOOKUP($C26,Ergänzungsfutter!$A$11:$BE$35,8,FALSE)=" ",0,VLOOKUP($C26,Ergänzungsfutter!$A$11:$BE$35,8,FALSE)*$F26)) ->  | N26: =IF($C26=""," ",IF(VLOOKUP($C26,Ergänzungsfutter!$A$11:$BE$35,8,FALSE)=" ",0,VLOOKUP($C26,Ergänzungsfutter!$A$11:$BE$35,8,FALSE)*$F26)) ->  | O26: =IF($C26=""," ",VLOOKUP($C26,Ergänzungsfutter!$A$11:$BE$35,9,FALSE)*$F26) ->  | P26: =IF($C26=""," ",VLOOKUP($C26,Ergänzungsfutter!$A$11:$BE$35,9,FALSE)*$F26*D26) ->  | Q26: =IF($C26=""," ",VLOOKUP($C26,Ergänzungsfutter!$A$11:$BE$35,10,FALSE)*$F26) ->  | R26: =IF($C26=""," ",VLOOKUP($C26,Ergänzungsfutter!$A$11:$BE$35,10,FALSE)*$F26*D26) ->  | S26: =IF($C26=""," ",VLOOKUP($C26,Ergänzungsfutter!$A$11:$BE$35,11,FALSE)*$F26) ->  | T26: =IF($C26=""," ",VLOOKUP($C26,Ergänzungsfutter!$A$11:$BE$35,11,FALSE)*$F26*D26) ->  | U26: =IF($C26=""," ",VLOOKUP($C26,Ergänzungsfutter!$A$11:$BE$35,12,FALSE)*$F26) ->  | V26: =IF($C26=""," ",VLOOKUP($C26,Ergänzungsfutter!$A$11:$BE$35,12,FALSE)*$F26*D26) ->  | W26: =IF($C26=""," ",VLOOKUP($C26,Ergänzungsfutter!$A$11:$BE$35,13,FALSE)*$F26) ->  | X26: =IF($C26=""," ",VLOOKUP($C26,Ergänzungsfutter!$A$11:$BE$35,14,FALSE)*$F26) ->  | Y26: =IF($C26=""," ",VLOOKUP($C26,Ergänzungsfutter!$A$11:$BE$35,15,FALSE)*$F26) ->  | Z26: =IF($C26=""," ",IF(Y26>VLOOKUP($C26,Ergänzungsfutter!$A$11:$BE$35,14,FALSE)*$F26*0.65,Y26,VLOOKUP($C26,Ergänzungsfutter!$A$11:$BE$35,14,FALSE)*$F26*0.65)) ->  | AA26: =IF($C26=""," ",VLOOKUP($C26,Ergänzungsfutter!$A$11:$BE$35,16,FALSE)*$F26) ->  | AB26: =IF($C26=""," ",VLOOKUP($C26,Ergänzungsfutter!$A$11:$BE$35,17,FALSE)*$F26) -> 
B27: Nr. | C27: Mineralfutter | G27: =IF(F27="","",I27/I$2944) -> 
A28: 2 | B28: =IF($C28=""," ",VLOOKUP($C28,Mineralfutter!$A$11:$BE$25,3,FALSE)) -> 6 | C28: Opti. MinFu AM 850g TZ 3,5% + Phytase 17/18 | E28: 81 | F28: 0.035 | G28: =IF(F28="","",I28/I$30) -> 0.03794856388 | H28: 35 | I28: =IF($C28=""," ",VLOOKUP($C28,Mineralfutter!$A$11:$BE$25,5,FALSE)*$F28) -> 33.6 | J28: =IF($C28=""," ",VLOOKUP($C28,Mineralfutter!$A$11:$BE$25,6,FALSE)*$F28) -> 5.730410423 | K28: =IF($C28=""," ",VLOOKUP($C28,Mineralfutter!$A$11:$BE$25,6,FALSE)*$F28) -> 5.730410423 | L28: =IF($C28=""," ",VLOOKUP($C28,Mineralfutter!$A$11:$BE$25,7,FALSE)*$F28) -> 0 | M28: =IF($C28=""," ",IF(VLOOKUP($C28,Mineralfutter!$A$11:$BE$25,8,FALSE)=" ",0,VLOOKUP($C28,Mineralfutter!$A$11:$BE$25,8,FALSE)*$F28)) -> 0.1174905095 | N28: =IF($C28=""," ",IF(VLOOKUP($C28,Mineralfutter!$A$11:$BE$25,19,FALSE)=" ",0,VLOOKUP($C28,Mineralfutter!$A$11:$BE$25,19,FALSE)*$F28)) -> 0.1232088037 | O28: =IF($C28=""," ",VLOOKUP($C28,Mineralfutter!$A$11:$BE$25,9,FALSE)*$F28) -> 3.325 | P28: =IF($C28=""," ",VLOOKUP($C28,Mineralfutter!$A$11:$BE$25,9,FALSE)*$F28) -> 3.325 | Q28: =IF($C28=""," ",VLOOKUP($C28,Mineralfutter!$A$11:$BE$25,10,FALSE)*$F28) -> 1.05 | R28: =IF($C28=""," ",VLOOKUP($C28,Mineralfutter!$A$11:$BE$25,10,FALSE)*$F28) -> 1.05 | S28: =IF($C28=""," ",VLOOKUP($C28,Mineralfutter!$A$11:$BE$25,11,FALSE)*$F28) -> 1.4 | T28: =IF($C28=""," ",VLOOKUP($C28,Mineralfutter!$A$11:$BE$25,11,FALSE)*$F28) -> 1.4 | U28: =IF($C28=""," ",VLOOKUP($C28,Mineralfutter!$A$11:$BE$25,12,FALSE)*$F28) -> 0 | V28: =IF($C28=""," ",VLOOKUP($C28,Mineralfutter!$A$11:$BE$25,12,FALSE)*$F28) -> 0 | W28: =IF($C28=""," ",VLOOKUP($C28,Mineralfutter!$A$11:$BE$25,13,FALSE)*$F28) -> 5.075 | X28: =IF($C28=""," ",VLOOKUP($C28,Mineralfutter!$A$11:$BE$25,14,FALSE)*$F28) -> 0.525 | Y28: =IF($C28=""," ",VLOOKUP($C28,Mineralfutter!$A$11:$BE$25,15,FALSE)*$F28) -> 0.42 | Z28: =IF($C28=""," ",VLOOKUP($C28,Mineralfutter!$A$11:$BE$25,15,FALSE)*$F28) -> 0.42 | AA28: =IF($C28=""," ",VLOOKUP($C28,Mineralfutter!$A$11:$BE$25,16,FALSE)*$F28) -> 0 | AB28: =IF($C28=""," ",VLOOKUP($C28,Mineralfutter!$A$11:$BE$25,17,FALSE)*$F28) -> 1.75 | AC28: 2.835
B29: =IF($C29=""," ",VLOOKUP($C29,Mineralfutter!$A$11:$BE$25,3,FALSE)) ->  | G29: =IF(F29="","",I29/I$30) ->  | I29: =IF($C29=""," ",VLOOKUP($C29,Mineralfutter!$A$11:$BE$25,5,FALSE)*$F29) ->  | J29: =IF($C29=""," ",VLOOKUP($C29,Mineralfutter!$A$11:$BE$25,6,FALSE)*$F29) ->  | K29: =IF($C29=""," ",VLOOKUP($C29,Mineralfutter!$A$11:$BE$25,6,FALSE)*$F29) ->  | L29: =IF($C29=""," ",VLOOKUP($C29,Mineralfutter!$A$11:$BE$25,7,FALSE)*$F29) ->  | M29: =IF($C29=""," ",IF(VLOOKUP($C29,Mineralfutter!$A$11:$BE$25,8,FALSE)=" ",0,VLOOKUP($C29,Mineralfutter!$A$11:$BE$25,8,FALSE)*$F29)) ->  | N29: =IF($C29=""," ",IF(VLOOKUP($C29,Mineralfutter!$A$11:$BE$25,19,FALSE)=" ",0,VLOOKUP($C29,Mineralfutter!$A$11:$BE$25,19,FALSE)*$F29)) ->  | O29: =IF($C29=""," ",VLOOKUP($C29,Mineralfutter!$A$11:$BE$25,9,FALSE)*$F29) ->  | P29: =IF($C29=""," ",VLOOKUP($C29,Mineralfutter!$A$11:$BE$25,9,FALSE)*$F29) ->  | Q29: =IF($C29=""," ",VLOOKUP($C29,Mineralfutter!$A$11:$BE$25,10,FALSE)*$F29) ->  | R29: =IF($C29=""," ",VLOOKUP($C29,Mineralfutter!$A$11:$BE$25,10,FALSE)*$F29) ->  | S29: =IF($C29=""," ",VLOOKUP($C29,Mineralfutter!$A$11:$BE$25,11,FALSE)*$F29) ->  | T29: =IF($C29=""," ",VLOOKUP($C29,Mineralfutter!$A$11:$BE$25,11,FALSE)*$F29) ->  | U29: =IF($C29=""," ",VLOOKUP($C29,Mineralfutter!$A$11:$BE$25,12,FALSE)*$F29) ->  | V29: =IF($C29=""," ",VLOOKUP($C29,Mineralfutter!$A$11:$BE$25,12,FALSE)*$F29) ->  | W29: =IF($C29=""," ",VLOOKUP($C29,Mineralfutter!$A$11:$BE$25,13,FALSE)*$F29) ->  | X29: =IF($C29=""," ",VLOOKUP($C29,Mineralfutter!$A$11:$BE$25,14,FALSE)*$F29) ->  | Y29: =IF($C29=""," ",VLOOKUP($C29,Mineralfutter!$A$11:$BE$25,15,FALSE)*$F29) ->  | Z29: =IF($C29=""," ",VLOOKUP($C29,Mineralfutter!$A$11:$BE$25,15,FALSE)*$F29) ->  | AA29: =IF($C29=""," ",VLOOKUP($C29,Mineralfutter!$A$11:$BE$25,16,FALSE)*$F29) ->  | AB29: =IF($C29=""," ",VLOOKUP($C29,Mineralfutter!$A$11:$BE$25,17,FALSE)*$F29) -> 
C30: Summe | E30: =AC30 -> 22.87266 | F30: =IF(SUM(F13:F29,F36:F37)=0," ",SUM(F13:F29,F36:F37)) -> 1 | I30: =IF(F30=" "," ",SUM(I13:I29,I36*$F36,I37*$F37)) -> 885.409 | J30: =IF(I30=" "," ",SUM(J13:J29,J36*$F36,J37*$F37)) -> 147.8396304 | K30: 123.555909 | L30: 37.66396 | M30: =IF(L30=" "," ",SUM(M13:M29,N36*$F36,N37*$F37)) -> 13.22593541 | N30: =IF(F30=" "," ",IF(N37="",(0.021503*J30+0.032497*I63+0.016309*J63+0.014701*M63-0.02107*L30),IF(N36=" ",(0.021503*J30+0.032497*I63+0.016309*J63+0.014701*M63-0.02107*L30),SUM(N13:N29)+N36*F36+N37*F37))) -> 13.18924426 | O30: =IF(M30=" "," ",SUM(O13:O29,O36*$F36,O37*$F37)) -> 9.705230309 | P30: 8.749477753 | Q30: 5.9002041 | R30: 5.227279645 | S30: 6.447640782 | T30: 5.683282932 | U30: 1.885108109 | V30: 1.598596234 | W30: 5.981328542 | X30: 4.17838106 | Y30: 2.272902424 | Z30: 2.881835795 | AA30: 1.273233004 | AB30: 1.921624379 | AC30: =IF(SUM(AC13:AC29,AC36:AC37)=0," ",SUM(AC13:AC29,AC36:AC37)) -> 22.87266
C31: Summe auf 88% TM umgerechnet | E31: =AC31 -> 22.73292998 | F31: =F30 -> 1 | I31: 880 | J31: =IF($F31=" "," ",ROUND($I31*J30/$I30*$F31,0)) -> 147 | K31: =IF($F31=" "," ",ROUND($I31*K30/$I30*$F31,0)) -> 123 | L31: =IF($F31=" "," ",ROUND($I31*L30/$I30*$F31,0)) -> 37 | M31: =IF($F31=" "," ",ROUND($I31*M30/$I30*$F31,2)) -> 13.15 | N31: =IF($F31=" "," ",ROUND($I31*N30/$I30*$F31,2)) -> 13.11 | O31: =IF($F31=" "," ",ROUND($I31*O30/$I30*$F31,1)) -> 9.6 | P31: 8.7 | Q31: 5.9 | R31: 5.2 | S31: 6.4 | T31: 5.6 | U31: 1.9 | V31: 1.6 | W31: 5.9 | X31: 4.2 | Y31: 2.3 | Z31: 2.9 | AA31: 1.3 | AB31: 1.9 | AC31: =IF(AC30=" "," ",AC30*I31/I30) -> 22.73292998
B32: OW-Nr. | C32: aus Tabelle Orientierungswerte in g
B33: =IF($C33=""," ",VLOOKUP($C33,Orientierungswerte!A13:AZ126,2,FALSE)) -> 13 | C33: Anfangsmast ab 40 Kg LM für 850 g TZ* | E33: - | F33: =F30 -> 1 | I33: =I31 -> 880 | J33: =IF($C33=""," ",ROUND(VLOOKUP($C$33,Orientierungswerte!$A$13:$AZ$126,5,FALSE)*$F$33,0)) -> 158 | K33: =IF($C33=""," ",ROUND(VLOOKUP($C$33,Orientierungswerte!$A$13:$AZ$126,6,FALSE)*$F$33,0)) -> 139 | L33: =IF($C33=""," ",ROUND(VLOOKUP($C33,Orientierungswerte!$A$13:$AZ$126,28,FALSE)*$F$33,0)) -> 40 | M33: =IF($C33=""," ",ROUND(VLOOKUP($C$33,Orientierungswerte!$A$13:$AZ$126,4,FALSE)*$F$33,2)) -> 13.2 | N33: =IF($C33=""," ",ROUND(VLOOKUP($C$33,Orientierungswerte!$A$13:$AZ$126,4,FALSE)*$F$33,2)) -> 13.2 | O33: =IF($C33=""," ",ROUND(VLOOKUP($C$33,Orientierungswerte!$A$13:$AZ$126,7,FALSE)*$F$33,1)) -> 10.2 | P33: =IF($C33=""," ",ROUND(VLOOKUP($C$33,Orientierungswerte!$A$13:$AZ$126,8,FALSE)*$F$33,1)) -> 8.9 | Q33: =IF($C33=""," ",ROUND(VLOOKUP($C$33,Orientierungswerte!$A$13:$AZ$126,9,FALSE)*$F$33,1)) -> 5.5 | R33: =IF($C33=""," ",ROUND(VLOOKUP($C$33,Orientierungswerte!$A$13:$AZ$126,10,FALSE)*$F$33,1)) -> 4.9 | S33: =IF($C33=""," ",ROUND(VLOOKUP($C$33,Orientierungswerte!$A$13:$AZ$126,11,FALSE)*$F$33,1)) -> 6.4 | T33: =IF($C33=""," ",ROUND(VLOOKUP($C$33,Orientierungswerte!$A$13:$AZ$126,12,FALSE)*$F$33,1)) -> 5.8 | U33: =IF($C33=""," ",ROUND(VLOOKUP($C$33,Orientierungswerte!$A$13:$AZ$126,13,FALSE)*$F$33,1)) -> 1.8 | V33: =IF($C33=""," ",ROUND(VLOOKUP($C$33,Orientierungswerte!$A$13:$AZ$126,14,FALSE)*$F$33,1)) -> 1.6 | W33: =IF($C33=""," ",ROUND(VLOOKUP($C$33,Orientierungswerte!$A$13:$AZ$126,15,FALSE)*$F$33,1)) -> 5.9 | X33: =IF($C33=""," ",ROUND(VLOOKUP($C$33,Orientierungswerte!$A$13:$AZ$126,16,FALSE)*$F$33,1)) -> 4.4 | Y33: =IF($C33=""," ",ROUND(VLOOKUP($C$33,Orientierungswerte!$A$13:$AZ$126,17,FALSE)*$F$33,1)) -> 2.7 | Z33: =IF($C33=""," ",ROUND(VLOOKUP($C$33,Orientierungswerte!$A$13:$AZ$126,17,FALSE)*$F$33,1)) -> 2.7 | AA33: =IF($C33=""," ",ROUND(VLOOKUP($C$33,Orientierungswerte!$A$13:$AZ$126,18,FALSE)*$F$33,1)) -> 1 | AB33: =IF($C33=""," ",ROUND(VLOOKUP($C$33,Orientierungswerte!$A$13:$AZ$126,19,FALSE)*$F$33,1)) -> 1.8 | AC33: -
C34: Differenz Mischung zu Orientierungswert | E34: - | F34: =IF($C$33=""," ",ROUND((1-F31)*-1,4)) -> 0 | I34: =IF($C$33=""," ",ROUND(I31-I33,)) -> 0 | J34: =IF($C$33=""," ",ROUND(J31-J33,)) -> -11 | K34: =IF($C$33=""," ",ROUND(K31-K33,0)) -> -16 | L34: =IF($C$33=""," ",ROUND(L31-L33,0)) -> -3 | M34: =IF($C$33=""," ",ROUND(M31-M33,2)) -> -0.05 | N34: =IF($C$33=""," ",ROUND(N31-N33,2)) -> -0.09 | O34: =IF($C$33=""," ",ROUND(O31-O33,1)) -> -0.6 | P34: -0.2 | Q34: 0.4 | R34: 0.3 | S34: 0 | T34: -0.2 | U34: 0.1 | V34: 0 | W34: 0 | X34: -0.2 | Y34: -0.4 | Z34: 0.2 | AA34: 0.3 | AB34: 0.1 | AC34: -
B35: erforderliches Mineral- oder Ergänzungsfutter | F35: Anteil % | J35: =IF(F$36=0," ",O35*954/780+Q35*584/990+S35*731/980+U35*853/980) ->  | K35: =IF(F$36=0," ",IF(J35>200,J35*0.8,J35)) ->  | M35: =IF(F$36=0," ",O35*21.3/780+Q35*13/990+S35*16.3/980+U35*19/980) -> 
C36: opt. Mineralfutter in g/kg: | G36: =IF(F36="","",I36*F36/I$30) ->  | H36: =IF(F36=""," ",$H$8*F36*1000) ->  | I36: =IF($F36=0,0,960) -> 0 | J36: =IF($F36=0,0,O36*954/780+Q36*584/990+S36*731/980+U36*853/980) -> 0 | K36: =IF(F$36=0,0,J36) -> 0 | M36: =IF($F36=0,0,O36*19.56/780+Q36*11.97/990+S36*14.99/980+U36*17.49/980) -> 0 | N36: =IF($F36=0,0,O36*20.51/780+Q36*12.56/990+S36*15.72/980+U36*18.34/980) -> 0 | O36: 95 | P36: =O36 -> 95 | Q36: 30 | R36: =Q36 -> 30 | S36: 40 | T36: =S36 -> 40 | V36: =U36 -> 0 | W36: 145 | X36: 15 | Y36: =IF(F36=0,0,X36*0.8) -> 0 | Z36: =Y36 -> 0 | AB36: 50 | AC36: =IF(F36*E36=0,0,F36*E36) -> 0
C37: opt. Ergänzungsfutter in g/kg: | D37: 0.85 | G37: =IF(F37="","",I37*F37/I$30) ->  | H37: =IF(F37=""," ",$H$8*F37*1000) ->  | I37: =IF($F37=0,0,890) -> 0 | K37: =IF(F37=0,0,J37*D37) -> 0 | M37: =N37 -> 0 | P37: =IF(O37=0,0,O37*D37) -> 0 | R37: =IF(Q37=0,0,Q37*D37) -> 0 | T37: =IF(S37=0,0,S37*D37) -> 0 | V37: =IF(U37=0,0,U37*D37) -> 0 | Y37: =IF(F37=0,0,X37*0.75) -> 0 | Z37: =IF(F37=0,0,X37*0.75) -> 0 | AC37: =IF(F37*E37=0,0,F37*E37) -> 0
B38: pcv VQ Lys | X38: Ca / vP
F39: Lys / ME | I39: pcv Lys/ ME | L39: pcv. Lys. / pcv. M. & C. / pcv. Thr. / pcv. Trp. | T39: Ca / P | W39: mit Phytase | X39: =IF(F30=" "," ",W30/Z30) -> 2.075527187 | Y39: =IF(F30=0," ",1) -> 1 | Z39: Lys / 100g RP
B40: =IF(F30=" "," ",P31/O31) -> 0.90625 | C40: in der Mischung | F40: =IF(F30=" "," ",O31/M31) -> 0.7300380228 | G40: =IF(F30<=0," ",1) -> 1 | I40: =IF(F30=" "," ",P31/M31) -> 0.6615969582 | J40: =IF(L30<=0," ",1) -> 1 | L40: =IF(F30<=0," ",1) -> 1 | M40: / | N40: =IF(F30=" "," ",R30/P30) -> 0.5974390464 | O40: / | P40: =IF(F30=" "," ",T30/P30) -> 0.6495568185 | Q40: / | R40: =IF(F30=" "," ",V30/P30) -> 0.1827076174 | T40: =IF(F30=" "," ",W30/X30) -> 1.431494269 | U40: =IF(F30=0," ",1) -> 1 | W40: ohne | X40: =IF(F30=" "," ",W30/Y30) -> 2.631581752 | Y40: =IF(F30=0," ",1) -> 1 | AA40: =IF(L30=" "," ",P31*100/J31) -> 5.918367347 | AB40: =IF(L30=0," ",100) -> 100
B41: =IF(P33=" "," ",P33/O33) -> 0.8725490196 | C41: Orientierungswerte | F41: =IF($B$33=" "," ",ROUND(VLOOKUP($B$33,Orientierungswerte!$B$13:$X$114,23,TRUE),2)) -> 0.77 | G41: =IF($B$33=" ",1,ROUND(VLOOKUP($B$33,Orientierungswerte!$B$13:$X$114,19,TRUE),2)) -> 1 | I41: =IF($B$33=" "," ",ROUND(VLOOKUP($B$33,Orientierungswerte!$B$13:$AB$114,24,TRUE),2)) -> 0.68 | J41: =IF($B$33=" ",1,ROUND(VLOOKUP($B$33,Orientierungswerte!$B$13:$X$114,19,TRUE),2)) -> 1 | L41: =IF($B$33=" ",1,ROUND(VLOOKUP($B$33,Orientierungswerte!$B$13:$X$114,19,TRUE),2)) -> 1 | M41: / | N41: =IF($B$33=" "," ",ROUND(VLOOKUP($B$33,Orientierungswerte!$B$13:$X$114,20,TRUE),2)) -> 0.54 | O41: / | P41: =IF($B$33=" "," ",ROUND(VLOOKUP($B$33,Orientierungswerte!$B$13:$X$114,21,TRUE),2)) -> 0.63 | Q41: / | R41: =IF($B$33=" "," ",ROUND(VLOOKUP($B$33,Orientierungswerte!$B$13:$X$114,22,TRUE),2)) -> 0.18 | T41: =IF($B$33=" "," ",ROUND(VLOOKUP($B$33,Orientierungswerte!$B$13:$AA$114,25,TRUE),2)) -> 1.35 | U41: =IF($B$33=" ",1,ROUND(VLOOKUP($B$33,Orientierungswerte!$B$13:$X$114,19,TRUE),2)) -> 1 | X41: =IF($B$33=" "," ",ROUND(VLOOKUP($B$33,Orientierungswerte!$B$13:$AA$114,26,TRUE),2)) -> 2.2 | Y41: =IF($B$33=" ",1,ROUND(VLOOKUP($B$33,Orientierungswerte!$B$13:$X$114,19,TRUE),2)) -> 1 | AA41: =IF($B$33=" "," ",ROUND(P33*100/J33,2)) -> 5.63 | AB41: =IF($B$33=" ",1,ROUND(VLOOKUP($B$33,Orientierungswerte!$B$13:$X$114,19,TRUE)*100,0)) -> 100
E44: Preis | F44: Anteil | G44: Met | H44: pcv Met | I44: Roh-fett XL | J44: Stär-ke S | K44: Zu-cker Z | L44: Roh-asche XA | M44: org. Rest | N44: Poly-en-säure | O44: Linol-säure | P44: Lino-len-säure | Q44: Vit A in IE | R44: Vit D in IE | S44: Vit E in mg | T44: KAB BE in mmol | U44: SBK in meq | V44: BfS | W44: NDF om | X44: ADF om | Y44: NfE | Z44: NE_GP | AA44: NE_S | AB44: Kali-um K | AC44: DON | AD44: ZEA
B45: FM-Nr. | C45: Futtermittel + % RP in der FM | E45: €/dt | F45: % | G45: Anteil in g/kg | Q45: pro kg | V45: Anteil in g/kg | Z45: MJ/kg | AB45: g/kg | AC45: mg pro kg
B46: =B13 -> 49 | C46: =IF(C13=""," ",C13) -> eigener Weizen 10% RP Ø 2018 | E46: =IF(E13=""," ",E13) -> 17.42 | F46: 0.51 | G46: =IF($C13=""," ",VLOOKUP(C13,Futtermittel!$A$8:$CG$171,29,FALSE)*$F13) -> 0.607104 | H46: =IF($C13=""," ",VLOOKUP(C13,Futtermittel!$A$8:$CG$171,30,FALSE)*$F13) -> 0.53425152 | I46: =IF($C13=""," ",VLOOKUP(C13,Futtermittel!$A$8:$CG$171,31,FALSE)*$F13) -> 9.0066 | J46: =IF($C13=""," ",VLOOKUP(C13,Futtermittel!$A$8:$CG$171,32,FALSE)*$F13) -> 305.286 | K46: =IF($C13=""," ",VLOOKUP(C13,Futtermittel!$A$8:$CG$171,33,FALSE)*$F13) -> 14.28 | L46: =IF($C13=""," ",VLOOKUP(C13,Futtermittel!$A$8:$CG$171,34,FALSE)*$F13) -> 8.466 | M46: =IF($C13=""," ",VLOOKUP(C13,Futtermittel!$A$8:$CG$171,36,FALSE)*$F13) -> 62.0823 | N46: =IF($C13=""," ",VLOOKUP($C13,Futtermittel!$A$8:$CG$171,37,FALSE)*$F13) -> 5.5335 | O46: =IF($C13=""," ",VLOOKUP($C13,Futtermittel!$A$8:$CG$171,38,FALSE)*$F13) -> 5.08725 | P46: =IF($C13=""," ",VLOOKUP($C13,Futtermittel!$A$8:$CG$171,39,FALSE)*$F13) -> 0.44625 | Q46: =IF($C13=""," ",VLOOKUP($C13,Futtermittel!$A$8:$CG$171,40,FALSE)*$F13) -> 0 | R46: =IF($C13=""," ",VLOOKUP($C13,Futtermittel!$A$8:$CG$171,41,FALSE)*$F13) -> 0 | S46: =IF($C13=""," ",VLOOKUP($C13,Futtermittel!$A$8:$CG$171,42,FALSE)*$F13) -> 0 | T46: =IF($C13=""," ",VLOOKUP($C13,Futtermittel!$A$8:$CG$171,43,FALSE)*$F13) -> -12.64188 | U46: =IF($C13=""," ",VLOOKUP($C13,Futtermittel!$A$8:$CG$171,44,FALSE)*$F13) -> 160.73058 | V46: =IF($C13=""," ",VLOOKUP($C13,Futtermittel!$A$8:$CG$171,45,FALSE)*$F13) -> 25.852155 | W46: =IF($C13=""," ",VLOOKUP($C13,Futtermittel!$A$8:$CG$171,54,FALSE)*$F13) -> 87.685524 | X46: =IF($C13=""," ",VLOOKUP($C13,Futtermittel!$A$8:$CG$171,53,FALSE)*$F13) -> 18.82818 | Y46: =IF($C13=""," ",VLOOKUP($C13,Futtermittel!$A$8:$CG$171,46,FALSE)*$F13) -> 367.3683 | Z46: =IF($C13=""," ",VLOOKUP($C13,Futtermittel!$A$8:$CG$171,56,FALSE)*$F13) -> 5.131446019 | AA46: =IF($C13=""," ",VLOOKUP($C13,Futtermittel!$A$8:$CG$171,57,FALSE)*$F13) -> 5.264466518 | AB46: =IF($C13=""," ",VLOOKUP($C13,Futtermittel!$A$8:$CG$171,28,FALSE)*$F13) -> 1.938 | AC46: =IF($C13=""," ",VLOOKUP($C13,Futtermittel!$A$8:$CG$171,58,FALSE)*$F13) -> 0 | AD46: =IF($C13=""," ",VLOOKUP($C13,Futtermittel!$A$8:$CG$171,59,FALSE)*$F13) -> 0
B47: 11 | C47: eigene Gerste 10% RP Ø 2018 | E47: 16.39 | F47: 0.314 | G47: =IF($C14=""," ",VLOOKUP(C14,Futtermittel!$A$8:$CG$171,29,FALSE)*$F14) -> 0.3991882 | H47: =IF($C14=""," ",VLOOKUP(C14,Futtermittel!$A$8:$CG$171,30,FALSE)*$F14) -> 0.327334324 | I47: =IF($C14=""," ",VLOOKUP(C14,Futtermittel!$A$8:$CG$171,31,FALSE)*$F14) -> 7.47006 | J47: =IF($C14=""," ",VLOOKUP(C14,Futtermittel!$A$8:$CG$171,32,FALSE)*$F14) -> 157.7222 | K47: =IF($C14=""," ",VLOOKUP(C14,Futtermittel!$A$8:$CG$171,33,FALSE)*$F14) -> 7.222 | L47: =IF($C14=""," ",VLOOKUP(C14,Futtermittel!$A$8:$CG$171,34,FALSE)*$F14) -> 7.4104 | M47: =IF($C14=""," ",VLOOKUP(C14,Futtermittel!$A$8:$CG$171,36,FALSE)*$F14) -> 55.76326 | N47: =IF($C14=""," ",VLOOKUP($C14,Futtermittel!$A$8:$CG$171,37,FALSE)*$F14) -> 4.726024828 | O47: =IF($C14=""," ",VLOOKUP($C14,Futtermittel!$A$8:$CG$171,38,FALSE)*$F14) -> 4.344893793 | P47: =IF($C14=""," ",VLOOKUP($C14,Futtermittel!$A$8:$CG$171,39,FALSE)*$F14) -> 0.3811310345 | Q47: =IF($C14=""," ",VLOOKUP($C14,Futtermittel!$A$8:$CG$171,40,FALSE)*$F14) -> 0 | R47: =IF($C14=""," ",VLOOKUP($C14,Futtermittel!$A$8:$CG$171,41,FALSE)*$F14) -> 0 | S47: =IF($C14=""," ",VLOOKUP($C14,Futtermittel!$A$8:$CG$171,42,FALSE)*$F14) -> 0 | T47: =IF($C14=""," ",VLOOKUP($C14,Futtermittel!$A$8:$CG$171,43,FALSE)*$F14) -> -13.95944711 | U47: =IF($C14=""," ",VLOOKUP($C14,Futtermittel!$A$8:$CG$171,44,FALSE)*$F14) -> 95.76038155 | V47: =IF($C14=""," ",VLOOKUP($C14,Futtermittel!$A$8:$CG$171,45,FALSE)*$F14) -> 29.9855556 | W47: =IF($C14=""," ",VLOOKUP($C14,Futtermittel!$A$8:$CG$171,54,FALSE)*$F14) -> 115.8668121 | X47: =IF($C14=""," ",VLOOKUP($C14,Futtermittel!$A$8:$CG$171,53,FALSE)*$F14) -> 15.08107713 | Y47: =IF($C14=""," ",VLOOKUP($C14,Futtermittel!$A$8:$CG$171,46,FALSE)*$F14) -> 213.48546 | Z47: =IF($C14=""," ",VLOOKUP($C14,Futtermittel!$A$8:$CG$171,56,FALSE)*$F14) -> 2.394770859 | AA47: =IF($C14=""," ",VLOOKUP($C14,Futtermittel!$A$8:$CG$171,57,FALSE)*$F14) -> 2.496300333 | AB47: =IF($C14=""," ",VLOOKUP($C14,Futtermittel!$A$8:$CG$171,28,FALSE)*$F14) -> 1.3816 | AC47: =IF($C14=""," ",VLOOKUP($C14,Futtermittel!$A$8:$CG$171,58,FALSE)*$F14) -> 0 | AD47: =IF($C14=""," ",VLOOKUP($C14,Futtermittel!$A$8:$CG$171,59,FALSE)*$F14) -> 0
B48: 100 | C48: Sojaschrot HP 47% RP | E48: 38 | F48: 0.13 | G48: =IF($C15=""," ",VLOOKUP(C15,Futtermittel!$A$8:$CG$171,29,FALSE)*$F15) -> 0.8192806818 | H48: =IF($C15=""," ",VLOOKUP(C15,Futtermittel!$A$8:$CG$171,30,FALSE)*$F15) -> 0.720967 | I48: =IF($C15=""," ",VLOOKUP(C15,Futtermittel!$A$8:$CG$171,31,FALSE)*$F15) -> 2.47 | J48: =IF($C15=""," ",VLOOKUP(C15,Futtermittel!$A$8:$CG$171,32,FALSE)*$F15) -> 5.46 | K48: =IF($C15=""," ",VLOOKUP(C15,Futtermittel!$A$8:$CG$171,33,FALSE)*$F15) -> 11.83 | L48: =IF($C15=""," ",VLOOKUP(C15,Futtermittel!$A$8:$CG$171,34,FALSE)*$F15) -> 8.71 | M48: =IF($C15=""," ",VLOOKUP(C15,Futtermittel!$A$8:$CG$171,36,FALSE)*$F15) -> 31.2 | N48: =IF($C15=""," ",VLOOKUP($C15,Futtermittel!$A$8:$CG$171,37,FALSE)*$F15) -> 1.3338 | O48: =IF($C15=""," ",VLOOKUP($C15,Futtermittel!$A$8:$CG$171,38,FALSE)*$F15) -> 1.235 | P48: =IF($C15=""," ",VLOOKUP($C15,Futtermittel!$A$8:$CG$171,39,FALSE)*$F15) -> 0.0988 | Q48: =IF($C15=""," ",VLOOKUP($C15,Futtermittel!$A$8:$CG$171,40,FALSE)*$F15) -> 0 | R48: =IF($C15=""," ",VLOOKUP($C15,Futtermittel!$A$8:$CG$171,41,FALSE)*$F15) -> 0 | S48: =IF($C15=""," ",VLOOKUP($C15,Futtermittel!$A$8:$CG$171,42,FALSE)*$F15) -> 0 | T48: =IF($C15=""," ",VLOOKUP($C15,Futtermittel!$A$8:$CG$171,43,FALSE)*$F15) -> 46.31530642 | U48: =IF($C15=""," ",VLOOKUP($C15,Futtermittel!$A$8:$CG$171,44,FALSE)*$F15) -> 178.9146693 | V48: =IF($C15=""," ",VLOOKUP($C15,Futtermittel!$A$8:$CG$171,45,FALSE)*$F15) -> 22.3938 | W48: =IF($C15=""," ",VLOOKUP($C15,Futtermittel!$A$8:$CG$171,54,FALSE)*$F15) -> 16.79903896 | X48: =IF($C15=""," ",VLOOKUP($C15,Futtermittel!$A$8:$CG$171,53,FALSE)*$F15) -> 11.97485714 | Y48: =IF($C15=""," ",VLOOKUP($C15,Futtermittel!$A$8:$CG$171,46,FALSE)*$F15) -> 36.66 | Z48: =IF($C15=""," ",VLOOKUP($C15,Futtermittel!$A$8:$CG$171,56,FALSE)*$F15) -> 1.136091124 | AA48: =IF($C15=""," ",VLOOKUP($C15,Futtermittel!$A$8:$CG$171,57,FALSE)*$F15) -> 1.179997142 | AB48: =IF($C15=""," ",VLOOKUP($C15,Futtermittel!$A$8:$CG$171,28,FALSE)*$F15) -> 2.68424 | AC48: =IF($C15=""," ",VLOOKUP($C15,Futtermittel!$A$8:$CG$171,58,FALSE)*$F15) -> 0 | AD48: =IF($C15=""," ",VLOOKUP($C15,Futtermittel!$A$8:$CG$171,59,FALSE)*$F15) -> 0
B49: 140 | C49: Rapsöl / Pflanzenöl DLG 2014 | E49: 97 | F49: 0.011 | G49: =IF($C16=""," ",VLOOKUP(C16,Futtermittel!$A$8:$CG$171,29,FALSE)*$F16) -> 0 | H49: =IF($C16=""," ",VLOOKUP(C16,Futtermittel!$A$8:$CG$171,30,FALSE)*$F16) -> 0 | I49: =IF($C16=""," ",VLOOKUP(C16,Futtermittel!$A$8:$CG$171,31,FALSE)*$F16) -> 10.978 | J49: =IF($C16=""," ",VLOOKUP(C16,Futtermittel!$A$8:$CG$171,32,FALSE)*$F16) -> 0 | K49: =IF($C16=""," ",VLOOKUP(C16,Futtermittel!$A$8:$CG$171,33,FALSE)*$F16) -> 0 | L49: =IF($C16=""," ",VLOOKUP(C16,Futtermittel!$A$8:$CG$171,34,FALSE)*$F16) -> 0 | M49: =IF($C16=""," ",VLOOKUP(C16,Futtermittel!$A$8:$CG$171,36,FALSE)*$F16) -> 0 | N49: =IF($C16=""," ",VLOOKUP($C16,Futtermittel!$A$8:$CG$171,37,FALSE)*$F16) -> 3.179 | O49: =IF($C16=""," ",VLOOKUP($C16,Futtermittel!$A$8:$CG$171,38,FALSE)*$F16) -> 2.1956 | P49: =IF($C16=""," ",VLOOKUP($C16,Futtermittel!$A$8:$CG$171,39,FALSE)*$F16) -> 0.98802 | Q49: =IF($C16=""," ",VLOOKUP($C16,Futtermittel!$A$8:$CG$171,40,FALSE)*$F16) -> 0 | R49: =IF($C16=""," ",VLOOKUP($C16,Futtermittel!$A$8:$CG$171,41,FALSE)*$F16) -> 0 | S49: =IF($C16=""," ",VLOOKUP($C16,Futtermittel!$A$8:$CG$171,42,FALSE)*$F16) -> 0 | T49: =IF($C16=""," ",VLOOKUP($C16,Futtermittel!$A$8:$CG$171,43,FALSE)*$F16) -> 0 | U49: =IF($C16=""," ",VLOOKUP($C16,Futtermittel!$A$8:$CG$171,44,FALSE)*$F16) -> 0 | V49: =IF($C16=""," ",VLOOKUP($C16,Futtermittel!$A$8:$CG$171,45,FALSE)*$F16) -> 0 | W49: =IF($C16=""," ",VLOOKUP($C16,Futtermittel!$A$8:$CG$171,54,FALSE)*$F16) -> 0 | X49: =IF($C16=""," ",VLOOKUP($C16,Futtermittel!$A$8:$CG$171,53,FALSE)*$F16) -> 0 | Y49: =IF($C16=""," ",VLOOKUP($C16,Futtermittel!$A$8:$CG$171,46,FALSE)*$F16) -> 0 | Z49: =IF($C16=""," ",VLOOKUP($C16,Futtermittel!$A$8:$CG$171,56,FALSE)*$F16) -> 0.3334335949 | AA49: =IF($C16=""," ",VLOOKUP($C16,Futtermittel!$A$8:$CG$171,57,FALSE)*$F16) -> 0.3370989359 | AB49: =IF($C16=""," ",VLOOKUP($C16,Futtermittel!$A$8:$CG$171,28,FALSE)*$F16) -> 0 | AC49: =IF($C16=""," ",VLOOKUP($C16,Futtermittel!$A$8:$CG$171,58,FALSE)*$F16) -> 0 | AD49: =IF($C16=""," ",VLOOKUP($C16,Futtermittel!$A$8:$CG$171,59,FALSE)*$F16) -> 0
G50: =IF($C17=""," ",VLOOKUP(C17,Futtermittel!$A$8:$CG$171,29,FALSE)*$F17) ->  | H50: =IF($C17=""," ",VLOOKUP(C17,Futtermittel!$A$8:$CG$171,30,FALSE)*$F17) ->  | I50: =IF($C17=""," ",VLOOKUP(C17,Futtermittel!$A$8:$CG$171,31,FALSE)*$F17) ->  | J50: =IF($C17=""," ",VLOOKUP(C17,Futtermittel!$A$8:$CG$171,32,FALSE)*$F17) ->  | K50: =IF($C17=""," ",VLOOKUP(C17,Futtermittel!$A$8:$CG$171,33,FALSE)*$F17) ->  | L50: =IF($C17=""," ",VLOOKUP(C17,Futtermittel!$A$8:$CG$171,34,FALSE)*$F17) ->  | M50: =IF($C17=""," ",VLOOKUP(C17,Futtermittel!$A$8:$CG$171,36,FALSE)*$F17) ->  | N50: =IF($C17=""," ",VLOOKUP($C17,Futtermittel!$A$8:$CG$171,37,FALSE)*$F17) ->  | O50: =IF($C17=""," ",VLOOKUP($C17,Futtermittel!$A$8:$CG$171,38,FALSE)*$F17) ->  | P50: =IF($C17=""," ",VLOOKUP($C17,Futtermittel!$A$8:$CG$171,39,FALSE)*$F17) ->  | Q50: =IF($C17=""," ",VLOOKUP($C17,Futtermittel!$A$8:$CG$171,40,FALSE)*$F17) ->  | R50: =IF($C17=""," ",VLOOKUP($C17,Futtermittel!$A$8:$CG$171,41,FALSE)*$F17) ->  | S50: =IF($C17=""," ",VLOOKUP($C17,Futtermittel!$A$8:$CG$171,42,FALSE)*$F17) ->  | T50: =IF($C17=""," ",VLOOKUP($C17,Futtermittel!$A$8:$CG$171,43,FALSE)*$F17) ->  | U50: =IF($C17=""," ",VLOOKUP($C17,Futtermittel!$A$8:$CG$171,44,FALSE)*$F17) ->  | V50: =IF($C17=""," ",VLOOKUP($C17,Futtermittel!$A$8:$CG$171,45,FALSE)*$F17) ->  | W50: =IF($C17=""," ",VLOOKUP($C17,Futtermittel!$A$8:$CG$171,54,FALSE)*$F17) ->  | X50: =IF($C17=""," ",VLOOKUP($C17,Futtermittel!$A$8:$CG$171,53,FALSE)*$F17) ->  | Y50: =IF($C17=""," ",VLOOKUP($C17,Futtermittel!$A$8:$CG$171,46,FALSE)*$F17) ->  | Z50: =IF($C17=""," ",VLOOKUP($C17,Futtermittel!$A$8:$CG$171,56,FALSE)*$F17) ->  | AA50: =IF($C17=""," ",VLOOKUP($C17,Futtermittel!$A$8:$CG$171,57,FALSE)*$F17) ->  | AB50: =IF($C17=""," ",VLOOKUP($C17,Futtermittel!$A$8:$CG$171,28,FALSE)*$F17) ->  | AC50: =IF($C17=""," ",VLOOKUP($C17,Futtermittel!$A$8:$CG$171,58,FALSE)*$F17) ->  | AD50: =IF($C17=""," ",VLOOKUP($C17,Futtermittel!$A$8:$CG$171,59,FALSE)*$F17) -> 
G51: =IF($C18=""," ",VLOOKUP(C18,Futtermittel!$A$8:$CG$171,29,FALSE)*$F18) ->  | H51: =IF($C18=""," ",VLOOKUP(C18,Futtermittel!$A$8:$CG$171,30,FALSE)*$F18) ->  | I51: =IF($C18=""," ",VLOOKUP(C18,Futtermittel!$A$8:$CG$171,31,FALSE)*$F18) ->  | J51: =IF($C18=""," ",VLOOKUP(C18,Futtermittel!$A$8:$CG$171,32,FALSE)*$F18) ->  | K51: =IF($C18=""," ",VLOOKUP(C18,Futtermittel!$A$8:$CG$171,33,FALSE)*$F18) ->  | L51: =IF($C18=""," ",VLOOKUP(C18,Futtermittel!$A$8:$CG$171,34,FALSE)*$F18) ->  | M51: =IF($C18=""," ",VLOOKUP(C18,Futtermittel!$A$8:$CG$171,36,FALSE)*$F18) ->  | N51: =IF($C18=""," ",VLOOKUP($C18,Futtermittel!$A$8:$CG$171,37,FALSE)*$F18) ->  | O51: =IF($C18=""," ",VLOOKUP($C18,Futtermittel!$A$8:$CG$171,38,FALSE)*$F18) ->  | P51: =IF($C18=""," ",VLOOKUP($C18,Futtermittel!$A$8:$CG$171,39,FALSE)*$F18) ->  | Q51: =IF($C18=""," ",VLOOKUP($C18,Futtermittel!$A$8:$CG$171,40,FALSE)*$F18) ->  | R51: =IF($C18=""," ",VLOOKUP($C18,Futtermittel!$A$8:$CG$171,41,FALSE)*$F18) ->  | S51: =IF($C18=""," ",VLOOKUP($C18,Futtermittel!$A$8:$CG$171,42,FALSE)*$F18) ->  | T51: =IF($C18=""," ",VLOOKUP($C18,Futtermittel!$A$8:$CG$171,43,FALSE)*$F18) ->  | U51: =IF($C18=""," ",VLOOKUP($C18,Futtermittel!$A$8:$CG$171,44,FALSE)*$F18) ->  | V51: =IF($C18=""," ",VLOOKUP($C18,Futtermittel!$A$8:$CG$171,45,FALSE)*$F18) ->  | W51: =IF($C18=""," ",VLOOKUP($C18,Futtermittel!$A$8:$CG$171,54,FALSE)*$F18) ->  | X51: =IF($C18=""," ",VLOOKUP($C18,Futtermittel!$A$8:$CG$171,53,FALSE)*$F18) ->  | Y51: =IF($C18=""," ",VLOOKUP($C18,Futtermittel!$A$8:$CG$171,46,FALSE)*$F18) ->  | Z51: =IF($C18=""," ",VLOOKUP($C18,Futtermittel!$A$8:$CG$171,56,FALSE)*$F18) ->  | AA51: =IF($C18=""," ",VLOOKUP($C18,Futtermittel!$A$8:$CG$171,57,FALSE)*$F18) ->  | AB51: =IF($C18=""," ",VLOOKUP($C18,Futtermittel!$A$8:$CG$171,28,FALSE)*$F18) ->  | AC51: =IF($C18=""," ",VLOOKUP($C18,Futtermittel!$A$8:$CG$171,58,FALSE)*$F18) ->  | AD51: =IF($C18=""," ",VLOOKUP($C18,Futtermittel!$A$8:$CG$171,59,FALSE)*$F18) -> 
G52: =IF($C19=""," ",VLOOKUP(C19,Futtermittel!$A$8:$CG$171,29,FALSE)*$F19) ->  | H52: =IF($C19=""," ",VLOOKUP(C19,Futtermittel!$A$8:$CG$171,30,FALSE)*$F19) ->  | I52: =IF($C19=""," ",VLOOKUP(C19,Futtermittel!$A$8:$CG$171,31,FALSE)*$F19) ->  | J52: =IF($C19=""," ",VLOOKUP(C19,Futtermittel!$A$8:$CG$171,32,FALSE)*$F19) ->  | K52: =IF($C19=""," ",VLOOKUP(C19,Futtermittel!$A$8:$CG$171,33,FALSE)*$F19) ->  | L52: =IF($C19=""," ",VLOOKUP(C19,Futtermittel!$A$8:$CG$171,34,FALSE)*$F19) ->  | M52: =IF($C19=""," ",VLOOKUP(C19,Futtermittel!$A$8:$CG$171,36,FALSE)*$F19) ->  | N52: =IF($C19=""," ",VLOOKUP($C19,Futtermittel!$A$8:$CG$171,37,FALSE)*$F19) ->  | O52: =IF($C19=""," ",VLOOKUP($C19,Futtermittel!$A$8:$CG$171,38,FALSE)*$F19) ->  | P52: =IF($C19=""," ",VLOOKUP($C19,Futtermittel!$A$8:$CG$171,39,FALSE)*$F19) ->  | Q52: =IF($C19=""," ",VLOOKUP($C19,Futtermittel!$A$8:$CG$171,40,FALSE)*$F19) ->  | R52: =IF($C19=""," ",VLOOKUP($C19,Futtermittel!$A$8:$CG$171,41,FALSE)*$F19) ->  | S52: =IF($C19=""," ",VLOOKUP($C19,Futtermittel!$A$8:$CG$171,42,FALSE)*$F19) ->  | T52: =IF($C19=""," ",VLOOKUP($C19,Futtermittel!$A$8:$CG$171,43,FALSE)*$F19) ->  | U52: =IF($C19=""," ",VLOOKUP($C19,Futtermittel!$A$8:$CG$171,44,FALSE)*$F19) ->  | V52: =IF($C19=""," ",VLOOKUP($C19,Futtermittel!$A$8:$CG$171,45,FALSE)*$F19) ->  | W52: =IF($C19=""," ",VLOOKUP($C19,Futtermittel!$A$8:$CG$171,54,FALSE)*$F19) ->  | X52: =IF($C19=""," ",VLOOKUP($C19,Futtermittel!$A$8:$CG$171,53,FALSE)*$F19) ->  | Y52: =IF($C19=""," ",VLOOKUP($C19,Futtermittel!$A$8:$CG$171,46,FALSE)*$F19) ->  | Z52: =IF($C19=""," ",VLOOKUP($C19,Futtermittel!$A$8:$CG$171,56,FALSE)*$F19) ->  | AA52: =IF($C19=""," ",VLOOKUP($C19,Futtermittel!$A$8:$CG$171,57,FALSE)*$F19) ->  | AB52: =IF($C19=""," ",VLOOKUP($C19,Futtermittel!$A$8:$CG$171,28,FALSE)*$F19) ->  | AC52: =IF($C19=""," ",VLOOKUP($C19,Futtermittel!$A$8:$CG$171,58,FALSE)*$F19) ->  | AD52: =IF($C19=""," ",VLOOKUP($C19,Futtermittel!$A$8:$CG$171,59,FALSE)*$F19) -> 
G53: =IF($C20=""," ",VLOOKUP(C20,Futtermittel!$A$8:$CG$171,29,FALSE)*$F20) ->  | H53: =IF($C20=""," ",VLOOKUP(C20,Futtermittel!$A$8:$CG$171,30,FALSE)*$F20) ->  | I53: =IF($C20=""," ",VLOOKUP(C20,Futtermittel!$A$8:$CG$171,31,FALSE)*$F20) ->  | J53: =IF($C20=""," ",VLOOKUP(C20,Futtermittel!$A$8:$CG$171,32,FALSE)*$F20) ->  | K53: =IF($C20=""," ",VLOOKUP(C20,Futtermittel!$A$8:$CG$171,33,FALSE)*$F20) ->  | L53: =IF($C20=""," ",VLOOKUP(C20,Futtermittel!$A$8:$CG$171,34,FALSE)*$F20) ->  | M53: =IF($C20=""," ",VLOOKUP(C20,Futtermittel!$A$8:$CG$171,36,FALSE)*$F20) ->  | N53: =IF($C20=""," ",VLOOKUP($C20,Futtermittel!$A$8:$CG$171,37,FALSE)*$F20) ->  | O53: =IF($C20=""," ",VLOOKUP($C20,Futtermittel!$A$8:$CG$171,38,FALSE)*$F20) ->  | P53: =IF($C20=""," ",VLOOKUP($C20,Futtermittel!$A$8:$CG$171,39,FALSE)*$F20) ->  | Q53: =IF($C20=""," ",VLOOKUP($C20,Futtermittel!$A$8:$CG$171,40,FALSE)*$F20) ->  | R53: =IF($C20=""," ",VLOOKUP($C20,Futtermittel!$A$8:$CG$171,41,FALSE)*$F20) ->  | S53: =IF($C20=""," ",VLOOKUP($C20,Futtermittel!$A$8:$CG$171,42,FALSE)*$F20) ->  | T53: =IF($C20=""," ",VLOOKUP($C20,Futtermittel!$A$8:$CG$171,43,FALSE)*$F20) ->  | U53: =IF($C20=""," ",VLOOKUP($C20,Futtermittel!$A$8:$CG$171,44,FALSE)*$F20) ->  | V53: =IF($C20=""," ",VLOOKUP($C20,Futtermittel!$A$8:$CG$171,45,FALSE)*$F20) ->  | W53: =IF($C20=""," ",VLOOKUP($C20,Futtermittel!$A$8:$CG$171,54,FALSE)*$F20) ->  | X53: =IF($C20=""," ",VLOOKUP($C20,Futtermittel!$A$8:$CG$171,53,FALSE)*$F20) ->  | Y53: =IF($C20=""," ",VLOOKUP($C20,Futtermittel!$A$8:$CG$171,46,FALSE)*$F20) ->  | Z53: =IF($C20=""," ",VLOOKUP($C20,Futtermittel!$A$8:$CG$171,56,FALSE)*$F20) ->  | AA53: =IF($C20=""," ",VLOOKUP($C20,Futtermittel!$A$8:$CG$171,57,FALSE)*$F20) ->  | AB53: =IF($C20=""," ",VLOOKUP($C20,Futtermittel!$A$8:$CG$171,28,FALSE)*$F20) ->  | AC53: =IF($C20=""," ",VLOOKUP($C20,Futtermittel!$A$8:$CG$171,58,FALSE)*$F20) ->  | AD53: =IF($C20=""," ",VLOOKUP($C20,Futtermittel!$A$8:$CG$171,59,FALSE)*$F20) -> 
F54: =IF(F21=""," ",F21) ->  | G54: =IF($C21=""," ",VLOOKUP(C21,Futtermittel!$A$8:$CG$171,29,FALSE)*$F21) ->  | H54: =IF($C21=""," ",VLOOKUP(C21,Futtermittel!$A$8:$CG$171,30,FALSE)*$F21) ->  | I54: =IF($C21=""," ",VLOOKUP(C21,Futtermittel!$A$8:$CG$171,31,FALSE)*$F21) ->  | J54: =IF($C21=""," ",VLOOKUP(C21,Futtermittel!$A$8:$CG$171,32,FALSE)*$F21) ->  | K54: =IF($C21=""," ",VLOOKUP(C21,Futtermittel!$A$8:$CG$171,33,FALSE)*$F21) ->  | L54: =IF($C21=""," ",VLOOKUP(C21,Futtermittel!$A$8:$CG$171,34,FALSE)*$F21) ->  | M54: =IF($C21=""," ",VLOOKUP(C21,Futtermittel!$A$8:$CG$171,36,FALSE)*$F21) ->  | N54: =IF($C21=""," ",VLOOKUP($C21,Futtermittel!$A$8:$CG$171,37,FALSE)*$F21) ->  | O54: =IF($C21=""," ",VLOOKUP($C21,Futtermittel!$A$8:$CG$171,38,FALSE)*$F21) ->  | P54: =IF($C21=""," ",VLOOKUP($C21,Futtermittel!$A$8:$CG$171,39,FALSE)*$F21) ->  | Q54: =IF($C21=""," ",VLOOKUP($C21,Futtermittel!$A$8:$CG$171,40,FALSE)*$F21) ->  | R54: =IF($C21=""," ",VLOOKUP($C21,Futtermittel!$A$8:$CG$171,41,FALSE)*$F21) ->  | S54: =IF($C21=""," ",VLOOKUP($C21,Futtermittel!$A$8:$CG$171,42,FALSE)*$F21) ->  | T54: =IF($C21=""," ",VLOOKUP($C21,Futtermittel!$A$8:$CG$171,43,FALSE)*$F21) ->  | U54: =IF($C21=""," ",VLOOKUP($C21,Futtermittel!$A$8:$CG$171,44,FALSE)*$F21) ->  | V54: =IF($C21=""," ",VLOOKUP($C21,Futtermittel!$A$8:$CG$171,45,FALSE)*$F21) ->  | W54: =IF($C21=""," ",VLOOKUP($C21,Futtermittel!$A$8:$CG$171,54,FALSE)*$F21) ->  | X54: =IF($C21=""," ",VLOOKUP($C21,Futtermittel!$A$8:$CG$171,53,FALSE)*$F21) ->  | Y54: =IF($C21=""," ",VLOOKUP($C21,Futtermittel!$A$8:$CG$171,46,FALSE)*$F21) ->  | Z54: =IF($C21=""," ",VLOOKUP($C21,Futtermittel!$A$8:$CG$171,56,FALSE)*$F21) ->  | AA54: =IF($C21=""," ",VLOOKUP($C21,Futtermittel!$A$8:$CG$171,57,FALSE)*$F21) ->  | AB54: =IF($C21=""," ",VLOOKUP($C21,Futtermittel!$A$8:$CG$171,28,FALSE)*$F21) ->  | AC54: =IF($C21=""," ",VLOOKUP($C21,Futtermittel!$A$8:$CG$171,58,FALSE)*$F21) ->  | AD54: =IF($C21=""," ",VLOOKUP($C21,Futtermittel!$A$8:$CG$171,59,FALSE)*$F21) -> 
F55: =IF(F22=""," ",F22) ->  | G55: =IF($C22=""," ",VLOOKUP(C22,Futtermittel!$A$8:$CG$171,29,FALSE)*$F22) ->  | H55: =IF($C22=""," ",VLOOKUP(C22,Futtermittel!$A$8:$CG$171,30,FALSE)*$F22) ->  | I55: =IF($C22=""," ",VLOOKUP(C22,Futtermittel!$A$8:$CG$171,31,FALSE)*$F22) ->  | J55: =IF($C22=""," ",VLOOKUP(C22,Futtermittel!$A$8:$CG$171,32,FALSE)*$F22) ->  | K55: =IF($C22=""," ",VLOOKUP(C22,Futtermittel!$A$8:$CG$171,33,FALSE)*$F22) ->  | L55: =IF($C22=""," ",VLOOKUP(C22,Futtermittel!$A$8:$CG$171,34,FALSE)*$F22) ->  | M55: =IF($C22=""," ",VLOOKUP(C22,Futtermittel!$A$8:$CG$171,36,FALSE)*$F22) ->  | N55: =IF($C22=""," ",VLOOKUP($C22,Futtermittel!$A$8:$CG$171,37,FALSE)*$F22) ->  | O55: =IF($C22=""," ",VLOOKUP($C22,Futtermittel!$A$8:$CG$171,38,FALSE)*$F22) ->  | P55: =IF($C22=""," ",VLOOKUP($C22,Futtermittel!$A$8:$CG$171,39,FALSE)*$F22) ->  | Q55: =IF($C22=""," ",VLOOKUP($C22,Futtermittel!$A$8:$CG$171,40,FALSE)*$F22) ->  | R55: =IF($C22=""," ",VLOOKUP($C22,Futtermittel!$A$8:$CG$171,41,FALSE)*$F22) ->  | S55: =IF($C22=""," ",VLOOKUP($C22,Futtermittel!$A$8:$CG$171,42,FALSE)*$F22) ->  | T55: =IF($C22=""," ",VLOOKUP($C22,Futtermittel!$A$8:$CG$171,43,FALSE)*$F22) ->  | U55: =IF($C22=""," ",VLOOKUP($C22,Futtermittel!$A$8:$CG$171,44,FALSE)*$F22) ->  | V55: =IF($C22=""," ",VLOOKUP($C22,Futtermittel!$A$8:$CG$171,45,FALSE)*$F22) ->  | W55: =IF($C22=""," ",VLOOKUP($C22,Futtermittel!$A$8:$CG$171,54,FALSE)*$F22) ->  | X55: =IF($C22=""," ",VLOOKUP($C22,Futtermittel!$A$8:$CG$171,53,FALSE)*$F22) ->  | Y55: =IF($C22=""," ",VLOOKUP($C22,Futtermittel!$A$8:$CG$171,46,FALSE)*$F22) ->  | Z55: =IF($C22=""," ",VLOOKUP($C22,Futtermittel!$A$8:$CG$171,56,FALSE)*$F22) ->  | AA55: =IF($C22=""," ",VLOOKUP($C22,Futtermittel!$A$8:$CG$171,57,FALSE)*$F22) ->  | AB55: =IF($C22=""," ",VLOOKUP($C22,Futtermittel!$A$8:$CG$171,28,FALSE)*$F22) ->  | AC55: =IF($C22=""," ",VLOOKUP($C22,Futtermittel!$A$8:$CG$171,58,FALSE)*$F22) ->  | AD55: =IF($C22=""," ",VLOOKUP($C22,Futtermittel!$A$8:$CG$171,59,FALSE)*$F22) -> 
F56: =IF(F23=""," ",F23) ->  | G56: =IF($C23=""," ",VLOOKUP(C23,Futtermittel!$A$8:$CG$171,29,FALSE)*$F23) ->  | H56: =IF($C23=""," ",VLOOKUP(C23,Futtermittel!$A$8:$CG$171,30,FALSE)*$F23) ->  | I56: =IF($C23=""," ",VLOOKUP(C23,Futtermittel!$A$8:$CG$171,31,FALSE)*$F23) ->  | J56: =IF($C23=""," ",VLOOKUP(C23,Futtermittel!$A$8:$CG$171,32,FALSE)*$F23) ->  | K56: =IF($C23=""," ",VLOOKUP(C23,Futtermittel!$A$8:$CG$171,33,FALSE)*$F23) ->  | L56: =IF($C23=""," ",VLOOKUP(C23,Futtermittel!$A$8:$CG$171,34,FALSE)*$F23) ->  | M56: =IF($C23=""," ",VLOOKUP(C23,Futtermittel!$A$8:$CG$171,36,FALSE)*$F23) ->  | N56: =IF($C23=""," ",VLOOKUP($C23,Futtermittel!$A$8:$CG$171,37,FALSE)*$F23) ->  | O56: =IF($C23=""," ",VLOOKUP($C23,Futtermittel!$A$8:$CG$171,38,FALSE)*$F23) ->  | P56: =IF($C23=""," ",VLOOKUP($C23,Futtermittel!$A$8:$CG$171,39,FALSE)*$F23) ->  | Q56: =IF($C23=""," ",VLOOKUP($C23,Futtermittel!$A$8:$CG$171,40,FALSE)*$F23) ->  | R56: =IF($C23=""," ",VLOOKUP($C23,Futtermittel!$A$8:$CG$171,41,FALSE)*$F23) ->  | S56: =IF($C23=""," ",VLOOKUP($C23,Futtermittel!$A$8:$CG$171,42,FALSE)*$F23) ->  | T56: =IF($C23=""," ",VLOOKUP($C23,Futtermittel!$A$8:$CG$171,43,FALSE)*$F23) ->  | U56: =IF($C23=""," ",VLOOKUP($C23,Futtermittel!$A$8:$CG$171,44,FALSE)*$F23) ->  | V56: =IF($C23=""," ",VLOOKUP($C23,Futtermittel!$A$8:$CG$171,45,FALSE)*$F23) ->  | W56: =IF($C23=""," ",VLOOKUP($C23,Futtermittel!$A$8:$CG$171,54,FALSE)*$F23) ->  | X56: =IF($C23=""," ",VLOOKUP($C23,Futtermittel!$A$8:$CG$171,53,FALSE)*$F23) ->  | Y56: =IF($C23=""," ",VLOOKUP($C23,Futtermittel!$A$8:$CG$171,46,FALSE)*$F23) ->  | Z56: =IF($C23=""," ",VLOOKUP($C23,Futtermittel!$A$8:$CG$171,56,FALSE)*$F23) ->  | AA56: =IF($C23=""," ",VLOOKUP($C23,Futtermittel!$A$8:$CG$171,57,FALSE)*$F23) ->  | AB56: =IF($C23=""," ",VLOOKUP($C23,Futtermittel!$A$8:$CG$171,28,FALSE)*$F23) ->  | AC56: =IF($C23=""," ",VLOOKUP($C23,Futtermittel!$A$8:$CG$171,58,FALSE)*$F23) ->  | AD56: =IF($C23=""," ",VLOOKUP($C23,Futtermittel!$A$8:$CG$171,59,FALSE)*$F23) -> 
B57: EF-Nr. | C57: Ergänzungsfutter | D57: VQ in %
C58: =IF(C25=""," ",C25) ->  | D58: 0.85 | G58: =IF($C25=""," ",VLOOKUP($C25,Ergänzungsfutter!$A$11:$BE$35,20,FALSE)*$F25) ->  | H58: =IF($C25=""," ",VLOOKUP($C25,Ergänzungsfutter!$A$11:$BE$35,20,FALSE)*$F25*D25) ->  | I58: =IF($C25=""," ",VLOOKUP($C25,Ergänzungsfutter!$A$11:$BE$35,21,FALSE)*$F25) ->  | J58: =IF($C25=""," ",VLOOKUP($C25,Ergänzungsfutter!$A$11:$BE$35,22,FALSE)*$F25) ->  | K58: =IF($C25=""," ",VLOOKUP($C25,Ergänzungsfutter!$A$11:$BE$35,23,FALSE)*$F25) ->  | L58: =IF($C25=""," ",VLOOKUP($C25,Ergänzungsfutter!$A$11:$BE$35,24,FALSE)*$F25) ->  | M58: =IF($C25=""," ",VLOOKUP($C25,Ergänzungsfutter!$A$11:$BE$35,24,FALSE)*$F25) ->  | N58: =IF($C25=""," ",VLOOKUP($C25,Ergänzungsfutter!$A$11:$BE$35,27,FALSE)*$F25) ->  | O58: =IF($C25=""," ",VLOOKUP($C25,Ergänzungsfutter!$A$11:$BE$35,28,FALSE)*$F25) ->  | P58: =IF($C25=""," ",VLOOKUP($C25,Ergänzungsfutter!$A$11:$BE$35,29,FALSE)*$F25) ->  | Q58: =IF($C25=""," ",VLOOKUP($C25,Ergänzungsfutter!$A$11:$BE$35,30,FALSE)*$F25) ->  | R58: =IF($C25=""," ",VLOOKUP($C25,Ergänzungsfutter!$A$11:$BE$35,31,FALSE)*$F25) ->  | S58: =IF($C25=""," ",VLOOKUP($C25,Ergänzungsfutter!$A$11:$BE$35,32,FALSE)*$F25) ->  | T58: =IF($C25=""," ",VLOOKUP($C25,Ergänzungsfutter!$A$11:$BE$35,33,FALSE)*$F25) ->  | U58: =IF($C25=""," ",VLOOKUP($C25,Ergänzungsfutter!$A$11:$BE$35,34,FALSE)*$F25) ->  | V58: =IF($C25=""," ",VLOOKUP($C25,Ergänzungsfutter!$A$11:$BE$35,35,FALSE)*$F25) ->  | W58: =IF($C25=""," ",VLOOKUP($C25,Ergänzungsfutter!$A$11:$BE$35,36,FALSE)*$F25) ->  | X58: =IF($C25=""," ",VLOOKUP($C25,Ergänzungsfutter!$A$11:$BE$35,35,FALSE)*$F25) ->  | Y58: =IF($C25=""," ",VLOOKUP($C25,Ergänzungsfutter!$A$11:$BE$35,37,FALSE)*$F25) ->  | Z58: =IF($C25=""," ",VLOOKUP($C25,Ergänzungsfutter!$A$11:$BE$35,38,FALSE)*$F25) ->  | AA58: =IF($C25=""," ",VLOOKUP($C25,Ergänzungsfutter!$A$11:$BE$35,39,FALSE)*$F25) ->  | AB58: =IF($C25=""," ",VLOOKUP($C25,Ergänzungsfutter!$A$11:$BE$35,37,FALSE)*$F25) ->  | AC58: =IF($C25=""," ",VLOOKUP($C25,Ergänzungsfutter!$A$11:$BE$35,40,FALSE)*$F25) ->  | AD58: =IF($C25=""," ",VLOOKUP($C25,Ergänzungsfutter!$A$11:$BE$35,41,FALSE)*$F25) -> 
C59: =IF(C26=""," ",C26) ->  | G59: =IF($C26=""," ",VLOOKUP($C26,Ergänzungsfutter!$A$11:$BE$35,20,FALSE)*$F26) ->  | H59: =IF($C26=""," ",VLOOKUP($C26,Ergänzungsfutter!$A$11:$BE$35,20,FALSE)*$F26*D26) ->  | I59: =IF($C26=""," ",VLOOKUP($C26,Ergänzungsfutter!$A$11:$BE$35,21,FALSE)*$F26) ->  | J59: =IF($C26=""," ",VLOOKUP($C26,Ergänzungsfutter!$A$11:$BE$35,22,FALSE)*$F26) ->  | K59: =IF($C26=""," ",VLOOKUP($C26,Ergänzungsfutter!$A$11:$BE$35,23,FALSE)*$F26) ->  | L59: =IF($C26=""," ",VLOOKUP($C26,Ergänzungsfutter!$A$11:$BE$35,24,FALSE)*$F26) ->  | M59: =IF($C26=""," ",VLOOKUP($C26,Ergänzungsfutter!$A$11:$BE$35,24,FALSE)*$F26) ->  | N59: =IF($C26=""," ",VLOOKUP($C26,Ergänzungsfutter!$A$11:$BE$35,27,FALSE)*$F26) ->  | O59: =IF($C26=""," ",VLOOKUP($C26,Ergänzungsfutter!$A$11:$BE$35,28,FALSE)*$F26) ->  | P59: =IF($C26=""," ",VLOOKUP($C26,Ergänzungsfutter!$A$11:$BE$35,29,FALSE)*$F26) ->  | Q59: =IF($C26=""," ",VLOOKUP($C26,Ergänzungsfutter!$A$11:$BE$35,30,FALSE)*$F26) ->  | R59: =IF($C26=""," ",VLOOKUP($C26,Ergänzungsfutter!$A$11:$BE$35,31,FALSE)*$F26) ->  | S59: =IF($C26=""," ",VLOOKUP($C26,Ergänzungsfutter!$A$11:$BE$35,32,FALSE)*$F26) ->  | T59: =IF($C26=""," ",VLOOKUP($C26,Ergänzungsfutter!$A$11:$BE$35,33,FALSE)*$F26) ->  | U59: =IF($C26=""," ",VLOOKUP($C26,Ergänzungsfutter!$A$11:$BE$35,34,FALSE)*$F26) ->  | V59: =IF($C26=""," ",VLOOKUP($C26,Ergänzungsfutter!$A$11:$BE$35,35,FALSE)*$F26) ->  | W59: =IF($C26=""," ",VLOOKUP($C26,Ergänzungsfutter!$A$11:$BE$35,36,FALSE)*$F26) ->  | X59: =IF($C26=""," ",VLOOKUP($C26,Ergänzungsfutter!$A$11:$BE$35,35,FALSE)*$F26) ->  | Y59: =IF($C26=""," ",VLOOKUP($C26,Ergänzungsfutter!$A$11:$BE$35,37,FALSE)*$F26) ->  | Z59: =IF($C26=""," ",VLOOKUP($C26,Ergänzungsfutter!$A$11:$BE$35,38,FALSE)*$F26) ->  | AA59: =IF($C26=""," ",VLOOKUP($C26,Ergänzungsfutter!$A$11:$BE$35,39,FALSE)*$F26) ->  | AB59: =IF($C26=""," ",VLOOKUP($C26,Ergänzungsfutter!$A$11:$BE$35,37,FALSE)*$F26) ->  | AC59: =IF($C26=""," ",VLOOKUP($C26,Ergänzungsfutter!$A$11:$BE$35,40,FALSE)*$F26) ->  | AD59: =IF($C26=""," ",VLOOKUP($C26,Ergänzungsfutter!$A$11:$BE$35,41,FALSE)*$F26) -> 
B60: Nr. | C60: Mineralfutter
B61: =B28 -> 6 | C61: =IF(C28=""," ",C28) -> Opti. MinFu AM 850g TZ 3,5% + Phytase 17/18 | E61: =IF(E28=""," ",E28) -> 81 | F61: =IF(F28=""," ",F28) -> 0.035 | G61: =IF($C28=""," ",VLOOKUP($C28,Mineralfutter!$A$11:$BE$25,10,FALSE)*$F28) -> 1.05 | H61: =IF($C28=""," ",VLOOKUP($C28,Mineralfutter!$A$11:$BE$25,10,FALSE)*$F28) -> 1.05 | I61: =IF($C28=""," ",VLOOKUP($C28,Mineralfutter!$A$11:$BE$25,21,FALSE)*$F28) -> 0 | J61: =IF($C28=""," ",VLOOKUP($C28,Mineralfutter!$A$11:$BE$25,22,FALSE)*$F28) -> 0 | K61: =IF($C28=""," ",VLOOKUP($C28,Mineralfutter!$A$11:$BE$25,23,FALSE)*$F28) -> 0 | L61: =IF($C28=""," ",VLOOKUP($C28,Mineralfutter!$A$11:$BE$25,24,FALSE)*$F28) -> 24.5 | N61: =IF($C28=""," ",VLOOKUP($C28,Mineralfutter!$A$11:$BE$25,27,FALSE)*$F28) -> 0 | O61: =IF($C28=""," ",VLOOKUP($C28,Mineralfutter!$A$11:$BE$25,28,FALSE)*$F28) -> 0 | P61: =IF($C28=""," ",VLOOKUP($C28,Mineralfutter!$A$11:$BE$25,29,FALSE)*$F28) -> 0 | Q61: =IF($C28=""," ",VLOOKUP($C28,Mineralfutter!$A$11:$BE$25,30,FALSE)*$F28) -> 6055 | R61: =IF($C28=""," ",VLOOKUP($C28,Mineralfutter!$A$11:$BE$25,31,FALSE)*$F28) -> 1513.75 | S61: =IF($C28=""," ",VLOOKUP($C28,Mineralfutter!$A$11:$BE$25,32,FALSE)*$F28) -> 61.25 | T61: =IF($C28=""," ",VLOOKUP($C28,Mineralfutter!$A$11:$BE$25,33,FALSE)*$F28) -> 256.6007746 | U61: =IF($C28=""," ",VLOOKUP($C28,Mineralfutter!$A$11:$BE$25,34,FALSE)*$F28) -> 116.5365261 | Z61: =IF($C28=""," ",VLOOKUP($C28,Mineralfutter!$A$11:$BE$25,35,FALSE)*$F28) -> 0.0916644314 | AA61: =IF($C28=""," ",VLOOKUP($C28,Mineralfutter!$A$11:$BE$25,36,FALSE)*$F28) -> 0.09278024892 | AB61: =IF($C28=""," ",VLOOKUP($C28,Mineralfutter!$A$11:$BE$25,37,FALSE)*$F28) -> 0 | AC61: =IF($C28=""," ",VLOOKUP($C28,Mineralfutter!$A$11:$BE$25,37,FALSE)*$F28) -> 0 | AD61: =IF($C28=""," ",VLOOKUP($C28,Mineralfutter!$A$11:$BE$25,38,FALSE)*$F28) -> 0
B62: =B29 ->  | C62: =IF(C29=""," ",C29) ->  | E62: =IF(E29=""," ",E29) ->  | F62: =IF(F29=""," ",F29) ->  | G62: =IF($C29=""," ",VLOOKUP($C29,Mineralfutter!$A$11:$BE$25,10,FALSE)*$F29) ->  | H62: =IF($C29=""," ",VLOOKUP($C29,Mineralfutter!$A$11:$BE$25,10,FALSE)*$F29) ->  | I62: =IF($C29=""," ",VLOOKUP($C29,Mineralfutter!$A$11:$BE$25,21,FALSE)*$F29) ->  | J62: =IF($C29=""," ",VLOOKUP($C29,Mineralfutter!$A$11:$BE$25,22,FALSE)*$F29) ->  | K62: =IF($C29=""," ",VLOOKUP($C29,Mineralfutter!$A$11:$BE$25,23,FALSE)*$F29) ->  | L62: =IF($C29=""," ",VLOOKUP($C29,Mineralfutter!$A$11:$BE$25,24,FALSE)*$F29) ->  | N62: =IF($C29=""," ",VLOOKUP($C29,Mineralfutter!$A$11:$BE$25,27,FALSE)*$F29) ->  | O62: =IF($C29=""," ",VLOOKUP($C29,Mineralfutter!$A$11:$BE$25,28,FALSE)*$F29) ->  | P62: =IF($C29=""," ",VLOOKUP($C29,Mineralfutter!$A$11:$BE$25,29,FALSE)*$F29) ->  | Q62: =IF($C29=""," ",VLOOKUP($C29,Mineralfutter!$A$11:$BE$25,30,FALSE)*$F29) ->  | R62: =IF($C29=""," ",VLOOKUP($C29,Mineralfutter!$A$11:$BE$25,31,FALSE)*$F29) ->  | S62: =IF($C29=""," ",VLOOKUP($C29,Mineralfutter!$A$11:$BE$25,32,FALSE)*$F29) ->  | T62: =IF($C29=""," ",VLOOKUP($C29,Mineralfutter!$A$11:$BE$25,33,FALSE)*$F29) ->  | U62: =IF($C29=""," ",VLOOKUP($C29,Mineralfutter!$A$11:$BE$25,34,FALSE)*$F29) ->  | Z62: =IF($C29=""," ",VLOOKUP($C29,Mineralfutter!$A$11:$BE$25,35,FALSE)*$F29) ->  | AA62: =IF($C29=""," ",VLOOKUP($C29,Mineralfutter!$A$11:$BE$25,36,FALSE)*$F29) ->  | AB62: =IF($C29=""," ",VLOOKUP($C29,Mineralfutter!$A$11:$BE$25,37,FALSE)*$F29) ->  | AC62: =IF($C29=""," ",VLOOKUP($C29,Mineralfutter!$A$11:$BE$25,37,FALSE)*$F29) ->  | AD62: =IF($C29=""," ",VLOOKUP($C29,Mineralfutter!$A$11:$BE$25,38,FALSE)*$F29) -> 
C63: Summe | E63: =AC30 -> 22.87266 | F63: =IF(SUM(F13:F29,F36:F37)=0," ",SUM(F13:F29,F36:F37)) -> 1 | G63: =IF(F30=" "," ",SUM(G46:G62,Q36*$F36,Q37*$F37*0.525)) -> 2.875572882 | H63: =IF(F30=" "," ",SUM(H46:H62,R36*$F36,R37*$F37*0.525)) -> 2.632552844 | I63: =IF(F30=" "," ",SUM(I46:I62)) -> 29.92466 | J63: =IF(F30=" "," ",SUM(J46:J62)) -> 468.4682 | K63: =IF(F30=" "," ",SUM(K46:K62)) -> 33.332 | L63: =IF(F30=" "," ",SUM(L46:L62,F36*650)) -> 49.0864 | M63: =IF(G30=" "," ",SUM(M46:M62)) -> 149.04556 | N63: =IF(F30=" "," ",SUM(N46:N62)) -> 14.77232483 | O63: =IF(F30=" "," ",SUM(O46:O62)) -> 12.86274379 | P63: =IF(F30=" "," ",SUM(P46:P62)) -> 1.914201034 | Q63: =IF(F30=" "," ",SUM(Q46:Q62)) -> 6055 | R63: =IF(F30=" "," ",SUM(R46:R62)) -> 1513.75 | S63: =IF(F30=" "," ",SUM(S46:S62)) -> 61.25 | T63: =IF(F30=" "," ",SUM(T46:T62)) -> 276.314754 | U63: =IF(F30=" "," ",SUM(U46:U62)) -> 551.9421569 | V63: =IF(F30=" "," ",SUM(V46:V62)) -> 78.2315106 | W63: =IF(H30=" "," ",SUM(W46:W62)) -> 220.351375 | X63: =IF(I30=" "," ",SUM(X46:X62)) -> 45.88411427 | Y63: =IF(H30=" "," ",SUM(Y46:Y62)) -> 617.51376 | Z63: =IF(K30=" "," ",SUM(Z46:Z62)) -> 9.087406027 | AA63: =IF(J30=" "," ",SUM(AA46:AA62)) -> 9.370643178 | AB63: =IF(AA30=" "," ",SUM(AB46:AB62,AK36*$F36,AK37*$F37*0.525)) -> 6.00384 | AC63: =IF(N30=" "," ",SUM(AC46:AC62)) -> 0 | AD63: =IF(M30=" "," ",SUM(AD46:AD62)) -> 0
C64: Summe auf 88% TM umgerechnet | E64: =AC31 -> 22.73292998 | F64: =F30 -> 1 | G64: =IF($F31=" "," ",ROUND($I31*G63/$I30*$F31,1)) -> 2.9 | H64: =IF($F31=" "," ",ROUND($I31*H63/$I30*$F31,1)) -> 2.6 | I64: =IF($F31=" "," ",ROUND($I31*I63/$I30*$F31,0)) -> 30 | J64: =IF($F31=" "," ",ROUND($I31*J63/$I30*$F31,0)) -> 466 | K64: =IF($F31=" "," ",ROUND($I31*K63/$I30*$F31,0)) -> 33 | L64: =IF($F31=" "," ",ROUND($I31*L63/$I30*$F31,0)) -> 49 | M64: =IF($F31=" "," ",ROUND($I31*M63/$I30*$F31,0)) -> 148 | N64: =IF($F31=" "," ",ROUND($I31*N63/$I30*$F31,1)) -> 14.7 | O64: =IF($F31=" "," ",ROUND($I31*O63/$I30*$F31,1)) -> 12.8 | P64: =IF($F31=" "," ",ROUND($I31*P63/$I30*$F31,1)) -> 1.9 | Q64: =IF($F31=" "," ",ROUND($I31*Q63/$I30*$F31,0)) -> 6018 | R64: =IF($F31=" "," ",ROUND($I31*R63/$I30*$F31,0)) -> 1505 | S64: =IF($F31=" "," ",ROUND($I31*S63/$I30*$F31,0)) -> 61 | T64: =IF($F31=" "," ",ROUND($I31*T63/$I30*$F31,0)) -> 275 | U64: =IF($F31=" "," ",ROUND($I31*U63/$I30*$F31,0)) -> 549 | V64: =IF($F31=" "," ",ROUND($I31*V63/$I30*$F31,1)) -> 77.8 | W64: 219 | X64: 45.6 | Y64: 613.7 | Z64: 9 | AA64: 9.3 | AB64: 6 | AC64: =IF($F31=" "," ",ROUND($I31*AC63/$I30*$F31,2)) -> 0 | AD64: =IF($F31=" "," ",ROUND($I31*AD63/$I30*$F31,2)) -> 0
B65: OW-Nr. | C65: aus Tabelle Orientierungswerte in g
B66: =B33 -> 13 | C66: =IF(C33=""," ",C33) -> Anfangsmast ab 40 Kg LM für 850 g TZ* | E66: - | F66: =F30 -> 1 | G66: =IF($C33=""," ",ROUND(VLOOKUP($C$33,Orientierungswerte!$A$13:$AZ$126,30,FALSE)*$F$33,1)) -> 2.9 | H66: =IF($C33=""," ",ROUND(VLOOKUP($C$33,Orientierungswerte!$A$13:$AZ$126,31,FALSE)*$F$33,1)) -> 2.6 | I66: =IF($C33=""," ",ROUND(VLOOKUP($C$33,Orientierungswerte!$A$13:$AZ$126,33,FALSE)*$F$33,0)) -> 0 | J66: =IF($C33=""," ",ROUND(VLOOKUP($C$33,Orientierungswerte!$A$13:$AZ$126,34,FALSE)*$F$33,0)) -> 0 | K66: =IF($C33=""," ",ROUND(VLOOKUP($C$33,Orientierungswerte!$A$13:$AZ$126,35,FALSE)*$F$33,0)) -> 0 | L66: =IF($C33=""," ",ROUND(VLOOKUP($C$33,Orientierungswerte!$A$13:$AZ$126,36,FALSE)*$F$33,0)) -> 0 | M66: =IF($C33=""," ",ROUND(VLOOKUP($C$33,Orientierungswerte!$A$13:$AZ$126,36,FALSE)*$F$33,0)) -> 0 | N66: =IF($C33=""," ",ROUND(VLOOKUP($C$33,Orientierungswerte!$A$13:$AZ$126,37,FALSE)*$F$33,1)) -> 17.7 | O66: =IF($C33=""," ",ROUND(VLOOKUP($C$33,Orientierungswerte!$A$13:$AZ$126,38,FALSE)*$F$33,1)) -> 9.9 | P66: =IF($C33=""," ",ROUND(VLOOKUP($C$33,Orientierungswerte!$A$13:$AZ$126,39,FALSE)*$F$33,1)) -> 0 | Q66: =IF($C33=""," ",ROUND(VLOOKUP($C$33,Orientierungswerte!$A$13:$AZ$126,40,FALSE)*$F$33,0)) -> 6000 | R66: =IF($C33=""," ",ROUND(VLOOKUP($C$33,Orientierungswerte!$A$13:$AZ$126,41,FALSE)*$F$33,0)) -> 1500 | S66: =IF($C33=""," ",ROUND(VLOOKUP($C$33,Orientierungswerte!$A$13:$AZ$126,42,FALSE)*$F$33,0)) -> 60 | T66: =IF($C33=""," ",ROUND(VLOOKUP($C$33,Orientierungswerte!$A$13:$AZ$126,43,FALSE)*$F$33,1)) -> 0 | U66: =IF($C33=""," ",ROUND(VLOOKUP($C$33,Orientierungswerte!$A$13:$AZ$126,44,FALSE)*$F$33,1)) -> 0 | V66: =IF($C33=""," ",ROUND(VLOOKUP($C$33,Orientierungswerte!$A$13:$AZ$126,47,FALSE)*$F$33,1)) -> 0 | W66: =IF($C33=""," ",ROUND(VLOOKUP($C$33,Orientierungswerte!$A$13:$AZ$126,46,FALSE)*$F$33,1)) -> 120 | X66: =IF($C33=""," ",ROUND(VLOOKUP($C$33,Orientierungswerte!$A$13:$AZ$126,45,FALSE)*$F$33,1)) -> 70 | Y66: =IF($C33=""," ",ROUND(VLOOKUP($C$33,Orientierungswerte!$A$13:$AZ$126,49,FALSE)*$F$33,1)) -> 0 | Z66: =IF($C33=""," ",ROUND(VLOOKUP($C$33,Orientierungswerte!$A$13:$AZ$126,48,FALSE)*$F$33,1)) -> 9.8 | AA66: =IF($C33=""," ",ROUND(VLOOKUP($C$33,Orientierungswerte!$A$13:$AZ$126,49,FALSE)*$F$33,1)) -> 0 | AC66: =IF($C33=""," ",ROUND(VLOOKUP($C$33,Orientierungswerte!$A$13:$AZ$126,50,FALSE)*$F$33,2)) -> 1 | AD66: =IF($C33=""," ",ROUND(VLOOKUP($C$33,Orientierungswerte!$A$13:$AZ$126,51,FALSE)*$F$33,2)) -> 0.25
C67: Differenz Mischung zu Orientierungswert | E67: - | F67: =IF($C$33=""," ",ROUND((1-F31)*-1,4)) -> 0 | G67: =IF($C$33=""," ",ROUND(G64-G66,1)) -> 0 | H67: =IF($C$33=""," ",ROUND(H64-H66,1)) -> 0 | I67: =IF($C$33=""," ",ROUND(I64-I66,0)) -> 30 | J67: =IF($C$33=""," ",ROUND(J64-J66,0)) -> 466 | K67: =IF($C$33=""," ",ROUND(K64-K66,0)) -> 33 | L67: =IF($C$33=""," ",ROUND(L64-L66,0)) -> 49 | M67: =IF($C$33=""," ",ROUND(M64-M66,0)) -> 148 | N67: =IF($C$33=""," ",ROUND(N64-N66,1)) -> -3 | O67: =IF($C$33=""," ",ROUND(O64-O66,1)) -> 2.9 | P67: =IF($C$33=""," ",ROUND(P64-P66,1)) -> 1.9 | Q67: =IF($C$33=""," ",ROUND(Q64-Q66,0)) -> 18 | R67: 5 | S67: 1 | T67: 275 | U67: 549 | V67: 78 | W67: 99 | X67: =IF($C$33=""," ",ROUND(X64-X66,0)) -> -24 | Y67: =IF($C$33=""," ",ROUND(Y64-Y66,0)) -> 614 | Z67: =IF($C$33=""," ",Z64-Z66) -> -0.8 | AA67: =IF($C$33=""," ",AA64-AA66) -> 9.3 | AB67: =IF($C$33=""," ",ROUND(AB64-AB66,1)) -> 6 | AC67: =IF($C$33=""," ",ROUND(AC64-AC66,2)) -> -1 | AD67: =IF($C$33=""," ",ROUND(AD64-AD66,2)) -> -0.25

Sheet Ausdruck (2)
L9: Datum: | M9: =Futterberechnung!$Z$5 -> 2018-08-01
B10: Betrieb: | C10: ='Futterberechnung (2)'!H5 -> Mustermann
B11: Futtermischung für: | C11: =IF('Futterberechnung (2)'!H7="","",'Futterberechnung (2)'!H7) -> Anfangsmast ab 40 Kg LM für 850 g TZ* | H11: =IF('Futterberechnung (2)'!P7="","",'Futterberechnung (2)'!P7) -> Getreide = Richtpreise Ernte 2017/18
C12: ='Futterberechnung (2)'!J8 -> 
B14: Futtermittel | C14: Preis / dt | D14: Anteile in % FM | E14: Anteile bei 88% TM | F14: in Mischer | H14: Inhaltsstoffe in 1 kg Futtermittel | L14: Soll | M14: Differenz
B15: =IF('Futterberechnung (2)'!C13="","",'Futterberechnung (2)'!C13) -> eigener Weizen 10% RP Ø 2018 | C15: =IF('Futterberechnung (2)'!E13="","",'Futterberechnung (2)'!E13) -> 17.42 | D15: =IF('Futterberechnung (2)'!F13="","",'Futterberechnung (2)'!F13) -> 0.51 | E15: =IF('Futterberechnung (2)'!G13="","",'Futterberechnung (2)'!G13) -> 0.506884389 | F15: =IF('Futterberechnung (2)'!H13="","",'Futterberechnung (2)'!H13) -> 510 | I15: in | J15: in der FM | K15: in 88% TM | L15: in 88% TM
B16: =IF('Futterberechnung (2)'!C14="","",'Futterberechnung (2)'!C14) -> eigene Gerste 10% RP Ø 2018 | C16: =IF('Futterberechnung (2)'!E14="","",'Futterberechnung (2)'!E14) -> 16.39 | D16: =IF('Futterberechnung (2)'!F14="","",'Futterberechnung (2)'!F14) -> 0.314 | E16: =IF('Futterberechnung (2)'!G14="","",'Futterberechnung (2)'!G14) -> 0.3120817611 | F16: =IF('Futterberechnung (2)'!H14="","",'Futterberechnung (2)'!H14) -> 314 | H16: TM | I16: g | J16: =IF('Futterberechnung (2)'!I30="","",'Futterberechnung (2)'!I30) -> 885.409 | K16: =IF('Futterberechnung (2)'!I31="","",'Futterberechnung (2)'!I31) -> 880
B17: =IF('Futterberechnung (2)'!C15="","",'Futterberechnung (2)'!C15) -> Sojaschrot HP 47% RP | C17: =IF('Futterberechnung (2)'!E15="","",'Futterberechnung (2)'!E15) -> 38 | D17: =IF('Futterberechnung (2)'!F15="","",'Futterberechnung (2)'!F15) -> 0.13 | E17: =IF('Futterberechnung (2)'!G15="","",'Futterberechnung (2)'!G15) -> 0.1306740727 | F17: =IF('Futterberechnung (2)'!H15="","",'Futterberechnung (2)'!H15) -> 130 | H17: MES EFF* | I17: MJ | J17: =IF('Futterberechnung (2)'!$M$30="","",'Futterberechnung (2)'!$M$30) -> 13.22593541 | K17: =IF('Futterberechnung (2)'!$M$31="","",'Futterberechnung (2)'!$M$31) -> 13.15 | L17: =IF('Futterberechnung (2)'!$M$33="","",'Futterberechnung (2)'!$M$33) -> 13.2 | M17: =IF('Futterberechnung (2)'!$M$34="","",'Futterberechnung (2)'!$M$34) -> -0.05
B18: =IF('Futterberechnung (2)'!C16="","",'Futterberechnung (2)'!C16) -> Rapsöl / Pflanzenöl DLG 2014 | C18: =IF('Futterberechnung (2)'!E16="","",'Futterberechnung (2)'!E16) -> 97 | D18: =IF('Futterberechnung (2)'!F16="","",'Futterberechnung (2)'!F16) -> 0.011 | E18: =IF('Futterberechnung (2)'!G16="","",'Futterberechnung (2)'!G16) -> 0.01241121335 | F18: =IF('Futterberechnung (2)'!H16="","",'Futterberechnung (2)'!H16) -> 11 | H18: MES MFF* | I18: MJ | J18: =IF('Futterberechnung (2)'!$N$30="","",'Futterberechnung (2)'!$N$30) -> 13.18924426 | K18: =IF('Futterberechnung (2)'!$N$31="","",'Futterberechnung (2)'!$N$31) -> 13.11 | L18: =IF('Futterberechnung (2)'!$N$33="","",'Futterberechnung (2)'!$N$33) -> 13.2 | M18: =IF('Futterberechnung (2)'!$N$34="","",'Futterberechnung (2)'!$N$34) -> -0.09
B19: =IF('Futterberechnung (2)'!C17="","",'Futterberechnung (2)'!C17) ->  | C19: =IF('Futterberechnung (2)'!E17="","",'Futterberechnung (2)'!E17) ->  | D19: =IF('Futterberechnung (2)'!F17="","",'Futterberechnung (2)'!F17) ->  | E19: =IF('Futterberechnung (2)'!G17="","",'Futterberechnung (2)'!G17) ->  | F19: =IF('Futterberechnung (2)'!H17="","",'Futterberechnung (2)'!H17) ->  | H19: Rohprotein (XP) | I19: g | J19: =IF('Futterberechnung (2)'!$J$30="","",'Futterberechnung (2)'!$J$30) -> 147.8396304 | K19: =IF('Futterberechnung (2)'!$J$31="","",'Futterberechnung (2)'!$J$31) -> 147 | L19: =IF('Futterberechnung (2)'!$J$33="","",'Futterberechnung (2)'!$J$33) -> 158 | M19: =IF('Futterberechnung (2)'!$J$34="","",'Futterberechnung (2)'!$J$34) -> -11
B20: =IF('Futterberechnung (2)'!C18="","",'Futterberechnung (2)'!C18) ->  | C20: =IF('Futterberechnung (2)'!E18="","",'Futterberechnung (2)'!E18) ->  | D20: =IF('Futterberechnung (2)'!F18="","",'Futterberechnung (2)'!F18) ->  | E20: =IF('Futterberechnung (2)'!G18="","",'Futterberechnung (2)'!G18) ->  | F20: =IF('Futterberechnung (2)'!H18="","",'Futterberechnung (2)'!H18) ->  | H20: Lys | I20: g | J20: =IF('Futterberechnung (2)'!$O$30="","",'Futterberechnung (2)'!$O$30) -> 9.705230309 | K20: =IF('Futterberechnung (2)'!$O$31="","",'Futterberechnung (2)'!$O$31) -> 9.6 | L20: =IF('Futterberechnung (2)'!$O$33="","",'Futterberechnung (2)'!$O$33) -> 10.2 | M20: =IF('Futterberechnung (2)'!$O$34="","",'Futterberechnung (2)'!$O$34) -> -0.6
B21: =IF('Futterberechnung (2)'!C19="","",'Futterberechnung (2)'!C19) ->  | C21: =IF('Futterberechnung (2)'!E19="","",'Futterberechnung (2)'!E19) ->  | D21: =IF('Futterberechnung (2)'!F19="","",'Futterberechnung (2)'!F19) ->  | E21: =IF('Futterberechnung (2)'!G19="","",'Futterberechnung (2)'!G19) ->  | F21: =IF('Futterberechnung (2)'!H19="","",'Futterberechnung (2)'!H19) ->  | H21: pcv Lys | I21: g | J21: =IF('Futterberechnung (2)'!$P$30="","",'Futterberechnung (2)'!$P$30) -> 8.749477753 | K21: =IF('Futterberechnung (2)'!$P$31="","",'Futterberechnung (2)'!$P$31) -> 8.7 | L21: =IF('Futterberechnung (2)'!$P$33="","",'Futterberechnung (2)'!$P$33) -> 8.9 | M21: =IF('Futterberechnung (2)'!$P$34="","",'Futterberechnung (2)'!$P$34) -> -0.2
B22: =IF('Futterberechnung (2)'!C20="","",'Futterberechnung (2)'!C20) ->  | C22: =IF('Futterberechnung (2)'!E20="","",'Futterberechnung (2)'!E20) ->  | D22: =IF('Futterberechnung (2)'!F20="","",'Futterberechnung (2)'!F20) ->  | E22: =IF('Futterberechnung (2)'!G20="","",'Futterberechnung (2)'!G20) ->  | F22: =IF('Futterberechnung (2)'!H20="","",'Futterberechnung (2)'!H20) ->  | H22: Met | I22: g | J22: =IF('Futterberechnung (2)'!$G$63="","",'Futterberechnung (2)'!$G$63) -> 2.875572882 | K22: =IF('Futterberechnung (2)'!$G$64="","",'Futterberechnung (2)'!$G$64) -> 2.9 | L22: =IF('Futterberechnung (2)'!$G$66="","",'Futterberechnung (2)'!$G$66) -> 2.9 | M22: =IF('Futterberechnung (2)'!$G67="","",'Futterberechnung (2)'!$G$67) -> 0
B23: =IF('Futterberechnung (2)'!C21="","",'Futterberechnung (2)'!C21) ->  | C23: =IF('Futterberechnung (2)'!E21="","",'Futterberechnung (2)'!E21) ->  | D23: =IF('Futterberechnung (2)'!F21="","",'Futterberechnung (2)'!F21) ->  | E23: =IF('Futterberechnung (2)'!G21="","",'Futterberechnung (2)'!G21) ->  | F23: =IF('Futterberechnung (2)'!H21="","",'Futterberechnung (2)'!H21) ->  | H23: pcv Met | I23: g | J23: =IF('Futterberechnung (2)'!$H$63="","",'Futterberechnung (2)'!$H$63) -> 2.632552844 | K23: =IF('Futterberechnung (2)'!$H$64="","",'Futterberechnung (2)'!$H$64) -> 2.6 | L23: =IF('Futterberechnung (2)'!$H$66="","",'Futterberechnung (2)'!$H$66) -> 2.6 | M23: =IF('Futterberechnung (2)'!$H67="","",'Futterberechnung (2)'!$H$67) -> 0
B24: =IF('Futterberechnung (2)'!C22="","",'Futterberechnung (2)'!C22) ->  | C24: =IF('Futterberechnung (2)'!E22="","",'Futterberechnung (2)'!E22) ->  | D24: =IF('Futterberechnung (2)'!F22="","",'Futterberechnung (2)'!F22) ->  | E24: =IF('Futterberechnung (2)'!G22="","",'Futterberechnung (2)'!G22) ->  | F24: =IF('Futterberechnung (2)'!H22="","",'Futterberechnung (2)'!H22) ->  | H24: Met + Cys | I24: g | J24: =IF('Futterberechnung (2)'!$Q$30="","",'Futterberechnung (2)'!$Q$30) -> 5.9002041 | K24: =IF('Futterberechnung (2)'!$Q$31="","",'Futterberechnung (2)'!$Q$31) -> 5.9 | L24: =IF('Futterberechnung (2)'!$Q$33="","",'Futterberechnung (2)'!$Q$33) -> 5.5 | M24: =IF('Futterberechnung (2)'!$Q$34="","",'Futterberechnung (2)'!$Q$34) -> 0.4
B25: =IF('Futterberechnung (2)'!C23="","",'Futterberechnung (2)'!C23) ->  | C25: =IF('Futterberechnung (2)'!E23="","",'Futterberechnung (2)'!E23) ->  | D25: =IF('Futterberechnung (2)'!F23="","",'Futterberechnung (2)'!F23) ->  | E25: =IF('Futterberechnung (2)'!G23="","",'Futterberechnung (2)'!G23) ->  | F25: =IF('Futterberechnung (2)'!H23="","",'Futterberechnung (2)'!H23) ->  | H25: pcv Met + Cys | I25: g | J25: =IF('Futterberechnung (2)'!$R$30="","",'Futterberechnung (2)'!$R$30) -> 5.227279645 | K25: =IF('Futterberechnung (2)'!$R$31="","",'Futterberechnung (2)'!$R$31) -> 5.2 | L25: =IF('Futterberechnung (2)'!$R$33="","",'Futterberechnung (2)'!$R$33) -> 4.9 | M25: =IF('Futterberechnung (2)'!$R$34="","",'Futterberechnung (2)'!$R$34) -> 0.3
B26: =IF('Futterberechnung (2)'!C24="","",'Futterberechnung (2)'!C24) -> Ergänzungsfutter | C26: =IF('Futterberechnung (2)'!E24="","",'Futterberechnung (2)'!E24) ->  | D26: =IF('Futterberechnung (2)'!F24="","",'Futterberechnung (2)'!F24) ->  | E26: =IF('Futterberechnung (2)'!G24="","",'Futterberechnung (2)'!G24) ->  | F26: =IF('Futterberechnung (2)'!H24="","",'Futterberechnung (2)'!H24) ->  | H26: Thr | I26: g | J26: =IF('Futterberechnung (2)'!$S$30="","",'Futterberechnung (2)'!$S$30) -> 6.447640782 | K26: =IF('Futterberechnung (2)'!$S$31="","",'Futterberechnung (2)'!$S$31) -> 6.4 | L26: =IF('Futterberechnung (2)'!$S$33="","",'Futterberechnung (2)'!$S$33) -> 6.4 | M26: =IF('Futterberechnung (2)'!$S$34="","",'Futterberechnung (2)'!$S$34) -> 0
B27: =IF('Futterberechnung (2)'!C25="","",'Futterberechnung (2)'!C25) ->  | C27: =IF('Futterberechnung (2)'!E25="","",'Futterberechnung (2)'!E25) ->  | D27: =IF('Futterberechnung (2)'!F25="","",'Futterberechnung (2)'!F25) ->  | E27: =IF('Futterberechnung (2)'!G25="","",'Futterberechnung (2)'!G25) ->  | F27: =IF('Futterberechnung (2)'!H25="","",'Futterberechnung (2)'!H25) ->  | H27: pcv Thr | I27: g | J27: =IF('Futterberechnung (2)'!$T$30="","",'Futterberechnung (2)'!$T$30) -> 5.683282932 | K27: =IF('Futterberechnung (2)'!$T$31="","",'Futterberechnung (2)'!$T$31) -> 5.6 | L27: =IF('Futterberechnung (2)'!$T$33="","",'Futterberechnung (2)'!$T$33) -> 5.8 | M27: =IF('Futterberechnung (2)'!$T$34="","",'Futterberechnung (2)'!$T$34) -> -0.2
B28: =IF('Futterberechnung (2)'!C26="","",'Futterberechnung (2)'!C26) ->  | C28: =IF('Futterberechnung (2)'!E26="","",'Futterberechnung (2)'!E26) ->  | D28: =IF('Futterberechnung (2)'!F26="","",'Futterberechnung (2)'!F26) ->  | E28: =IF('Futterberechnung (2)'!G26="","",'Futterberechnung (2)'!G26) ->  | F28: =IF('Futterberechnung (2)'!H26="","",'Futterberechnung (2)'!H26) ->  | H28: Trp | I28: g | J28: =IF('Futterberechnung (2)'!$U$30="","",'Futterberechnung (2)'!$U$30) -> 1.885108109 | K28: =IF('Futterberechnung (2)'!$U$31="","",'Futterberechnung (2)'!$U$31) -> 1.9 | L28: =IF('Futterberechnung (2)'!$U$33="","",'Futterberechnung (2)'!$U$33) -> 1.8 | M28: =IF('Futterberechnung (2)'!$U$34="","",'Futterberechnung (2)'!$U$34) -> 0.1
B29: =IF('Futterberechnung (2)'!C27="","",'Futterberechnung (2)'!C27) -> Mineralfutter | C29: =IF('Futterberechnung (2)'!E27="","",'Futterberechnung (2)'!E27) ->  | D29: =IF('Futterberechnung (2)'!F27="","",'Futterberechnung (2)'!F27) ->  | E29: =IF('Futterberechnung (2)'!G27="","",'Futterberechnung (2)'!G27) ->  | F29: =IF('Futterberechnung (2)'!H27="","",'Futterberechnung (2)'!H27) ->  | H29: pcv Trp | I29: g | J29: =IF('Futterberechnung (2)'!$V$30="","",'Futterberechnung (2)'!$V$30) -> 1.598596234 | K29: =IF('Futterberechnung (2)'!$V$31="","",'Futterberechnung (2)'!$V$31) -> 1.6 | L29: =IF('Futterberechnung (2)'!$V$33="","",'Futterberechnung (2)'!$V$33) -> 1.6 | M29: =IF('Futterberechnung (2)'!$V$34="","",'Futterberechnung (2)'!$V$34) -> 0
B30: =IF('Futterberechnung (2)'!C28="","",'Futterberechnung (2)'!C28) -> Opti. MinFu AM 850g TZ 3,5% + Phytase 17/18 | C30: =IF('Futterberechnung (2)'!E28="","",'Futterberechnung (2)'!E28) -> 81 | D30: =IF('Futterberechnung (2)'!F28="","",'Futterberechnung (2)'!F28) -> 0.035 | E30: =IF('Futterberechnung (2)'!G28="","",'Futterberechnung (2)'!G28) -> 0.03794856388 | F30: =IF('Futterberechnung (2)'!H28="","",'Futterberechnung (2)'!H28) -> 35 | H30: Rohfaser (XF) | I30: g | J30: =IF('Futterberechnung (2)'!$L$30="","",'Futterberechnung (2)'!$L$30) -> 37.66396 | K30: =IF('Futterberechnung (2)'!$L$31="","",'Futterberechnung (2)'!$L$31) -> 37 | L30: =IF('Futterberechnung (2)'!$L$33="","",'Futterberechnung (2)'!$L$33) -> 40 | M30: =IF('Futterberechnung (2)'!$L$34="","",'Futterberechnung (2)'!$L$34) -> -3
B31: =IF('Futterberechnung (2)'!C29="","",'Futterberechnung (2)'!C29) ->  | C31: =IF('Futterberechnung (2)'!E29="","",'Futterberechnung (2)'!E29) ->  | D31: =IF('Futterberechnung (2)'!F29="","",'Futterberechnung (2)'!F29) ->  | E31: =IF('Futterberechnung (2)'!G29="","",'Futterberechnung (2)'!G29) ->  | F31: =IF('Futterberechnung (2)'!H29="","",'Futterberechnung (2)'!H29) ->  | H31: NDFom | I31: g | J31: =IF('Futterberechnung (2)'!$W$63="","",'Futterberechnung (2)'!$W$63) -> 220.351375 | K31: =IF('Futterberechnung (2)'!$W$64="","",'Futterberechnung (2)'!$W$64) -> 219 | L31: =IF('Futterberechnung (2)'!$W$66=0,"",'Futterberechnung (2)'!$W$66) -> 120 | M31: =IF($L$31="","",'Futterberechnung (2)'!$W$67) -> 99
B32: Futterkosten / Summe / Mischergröße | C32: =IF('Futterberechnung (2)'!E30="","",'Futterberechnung (2)'!E30) -> 22.87266 | D32: =IF('Futterberechnung (2)'!F30="","",'Futterberechnung (2)'!F30) -> 1 | F32: =IF(F15="","",SUM(F15:F31)) -> 1000 | H32: ADFom | I32: g | J32: =IF('Futterberechnung (2)'!$X$63="","",'Futterberechnung (2)'!$X$63) -> 45.88411427 | K32: =IF('Futterberechnung (2)'!$X$64="","",'Futterberechnung (2)'!$X$64) -> 45.6 | L32: =IF('Futterberechnung (2)'!$X$66=0,"",'Futterberechnung (2)'!$X$66) -> 70 | M32: =IF($L$32="","",'Futterberechnung (2)'!$X$67) -> -24
B33: Futterkosten auf 88% TM umgerechnet | C33: =IF('Futterberechnung (2)'!E31="","",'Futterberechnung (2)'!E31) -> 22.73292998 | F33: =IF(Futterberechnung!H31="","",Futterberechnung!H31) ->  | H33: BfS | I33: g | J33: =IF('Futterberechnung (2)'!$V$63="","",'Futterberechnung (2)'!$V$63) -> 78.2315106 | K33: =IF('Futterberechnung (2)'!$V$64="","",'Futterberechnung (2)'!$V$64) -> 77.8 | L33: =IF('Futterberechnung (2)'!$V$66=0,"",'Futterberechnung (2)'!$V$66) ->  | M33: =IF($L$33="","",'Futterberechnung (2)'!$V$67) -> 
H34: Ca | I34: g | J34: =IF('Futterberechnung (2)'!$W$30="","",'Futterberechnung (2)'!$W$30) -> 5.981328542 | K34: =IF('Futterberechnung (2)'!$W$31="","",'Futterberechnung (2)'!$W$31) -> 5.9 | L34: =IF('Futterberechnung (2)'!$W$33="","",'Futterberechnung (2)'!$W$33) -> 5.9 | M34: =IF('Futterberechnung (2)'!$W$34="","",'Futterberechnung (2)'!$W$34) -> 0
H35: P | I35: g | J35: =IF('Futterberechnung (2)'!$X$30="","",'Futterberechnung (2)'!$X$30) -> 4.17838106 | K35: =IF('Futterberechnung (2)'!$X$31="","",'Futterberechnung (2)'!$X$31) -> 4.2 | L35: =IF('Futterberechnung (2)'!$X$33="","",'Futterberechnung (2)'!$X$33) -> 4.4 | M35: =IF('Futterberechnung (2)'!$X$34="","",'Futterberechnung (2)'!$X$34) -> -0.2
H36: v.P | I36: g | J36: =IF('Futterberechnung (2)'!$Y$30="","",'Futterberechnung (2)'!$Y$30) -> 2.272902424 | K36: =IF('Futterberechnung (2)'!$Y$31="","",'Futterberechnung (2)'!$Y$31) -> 2.3 | L36: =IF('Futterberechnung (2)'!$Y$33="","",'Futterberechnung (2)'!$Y$33) -> 2.7 | M36: =IF('Futterberechnung (2)'!$Y$34="","",'Futterberechnung (2)'!$Y$34) -> -0.4
H37: v.P + Phytase | I37: g | J37: =IF('Futterberechnung (2)'!$Z$30="","",'Futterberechnung (2)'!$Z$30) -> 2.881835795 | K37: =IF('Futterberechnung (2)'!$Z$31="","",'Futterberechnung (2)'!$Z$31) -> 2.9 | L37: =IF('Futterberechnung (2)'!$Z$33="","",'Futterberechnung (2)'!$Z$33) -> 2.7 | M37: =IF('Futterberechnung (2)'!$Z$34="","",'Futterberechnung (2)'!$Z$34) -> 0.2
H38: Na | I38: g | J38: =IF('Futterberechnung (2)'!$AB$30="","",'Futterberechnung (2)'!$AB$30) -> 1.921624379 | K38: =IF('Futterberechnung (2)'!$AB$31="","",'Futterberechnung (2)'!$AB$31) -> 1.9 | L38: =IF('Futterberechnung (2)'!$AB$33="","",'Futterberechnung (2)'!$AB$33) -> 1.8 | M38: =IF(Futterberechnung!$AB$34="","",'Futterberechnung (2)'!$AB$34) -> 0.1
H39: Mg | I39: g | J39: =IF('Futterberechnung (2)'!$AA$30="","",'Futterberechnung (2)'!$AA$30) -> 1.273233004 | K39: =IF('Futterberechnung (2)'!$AA$31="","",'Futterberechnung (2)'!$AA$31) -> 1.3 | L39: =IF('Futterberechnung (2)'!$AA$33="","",'Futterberechnung (2)'!$AA$33) -> 1 | M39: =IF('Futterberechnung (2)'!$AA$34="","",'Futterberechnung (2)'!$AA$34) -> 0.3
H40: Polyensäuren | I40: g | J40: =IF('Futterberechnung (2)'!$N$63="","",'Futterberechnung (2)'!$N$63) -> 14.77232483 | K40: =IF('Futterberechnung (2)'!$N$64="","",'Futterberechnung (2)'!$N$64) -> 14.7 | L40: =IF('Futterberechnung (2)'!$N$66="","",'Futterberechnung (2)'!$N$66) -> 17.7 | M40: =IF('Futterberechnung (2)'!$N$67="","",'Futterberechnung (2)'!$N$67) -> -3
H41: Vit. A | I41: IE | J41: =IF('Futterberechnung (2)'!$Q$63="","",'Futterberechnung (2)'!$Q$63) -> 6055 | K41: =IF('Futterberechnung (2)'!$Q$64="","",'Futterberechnung (2)'!$Q$64) -> 6018 | L41: =IF('Futterberechnung (2)'!$Q$66="","",'Futterberechnung (2)'!$Q$66) -> 6000 | M41: =IF('Futterberechnung (2)'!$Q$67="","",'Futterberechnung (2)'!$Q$67) -> 18
H42: Vit. D3 | I42: IE | J42: =IF('Futterberechnung (2)'!$R$63="","",'Futterberechnung (2)'!$R$63) -> 1513.75 | K42: =IF('Futterberechnung (2)'!$R$64="","",'Futterberechnung (2)'!$R$64) -> 1505 | L42: =IF('Futterberechnung (2)'!$R$66="","",'Futterberechnung (2)'!$R$66) -> 1500 | M42: =IF('Futterberechnung (2)'!$R$67="","",'Futterberechnung (2)'!$R$67) -> 5
H43: Vit. E | I43: mg | J43: =IF('Futterberechnung (2)'!$S$63="","",'Futterberechnung (2)'!$S$63) -> 61.25 | K43: =IF('Futterberechnung (2)'!$S$64="","",'Futterberechnung (2)'!$S$64) -> 61 | L43: =IF('Futterberechnung (2)'!$S$66="","",'Futterberechnung (2)'!$S$66) -> 60 | M43: =IF('Futterberechnung (2)'!$S$67="","",'Futterberechnung (2)'!$S$67) -> 1
B45: Aminosäurenverhältnis (AS-Verältnis) | C45: pcv M + C | D45: pcv Thr | E45: pcv Trp | H45: Ca / P | I45: /1 | J45: =IF(K45="","",K45) -> 1.431494269 | K45: =IF('Futterberechnung (2)'!$T$40="","",'Futterberechnung (2)'!$T$40) -> 1.431494269 | L45: =IF('Futterberechnung (2)'!$T$41="","",'Futterberechnung (2)'!$T$41) -> 1.35 | M45: =IF(K45="","",K45-L45) -> 0.08149426925
B46: AS-Verhältnis in der Ration pcv Lysin 1 / | C46: =IF('Futterberechnung (2)'!N40="","",'Futterberechnung (2)'!N40) -> 0.5974390464 | D46: =IF('Futterberechnung (2)'!P40="","",'Futterberechnung (2)'!P40) -> 0.6495568185 | E46: =IF('Futterberechnung (2)'!R40="","",'Futterberechnung (2)'!R40) -> 0.1827076174 | H46: Ca / vP | I46: /1 | J46: 2.631581752 | K46: =IF('Futterberechnung (2)'!$X$40="","",'Futterberechnung (2)'!$X$40) -> 2.631581752 | L46: =IF('Futterberechnung (2)'!$X$41="","",'Futterberechnung (2)'!$X$41) -> 2.2 | M46: 0.4315817515
B47: Orientierungswert AS-Verhältnis pcv Lysin 1 / | C47: =IF('Futterberechnung (2)'!N41="","",'Futterberechnung (2)'!N41) -> 0.54 | D47: =IF('Futterberechnung (2)'!P41="","",'Futterberechnung (2)'!P41) -> 0.63 | E47: =IF('Futterberechnung (2)'!R41="","",'Futterberechnung (2)'!R41) -> 0.18 | H47: Ca / vP + Phytase | I47: /1 | J47: 2.075527187 | K47: =IF('Futterberechnung (2)'!$X$39="","",'Futterberechnung (2)'!$X$39) -> 2.075527187 | L47: =IF('Futterberechnung (2)'!$X$41="","",'Futterberechnung (2)'!$X$41) -> 2.2 | M47: -0.1244728126
B48: Differenz | C48: =IF(C46="","",C46-C47) -> 0.05743904638 | D48: =IF(D46="","",D46-D47) -> 0.01955681846 | E48: =IF(E46="","",E46-E47) -> 0.00270761741 | H48: Lys / MES EFF* | I48: g/MJ | J48: 0.7300380228 | K48: =IF('Futterberechnung (2)'!$F$40="","",'Futterberechnung (2)'!$F$40) -> 0.7300380228 | L48: =IF('Futterberechnung (2)'!$F$41="","",'Futterberechnung (2)'!$F$41) -> 0.77 | M48: -0.03996197719
H49: pcv Lys / MES EFF* | I49: g/MJ | J49: 0.6615969582 | K49: =IF('Futterberechnung (2)'!$I$40="","",'Futterberechnung (2)'!$I$40) -> 0.6615969582 | L49: =IF('Futterberechnung (2)'!$I$41="","",'Futterberechnung (2)'!$I$41) -> 0.68 | M49: -0.01840304183
H50: Lys in 100g RP | I50: g | J50: 5.918367347 | K50: =IF('Futterberechnung (2)'!$AA$40="","",'Futterberechnung (2)'!$AA$40) -> 5.918367347 | L50: =IF('Futterberechnung (2)'!$AA$41="","",'Futterberechnung (2)'!$AA$41) -> 5.63 | M50: 0.2883673469
H51: Kosten / 10 MJ MES EFF* | J51: =IF('Futterberechnung (2)'!$M$31="","",$C$32/100/'Futterberechnung (2)'!$M$30*10) -> 0.1729379381 | K51: =IF('Futterberechnung (2)'!$M$31="","",$C$33/100/'Futterberechnung (2)'!$M$31*10) -> 0.1728739922
H53: * EFF=Einzelfutterformel und MFF=Mischfutterformel (EFF ist genauer!)
B54: KAB oder DCAB oder BE in 100% TM der Ration | C54: =IF('Futterberechnung (2)'!T64="","",'Futterberechnung (2)'!T64/88*100) -> 312.5
B55: Harn-pH bei Fütterung dieser Ration | C55: =IF(C54="","",6.19+0.0031*C54+3*10^-6*C54^2) -> 7.45171875
B57: Basenüberschuß (BE) | D57: Harn pH
B58: 100 % TM | C58: in 88 %TM
B59: 500 | C59: =B59*0.88 -> 440 | D59: 8.5
B60: 400 | C60: =B60*0.88 -> 352 | D60: 7.9
B61: 300 | C61: 264 | D61: 7.4
B62: 200 | C62: 176 | D62: 6.9
B63: 100 | C63: 88 | D63: 6.5
B64: 0 | C64: 0 | D64: 6.2
B65: -100 | C65: -88 | D65: 5.9
B66: -200 | C66: -176 | D66: 5.7
B67: -400 | C67: -352 | D67: 5.4

Sheet Futterberechnung (3)
Z3: 2018 Version 1
B4: Rheinischer Erzeugerring für Mastschweine e.V.
E5: Betrieb: | H5: Mustermann | X5: Datum: | Z5: 2018-08-01
E6: Berater: | H6: =Futterberechnung!H6 -> ………………………………………………………. | X6: Tel.Nr.: | Z6: =Futterberechnung!Z6 -> ……………………………
E7: Futtermischung für: | H7: =C33&" " -> Mittelmast ab 60 Kg LM für 850 g TZ* | P7: Getreide = Richtpreise Ernte 2017/18 | X7: Tel.Nr.: | Z7: =Futterberechnung!Z7 -> ……………………………
E8: Mischergröße in t: | H8: =Futterberechnung!H8 -> 1 | J8: =IF(OR(B10="m",B10="w",'Futterkurve Mast'!T6="HP"),Orientierungswerte!D35,"") ->  | X8: gültig bis: | Z8: =Futterberechnung!Z8 -> ……………………………
B10: =IF(Futterberechnung!B10=0,"",Futterberechnung!B10) ->  | C10: Geschlecht
E11: Netto-Preis | F11: Anteil in FM | G11: Anteil bei 88% TM | H11: in Mi-scher | I11: TM | J11: Roh-pro-tein XP | K11: pcv XP | L11: Roh-faser XF | M11: ME EFF | N11: ME MFF | O11: Lys | P11: pcv Lys | Q11: M&C | R11: pcv M+C | S11: Thr | T11: pcv Thr | U11: Trp | V11: pcv Trp | W11: Ca | X11: P | Y11: v. P | Z11: v. P m. Phy | AA11: Mg | AB11: Na | AC11: €/dt
B12: FM-Nr. | C12: Futtermittel + % RP in der FM | E12: €/dt | F12: % | G12: % | H12: kg | I12: Anteil in g/kg | M12: MJ/kg | O12: Anteile in g je kg | AC12: Anteil
B13: =IF($C13=""," ",VLOOKUP($C13,Futtermittel!$A$8:$CG$171,2,FALSE)) -> 49 | C13: =IF(Futterberechnung!C13="","",Futterberechnung!C13) -> eigener Weizen 10% RP Ø 2018 | E13: =IF(Futterberechnung!E13="","",Futterberechnung!E13) -> 17.42 | F13: 0.45 | G13: =IF(F13="","",I13/I$30) -> 0.4479156652 | H13: =IF(F13=""," ",$H$8*F13*1000) -> 450 | I13: =IF($C13=""," ",VLOOKUP($C13,Futtermittel!$A$8:$CG$171,8,FALSE)*$F13) -> 396 | J13: =IF($C13=""," ",VLOOKUP($C13,Futtermittel!$A$8:$CG$171,9,FALSE)*$F13) -> 44.568 | K13: =IF($C13=""," ",VLOOKUP($C13,Futtermittel!$A$8:$CG$171,10,FALSE)*$F13) -> 40.1112 | L13: =IF($C13=""," ",VLOOKUP($C13,Futtermittel!$A$8:$CG$171,11,FALSE)*$F13) -> 11.8665 | M13: =IF($C13=""," ",VLOOKUP($C13,Futtermittel!$A$8:$CG$171,12,FALSE)*$F13) -> 6.1322598 | N13: =IF($C13=""," ",VLOOKUP(C13,Futtermittel!$A$8:$CG$171,13,FALSE)*$F13) -> 6.1650144 | O13: =IF($C13=""," ",VLOOKUP($C13,Futtermittel!$A$8:$CG$171,14,FALSE)*$F13) -> 1.43136 | P13: =IF($C13=""," ",VLOOKUP($C13,Futtermittel!$A$8:$CG$171,15,FALSE)*$F13) -> 1.2595968 | Q13: =IF($C13=""," ",VLOOKUP($C13,Futtermittel!$A$8:$CG$171,16,FALSE)*$F13) -> 1.65204 | R13: =IF($C13=""," ",VLOOKUP($C13,Futtermittel!$A$8:$CG$171,17,FALSE)*$F13) -> 1.4923428 | S13: =IF($C13=""," ",VLOOKUP($C13,Futtermittel!$A$8:$CG$171,18,FALSE)*$F13) -> 1.16136 | T13: =IF($C13=""," ",VLOOKUP($C13,Futtermittel!$A$8:$CG$171,19,FALSE)*$F13) -> 1.045224 | U13: =IF($C13=""," ",VLOOKUP($C13,Futtermittel!$A$8:$CG$171,20,FALSE)*$F13) -> 0.62568 | V13: =IF($C13=""," ",VLOOKUP($C13,Futtermittel!$A$8:$CG$171,21,FALSE)*$F13) -> 0.5505984 | W13: =IF($C13=""," ",VLOOKUP($C13,Futtermittel!$A$8:$CG$171,22,FALSE)*$F13) -> 0.315 | X13: =IF($C13=""," ",VLOOKUP($C13,Futtermittel!$A$8:$CG$171,23,FALSE)*$F13) -> 1.485 | Y13: =IF($C13=""," ",VLOOKUP($C13,Futtermittel!$A$8:$CG$171,24,FALSE)*$F13) -> 0.891 | Z13: =IF($C13=""," ",VLOOKUP($C13,Futtermittel!$A$8:$CG$171,25,FALSE)*$F13) -> 0.96525 | AA13: =IF($C13=""," ",VLOOKUP($C13,Futtermittel!$A$8:$CG$171,26,FALSE)*$F13) -> 0.495 | AB13: =IF($C13=""," ",VLOOKUP($C13,Futtermittel!$A$8:$CG$171,27,FALSE)*$F13) -> 0.09 | AC13: =IFERROR(IF(E13*F13=0," ",E13*F13),"") -> 7.839
B14: =IF($C14=""," ",VLOOKUP($C14,Futtermittel!$A$8:$CG$171,2,FALSE)) -> 11 | C14: =IF(Futterberechnung!C14="","",Futterberechnung!C14) -> eigene Gerste 10% RP Ø 2018 | E14: =IF(Futterberechnung!E14="","",Futterberechnung!E14) -> 16.39 | F14: 0.405 | G14: =IF(F14="","",I14/I$30) -> 0.4031240987 | H14: =IF(F14=""," ",$H$8*F14*1000) -> 405 | I14: =IF($C14=""," ",VLOOKUP($C14,Futtermittel!$A$8:$CG$171,8,FALSE)*$F14) -> 356.4 | J14: =IF($C14=""," ",VLOOKUP($C14,Futtermittel!$A$8:$CG$171,9,FALSE)*$F14) -> 39.33765 | K14: =IF($C14=""," ",VLOOKUP($C14,Futtermittel!$A$8:$CG$171,10,FALSE)*$F14) -> 28.7164845 | L14: =IF($C14=""," ",VLOOKUP($C14,Futtermittel!$A$8:$CG$171,11,FALSE)*$F14) -> 22.51395 | M14: =IF($C14=""," ",VLOOKUP($C14,Futtermittel!$A$8:$CG$171,12,FALSE)*$F14) -> 5.067579992 | N14: =IF($C14=""," ",VLOOKUP(C14,Futtermittel!$A$8:$CG$171,13,FALSE)*$F14) -> 5.05971134 | O14: =IF($C14=""," ",VLOOKUP($C14,Futtermittel!$A$8:$CG$171,14,FALSE)*$F14) -> 1.313253 | P14: =IF($C14=""," ",VLOOKUP($C14,Futtermittel!$A$8:$CG$171,15,FALSE)*$F14) -> 0.95867469 | Q14: =IF($C14=""," ",VLOOKUP($C14,Futtermittel!$A$8:$CG$171,16,FALSE)*$F14) -> 1.6256295 | R14: =IF($C14=""," ",VLOOKUP($C14,Futtermittel!$A$8:$CG$171,17,FALSE)*$F14) -> 1.361250808 | S14: =IF($C14=""," ",VLOOKUP($C14,Futtermittel!$A$8:$CG$171,18,FALSE)*$F14) -> 1.4231295 | T14: =IF($C14=""," ",VLOOKUP($C14,Futtermittel!$A$8:$CG$171,19,FALSE)*$F14) -> 1.08157842 | U14: =IF($C14=""," ",VLOOKUP($C14,Futtermittel!$A$8:$CG$171,20,FALSE)*$F14) -> 0.4743765 | V14: =IF($C14=""," ",VLOOKUP($C14,Futtermittel!$A$8:$CG$171,21,FALSE)*$F14) -> 0.36052614 | W14: =IF($C14=""," ",VLOOKUP($C14,Futtermittel!$A$8:$CG$171,22,FALSE)*$F14) -> 0.174636 | X14: =IF($C14=""," ",VLOOKUP($C14,Futtermittel!$A$8:$CG$171,23,FALSE)*$F14) -> 1.4175 | Y14: =IF($C14=""," ",VLOOKUP($C14,Futtermittel!$A$8:$CG$171,24,FALSE)*$F14) -> 0.637875 | Z14: =IF($C14=""," ",VLOOKUP($C14,Futtermittel!$A$8:$CG$171,25,FALSE)*$F14) -> 0.921375 | AA14: =IF($C14=""," ",VLOOKUP($C14,Futtermittel!$A$8:$CG$171,26,FALSE)*$F14) -> 0.4455 | AB14: =IF($C14=""," ",VLOOKUP($C14,Futtermittel!$A$8:$CG$171,27,FALSE)*$F14) -> 0.06144827586 | AC14: 6.63795
B15: =IF($C15=""," ",VLOOKUP($C15,Futtermittel!$A$8:$CG$171,2,FALSE)) -> 100 | C15: =IF(Futterberechnung!C15="","",Futterberechnung!C15) -> Sojaschrot HP 47% RP | E15: =IF(Futterberechnung!E15="","",Futterberechnung!E15) -> 38 | F15: 0.11 | G15: =IF(F15="","",I15/I$30) -> 0.1107347061 | H15: 110 | I15: =IF($C15=""," ",VLOOKUP($C15,Futtermittel!$A$8:$CG$171,8,FALSE)*$F15) -> 97.9 | J15: =IF($C15=""," ",VLOOKUP($C15,Futtermittel!$A$8:$CG$171,9,FALSE)*$F15) -> 51.7 | K15: =IF($C15=""," ",VLOOKUP($C15,Futtermittel!$A$8:$CG$171,10,FALSE)*$F15) -> 42.394 | L15: =IF($C15=""," ",VLOOKUP($C15,Futtermittel!$A$8:$CG$171,11,FALSE)*$F15) -> 5.72 | M15: =IF($C15=""," ",VLOOKUP($C15,Futtermittel!$A$8:$CG$171,12,FALSE)*$F15) -> 1.52428353 | N15: =IF($C15=""," ",VLOOKUP(C15,Futtermittel!$A$8:$CG$171,13,FALSE)*$F15) -> 1.52255169 | O15: =IF($C15=""," ",VLOOKUP($C15,Futtermittel!$A$8:$CG$171,14,FALSE)*$F15) -> 3.164485 | P15: =IF($C15=""," ",VLOOKUP($C15,Futtermittel!$A$8:$CG$171,15,FALSE)*$F15) -> 2.75310195 | Q15: =IF($C15=""," ",VLOOKUP($C15,Futtermittel!$A$8:$CG$171,16,FALSE)*$F15) -> 1.4532925 | R15: =IF($C15=""," ",VLOOKUP($C15,Futtermittel!$A$8:$CG$171,17,FALSE)*$F15) -> 1.210480861 | S15: =IF($C15=""," ",VLOOKUP($C15,Futtermittel!$A$8:$CG$171,18,FALSE)*$F15) -> 2.22375 | T15: =IF($C15=""," ",VLOOKUP($C15,Futtermittel!$A$8:$CG$171,19,FALSE)*$F15) -> 1.912425 | U15: =IF($C15=""," ",VLOOKUP($C15,Futtermittel!$A$8:$CG$171,20,FALSE)*$F15) -> 0.683875 | V15: =IF($C15=""," ",VLOOKUP($C15,Futtermittel!$A$8:$CG$171,21,FALSE)*$F15) -> 0.5881325 | W15: =IF($C15=""," ",VLOOKUP($C15,Futtermittel!$A$8:$CG$171,22,FALSE)*$F15) -> 0.3502499353 | X15: =IF($C15=""," ",VLOOKUP($C15,Futtermittel!$A$8:$CG$171,23,FALSE)*$F15) -> 0.7373224352 | Y15: =IF($C15=""," ",VLOOKUP($C15,Futtermittel!$A$8:$CG$171,24,FALSE)*$F15) -> 0.2949289741 | Z15: =IF($C15=""," ",VLOOKUP($C15,Futtermittel!$A$8:$CG$171,25,FALSE)*$F15) -> 0.5529918264 | AA15: =IF($C15=""," ",VLOOKUP($C15,Futtermittel!$A$8:$CG$171,26,FALSE)*$F15) -> 0.3103971574 | AB15: =IF($C15=""," ",VLOOKUP($C15,Futtermittel!$A$8:$CG$171,27,FALSE)*$F15) -> 0.018601 | AC15: 4.18
B16: =IF($C16=""," ",VLOOKUP($C16,Futtermittel!$A$8:$CG$171,2,FALSE)) -> 140 | C16: =IF(Futterberechnung!C16="","",Futterberechnung!C16) -> Rapsöl / Pflanzenöl DLG 2014 | E16: =IF(Futterberechnung!E16="","",Futterberechnung!E16) -> 97 | F16: 0.005 | G16: 0.005649845322 | H16: 5 | I16: =IF($C16=""," ",VLOOKUP($C16,Futtermittel!$A$8:$CG$171,8,FALSE)*$F16) -> 4.995 | J16: =IF($C16=""," ",VLOOKUP($C16,Futtermittel!$A$8:$CG$171,9,FALSE)*$F16) -> 0 | K16: =IF($C16=""," ",VLOOKUP($C16,Futtermittel!$A$8:$CG$171,10,FALSE)*$F16) -> 0 | L16: =IF($C16=""," ",VLOOKUP($C16,Futtermittel!$A$8:$CG$171,11,FALSE)*$F16) -> 0 | M16: =IF($C16=""," ",VLOOKUP($C16,Futtermittel!$A$8:$CG$171,12,FALSE)*$F16) -> 0.19462996 | N16: =IF($C16=""," ",VLOOKUP(C16,Futtermittel!$A$8:$CG$171,13,FALSE)*$F16) -> 0.16216003 | O16: =IF($C16=""," ",VLOOKUP($C16,Futtermittel!$A$8:$CG$171,14,FALSE)*$F16) -> 0 | P16: =IF($C16=""," ",VLOOKUP($C16,Futtermittel!$A$8:$CG$171,15,FALSE)*$F16) -> 0 | Q16: =IF($C16=""," ",VLOOKUP($C16,Futtermittel!$A$8:$CG$171,16,FALSE)*$F16) -> 0 | R16: =IF($C16=""," ",VLOOKUP($C16,Futtermittel!$A$8:$CG$171,17,FALSE)*$F16) -> 0 | S16: =IF($C16=""," ",VLOOKUP($C16,Futtermittel!$A$8:$CG$171,18,FALSE)*$F16) -> 0 | T16: =IF($C16=""," ",VLOOKUP($C16,Futtermittel!$A$8:$CG$171,19,FALSE)*$F16) -> 0 | U16: =IF($C16=""," ",VLOOKUP($C16,Futtermittel!$A$8:$CG$171,20,FALSE)*$F16) -> 0 | V16: =IF($C16=""," ",VLOOKUP($C16,Futtermittel!$A$8:$CG$171,21,FALSE)*$F16) -> 0 | W16: =IF($C16=""," ",VLOOKUP($C16,Futtermittel!$A$8:$CG$171,22,FALSE)*$F16) -> 0 | X16: =IF($C16=""," ",VLOOKUP($C16,Futtermittel!$A$8:$CG$171,23,FALSE)*$F16) -> 0 | Y16: =IF($C16=""," ",VLOOKUP($C16,Futtermittel!$A$8:$CG$171,24,FALSE)*$F16) -> 0 | Z16: =IF($C16=""," ",VLOOKUP($C16,Futtermittel!$A$8:$CG$171,25,FALSE)*$F16) -> 0 | AA16: =IF($C16=""," ",VLOOKUP($C16,Futtermittel!$A$8:$CG$171,26,FALSE)*$F16) -> 0 | AB16: =IF($C16=""," ",VLOOKUP($C16,Futtermittel!$A$8:$CG$171,27,FALSE)*$F16) -> 0 | AC16: 0.485
B17: =IF($C17=""," ",VLOOKUP($C17,Futtermittel!$A$8:$CG$171,2,FALSE)) ->  | C17: =IF(Futterberechnung!C17="","",Futterberechnung!C17) ->  | E17: =IF(Futterberechnung!E17="","",Futterberechnung!E17) ->  | I17: =IF($C17=""," ",VLOOKUP($C17,Futtermittel!$A$8:$CG$171,8,FALSE)*$F17) ->  | J17: =IF($C17=""," ",VLOOKUP($C17,Futtermittel!$A$8:$CG$171,9,FALSE)*$F17) ->  | K17: =IF($C17=""," ",VLOOKUP($C17,Futtermittel!$A$8:$CG$171,10,FALSE)*$F17) ->  | L17: =IF($C17=""," ",VLOOKUP($C17,Futtermittel!$A$8:$CG$171,11,FALSE)*$F17) ->  | M17: =IF($C17=""," ",VLOOKUP($C17,Futtermittel!$A$8:$CG$171,12,FALSE)*$F17) ->  | N17: =IF($C17=""," ",VLOOKUP(C17,Futtermittel!$A$8:$CG$171,13,FALSE)*$F17) ->  | O17: =IF($C17=""," ",VLOOKUP($C17,Futtermittel!$A$8:$CG$171,14,FALSE)*$F17) ->  | P17: =IF($C17=""," ",VLOOKUP($C17,Futtermittel!$A$8:$CG$171,15,FALSE)*$F17) ->  | Q17: =IF($C17=""," ",VLOOKUP($C17,Futtermittel!$A$8:$CG$171,16,FALSE)*$F17) ->  | R17: =IF($C17=""," ",VLOOKUP($C17,Futtermittel!$A$8:$CG$171,17,FALSE)*$F17) ->  | S17: =IF($C17=""," ",VLOOKUP($C17,Futtermittel!$A$8:$CG$171,18,FALSE)*$F17) ->  | T17: =IF($C17=""," ",VLOOKUP($C17,Futtermittel!$A$8:$CG$171,19,FALSE)*$F17) ->  | U17: =IF($C17=""," ",VLOOKUP($C17,Futtermittel!$A$8:$CG$171,20,FALSE)*$F17) ->  | V17: =IF($C17=""," ",VLOOKUP($C17,Futtermittel!$A$8:$CG$171,21,FALSE)*$F17) ->  | W17: =IF($C17=""," ",VLOOKUP($C17,Futtermittel!$A$8:$CG$171,22,FALSE)*$F17) ->  | X17: =IF($C17=""," ",VLOOKUP($C17,Futtermittel!$A$8:$CG$171,23,FALSE)*$F17) ->  | Y17: =IF($C17=""," ",VLOOKUP($C17,Futtermittel!$A$8:$CG$171,24,FALSE)*$F17) ->  | Z17: =IF($C17=""," ",VLOOKUP($C17,Futtermittel!$A$8:$CG$171,25,FALSE)*$F17) ->  | AA17: =IF($C17=""," ",VLOOKUP($C17,Futtermittel!$A$8:$CG$171,26,FALSE)*$F17) ->  | AB17: =IF($C17=""," ",VLOOKUP($C17,Futtermittel!$A$8:$CG$171,27,FALSE)*$F17) ->  | AC17: =IFERROR(IF(E17*F17=0," ",E17*F17),"") -> 
B18: =IF($C18=""," ",VLOOKUP($C18,Futtermittel!$A$8:$CG$171,2,FALSE)) ->  | C18: =IF(Futterberechnung!C18="","",Futterberechnung!C18) ->  | E18: =IF(Futterberechnung!E18="","",Futterberechnung!E18) ->  | I18: =IF($C18=""," ",VLOOKUP($C18,Futtermittel!$A$8:$CG$171,8,FALSE)*$F18) ->  | J18: =IF($C18=""," ",VLOOKUP($C18,Futtermittel!$A$8:$CG$171,9,FALSE)*$F18) ->  | K18: =IF($C18=""," ",VLOOKUP($C18,Futtermittel!$A$8:$CG$171,10,FALSE)*$F18) ->  | L18: =IF($C18=""," ",VLOOKUP($C18,Futtermittel!$A$8:$CG$171,11,FALSE)*$F18) ->  | M18: =IF($C18=""," ",VLOOKUP($C18,Futtermittel!$A$8:$CG$171,12,FALSE)*$F18) ->  | N18: =IF($C18=""," ",VLOOKUP(C18,Futtermittel!$A$8:$CG$171,13,FALSE)*$F18) ->  | O18: =IF($C18=""," ",VLOOKUP($C18,Futtermittel!$A$8:$CG$171,14,FALSE)*$F18) ->  | P18: =IF($C18=""," ",VLOOKUP($C18,Futtermittel!$A$8:$CG$171,15,FALSE)*$F18) ->  | Q18: =IF($C18=""," ",VLOOKUP($C18,Futtermittel!$A$8:$CG$171,16,FALSE)*$F18) ->  | R18: =IF($C18=""," ",VLOOKUP($C18,Futtermittel!$A$8:$CG$171,17,FALSE)*$F18) ->  | S18: =IF($C18=""," ",VLOOKUP($C18,Futtermittel!$A$8:$CG$171,18,FALSE)*$F18) ->  | T18: =IF($C18=""," ",VLOOKUP($C18,Futtermittel!$A$8:$CG$171,19,FALSE)*$F18) ->  | U18: =IF($C18=""," ",VLOOKUP($C18,Futtermittel!$A$8:$CG$171,20,FALSE)*$F18) ->  | V18: =IF($C18=""," ",VLOOKUP($C18,Futtermittel!$A$8:$CG$171,21,FALSE)*$F18) ->  | W18: =IF($C18=""," ",VLOOKUP($C18,Futtermittel!$A$8:$CG$171,22,FALSE)*$F18) ->  | X18: =IF($C18=""," ",VLOOKUP($C18,Futtermittel!$A$8:$CG$171,23,FALSE)*$F18) ->  | Y18: =IF($C18=""," ",VLOOKUP($C18,Futtermittel!$A$8:$CG$171,24,FALSE)*$F18) ->  | Z18: =IF($C18=""," ",VLOOKUP($C18,Futtermittel!$A$8:$CG$171,25,FALSE)*$F18) ->  | AA18: =IF($C18=""," ",VLOOKUP($C18,Futtermittel!$A$8:$CG$171,26,FALSE)*$F18) ->  | AB18: =IF($C18=""," ",VLOOKUP($C18,Futtermittel!$A$8:$CG$171,27,FALSE)*$F18) -> 
B19: =IF($C19=""," ",VLOOKUP($C19,Futtermittel!$A$8:$CG$171,2,FALSE)) ->  | C19: =IF(Futterberechnung!C19="","",Futterberechnung!C19) ->  | E19: =IF(Futterberechnung!E19="","",Futterberechnung!E19) ->  | I19: =IF($C19=""," ",VLOOKUP($C19,Futtermittel!$A$8:$CG$171,8,FALSE)*$F19) ->  | J19: =IF($C19=""," ",VLOOKUP($C19,Futtermittel!$A$8:$CG$171,9,FALSE)*$F19) ->  | K19: =IF($C19=""," ",VLOOKUP($C19,Futtermittel!$A$8:$CG$171,10,FALSE)*$F19) ->  | L19: =IF($C19=""," ",VLOOKUP($C19,Futtermittel!$A$8:$CG$171,11,FALSE)*$F19) ->  | M19: =IF($C19=""," ",VLOOKUP($C19,Futtermittel!$A$8:$CG$171,12,FALSE)*$F19) ->  | N19: =IF($C19=""," ",VLOOKUP(C19,Futtermittel!$A$8:$CG$171,13,FALSE)*$F19) ->  | O19: =IF($C19=""," ",VLOOKUP($C19,Futtermittel!$A$8:$CG$171,14,FALSE)*$F19) ->  | P19: =IF($C19=""," ",VLOOKUP($C19,Futtermittel!$A$8:$CG$171,15,FALSE)*$F19) ->  | Q19: =IF($C19=""," ",VLOOKUP($C19,Futtermittel!$A$8:$CG$171,16,FALSE)*$F19) ->  | R19: =IF($C19=""," ",VLOOKUP($C19,Futtermittel!$A$8:$CG$171,17,FALSE)*$F19) ->  | S19: =IF($C19=""," ",VLOOKUP($C19,Futtermittel!$A$8:$CG$171,18,FALSE)*$F19) ->  | T19: =IF($C19=""," ",VLOOKUP($C19,Futtermittel!$A$8:$CG$171,19,FALSE)*$F19) ->  | U19: =IF($C19=""," ",VLOOKUP($C19,Futtermittel!$A$8:$CG$171,20,FALSE)*$F19) ->  | V19: =IF($C19=""," ",VLOOKUP($C19,Futtermittel!$A$8:$CG$171,21,FALSE)*$F19) ->  | W19: =IF($C19=""," ",VLOOKUP($C19,Futtermittel!$A$8:$CG$171,22,FALSE)*$F19) ->  | X19: =IF($C19=""," ",VLOOKUP($C19,Futtermittel!$A$8:$CG$171,23,FALSE)*$F19) ->  | Y19: =IF($C19=""," ",VLOOKUP($C19,Futtermittel!$A$8:$CG$171,24,FALSE)*$F19) ->  | Z19: =IF($C19=""," ",VLOOKUP($C19,Futtermittel!$A$8:$CG$171,25,FALSE)*$F19) ->  | AA19: =IF($C19=""," ",VLOOKUP($C19,Futtermittel!$A$8:$CG$171,26,FALSE)*$F19) ->  | AB19: =IF($C19=""," ",VLOOKUP($C19,Futtermittel!$A$8:$CG$171,27,FALSE)*$F19) -> 
B20: =IF($C20=""," ",VLOOKUP($C20,Futtermittel!$A$8:$CG$171,2,FALSE)) ->  | C20: =IF(Futterberechnung!C20="","",Futterberechnung!C20) ->  | E20: =IF(Futterberechnung!E20="","",Futterberechnung!E20) ->  | I20: =IF($C20=""," ",VLOOKUP($C20,Futtermittel!$A$8:$CG$171,8,FALSE)*$F20) ->  | J20: =IF($C20=""," ",VLOOKUP($C20,Futtermittel!$A$8:$CG$171,9,FALSE)*$F20) ->  | K20: =IF($C20=""," ",VLOOKUP($C20,Futtermittel!$A$8:$CG$171,10,FALSE)*$F20) ->  | L20: =IF($C20=""," ",VLOOKUP($C20,Futtermittel!$A$8:$CG$171,11,FALSE)*$F20) ->  | M20: =IF($C20=""," ",VLOOKUP($C20,Futtermittel!$A$8:$CG$171,12,FALSE)*$F20) ->  | N20: =IF($C20=""," ",VLOOKUP(C20,Futtermittel!$A$8:$CG$171,13,FALSE)*$F20) ->  | O20: =IF($C20=""," ",VLOOKUP($C20,Futtermittel!$A$8:$CG$171,14,FALSE)*$F20) ->  | P20: =IF($C20=""," ",VLOOKUP($C20,Futtermittel!$A$8:$CG$171,15,FALSE)*$F20) ->  | Q20: =IF($C20=""," ",VLOOKUP($C20,Futtermittel!$A$8:$CG$171,16,FALSE)*$F20) ->  | R20: =IF($C20=""," ",VLOOKUP($C20,Futtermittel!$A$8:$CG$171,17,FALSE)*$F20) ->  | S20: =IF($C20=""," ",VLOOKUP($C20,Futtermittel!$A$8:$CG$171,18,FALSE)*$F20) ->  | T20: =IF($C20=""," ",VLOOKUP($C20,Futtermittel!$A$8:$CG$171,19,FALSE)*$F20) ->  | U20: =IF($C20=""," ",VLOOKUP($C20,Futtermittel!$A$8:$CG$171,20,FALSE)*$F20) ->  | V20: =IF($C20=""," ",VLOOKUP($C20,Futtermittel!$A$8:$CG$171,21,FALSE)*$F20) ->  | W20: =IF($C20=""," ",VLOOKUP($C20,Futtermittel!$A$8:$CG$171,22,FALSE)*$F20) ->  | X20: =IF($C20=""," ",VLOOKUP($C20,Futtermittel!$A$8:$CG$171,23,FALSE)*$F20) ->  | Y20: =IF($C20=""," ",VLOOKUP($C20,Futtermittel!$A$8:$CG$171,24,FALSE)*$F20) ->  | Z20: =IF($C20=""," ",VLOOKUP($C20,Futtermittel!$A$8:$CG$171,25,FALSE)*$F20) ->  | AA20: =IF($C20=""," ",VLOOKUP($C20,Futtermittel!$A$8:$CG$171,26,FALSE)*$F20) ->  | AB20: =IF($C20=""," ",VLOOKUP($C20,Futtermittel!$A$8:$CG$171,27,FALSE)*$F20) -> 
B21: =IF($C21=""," ",VLOOKUP($C21,Futtermittel!$A$8:$CG$171,2,FALSE)) ->  | C21: =IF(Futterberechnung!C21="","",Futterberechnung!C21) ->  | E21: =IF(Futterberechnung!E21="","",Futterberechnung!E21) ->  | I21: =IF($C21=""," ",VLOOKUP($C21,Futtermittel!$A$8:$CG$171,8,FALSE)*$F21) ->  | J21: =IF($C21=""," ",VLOOKUP($C21,Futtermittel!$A$8:$CG$171,9,FALSE)*$F21) ->  | K21: =IF($C21=""," ",VLOOKUP($C21,Futtermittel!$A$8:$CG$171,10,FALSE)*$F21) ->  | L21: =IF($C21=""," ",VLOOKUP($C21,Futtermittel!$A$8:$CG$171,11,FALSE)*$F21) ->  | M21: =IF($C21=""," ",VLOOKUP($C21,Futtermittel!$A$8:$CG$171,12,FALSE)*$F21) ->  | N21: =IF($C21=""," ",VLOOKUP(C21,Futtermittel!$A$8:$CG$171,13,FALSE)*$F21) ->  | O21: =IF($C21=""," ",VLOOKUP($C21,Futtermittel!$A$8:$CG$171,14,FALSE)*$F21) ->  | P21: =IF($C21=""," ",VLOOKUP($C21,Futtermittel!$A$8:$CG$171,15,FALSE)*$F21) ->  | Q21: =IF($C21=""," ",VLOOKUP($C21,Futtermittel!$A$8:$CG$171,16,FALSE)*$F21) ->  | R21: =IF($C21=""," ",VLOOKUP($C21,Futtermittel!$A$8:$CG$171,17,FALSE)*$F21) ->  | S21: =IF($C21=""," ",VLOOKUP($C21,Futtermittel!$A$8:$CG$171,18,FALSE)*$F21) ->  | T21: =IF($C21=""," ",VLOOKUP($C21,Futtermittel!$A$8:$CG$171,19,FALSE)*$F21) ->  | U21: =IF($C21=""," ",VLOOKUP($C21,Futtermittel!$A$8:$CG$171,20,FALSE)*$F21) ->  | V21: =IF($C21=""," ",VLOOKUP($C21,Futtermittel!$A$8:$CG$171,21,FALSE)*$F21) ->  | W21: =IF($C21=""," ",VLOOKUP($C21,Futtermittel!$A$8:$CG$171,22,FALSE)*$F21) ->  | X21: =IF($C21=""," ",VLOOKUP($C21,Futtermittel!$A$8:$CG$171,23,FALSE)*$F21) ->  | Y21: =IF($C21=""," ",VLOOKUP($C21,Futtermittel!$A$8:$CG$171,24,FALSE)*$F21) ->  | Z21: =IF($C21=""," ",VLOOKUP($C21,Futtermittel!$A$8:$CG$171,25,FALSE)*$F21) ->  | AA21: =IF($C21=""," ",VLOOKUP($C21,Futtermittel!$A$8:$CG$171,26,FALSE)*$F21) ->  | AB21: =IF($C21=""," ",VLOOKUP($C21,Futtermittel!$A$8:$CG$171,27,FALSE)*$F21) -> 
B22: =IF($C22=""," ",VLOOKUP($C22,Futtermittel!$A$8:$CG$171,2,FALSE)) ->  | C22: =IF(Futterberechnung!C22="","",Futterberechnung!C22) ->  | E22: =IF(Futterberechnung!E22="","",Futterberechnung!E22) ->  | I22: =IF($C22=""," ",VLOOKUP($C22,Futtermittel!$A$8:$CG$171,8,FALSE)*$F22) ->  | J22: =IF($C22=""," ",VLOOKUP($C22,Futtermittel!$A$8:$CG$171,9,FALSE)*$F22) ->  | K22: =IF($C22=""," ",VLOOKUP($C22,Futtermittel!$A$8:$CG$171,10,FALSE)*$F22) ->  | L22: =IF($C22=""," ",VLOOKUP($C22,Futtermittel!$A$8:$CG$171,11,FALSE)*$F22) ->  | M22: =IF($C22=""," ",VLOOKUP($C22,Futtermittel!$A$8:$CG$171,12,FALSE)*$F22) ->  | N22: =IF($C22=""," ",VLOOKUP(C22,Futtermittel!$A$8:$CG$171,13,FALSE)*$F22) ->  | O22: =IF($C22=""," ",VLOOKUP($C22,Futtermittel!$A$8:$CG$171,14,FALSE)*$F22) ->  | P22: =IF($C22=""," ",VLOOKUP($C22,Futtermittel!$A$8:$CG$171,15,FALSE)*$F22) ->  | Q22: =IF($C22=""," ",VLOOKUP($C22,Futtermittel!$A$8:$CG$171,16,FALSE)*$F22) ->  | R22: =IF($C22=""," ",VLOOKUP($C22,Futtermittel!$A$8:$CG$171,17,FALSE)*$F22) ->  | S22: =IF($C22=""," ",VLOOKUP($C22,Futtermittel!$A$8:$CG$171,18,FALSE)*$F22) ->  | T22: =IF($C22=""," ",VLOOKUP($C22,Futtermittel!$A$8:$CG$171,19,FALSE)*$F22) ->  | U22: =IF($C22=""," ",VLOOKUP($C22,Futtermittel!$A$8:$CG$171,20,FALSE)*$F22) ->  | V22: =IF($C22=""," ",VLOOKUP($C22,Futtermittel!$A$8:$CG$171,21,FALSE)*$F22) ->  | W22: =IF($C22=""," ",VLOOKUP($C22,Futtermittel!$A$8:$CG$171,22,FALSE)*$F22) ->  | X22: =IF($C22=""," ",VLOOKUP($C22,Futtermittel!$A$8:$CG$171,23,FALSE)*$F22) ->  | Y22: =IF($C22=""," ",VLOOKUP($C22,Futtermittel!$A$8:$CG$171,24,FALSE)*$F22) ->  | Z22: =IF($C22=""," ",VLOOKUP($C22,Futtermittel!$A$8:$CG$171,25,FALSE)*$F22) ->  | AA22: =IF($C22=""," ",VLOOKUP($C22,Futtermittel!$A$8:$CG$171,26,FALSE)*$F22) ->  | AB22: =IF($C22=""," ",VLOOKUP($C22,Futtermittel!$A$8:$CG$171,27,FALSE)*$F22) -> 
B23: =IF($C23=""," ",VLOOKUP($C23,Futtermittel!$A$8:$CG$171,2,FALSE)) ->  | C23: =IF(Futterberechnung!C23="","",Futterberechnung!C23) ->  | E23: =IF(Futterberechnung!E23="","",Futterberechnung!E23) ->  | I23: =IF($C23=""," ",VLOOKUP($C23,Futtermittel!$A$8:$CG$171,8,FALSE)*$F23) ->  | J23: =IF($C23=""," ",VLOOKUP($C23,Futtermittel!$A$8:$CG$171,9,FALSE)*$F23) ->  | K23: =IF($C23=""," ",VLOOKUP($C23,Futtermittel!$A$8:$CG$171,10,FALSE)*$F23) ->  | L23: =IF($C23=""," ",VLOOKUP($C23,Futtermittel!$A$8:$CG$171,11,FALSE)*$F23) ->  | M23: =IF($C23=""," ",VLOOKUP($C23,Futtermittel!$A$8:$CG$171,12,FALSE)*$F23) ->  | N23: =IF($C23=""," ",VLOOKUP(C23,Futtermittel!$A$8:$CG$171,13,FALSE)*$F23) ->  | O23: =IF($C23=""," ",VLOOKUP($C23,Futtermittel!$A$8:$CG$171,14,FALSE)*$F23) ->  | P23: =IF($C23=""," ",VLOOKUP($C23,Futtermittel!$A$8:$CG$171,15,FALSE)*$F23) ->  | Q23: =IF($C23=""," ",VLOOKUP($C23,Futtermittel!$A$8:$CG$171,16,FALSE)*$F23) ->  | R23: =IF($C23=""," ",VLOOKUP($C23,Futtermittel!$A$8:$CG$171,17,FALSE)*$F23) ->  | S23: =IF($C23=""," ",VLOOKUP($C23,Futtermittel!$A$8:$CG$171,18,FALSE)*$F23) ->  | T23: =IF($C23=""," ",VLOOKUP($C23,Futtermittel!$A$8:$CG$171,19,FALSE)*$F23) ->  | U23: =IF($C23=""," ",VLOOKUP($C23,Futtermittel!$A$8:$CG$171,20,FALSE)*$F23) ->  | V23: =IF($C23=""," ",VLOOKUP($C23,Futtermittel!$A$8:$CG$171,21,FALSE)*$F23) ->  | W23: =IF($C23=""," ",VLOOKUP($C23,Futtermittel!$A$8:$CG$171,22,FALSE)*$F23) ->  | X23: =IF($C23=""," ",VLOOKUP($C23,Futtermittel!$A$8:$CG$171,23,FALSE)*$F23) ->  | Y23: =IF($C23=""," ",VLOOKUP($C23,Futtermittel!$A$8:$CG$171,24,FALSE)*$F23) ->  | Z23: =IF($C23=""," ",VLOOKUP($C23,Futtermittel!$A$8:$CG$171,25,FALSE)*$F23) ->  | AA23: =IF($C23=""," ",VLOOKUP($C23,Futtermittel!$A$8:$CG$171,26,FALSE)*$F23) ->  | AB23: =IF($C23=""," ",VLOOKUP($C23,Futtermittel!$A$8:$CG$171,27,FALSE)*$F23) -> 
B24: EF-Nr. | C24: Ergänzungsfutter | D24: VQ in % | G24: =IF(F24="","",I24/I$2941) -> 
B25: =IF($C25=""," ",VLOOKUP($C25,Ergänzungsfutter!$A$11:$Q$35,3,FALSE)) ->  | D25: 0.85 | G25: =IF(F25="","",I25/I$30) ->  | I25: =IF($C25=""," ",VLOOKUP($C25,Ergänzungsfutter!$A$11:$BE$35,5,FALSE)*$F25) ->  | J25: =IF($C25=""," ",VLOOKUP($C25,Ergänzungsfutter!$A$11:$BE$35,6,FALSE)*$F25) ->  | K25: =IF($C25=""," ",VLOOKUP($C25,Ergänzungsfutter!$A$11:$BE$35,6,FALSE)*$F25*D25) ->  | L25: =IF($C25=""," ",VLOOKUP($C25,Ergänzungsfutter!$A$11:$BE$35,7,FALSE)*$F25) ->  | M25: =IF($C25=""," ",IF(VLOOKUP($C25,Ergänzungsfutter!$A$11:$BE$35,8,FALSE)=" ",0,VLOOKUP($C25,Ergänzungsfutter!$A$11:$BE$35,8,FALSE)*$F25)) ->  | N25: =IF($C25=""," ",IF(VLOOKUP($C25,Ergänzungsfutter!$A$11:$BE$35,8,FALSE)=" ",0,VLOOKUP($C25,Ergänzungsfutter!$A$11:$BE$35,8,FALSE)*$F25)) ->  | O25: =IF($C25=""," ",VLOOKUP($C25,Ergänzungsfutter!$A$11:$BE$35,9,FALSE)*$F25) ->  | P25: =IF($C25=""," ",VLOOKUP($C25,Ergänzungsfutter!$A$11:$BE$35,9,FALSE)*$F25*D25) ->  | Q25: =IF($C25=""," ",VLOOKUP($C25,Ergänzungsfutter!$A$11:$BE$35,10,FALSE)*$F25) ->  | R25: =IF($C25=""," ",VLOOKUP($C25,Ergänzungsfutter!$A$11:$BE$35,10,FALSE)*$F25*D25) ->  | S25: =IF($C25=""," ",VLOOKUP($C25,Ergänzungsfutter!$A$11:$BE$35,11,FALSE)*$F25) ->  | T25: =IF($C25=""," ",VLOOKUP($C25,Ergänzungsfutter!$A$11:$BE$35,11,FALSE)*$F25*D25) ->  | U25: =IF($C25=""," ",VLOOKUP($C25,Ergänzungsfutter!$A$11:$BE$35,12,FALSE)*$F25) ->  | V25: =IF($C25=""," ",VLOOKUP($C25,Ergänzungsfutter!$A$11:$BE$35,12,FALSE)*$F25*D25) ->  | W25: =IF($C25=""," ",VLOOKUP($C25,Ergänzungsfutter!$A$11:$BE$35,13,FALSE)*$F25) ->  | X25: =IF($C25=""," ",VLOOKUP($C25,Ergänzungsfutter!$A$11:$BE$35,14,FALSE)*$F25) ->  | Y25: =IF($C25=""," ",VLOOKUP($C25,Ergänzungsfutter!$A$11:$BE$35,15,FALSE)*$F25) ->  | Z25: =IF($C25=""," ",IF(Y25>VLOOKUP($C25,Ergänzungsfutter!$A$11:$BE$35,14,FALSE)*$F25*0.65,Y25,VLOOKUP($C25,Ergänzungsfutter!$A$11:$BE$35,14,FALSE)*$F25*0.65)) ->  | AA25: =IF($C25=""," ",VLOOKUP($C25,Ergänzungsfutter!$A$11:$BE$35,16,FALSE)*$F25) ->  | AB25: =IF($C25=""," ",VLOOKUP($C25,Ergänzungsfutter!$A$11:$BE$35,17,FALSE)*$F25) -> 
B26: =IF($C26=""," ",VLOOKUP($C26,Ergänzungsfutter!$A$11:$Q$35,3,FALSE)) ->  | G26: =IF(F26="","",I26/I$30) ->  | I26: =IF($C26=""," ",VLOOKUP($C26,Ergänzungsfutter!$A$11:$BE$35,5,FALSE)*$F26) ->  | J26: =IF($C26=""," ",VLOOKUP($C26,Ergänzungsfutter!$A$11:$BE$35,6,FALSE)*$F26) ->  | K26: =IF($C26=""," ",VLOOKUP($C26,Ergänzungsfutter!$A$11:$BE$35,6,FALSE)*$F26*D26) ->  | L26: =IF($C26=""," ",VLOOKUP($C26,Ergänzungsfutter!$A$11:$BE$35,7,FALSE)*$F26) ->  | M26: =IF($C26=""," ",IF(VLOOKUP($C26,Ergänzungsfutter!$A$11:$BE$35,8,FALSE)=" ",0,VLOOKUP($C26,Ergänzungsfutter!$A$11:$BE$35,8,FALSE)*$F26)) ->  | N26: =IF($C26=""," ",IF(VLOOKUP($C26,Ergänzungsfutter!$A$11:$BE$35,8,FALSE)=" ",0,VLOOKUP($C26,Ergänzungsfutter!$A$11:$BE$35,8,FALSE)*$F26)) ->  | O26: =IF($C26=""," ",VLOOKUP($C26,Ergänzungsfutter!$A$11:$BE$35,9,FALSE)*$F26) ->  | P26: =IF($C26=""," ",VLOOKUP($C26,Ergänzungsfutter!$A$11:$BE$35,9,FALSE)*$F26*D26) ->  | Q26: =IF($C26=""," ",VLOOKUP($C26,Ergänzungsfutter!$A$11:$BE$35,10,FALSE)*$F26) ->  | R26: =IF($C26=""," ",VLOOKUP($C26,Ergänzungsfutter!$A$11:$BE$35,10,FALSE)*$F26*D26) ->  | S26: =IF($C26=""," ",VLOOKUP($C26,Ergänzungsfutter!$A$11:$BE$35,11,FALSE)*$F26) ->  | T26: =IF($C26=""," ",VLOOKUP($C26,Ergänzungsfutter!$A$11:$BE$35,11,FALSE)*$F26*D26) ->  | U26: =IF($C26=""," ",VLOOKUP($C26,Ergänzungsfutter!$A$11:$BE$35,12,FALSE)*$F26) ->  | V26: =IF($C26=""," ",VLOOKUP($C26,Ergänzungsfutter!$A$11:$BE$35,12,FALSE)*$F26*D26) ->  | W26: =IF($C26=""," ",VLOOKUP($C26,Ergänzungsfutter!$A$11:$BE$35,13,FALSE)*$F26) ->  | X26: =IF($C26=""," ",VLOOKUP($C26,Ergänzungsfutter!$A$11:$BE$35,14,FALSE)*$F26) ->  | Y26: =IF($C26=""," ",VLOOKUP($C26,Ergänzungsfutter!$A$11:$BE$35,15,FALSE)*$F26) ->  | Z26: =IF($C26=""," ",IF(Y26>VLOOKUP($C26,Ergänzungsfutter!$A$11:$BE$35,14,FALSE)*$F26*0.65,Y26,VLOOKUP($C26,Ergänzungsfutter!$A$11:$BE$35,14,FALSE)*$F26*0.65)) ->  | AA26: =IF($C26=""," ",VLOOKUP($C26,Ergänzungsfutter!$A$11:$BE$35,16,FALSE)*$F26) ->  | AB26: =IF($C26=""," ",VLOOKUP($C26,Ergänzungsfutter!$A$11:$BE$35,17,FALSE)*$F26) -> 
B27: Nr. | C27: Mineralfutter | G27: =IF(F27="","",I27/I$2944) -> 
A28: 2 | B28: =IF($C28=""," ",VLOOKUP($C28,Mineralfutter!$A$11:$BE$25,3,FALSE)) -> 7 | C28: Opti. MinFu MM 850g TZ 3,0% + Phytase 17/18 | E28: 77 | F28: 0.03 | G28: =IF(F28="","",I28/I$30) -> 0.03257568474 | H28: 30 | I28: =IF($C28=""," ",VLOOKUP($C28,Mineralfutter!$A$11:$BE$25,5,FALSE)*$F28) -> 28.8 | J28: =IF($C28=""," ",VLOOKUP($C28,Mineralfutter!$A$11:$BE$25,6,FALSE)*$F28) -> 4.032224323 | K28: =IF($C28=""," ",VLOOKUP($C28,Mineralfutter!$A$11:$BE$25,6,FALSE)*$F28) -> 4.032224323 | L28: =IF($C28=""," ",VLOOKUP($C28,Mineralfutter!$A$11:$BE$25,7,FALSE)*$F28) -> 0 | M28: =IF($C28=""," ",IF(VLOOKUP($C28,Mineralfutter!$A$11:$BE$25,8,FALSE)=" ",0,VLOOKUP($C28,Mineralfutter!$A$11:$BE$25,8,FALSE)*$F28)) -> 0.08267263808 | N28: =IF($C28=""," ",IF(VLOOKUP($C28,Mineralfutter!$A$11:$BE$25,19,FALSE)=" ",0,VLOOKUP($C28,Mineralfutter!$A$11:$BE$25,19,FALSE)*$F28)) -> 0.08669465653 | O28: =IF($C28=""," ",VLOOKUP($C28,Mineralfutter!$A$11:$BE$25,9,FALSE)*$F28) -> 2.55 | P28: =IF($C28=""," ",VLOOKUP($C28,Mineralfutter!$A$11:$BE$25,9,FALSE)*$F28) -> 2.55 | Q28: =IF($C28=""," ",VLOOKUP($C28,Mineralfutter!$A$11:$BE$25,10,FALSE)*$F28) -> 0.6 | R28: =IF($C28=""," ",VLOOKUP($C28,Mineralfutter!$A$11:$BE$25,10,FALSE)*$F28) -> 0.6 | S28: =IF($C28=""," ",VLOOKUP($C28,Mineralfutter!$A$11:$BE$25,11,FALSE)*$F28) -> 0.75 | T28: =IF($C28=""," ",VLOOKUP($C28,Mineralfutter!$A$11:$BE$25,11,FALSE)*$F28) -> 0.75 | U28: =IF($C28=""," ",VLOOKUP($C28,Mineralfutter!$A$11:$BE$25,12,FALSE)*$F28) -> 0 | V28: =IF($C28=""," ",VLOOKUP($C28,Mineralfutter!$A$11:$BE$25,12,FALSE)*$F28) -> 0 | W28: =IF($C28=""," ",VLOOKUP($C28,Mineralfutter!$A$11:$BE$25,13,FALSE)*$F28) -> 4.35 | X28: =IF($C28=""," ",VLOOKUP($C28,Mineralfutter!$A$11:$BE$25,14,FALSE)*$F28) -> 0 | Y28: =IF($C28=""," ",VLOOKUP($C28,Mineralfutter!$A$11:$BE$25,15,FALSE)*$F28) -> 0 | Z28: =IF($C28=""," ",VLOOKUP($C28,Mineralfutter!$A$11:$BE$25,15,FALSE)*$F28) -> 0 | AA28: =IF($C28=""," ",VLOOKUP($C28,Mineralfutter!$A$11:$BE$25,16,FALSE)*$F28) -> 0 | AB28: =IF($C28=""," ",VLOOKUP($C28,Mineralfutter!$A$11:$BE$25,17,FALSE)*$F28) -> 1.65 | AC28: 2.31
B29: =IF($C29=""," ",VLOOKUP($C29,Mineralfutter!$A$11:$BE$25,3,FALSE)) ->  | G29: =IF(F29="","",I29/I$30) ->  | I29: =IF($C29=""," ",VLOOKUP($C29,Mineralfutter!$A$11:$BE$25,5,FALSE)*$F29) ->  | J29: =IF($C29=""," ",VLOOKUP($C29,Mineralfutter!$A$11:$BE$25,6,FALSE)*$F29) ->  | K29: =IF($C29=""," ",VLOOKUP($C29,Mineralfutter!$A$11:$BE$25,6,FALSE)*$F29) ->  | L29: =IF($C29=""," ",VLOOKUP($C29,Mineralfutter!$A$11:$BE$25,7,FALSE)*$F29) ->  | M29: =IF($C29=""," ",IF(VLOOKUP($C29,Mineralfutter!$A$11:$BE$25,8,FALSE)=" ",0,VLOOKUP($C29,Mineralfutter!$A$11:$BE$25,8,FALSE)*$F29)) ->  | N29: =IF($C29=""," ",IF(VLOOKUP($C29,Mineralfutter!$A$11:$BE$25,19,FALSE)=" ",0,VLOOKUP($C29,Mineralfutter!$A$11:$BE$25,19,FALSE)*$F29)) ->  | O29: =IF($C29=""," ",VLOOKUP($C29,Mineralfutter!$A$11:$BE$25,9,FALSE)*$F29) ->  | P29: =IF($C29=""," ",VLOOKUP($C29,Mineralfutter!$A$11:$BE$25,9,FALSE)*$F29) ->  | Q29: =IF($C29=""," ",VLOOKUP($C29,Mineralfutter!$A$11:$BE$25,10,FALSE)*$F29) ->  | R29: =IF($C29=""," ",VLOOKUP($C29,Mineralfutter!$A$11:$BE$25,10,FALSE)*$F29) ->  | S29: =IF($C29=""," ",VLOOKUP($C29,Mineralfutter!$A$11:$BE$25,11,FALSE)*$F29) ->  | T29: =IF($C29=""," ",VLOOKUP($C29,Mineralfutter!$A$11:$BE$25,11,FALSE)*$F29) ->  | U29: =IF($C29=""," ",VLOOKUP($C29,Mineralfutter!$A$11:$BE$25,12,FALSE)*$F29) ->  | V29: =IF($C29=""," ",VLOOKUP($C29,Mineralfutter!$A$11:$BE$25,12,FALSE)*$F29) ->  | W29: =IF($C29=""," ",VLOOKUP($C29,Mineralfutter!$A$11:$BE$25,13,FALSE)*$F29) ->  | X29: =IF($C29=""," ",VLOOKUP($C29,Mineralfutter!$A$11:$BE$25,14,FALSE)*$F29) ->  | Y29: =IF($C29=""," ",VLOOKUP($C29,Mineralfutter!$A$11:$BE$25,15,FALSE)*$F29) ->  | Z29: =IF($C29=""," ",VLOOKUP($C29,Mineralfutter!$A$11:$BE$25,15,FALSE)*$F29) ->  | AA29: =IF($C29=""," ",VLOOKUP($C29,Mineralfutter!$A$11:$BE$25,16,FALSE)*$F29) ->  | AB29: =IF($C29=""," ",VLOOKUP($C29,Mineralfutter!$A$11:$BE$25,17,FALSE)*$F29) -> 
C30: Summe | E30: =AC30 -> 21.45195 | F30: =IF(SUM(F13:F29,F36:F37)=0," ",SUM(F13:F29,F36:F37)) -> 1 | I30: =IF(F30=" "," ",SUM(I13:I29,I36*$F36,I37*$F37)) -> 884.095 | J30: =IF(I30=" "," ",SUM(J13:J29,J36*$F36,J37*$F37)) -> 139.6378743 | K30: 115.2539088 | L30: 40.10045 | M30: =IF(L30=" "," ",SUM(M13:M29,N36*$F36,N37*$F37)) -> 13.00142592 | N30: =IF(F30=" "," ",IF(N37="",(0.021503*J30+0.032497*I63+0.016309*J63+0.014701*M63-0.02107*L30),IF(N36=" ",(0.021503*J30+0.032497*I63+0.016309*J63+0.014701*M63-0.02107*L30),SUM(N13:N29)+N36*F36+N37*F37))) -> 12.99618248 | O30: =IF(M30=" "," ",SUM(O13:O29,O36*$F36,O37*$F37)) -> 8.459098 | P30: 7.52137344 | Q30: 5.330962 | R30: 4.664074468 | S30: 5.5582395 | T30: 4.78922742 | U30: 1.7839315 | V30: 1.49925704 | W30: 5.189885935 | X30: 3.639822435 | Y30: 1.823803974 | Z30: 2.439616826 | AA30: 1.250897157 | AB30: 1.820049276 | AC30: =IF(SUM(AC13:AC29,AC36:AC37)=0," ",SUM(AC13:AC29,AC36:AC37)) -> 21.45195
C31: Summe auf 88% TM umgerechnet | E31: =AC31 -> 21.35258767 | F31: =F30 -> 1 | I31: 880 | J31: =IF($F31=" "," ",ROUND($I31*J30/$I30*$F31,0)) -> 139 | K31: =IF($F31=" "," ",ROUND($I31*K30/$I30*$F31,0)) -> 115 | L31: =IF($F31=" "," ",ROUND($I31*L30/$I30*$F31,0)) -> 40 | M31: =IF($F31=" "," ",ROUND($I31*M30/$I30*$F31,2)) -> 12.94 | N31: =IF($F31=" "," ",ROUND($I31*N30/$I30*$F31,2)) -> 12.94 | O31: =IF($F31=" "," ",ROUND($I31*O30/$I30*$F31,1)) -> 8.4 | P31: 7.5 | Q31: 5.3 | R31: 4.6 | S31: 5.5 | T31: 4.8 | U31: 1.8 | V31: 1.5 | W31: 5.2 | X31: 3.6 | Y31: 1.8 | Z31: 2.4 | AA31: 1.2 | AB31: 1.8 | AC31: =IF(AC30=" "," ",AC30*I31/I30) -> 21.35258767
B32: OW-Nr. | C32: aus Tabelle Orientierungswerte in g
B33: =IF($C33=""," ",VLOOKUP($C33,Orientierungswerte!A13:AZ126,2,FALSE)) -> 19 | C33: Mittelmast ab 60 Kg LM für 850 g TZ* | E33: - | F33: =F30 -> 1 | I33: =I31 -> 880 | J33: =IF($C33=""," ",ROUND(VLOOKUP($C$33,Orientierungswerte!$A$13:$AZ$126,5,FALSE)*$F$33,0)) -> 150 | K33: =IF($C33=""," ",ROUND(VLOOKUP($C$33,Orientierungswerte!$A$13:$AZ$126,6,FALSE)*$F$33,0)) -> 131 | L33: =IF($C33=""," ",ROUND(VLOOKUP($C33,Orientierungswerte!$A$13:$AZ$126,28,FALSE)*$F$33,0)) -> 45 | M33: =IF($C33=""," ",ROUND(VLOOKUP($C$33,Orientierungswerte!$A$13:$AZ$126,4,FALSE)*$F$33,2)) -> 13 | N33: =IF($C33=""," ",ROUND(VLOOKUP($C$33,Orientierungswerte!$A$13:$AZ$126,4,FALSE)*$F$33,2)) -> 13 | O33: =IF($C33=""," ",ROUND(VLOOKUP($C$33,Orientierungswerte!$A$13:$AZ$126,7,FALSE)*$F$33,1)) -> 8.8 | P33: =IF($C33=""," ",ROUND(VLOOKUP($C$33,Orientierungswerte!$A$13:$AZ$126,8,FALSE)*$F$33,1)) -> 7.7 | Q33: =IF($C33=""," ",ROUND(VLOOKUP($C$33,Orientierungswerte!$A$13:$AZ$126,9,FALSE)*$F$33,1)) -> 4.7 | R33: =IF($C33=""," ",ROUND(VLOOKUP($C$33,Orientierungswerte!$A$13:$AZ$126,10,FALSE)*$F$33,1)) -> 4.2 | S33: =IF($C33=""," ",ROUND(VLOOKUP($C$33,Orientierungswerte!$A$13:$AZ$126,11,FALSE)*$F$33,1)) -> 5.5 | T33: =IF($C33=""," ",ROUND(VLOOKUP($C$33,Orientierungswerte!$A$13:$AZ$126,12,FALSE)*$F$33,1)) -> 5 | U33: =IF($C33=""," ",ROUND(VLOOKUP($C$33,Orientierungswerte!$A$13:$AZ$126,13,FALSE)*$F$33,1)) -> 1.6 | V33: =IF($C33=""," ",ROUND(VLOOKUP($C$33,Orientierungswerte!$A$13:$AZ$126,14,FALSE)*$F$33,1)) -> 1.4 | W33: =IF($C33=""," ",ROUND(VLOOKUP($C$33,Orientierungswerte!$A$13:$AZ$126,15,FALSE)*$F$33,1)) -> 5.1 | X33: =IF($C33=""," ",ROUND(VLOOKUP($C$33,Orientierungswerte!$A$13:$AZ$126,16,FALSE)*$F$33,1)) -> 4.1 | Y33: =IF($C33=""," ",ROUND(VLOOKUP($C$33,Orientierungswerte!$A$13:$AZ$126,17,FALSE)*$F$33,1)) -> 2.4 | Z33: =IF($C33=""," ",ROUND(VLOOKUP($C$33,Orientierungswerte!$A$13:$AZ$126,17,FALSE)*$F$33,1)) -> 2.4 | AA33: =IF($C33=""," ",ROUND(VLOOKUP($C$33,Orientierungswerte!$A$13:$AZ$126,18,FALSE)*$F$33,1)) -> 1 | AB33: =IF($C33=""," ",ROUND(VLOOKUP($C$33,Orientierungswerte!$A$13:$AZ$126,19,FALSE)*$F$33,1)) -> 1.7 | AC33: -
C34: Differenz Mischung zu Orientierungswert | E34: - | F34: =IF($C$33=""," ",ROUND((1-F31)*-1,4)) -> 0 | I34: =IF($C$33=""," ",ROUND(I31-I33,)) -> 0 | J34: =IF($C$33=""," ",ROUND(J31-J33,)) -> -11 | K34: =IF($C$33=""," ",ROUND(K31-K33,0)) -> -16 | L34: =IF($C$33=""," ",ROUND(L31-L33,0)) -> -5 | M34: =IF($C$33=""," ",ROUND(M31-M33,2)) -> -0.06 | N34: =IF($C$33=""," ",ROUND(N31-N33,2)) -> -0.06 | O34: =IF($C$33=""," ",ROUND(O31-O33,1)) -> -0.4 | P34: -0.2 | Q34: 0.6 | R34: 0.4 | S34: 0 | T34: -0.2 | U34: 0.2 | V34: 0.1 | W34: 0.1 | X34: -0.5 | Y34: -0.6 | Z34: 0 | AA34: 0.2 | AB34: 0.1 | AC34: -
B35: erforderliches Mineral- oder Ergänzungsfutter | F35: Anteil % | J35: =IF(F$36=0," ",O35*954/780+Q35*584/990+S35*731/980+U35*853/980) ->  | K35: =IF(F$36=0," ",IF(J35>200,J35*0.8,J35)) ->  | M35: =IF(F$36=0," ",O35*21.3/780+Q35*13/990+S35*16.3/980+U35*19/980) -> 
C36: opt. Mineralfutter in g/kg: | G36: =IF(F36="","",I36*F36/I$30) ->  | H36: =IF(F36=""," ",$H$8*F36*1000) ->  | I36: =IF($F36=0,0,960) -> 0 | J36: =IF($F36=0,0,O36*954/780+Q36*584/990+S36*731/980+U36*853/980) -> 0 | K36: =IF(F$36=0,0,J36) -> 0 | M36: =IF($F36=0,0,O36*19.56/780+Q36*11.97/990+S36*14.99/980+U36*17.49/980) -> 0 | N36: =IF($F36=0,0,O36*20.51/780+Q36*12.56/990+S36*15.72/980+U36*18.34/980) -> 0 | O36: 85 | P36: =O36 -> 85 | Q36: 20 | R36: =Q36 -> 20 | S36: 25 | T36: =S36 -> 25 | V36: =U36 -> 0 | W36: 145 | Y36: =IF(F36=0,0,X36*0.8) -> 0 | Z36: =Y36 -> 0 | AB36: 55 | AC36: =IF(F36*E36=0,0,F36*E36) -> 0
C37: opt. Ergänzungsfutter in g/kg: | D37: 0.85 | G37: =IF(F37="","",I37*F37/I$30) ->  | H37: =IF(F37=""," ",$H$8*F37*1000) ->  | I37: =IF($F37=0,0,890) -> 0 | K37: =IF(F37=0,0,J37*D37) -> 0 | M37: =N37 -> 0 | P37: =IF(O37=0,0,O37*D37) -> 0 | R37: =IF(Q37=0,0,Q37*D37) -> 0 | T37: =IF(S37=0,0,S37*D37) -> 0 | V37: =IF(U37=0,0,U37*D37) -> 0 | Y37: =IF(F37=0,0,X37*0.75) -> 0 | Z37: =IF(F37=0,0,X37*0.75) -> 0 | AC37: =IF(F37*E37=0,0,F37*E37) -> 0
B38: pcv VQ Lys | X38: Ca / vP
F39: Lys / ME | I39: pcv Lys/ ME | L39: pcv. Lys. / pcv. M. & C. / pcv. Thr. / pcv. Trp. | T39: Ca / P | W39: mit Phytase | X39: =IF(F30=" "," ",W30/Z30) -> 2.127336506 | Y39: =IF(F30=0," ",1) -> 1 | Z39: Lys / 100g RP
B40: =IF(F30=" "," ",P31/O31) -> 0.8928571429 | C40: in der Mischung | F40: =IF(F30=" "," ",O31/M31) -> 0.6491499227 | G40: =IF(F30<=0," ",1) -> 1 | I40: =IF(F30=" "," ",P31/M31) -> 0.5795981453 | J40: =IF(L30<=0," ",1) -> 1 | L40: =IF(F30<=0," ",1) -> 1 | M40: / | N40: =IF(F30=" "," ",R30/P30) -> 0.6201094129 | O40: / | P40: =IF(F30=" "," ",T30/P30) -> 0.6367490536 | Q40: / | R40: =IF(F30=" "," ",V30/P30) -> 0.1993328814 | T40: =IF(F30=" "," ",W30/X30) -> 1.425862395 | U40: =IF(F30=0," ",1) -> 1 | W40: ohne | X40: =IF(F30=" "," ",W30/Y30) -> 2.845638023 | Y40: =IF(F30=0," ",1) -> 1 | AA40: =IF(L30=" "," ",P31*100/J31) -> 5.395683453 | AB40: =IF(L30=0," ",100) -> 100
B41: =IF(P33=" "," ",P33/O33) -> 0.875 | C41: Orientierungswerte | F41: =IF($B$33=" "," ",ROUND(VLOOKUP($B$33,Orientierungswerte!$B$13:$X$114,23,TRUE),2)) -> 0.67 | G41: =IF($B$33=" ",1,ROUND(VLOOKUP($B$33,Orientierungswerte!$B$13:$X$114,19,TRUE),2)) -> 1 | I41: =IF($B$33=" "," ",ROUND(VLOOKUP($B$33,Orientierungswerte!$B$13:$AB$114,24,TRUE),2)) -> 0.59 | J41: =IF($B$33=" ",1,ROUND(VLOOKUP($B$33,Orientierungswerte!$B$13:$X$114,19,TRUE),2)) -> 1 | L41: =IF($B$33=" ",1,ROUND(VLOOKUP($B$33,Orientierungswerte!$B$13:$X$114,19,TRUE),2)) -> 1 | M41: / | N41: =IF($B$33=" "," ",ROUND(VLOOKUP($B$33,Orientierungswerte!$B$13:$X$114,20,TRUE),2)) -> 0.54 | O41: / | P41: =IF($B$33=" "," ",ROUND(VLOOKUP($B$33,Orientierungswerte!$B$13:$X$114,21,TRUE),2)) -> 0.63 | Q41: / | R41: =IF($B$33=" "," ",ROUND(VLOOKUP($B$33,Orientierungswerte!$B$13:$X$114,22,TRUE),2)) -> 0.18 | T41: =IF($B$33=" "," ",ROUND(VLOOKUP($B$33,Orientierungswerte!$B$13:$AA$114,25,TRUE),2)) -> 1.26 | U41: =IF($B$33=" ",1,ROUND(VLOOKUP($B$33,Orientierungswerte!$B$13:$X$114,19,TRUE),2)) -> 1 | X41: =IF($B$33=" "," ",ROUND(VLOOKUP($B$33,Orientierungswerte!$B$13:$AA$114,26,TRUE),2)) -> 2.12 | Y41: =IF($B$33=" ",1,ROUND(VLOOKUP($B$33,Orientierungswerte!$B$13:$X$114,19,TRUE),2)) -> 1 | AA41: =IF($B$33=" "," ",ROUND(P33*100/J33,2)) -> 5.13 | AB41: =IF($B$33=" ",1,ROUND(VLOOKUP($B$33,Orientierungswerte!$B$13:$X$114,19,TRUE)*100,0)) -> 100
E44: Preis | F44: Anteil | G44: Met | H44: pcv Met | I44: Roh-fett XL | J44: Stär-ke S | K44: Zu-cker Z | L44: Roh-asche XA | M44: org. Rest | N44: Poly-en-säure | O44: Linol-säure | P44: Lino-len-säure | Q44: Vit A in IE | R44: Vit D in IE | S44: Vit E in mg | T44: KAB BE in mmol | U44: SBK in meq | V44: BfS | W44: NDF om | X44: ADF om | Y44: NfE | Z44: NE_GP | AA44: NE_S | AB44: Kali-um K | AC44: DON | AD44: ZEA
B45: FM-Nr. | C45: Futtermittel + % RP in der FM | E45: €/dt | F45: % | G45: Anteil in g/kg | Q45: pro kg | V45: Anteil in g/kg | Z45: MJ/kg | AB45: g/kg | AC45: mg pro kg
B46: =B13 -> 49 | C46: =IF(C13=""," ",C13) -> eigener Weizen 10% RP Ø 2018 | E46: =IF(E13=""," ",E13) -> 17.42 | F46: 0.45 | G46: =IF($C13=""," ",VLOOKUP(C13,Futtermittel!$A$8:$CG$171,29,FALSE)*$F13) -> 0.53568 | H46: =IF($C13=""," ",VLOOKUP(C13,Futtermittel!$A$8:$CG$171,30,FALSE)*$F13) -> 0.4713984 | I46: =IF($C13=""," ",VLOOKUP(C13,Futtermittel!$A$8:$CG$171,31,FALSE)*$F13) -> 7.947 | J46: =IF($C13=""," ",VLOOKUP(C13,Futtermittel!$A$8:$CG$171,32,FALSE)*$F13) -> 269.37 | K46: =IF($C13=""," ",VLOOKUP(C13,Futtermittel!$A$8:$CG$171,33,FALSE)*$F13) -> 12.6 | L46: =IF($C13=""," ",VLOOKUP(C13,Futtermittel!$A$8:$CG$171,34,FALSE)*$F13) -> 7.47 | M46: =IF($C13=""," ",VLOOKUP(C13,Futtermittel!$A$8:$CG$171,36,FALSE)*$F13) -> 54.7785 | N46: =IF($C13=""," ",VLOOKUP($C13,Futtermittel!$A$8:$CG$171,37,FALSE)*$F13) -> 4.8825 | O46: =IF($C13=""," ",VLOOKUP($C13,Futtermittel!$A$8:$CG$171,38,FALSE)*$F13) -> 4.48875 | P46: =IF($C13=""," ",VLOOKUP($C13,Futtermittel!$A$8:$CG$171,39,FALSE)*$F13) -> 0.39375 | Q46: =IF($C13=""," ",VLOOKUP($C13,Futtermittel!$A$8:$CG$171,40,FALSE)*$F13) -> 0 | R46: =IF($C13=""," ",VLOOKUP($C13,Futtermittel!$A$8:$CG$171,41,FALSE)*$F13) -> 0 | S46: =IF($C13=""," ",VLOOKUP($C13,Futtermittel!$A$8:$CG$171,42,FALSE)*$F13) -> 0 | T46: =IF($C13=""," ",VLOOKUP($C13,Futtermittel!$A$8:$CG$171,43,FALSE)*$F13) -> -11.1546 | U46: =IF($C13=""," ",VLOOKUP($C13,Futtermittel!$A$8:$CG$171,44,FALSE)*$F13) -> 141.8211 | V46: =IF($C13=""," ",VLOOKUP($C13,Futtermittel!$A$8:$CG$171,45,FALSE)*$F13) -> 22.810725 | W46: =IF($C13=""," ",VLOOKUP($C13,Futtermittel!$A$8:$CG$171,54,FALSE)*$F13) -> 77.36958 | X46: =IF($C13=""," ",VLOOKUP($C13,Futtermittel!$A$8:$CG$171,53,FALSE)*$F13) -> 16.6131 | Y46: =IF($C13=""," ",VLOOKUP($C13,Futtermittel!$A$8:$CG$171,46,FALSE)*$F13) -> 324.1485 | Z46: =IF($C13=""," ",VLOOKUP($C13,Futtermittel!$A$8:$CG$171,56,FALSE)*$F13) -> 4.527746487 | AA46: =IF($C13=""," ",VLOOKUP($C13,Futtermittel!$A$8:$CG$171,57,FALSE)*$F13) -> 4.645117516 | AB46: =IF($C13=""," ",VLOOKUP($C13,Futtermittel!$A$8:$CG$171,28,FALSE)*$F13) -> 1.71 | AC46: =IF($C13=""," ",VLOOKUP($C13,Futtermittel!$A$8:$CG$171,58,FALSE)*$F13) -> 0 | AD46: =IF($C13=""," ",VLOOKUP($C13,Futtermittel!$A$8:$CG$171,59,FALSE)*$F13) -> 0
B47: 11 | C47: eigene Gerste 10% RP Ø 2018 | E47: 16.39 | F47: 0.405 | G47: =IF($C14=""," ",VLOOKUP(C14,Futtermittel!$A$8:$CG$171,29,FALSE)*$F14) -> 0.5148765 | H47: =IF($C14=""," ",VLOOKUP(C14,Futtermittel!$A$8:$CG$171,30,FALSE)*$F14) -> 0.42219873 | I47: =IF($C14=""," ",VLOOKUP(C14,Futtermittel!$A$8:$CG$171,31,FALSE)*$F14) -> 9.63495 | J47: =IF($C14=""," ",VLOOKUP(C14,Futtermittel!$A$8:$CG$171,32,FALSE)*$F14) -> 203.4315 | K47: =IF($C14=""," ",VLOOKUP(C14,Futtermittel!$A$8:$CG$171,33,FALSE)*$F14) -> 9.315 | L47: =IF($C14=""," ",VLOOKUP(C14,Futtermittel!$A$8:$CG$171,34,FALSE)*$F14) -> 9.558 | M47: =IF($C14=""," ",VLOOKUP(C14,Futtermittel!$A$8:$CG$171,36,FALSE)*$F14) -> 71.92395 | N47: =IF($C14=""," ",VLOOKUP($C14,Futtermittel!$A$8:$CG$171,37,FALSE)*$F14) -> 6.095668966 | O47: =IF($C14=""," ",VLOOKUP($C14,Futtermittel!$A$8:$CG$171,38,FALSE)*$F14) -> 5.604082759 | P47: =IF($C14=""," ",VLOOKUP($C14,Futtermittel!$A$8:$CG$171,39,FALSE)*$F14) -> 0.4915862069 | Q47: =IF($C14=""," ",VLOOKUP($C14,Futtermittel!$A$8:$CG$171,40,FALSE)*$F14) -> 0 | R47: =IF($C14=""," ",VLOOKUP($C14,Futtermittel!$A$8:$CG$171,41,FALSE)*$F14) -> 0 | S47: =IF($C14=""," ",VLOOKUP($C14,Futtermittel!$A$8:$CG$171,42,FALSE)*$F14) -> 0 | T47: =IF($C14=""," ",VLOOKUP($C14,Futtermittel!$A$8:$CG$171,43,FALSE)*$F14) -> -18.00501936 | U47: =IF($C14=""," ",VLOOKUP($C14,Futtermittel!$A$8:$CG$171,44,FALSE)*$F14) -> 123.512594 | V47: =IF($C14=""," ",VLOOKUP($C14,Futtermittel!$A$8:$CG$171,45,FALSE)*$F14) -> 38.675637 | W47: =IF($C14=""," ",VLOOKUP($C14,Futtermittel!$A$8:$CG$171,54,FALSE)*$F14) -> 149.4460474 | X47: =IF($C14=""," ",VLOOKUP($C14,Futtermittel!$A$8:$CG$171,53,FALSE)*$F14) -> 19.45170776 | Y47: =IF($C14=""," ",VLOOKUP($C14,Futtermittel!$A$8:$CG$171,46,FALSE)*$F14) -> 275.35545 | Z47: =IF($C14=""," ",VLOOKUP($C14,Futtermittel!$A$8:$CG$171,56,FALSE)*$F14) -> 3.088796808 | AA47: =IF($C14=""," ",VLOOKUP($C14,Futtermittel!$A$8:$CG$171,57,FALSE)*$F14) -> 3.21975043 | AB47: =IF($C14=""," ",VLOOKUP($C14,Futtermittel!$A$8:$CG$171,28,FALSE)*$F14) -> 1.782 | AC47: =IF($C14=""," ",VLOOKUP($C14,Futtermittel!$A$8:$CG$171,58,FALSE)*$F14) -> 0 | AD47: =IF($C14=""," ",VLOOKUP($C14,Futtermittel!$A$8:$CG$171,59,FALSE)*$F14) -> 0
B48: 100 | C48: Sojaschrot HP 47% RP | E48: 38 | F48: 0.11 | G48: =IF($C15=""," ",VLOOKUP(C15,Futtermittel!$A$8:$CG$171,29,FALSE)*$F15) -> 0.6932375 | H48: =IF($C15=""," ",VLOOKUP(C15,Futtermittel!$A$8:$CG$171,30,FALSE)*$F15) -> 0.610049 | I48: =IF($C15=""," ",VLOOKUP(C15,Futtermittel!$A$8:$CG$171,31,FALSE)*$F15) -> 2.09 | J48: =IF($C15=""," ",VLOOKUP(C15,Futtermittel!$A$8:$CG$171,32,FALSE)*$F15) -> 4.62 | K48: =IF($C15=""," ",VLOOKUP(C15,Futtermittel!$A$8:$CG$171,33,FALSE)*$F15) -> 10.01 | L48: =IF($C15=""," ",VLOOKUP(C15,Futtermittel!$A$8:$CG$171,34,FALSE)*$F15) -> 7.37 | M48: =IF($C15=""," ",VLOOKUP(C15,Futtermittel!$A$8:$CG$171,36,FALSE)*$F15) -> 26.4 | N48: =IF($C15=""," ",VLOOKUP($C15,Futtermittel!$A$8:$CG$171,37,FALSE)*$F15) -> 1.1286 | O48: =IF($C15=""," ",VLOOKUP($C15,Futtermittel!$A$8:$CG$171,38,FALSE)*$F15) -> 1.045 | P48: =IF($C15=""," ",VLOOKUP($C15,Futtermittel!$A$8:$CG$171,39,FALSE)*$F15) -> 0.0836 | Q48: =IF($C15=""," ",VLOOKUP($C15,Futtermittel!$A$8:$CG$171,40,FALSE)*$F15) -> 0 | R48: =IF($C15=""," ",VLOOKUP($C15,Futtermittel!$A$8:$CG$171,41,FALSE)*$F15) -> 0 | S48: =IF($C15=""," ",VLOOKUP($C15,Futtermittel!$A$8:$CG$171,42,FALSE)*$F15) -> 0 | T48: =IF($C15=""," ",VLOOKUP($C15,Futtermittel!$A$8:$CG$171,43,FALSE)*$F15) -> 39.18987466 | U48: =IF($C15=""," ",VLOOKUP($C15,Futtermittel!$A$8:$CG$171,44,FALSE)*$F15) -> 151.3893355 | V48: =IF($C15=""," ",VLOOKUP($C15,Futtermittel!$A$8:$CG$171,45,FALSE)*$F15) -> 18.9486 | W48: =IF($C15=""," ",VLOOKUP($C15,Futtermittel!$A$8:$CG$171,54,FALSE)*$F15) -> 14.21457143 | X48: =IF($C15=""," ",VLOOKUP($C15,Futtermittel!$A$8:$CG$171,53,FALSE)*$F15) -> 10.13257143 | Y48: =IF($C15=""," ",VLOOKUP($C15,Futtermittel!$A$8:$CG$171,46,FALSE)*$F15) -> 31.02 | Z48: =IF($C15=""," ",VLOOKUP($C15,Futtermittel!$A$8:$CG$171,56,FALSE)*$F15) -> 0.9613078738 | AA48: =IF($C15=""," ",VLOOKUP($C15,Futtermittel!$A$8:$CG$171,57,FALSE)*$F15) -> 0.99845912 | AB48: =IF($C15=""," ",VLOOKUP($C15,Futtermittel!$A$8:$CG$171,28,FALSE)*$F15) -> 2.27128 | AC48: =IF($C15=""," ",VLOOKUP($C15,Futtermittel!$A$8:$CG$171,58,FALSE)*$F15) -> 0 | AD48: =IF($C15=""," ",VLOOKUP($C15,Futtermittel!$A$8:$CG$171,59,FALSE)*$F15) -> 0
B49: 140 | C49: Rapsöl / Pflanzenöl DLG 2014 | E49: 97 | F49: 0.005 | G49: =IF($C16=""," ",VLOOKUP(C16,Futtermittel!$A$8:$CG$171,29,FALSE)*$F16) -> 0 | H49: =IF($C16=""," ",VLOOKUP(C16,Futtermittel!$A$8:$CG$171,30,FALSE)*$F16) -> 0 | I49: =IF($C16=""," ",VLOOKUP(C16,Futtermittel!$A$8:$CG$171,31,FALSE)*$F16) -> 4.99 | J49: =IF($C16=""," ",VLOOKUP(C16,Futtermittel!$A$8:$CG$171,32,FALSE)*$F16) -> 0 | K49: =IF($C16=""," ",VLOOKUP(C16,Futtermittel!$A$8:$CG$171,33,FALSE)*$F16) -> 0 | L49: =IF($C16=""," ",VLOOKUP(C16,Futtermittel!$A$8:$CG$171,34,FALSE)*$F16) -> 0 | M49: =IF($C16=""," ",VLOOKUP(C16,Futtermittel!$A$8:$CG$171,36,FALSE)*$F16) -> 0 | N49: =IF($C16=""," ",VLOOKUP($C16,Futtermittel!$A$8:$CG$171,37,FALSE)*$F16) -> 1.445 | O49: =IF($C16=""," ",VLOOKUP($C16,Futtermittel!$A$8:$CG$171,38,FALSE)*$F16) -> 0.998 | P49: =IF($C16=""," ",VLOOKUP($C16,Futtermittel!$A$8:$CG$171,39,FALSE)*$F16) -> 0.4491 | Q49: =IF($C16=""," ",VLOOKUP($C16,Futtermittel!$A$8:$CG$171,40,FALSE)*$F16) -> 0 | R49: =IF($C16=""," ",VLOOKUP($C16,Futtermittel!$A$8:$CG$171,41,FALSE)*$F16) -> 0 | S49: =IF($C16=""," ",VLOOKUP($C16,Futtermittel!$A$8:$CG$171,42,FALSE)*$F16) -> 0 | T49: =IF($C16=""," ",VLOOKUP($C16,Futtermittel!$A$8:$CG$171,43,FALSE)*$F16) -> 0 | U49: =IF($C16=""," ",VLOOKUP($C16,Futtermittel!$A$8:$CG$171,44,FALSE)*$F16) -> 0 | V49: =IF($C16=""," ",VLOOKUP($C16,Futtermittel!$A$8:$CG$171,45,FALSE)*$F16) -> 0 | W49: =IF($C16=""," ",VLOOKUP($C16,Futtermittel!$A$8:$CG$171,54,FALSE)*$F16) -> 0 | X49: =IF($C16=""," ",VLOOKUP($C16,Futtermittel!$A$8:$CG$171,53,FALSE)*$F16) -> 0 | Y49: =IF($C16=""," ",VLOOKUP($C16,Futtermittel!$A$8:$CG$171,46,FALSE)*$F16) -> 0 | Z49: =IF($C16=""," ",VLOOKUP($C16,Futtermittel!$A$8:$CG$171,56,FALSE)*$F16) -> 0.1515607249 | AA49: =IF($C16=""," ",VLOOKUP($C16,Futtermittel!$A$8:$CG$171,57,FALSE)*$F16) -> 0.153226789 | AB49: =IF($C16=""," ",VLOOKUP($C16,Futtermittel!$A$8:$CG$171,28,FALSE)*$F16) -> 0 | AC49: =IF($C16=""," ",VLOOKUP($C16,Futtermittel!$A$8:$CG$171,58,FALSE)*$F16) -> 0 | AD49: =IF($C16=""," ",VLOOKUP($C16,Futtermittel!$A$8:$CG$171,59,FALSE)*$F16) -> 0
G50: =IF($C17=""," ",VLOOKUP(C17,Futtermittel!$A$8:$CG$171,29,FALSE)*$F17) ->  | H50: =IF($C17=""," ",VLOOKUP(C17,Futtermittel!$A$8:$CG$171,30,FALSE)*$F17) ->  | I50: =IF($C17=""," ",VLOOKUP(C17,Futtermittel!$A$8:$CG$171,31,FALSE)*$F17) ->  | J50: =IF($C17=""," ",VLOOKUP(C17,Futtermittel!$A$8:$CG$171,32,FALSE)*$F17) ->  | K50: =IF($C17=""," ",VLOOKUP(C17,Futtermittel!$A$8:$CG$171,33,FALSE)*$F17) ->  | L50: =IF($C17=""," ",VLOOKUP(C17,Futtermittel!$A$8:$CG$171,34,FALSE)*$F17) ->  | M50: =IF($C17=""," ",VLOOKUP(C17,Futtermittel!$A$8:$CG$171,36,FALSE)*$F17) ->  | N50: =IF($C17=""," ",VLOOKUP($C17,Futtermittel!$A$8:$CG$171,37,FALSE)*$F17) ->  | O50: =IF($C17=""," ",VLOOKUP($C17,Futtermittel!$A$8:$CG$171,38,FALSE)*$F17) ->  | P50: =IF($C17=""," ",VLOOKUP($C17,Futtermittel!$A$8:$CG$171,39,FALSE)*$F17) ->  | Q50: =IF($C17=""," ",VLOOKUP($C17,Futtermittel!$A$8:$CG$171,40,FALSE)*$F17) ->  | R50: =IF($C17=""," ",VLOOKUP($C17,Futtermittel!$A$8:$CG$171,41,FALSE)*$F17) ->  | S50: =IF($C17=""," ",VLOOKUP($C17,Futtermittel!$A$8:$CG$171,42,FALSE)*$F17) ->  | T50: =IF($C17=""," ",VLOOKUP($C17,Futtermittel!$A$8:$CG$171,43,FALSE)*$F17) ->  | U50: =IF($C17=""," ",VLOOKUP($C17,Futtermittel!$A$8:$CG$171,44,FALSE)*$F17) ->  | V50: =IF($C17=""," ",VLOOKUP($C17,Futtermittel!$A$8:$CG$171,45,FALSE)*$F17) ->  | W50: =IF($C17=""," ",VLOOKUP($C17,Futtermittel!$A$8:$CG$171,54,FALSE)*$F17) ->  | X50: =IF($C17=""," ",VLOOKUP($C17,Futtermittel!$A$8:$CG$171,53,FALSE)*$F17) ->  | Y50: =IF($C17=""," ",VLOOKUP($C17,Futtermittel!$A$8:$CG$171,46,FALSE)*$F17) ->  | Z50: =IF($C17=""," ",VLOOKUP($C17,Futtermittel!$A$8:$CG$171,56,FALSE)*$F17) ->  | AA50: =IF($C17=""," ",VLOOKUP($C17,Futtermittel!$A$8:$CG$171,57,FALSE)*$F17) ->  | AB50: =IF($C17=""," ",VLOOKUP($C17,Futtermittel!$A$8:$CG$171,28,FALSE)*$F17) ->  | AC50: =IF($C17=""," ",VLOOKUP($C17,Futtermittel!$A$8:$CG$171,58,FALSE)*$F17) ->  | AD50: =IF($C17=""," ",VLOOKUP($C17,Futtermittel!$A$8:$CG$171,59,FALSE)*$F17) -> 
G51: =IF($C18=""," ",VLOOKUP(C18,Futtermittel!$A$8:$CG$171,29,FALSE)*$F18) ->  | H51: =IF($C18=""," ",VLOOKUP(C18,Futtermittel!$A$8:$CG$171,30,FALSE)*$F18) ->  | I51: =IF($C18=""," ",VLOOKUP(C18,Futtermittel!$A$8:$CG$171,31,FALSE)*$F18) ->  | J51: =IF($C18=""," ",VLOOKUP(C18,Futtermittel!$A$8:$CG$171,32,FALSE)*$F18) ->  | K51: =IF($C18=""," ",VLOOKUP(C18,Futtermittel!$A$8:$CG$171,33,FALSE)*$F18) ->  | L51: =IF($C18=""," ",VLOOKUP(C18,Futtermittel!$A$8:$CG$171,34,FALSE)*$F18) ->  | M51: =IF($C18=""," ",VLOOKUP(C18,Futtermittel!$A$8:$CG$171,36,FALSE)*$F18) ->  | N51: =IF($C18=""," ",VLOOKUP($C18,Futtermittel!$A$8:$CG$171,37,FALSE)*$F18) ->  | O51: =IF($C18=""," ",VLOOKUP($C18,Futtermittel!$A$8:$CG$171,38,FALSE)*$F18) ->  | P51: =IF($C18=""," ",VLOOKUP($C18,Futtermittel!$A$8:$CG$171,39,FALSE)*$F18) ->  | Q51: =IF($C18=""," ",VLOOKUP($C18,Futtermittel!$A$8:$CG$171,40,FALSE)*$F18) ->  | R51: =IF($C18=""," ",VLOOKUP($C18,Futtermittel!$A$8:$CG$171,41,FALSE)*$F18) ->  | S51: =IF($C18=""," ",VLOOKUP($C18,Futtermittel!$A$8:$CG$171,42,FALSE)*$F18) ->  | T51: =IF($C18=""," ",VLOOKUP($C18,Futtermittel!$A$8:$CG$171,43,FALSE)*$F18) ->  | U51: =IF($C18=""," ",VLOOKUP($C18,Futtermittel!$A$8:$CG$171,44,FALSE)*$F18) ->  | V51: =IF($C18=""," ",VLOOKUP($C18,Futtermittel!$A$8:$CG$171,45,FALSE)*$F18) ->  | W51: =IF($C18=""," ",VLOOKUP($C18,Futtermittel!$A$8:$CG$171,54,FALSE)*$F18) ->  | X51: =IF($C18=""," ",VLOOKUP($C18,Futtermittel!$A$8:$CG$171,53,FALSE)*$F18) ->  | Y51: =IF($C18=""," ",VLOOKUP($C18,Futtermittel!$A$8:$CG$171,46,FALSE)*$F18) ->  | Z51: =IF($C18=""," ",VLOOKUP($C18,Futtermittel!$A$8:$CG$171,56,FALSE)*$F18) ->  | AA51: =IF($C18=""," ",VLOOKUP($C18,Futtermittel!$A$8:$CG$171,57,FALSE)*$F18) ->  | AB51: =IF($C18=""," ",VLOOKUP($C18,Futtermittel!$A$8:$CG$171,28,FALSE)*$F18) ->  | AC51: =IF($C18=""," ",VLOOKUP($C18,Futtermittel!$A$8:$CG$171,58,FALSE)*$F18) ->  | AD51: =IF($C18=""," ",VLOOKUP($C18,Futtermittel!$A$8:$CG$171,59,FALSE)*$F18) -> 
G52: =IF($C19=""," ",VLOOKUP(C19,Futtermittel!$A$8:$CG$171,29,FALSE)*$F19) ->  | H52: =IF($C19=""," ",VLOOKUP(C19,Futtermittel!$A$8:$CG$171,30,FALSE)*$F19) ->  | I52: =IF($C19=""," ",VLOOKUP(C19,Futtermittel!$A$8:$CG$171,31,FALSE)*$F19) ->  | J52: =IF($C19=""," ",VLOOKUP(C19,Futtermittel!$A$8:$CG$171,32,FALSE)*$F19) ->  | K52: =IF($C19=""," ",VLOOKUP(C19,Futtermittel!$A$8:$CG$171,33,FALSE)*$F19) ->  | L52: =IF($C19=""," ",VLOOKUP(C19,Futtermittel!$A$8:$CG$171,34,FALSE)*$F19) ->  | M52: =IF($C19=""," ",VLOOKUP(C19,Futtermittel!$A$8:$CG$171,36,FALSE)*$F19) ->  | N52: =IF($C19=""," ",VLOOKUP($C19,Futtermittel!$A$8:$CG$171,37,FALSE)*$F19) ->  | O52: =IF($C19=""," ",VLOOKUP($C19,Futtermittel!$A$8:$CG$171,38,FALSE)*$F19) ->  | P52: =IF($C19=""," ",VLOOKUP($C19,Futtermittel!$A$8:$CG$171,39,FALSE)*$F19) ->  | Q52: =IF($C19=""," ",VLOOKUP($C19,Futtermittel!$A$8:$CG$171,40,FALSE)*$F19) ->  | R52: =IF($C19=""," ",VLOOKUP($C19,Futtermittel!$A$8:$CG$171,41,FALSE)*$F19) ->  | S52: =IF($C19=""," ",VLOOKUP($C19,Futtermittel!$A$8:$CG$171,42,FALSE)*$F19) ->  | T52: =IF($C19=""," ",VLOOKUP($C19,Futtermittel!$A$8:$CG$171,43,FALSE)*$F19) ->  | U52: =IF($C19=""," ",VLOOKUP($C19,Futtermittel!$A$8:$CG$171,44,FALSE)*$F19) ->  | V52: =IF($C19=""," ",VLOOKUP($C19,Futtermittel!$A$8:$CG$171,45,FALSE)*$F19) ->  | W52: =IF($C19=""," ",VLOOKUP($C19,Futtermittel!$A$8:$CG$171,54,FALSE)*$F19) ->  | X52: =IF($C19=""," ",VLOOKUP($C19,Futtermittel!$A$8:$CG$171,53,FALSE)*$F19) ->  | Y52: =IF($C19=""," ",VLOOKUP($C19,Futtermittel!$A$8:$CG$171,46,FALSE)*$F19) ->  | Z52: =IF($C19=""," ",VLOOKUP($C19,Futtermittel!$A$8:$CG$171,56,FALSE)*$F19) ->  | AA52: =IF($C19=""," ",VLOOKUP($C19,Futtermittel!$A$8:$CG$171,57,FALSE)*$F19) ->  | AB52: =IF($C19=""," ",VLOOKUP($C19,Futtermittel!$A$8:$CG$171,28,FALSE)*$F19) ->  | AC52: =IF($C19=""," ",VLOOKUP($C19,Futtermittel!$A$8:$CG$171,58,FALSE)*$F19) ->  | AD52: =IF($C19=""," ",VLOOKUP($C19,Futtermittel!$A$8:$CG$171,59,FALSE)*$F19) -> 
G53: =IF($C20=""," ",VLOOKUP(C20,Futtermittel!$A$8:$CG$171,29,FALSE)*$F20) ->  | H53: =IF($C20=""," ",VLOOKUP(C20,Futtermittel!$A$8:$CG$171,30,FALSE)*$F20) ->  | I53: =IF($C20=""," ",VLOOKUP(C20,Futtermittel!$A$8:$CG$171,31,FALSE)*$F20) ->  | J53: =IF($C20=""," ",VLOOKUP(C20,Futtermittel!$A$8:$CG$171,32,FALSE)*$F20) ->  | K53: =IF($C20=""," ",VLOOKUP(C20,Futtermittel!$A$8:$CG$171,33,FALSE)*$F20) ->  | L53: =IF($C20=""," ",VLOOKUP(C20,Futtermittel!$A$8:$CG$171,34,FALSE)*$F20) ->  | M53: =IF($C20=""," ",VLOOKUP(C20,Futtermittel!$A$8:$CG$171,36,FALSE)*$F20) ->  | N53: =IF($C20=""," ",VLOOKUP($C20,Futtermittel!$A$8:$CG$171,37,FALSE)*$F20) ->  | O53: =IF($C20=""," ",VLOOKUP($C20,Futtermittel!$A$8:$CG$171,38,FALSE)*$F20) ->  | P53: =IF($C20=""," ",VLOOKUP($C20,Futtermittel!$A$8:$CG$171,39,FALSE)*$F20) ->  | Q53: =IF($C20=""," ",VLOOKUP($C20,Futtermittel!$A$8:$CG$171,40,FALSE)*$F20) ->  | R53: =IF($C20=""," ",VLOOKUP($C20,Futtermittel!$A$8:$CG$171,41,FALSE)*$F20) ->  | S53: =IF($C20=""," ",VLOOKUP($C20,Futtermittel!$A$8:$CG$171,42,FALSE)*$F20) ->  | T53: =IF($C20=""," ",VLOOKUP($C20,Futtermittel!$A$8:$CG$171,43,FALSE)*$F20) ->  | U53: =IF($C20=""," ",VLOOKUP($C20,Futtermittel!$A$8:$CG$171,44,FALSE)*$F20) ->  | V53: =IF($C20=""," ",VLOOKUP($C20,Futtermittel!$A$8:$CG$171,45,FALSE)*$F20) ->  | W53: =IF($C20=""," ",VLOOKUP($C20,Futtermittel!$A$8:$CG$171,54,FALSE)*$F20) ->  | X53: =IF($C20=""," ",VLOOKUP($C20,Futtermittel!$A$8:$CG$171,53,FALSE)*$F20) ->  | Y53: =IF($C20=""," ",VLOOKUP($C20,Futtermittel!$A$8:$CG$171,46,FALSE)*$F20) ->  | Z53: =IF($C20=""," ",VLOOKUP($C20,Futtermittel!$A$8:$CG$171,56,FALSE)*$F20) ->  | AA53: =IF($C20=""," ",VLOOKUP($C20,Futtermittel!$A$8:$CG$171,57,FALSE)*$F20) ->  | AB53: =IF($C20=""," ",VLOOKUP($C20,Futtermittel!$A$8:$CG$171,28,FALSE)*$F20) ->  | AC53: =IF($C20=""," ",VLOOKUP($C20,Futtermittel!$A$8:$CG$171,58,FALSE)*$F20) ->  | AD53: =IF($C20=""," ",VLOOKUP($C20,Futtermittel!$A$8:$CG$171,59,FALSE)*$F20) -> 
F54: =IF(F21=""," ",F21) ->  | G54: =IF($C21=""," ",VLOOKUP(C21,Futtermittel!$A$8:$CG$171,29,FALSE)*$F21) ->  | H54: =IF($C21=""," ",VLOOKUP(C21,Futtermittel!$A$8:$CG$171,30,FALSE)*$F21) ->  | I54: =IF($C21=""," ",VLOOKUP(C21,Futtermittel!$A$8:$CG$171,31,FALSE)*$F21) ->  | J54: =IF($C21=""," ",VLOOKUP(C21,Futtermittel!$A$8:$CG$171,32,FALSE)*$F21) ->  | K54: =IF($C21=""," ",VLOOKUP(C21,Futtermittel!$A$8:$CG$171,33,FALSE)*$F21) ->  | L54: =IF($C21=""," ",VLOOKUP(C21,Futtermittel!$A$8:$CG$171,34,FALSE)*$F21) ->  | M54: =IF($C21=""," ",VLOOKUP(C21,Futtermittel!$A$8:$CG$171,36,FALSE)*$F21) ->  | N54: =IF($C21=""," ",VLOOKUP($C21,Futtermittel!$A$8:$CG$171,37,FALSE)*$F21) ->  | O54: =IF($C21=""," ",VLOOKUP($C21,Futtermittel!$A$8:$CG$171,38,FALSE)*$F21) ->  | P54: =IF($C21=""," ",VLOOKUP($C21,Futtermittel!$A$8:$CG$171,39,FALSE)*$F21) ->  | Q54: =IF($C21=""," ",VLOOKUP($C21,Futtermittel!$A$8:$CG$171,40,FALSE)*$F21) ->  | R54: =IF($C21=""," ",VLOOKUP($C21,Futtermittel!$A$8:$CG$171,41,FALSE)*$F21) ->  | S54: =IF($C21=""," ",VLOOKUP($C21,Futtermittel!$A$8:$CG$171,42,FALSE)*$F21) ->  | T54: =IF($C21=""," ",VLOOKUP($C21,Futtermittel!$A$8:$CG$171,43,FALSE)*$F21) ->  | U54: =IF($C21=""," ",VLOOKUP($C21,Futtermittel!$A$8:$CG$171,44,FALSE)*$F21) ->  | V54: =IF($C21=""," ",VLOOKUP($C21,Futtermittel!$A$8:$CG$171,45,FALSE)*$F21) ->  | W54: =IF($C21=""," ",VLOOKUP($C21,Futtermittel!$A$8:$CG$171,54,FALSE)*$F21) ->  | X54: =IF($C21=""," ",VLOOKUP($C21,Futtermittel!$A$8:$CG$171,53,FALSE)*$F21) ->  | Y54: =IF($C21=""," ",VLOOKUP($C21,Futtermittel!$A$8:$CG$171,46,FALSE)*$F21) ->  | Z54: =IF($C21=""," ",VLOOKUP($C21,Futtermittel!$A$8:$CG$171,56,FALSE)*$F21) ->  | AA54: =IF($C21=""," ",VLOOKUP($C21,Futtermittel!$A$8:$CG$171,57,FALSE)*$F21) ->  | AB54: =IF($C21=""," ",VLOOKUP($C21,Futtermittel!$A$8:$CG$171,28,FALSE)*$F21) ->  | AC54: =IF($C21=""," ",VLOOKUP($C21,Futtermittel!$A$8:$CG$171,58,FALSE)*$F21) ->  | AD54: =IF($C21=""," ",VLOOKUP($C21,Futtermittel!$A$8:$CG$171,59,FALSE)*$F21) -> 
F55: =IF(F22=""," ",F22) ->  | G55: =IF($C22=""," ",VLOOKUP(C22,Futtermittel!$A$8:$CG$171,29,FALSE)*$F22) ->  | H55: =IF($C22=""," ",VLOOKUP(C22,Futtermittel!$A$8:$CG$171,30,FALSE)*$F22) ->  | I55: =IF($C22=""," ",VLOOKUP(C22,Futtermittel!$A$8:$CG$171,31,FALSE)*$F22) ->  | J55: =IF($C22=""," ",VLOOKUP(C22,Futtermittel!$A$8:$CG$171,32,FALSE)*$F22) ->  | K55: =IF($C22=""," ",VLOOKUP(C22,Futtermittel!$A$8:$CG$171,33,FALSE)*$F22) ->  | L55: =IF($C22=""," ",VLOOKUP(C22,Futtermittel!$A$8:$CG$171,34,FALSE)*$F22) ->  | M55: =IF($C22=""," ",VLOOKUP(C22,Futtermittel!$A$8:$CG$171,36,FALSE)*$F22) ->  | N55: =IF($C22=""," ",VLOOKUP($C22,Futtermittel!$A$8:$CG$171,37,FALSE)*$F22) ->  | O55: =IF($C22=""," ",VLOOKUP($C22,Futtermittel!$A$8:$CG$171,38,FALSE)*$F22) ->  | P55: =IF($C22=""," ",VLOOKUP($C22,Futtermittel!$A$8:$CG$171,39,FALSE)*$F22) ->  | Q55: =IF($C22=""," ",VLOOKUP($C22,Futtermittel!$A$8:$CG$171,40,FALSE)*$F22) ->  | R55: =IF($C22=""," ",VLOOKUP($C22,Futtermittel!$A$8:$CG$171,41,FALSE)*$F22) ->  | S55: =IF($C22=""," ",VLOOKUP($C22,Futtermittel!$A$8:$CG$171,42,FALSE)*$F22) ->  | T55: =IF($C22=""," ",VLOOKUP($C22,Futtermittel!$A$8:$CG$171,43,FALSE)*$F22) ->  | U55: =IF($C22=""," ",VLOOKUP($C22,Futtermittel!$A$8:$CG$171,44,FALSE)*$F22) ->  | V55: =IF($C22=""," ",VLOOKUP($C22,Futtermittel!$A$8:$CG$171,45,FALSE)*$F22) ->  | W55: =IF($C22=""," ",VLOOKUP($C22,Futtermittel!$A$8:$CG$171,54,FALSE)*$F22) ->  | X55: =IF($C22=""," ",VLOOKUP($C22,Futtermittel!$A$8:$CG$171,53,FALSE)*$F22) ->  | Y55: =IF($C22=""," ",VLOOKUP($C22,Futtermittel!$A$8:$CG$171,46,FALSE)*$F22) ->  | Z55: =IF($C22=""," ",VLOOKUP($C22,Futtermittel!$A$8:$CG$171,56,FALSE)*$F22) ->  | AA55: =IF($C22=""," ",VLOOKUP($C22,Futtermittel!$A$8:$CG$171,57,FALSE)*$F22) ->  | AB55: =IF($C22=""," ",VLOOKUP($C22,Futtermittel!$A$8:$CG$171,28,FALSE)*$F22) ->  | AC55: =IF($C22=""," ",VLOOKUP($C22,Futtermittel!$A$8:$CG$171,58,FALSE)*$F22) ->  | AD55: =IF($C22=""," ",VLOOKUP($C22,Futtermittel!$A$8:$CG$171,59,FALSE)*$F22) -> 
F56: =IF(F23=""," ",F23) ->  | G56: =IF($C23=""," ",VLOOKUP(C23,Futtermittel!$A$8:$CG$171,29,FALSE)*$F23) ->  | H56: =IF($C23=""," ",VLOOKUP(C23,Futtermittel!$A$8:$CG$171,30,FALSE)*$F23) ->  | I56: =IF($C23=""," ",VLOOKUP(C23,Futtermittel!$A$8:$CG$171,31,FALSE)*$F23) ->  | J56: =IF($C23=""," ",VLOOKUP(C23,Futtermittel!$A$8:$CG$171,32,FALSE)*$F23) ->  | K56: =IF($C23=""," ",VLOOKUP(C23,Futtermittel!$A$8:$CG$171,33,FALSE)*$F23) ->  | L56: =IF($C23=""," ",VLOOKUP(C23,Futtermittel!$A$8:$CG$171,34,FALSE)*$F23) ->  | M56: =IF($C23=""," ",VLOOKUP(C23,Futtermittel!$A$8:$CG$171,36,FALSE)*$F23) ->  | N56: =IF($C23=""," ",VLOOKUP($C23,Futtermittel!$A$8:$CG$171,37,FALSE)*$F23) ->  | O56: =IF($C23=""," ",VLOOKUP($C23,Futtermittel!$A$8:$CG$171,38,FALSE)*$F23) ->  | P56: =IF($C23=""," ",VLOOKUP($C23,Futtermittel!$A$8:$CG$171,39,FALSE)*$F23) ->  | Q56: =IF($C23=""," ",VLOOKUP($C23,Futtermittel!$A$8:$CG$171,40,FALSE)*$F23) ->  | R56: =IF($C23=""," ",VLOOKUP($C23,Futtermittel!$A$8:$CG$171,41,FALSE)*$F23) ->  | S56: =IF($C23=""," ",VLOOKUP($C23,Futtermittel!$A$8:$CG$171,42,FALSE)*$F23) ->  | T56: =IF($C23=""," ",VLOOKUP($C23,Futtermittel!$A$8:$CG$171,43,FALSE)*$F23) ->  | U56: =IF($C23=""," ",VLOOKUP($C23,Futtermittel!$A$8:$CG$171,44,FALSE)*$F23) ->  | V56: =IF($C23=""," ",VLOOKUP($C23,Futtermittel!$A$8:$CG$171,45,FALSE)*$F23) ->  | W56: =IF($C23=""," ",VLOOKUP($C23,Futtermittel!$A$8:$CG$171,54,FALSE)*$F23) ->  | X56: =IF($C23=""," ",VLOOKUP($C23,Futtermittel!$A$8:$CG$171,53,FALSE)*$F23) ->  | Y56: =IF($C23=""," ",VLOOKUP($C23,Futtermittel!$A$8:$CG$171,46,FALSE)*$F23) ->  | Z56: =IF($C23=""," ",VLOOKUP($C23,Futtermittel!$A$8:$CG$171,56,FALSE)*$F23) ->  | AA56: =IF($C23=""," ",VLOOKUP($C23,Futtermittel!$A$8:$CG$171,57,FALSE)*$F23) ->  | AB56: =IF($C23=""," ",VLOOKUP($C23,Futtermittel!$A$8:$CG$171,28,FALSE)*$F23) ->  | AC56: =IF($C23=""," ",VLOOKUP($C23,Futtermittel!$A$8:$CG$171,58,FALSE)*$F23) ->  | AD56: =IF($C23=""," ",VLOOKUP($C23,Futtermittel!$A$8:$CG$171,59,FALSE)*$F23) -> 
B57: EF-Nr. | C57: Ergänzungsfutter | D57: VQ in %
C58: =IF(C25=""," ",C25) ->  | D58: 0.85 | G58: =IF($C25=""," ",VLOOKUP($C25,Ergänzungsfutter!$A$11:$BE$35,20,FALSE)*$F25) ->  | H58: =IF($C25=""," ",VLOOKUP($C25,Ergänzungsfutter!$A$11:$BE$35,20,FALSE)*$F25*D25) ->  | I58: =IF($C25=""," ",VLOOKUP($C25,Ergänzungsfutter!$A$11:$BE$35,21,FALSE)*$F25) ->  | J58: =IF($C25=""," ",VLOOKUP($C25,Ergänzungsfutter!$A$11:$BE$35,22,FALSE)*$F25) ->  | K58: =IF($C25=""," ",VLOOKUP($C25,Ergänzungsfutter!$A$11:$BE$35,23,FALSE)*$F25) ->  | L58: =IF($C25=""," ",VLOOKUP($C25,Ergänzungsfutter!$A$11:$BE$35,24,FALSE)*$F25) ->  | M58: =IF($C25=""," ",VLOOKUP($C25,Ergänzungsfutter!$A$11:$BE$35,24,FALSE)*$F25) ->  | N58: =IF($C25=""," ",VLOOKUP($C25,Ergänzungsfutter!$A$11:$BE$35,27,FALSE)*$F25) ->  | O58: =IF($C25=""," ",VLOOKUP($C25,Ergänzungsfutter!$A$11:$BE$35,28,FALSE)*$F25) ->  | P58: =IF($C25=""," ",VLOOKUP($C25,Ergänzungsfutter!$A$11:$BE$35,29,FALSE)*$F25) ->  | Q58: =IF($C25=""," ",VLOOKUP($C25,Ergänzungsfutter!$A$11:$BE$35,30,FALSE)*$F25) ->  | R58: =IF($C25=""," ",VLOOKUP($C25,Ergänzungsfutter!$A$11:$BE$35,31,FALSE)*$F25) ->  | S58: =IF($C25=""," ",VLOOKUP($C25,Ergänzungsfutter!$A$11:$BE$35,32,FALSE)*$F25) ->  | T58: =IF($C25=""," ",VLOOKUP($C25,Ergänzungsfutter!$A$11:$BE$35,33,FALSE)*$F25) ->  | U58: =IF($C25=""," ",VLOOKUP($C25,Ergänzungsfutter!$A$11:$BE$35,34,FALSE)*$F25) ->  | V58: =IF($C25=""," ",VLOOKUP($C25,Ergänzungsfutter!$A$11:$BE$35,35,FALSE)*$F25) ->  | W58: =IF($C25=""," ",VLOOKUP($C25,Ergänzungsfutter!$A$11:$BE$35,36,FALSE)*$F25) ->  | X58: =IF($C25=""," ",VLOOKUP($C25,Ergänzungsfutter!$A$11:$BE$35,35,FALSE)*$F25) ->  | Y58: =IF($C25=""," ",VLOOKUP($C25,Ergänzungsfutter!$A$11:$BE$35,37,FALSE)*$F25) ->  | Z58: =IF($C25=""," ",VLOOKUP($C25,Ergänzungsfutter!$A$11:$BE$35,38,FALSE)*$F25) ->  | AA58: =IF($C25=""," ",VLOOKUP($C25,Ergänzungsfutter!$A$11:$BE$35,39,FALSE)*$F25) ->  | AB58: =IF($C25=""," ",VLOOKUP($C25,Ergänzungsfutter!$A$11:$BE$35,37,FALSE)*$F25) ->  | AC58: =IF($C25=""," ",VLOOKUP($C25,Ergänzungsfutter!$A$11:$BE$35,40,FALSE)*$F25) ->  | AD58: =IF($C25=""," ",VLOOKUP($C25,Ergänzungsfutter!$A$11:$BE$35,41,FALSE)*$F25) -> 
C59: =IF(C26=""," ",C26) ->  | G59: =IF($C26=""," ",VLOOKUP($C26,Ergänzungsfutter!$A$11:$BE$35,20,FALSE)*$F26) ->  | H59: =IF($C26=""," ",VLOOKUP($C26,Ergänzungsfutter!$A$11:$BE$35,20,FALSE)*$F26*D26) ->  | I59: =IF($C26=""," ",VLOOKUP($C26,Ergänzungsfutter!$A$11:$BE$35,21,FALSE)*$F26) ->  | J59: =IF($C26=""," ",VLOOKUP($C26,Ergänzungsfutter!$A$11:$BE$35,22,FALSE)*$F26) ->  | K59: =IF($C26=""," ",VLOOKUP($C26,Ergänzungsfutter!$A$11:$BE$35,23,FALSE)*$F26) ->  | L59: =IF($C26=""," ",VLOOKUP($C26,Ergänzungsfutter!$A$11:$BE$35,24,FALSE)*$F26) ->  | M59: =IF($C26=""," ",VLOOKUP($C26,Ergänzungsfutter!$A$11:$BE$35,24,FALSE)*$F26) ->  | N59: =IF($C26=""," ",VLOOKUP($C26,Ergänzungsfutter!$A$11:$BE$35,27,FALSE)*$F26) ->  | O59: =IF($C26=""," ",VLOOKUP($C26,Ergänzungsfutter!$A$11:$BE$35,28,FALSE)*$F26) ->  | P59: =IF($C26=""," ",VLOOKUP($C26,Ergänzungsfutter!$A$11:$BE$35,29,FALSE)*$F26) ->  | Q59: =IF($C26=""," ",VLOOKUP($C26,Ergänzungsfutter!$A$11:$BE$35,30,FALSE)*$F26) ->  | R59: =IF($C26=""," ",VLOOKUP($C26,Ergänzungsfutter!$A$11:$BE$35,31,FALSE)*$F26) ->  | S59: =IF($C26=""," ",VLOOKUP($C26,Ergänzungsfutter!$A$11:$BE$35,32,FALSE)*$F26) ->  | T59: =IF($C26=""," ",VLOOKUP($C26,Ergänzungsfutter!$A$11:$BE$35,33,FALSE)*$F26) ->  | U59: =IF($C26=""," ",VLOOKUP($C26,Ergänzungsfutter!$A$11:$BE$35,34,FALSE)*$F26) ->  | V59: =IF($C26=""," ",VLOOKUP($C26,Ergänzungsfutter!$A$11:$BE$35,35,FALSE)*$F26) ->  | W59: =IF($C26=""," ",VLOOKUP($C26,Ergänzungsfutter!$A$11:$BE$35,36,FALSE)*$F26) ->  | X59: =IF($C26=""," ",VLOOKUP($C26,Ergänzungsfutter!$A$11:$BE$35,35,FALSE)*$F26) ->  | Y59: =IF($C26=""," ",VLOOKUP($C26,Ergänzungsfutter!$A$11:$BE$35,37,FALSE)*$F26) ->  | Z59: =IF($C26=""," ",VLOOKUP($C26,Ergänzungsfutter!$A$11:$BE$35,38,FALSE)*$F26) ->  | AA59: =IF($C26=""," ",VLOOKUP($C26,Ergänzungsfutter!$A$11:$BE$35,39,FALSE)*$F26) ->  | AB59: =IF($C26=""," ",VLOOKUP($C26,Ergänzungsfutter!$A$11:$BE$35,37,FALSE)*$F26) ->  | AC59: =IF($C26=""," ",VLOOKUP($C26,Ergänzungsfutter!$A$11:$BE$35,40,FALSE)*$F26) ->  | AD59: =IF($C26=""," ",VLOOKUP($C26,Ergänzungsfutter!$A$11:$BE$35,41,FALSE)*$F26) -> 
B60: Nr. | C60: Mineralfutter
B61: =B28 -> 7 | C61: =IF(C28=""," ",C28) -> Opti. MinFu MM 850g TZ 3,0% + Phytase 17/18 | E61: =IF(E28=""," ",E28) -> 77 | F61: =IF(F28=""," ",F28) -> 0.03 | G61: =IF($C28=""," ",VLOOKUP($C28,Mineralfutter!$A$11:$BE$25,10,FALSE)*$F28) -> 0.6 | H61: =IF($C28=""," ",VLOOKUP($C28,Mineralfutter!$A$11:$BE$25,10,FALSE)*$F28) -> 0.6 | I61: =IF($C28=""," ",VLOOKUP($C28,Mineralfutter!$A$11:$BE$25,21,FALSE)*$F28) -> 0 | J61: =IF($C28=""," ",VLOOKUP($C28,Mineralfutter!$A$11:$BE$25,22,FALSE)*$F28) -> 0 | K61: =IF($C28=""," ",VLOOKUP($C28,Mineralfutter!$A$11:$BE$25,23,FALSE)*$F28) -> 0 | L61: =IF($C28=""," ",VLOOKUP($C28,Mineralfutter!$A$11:$BE$25,24,FALSE)*$F28) -> 21.75 | N61: =IF($C28=""," ",VLOOKUP($C28,Mineralfutter!$A$11:$BE$25,27,FALSE)*$F28) -> 0 | O61: =IF($C28=""," ",VLOOKUP($C28,Mineralfutter!$A$11:$BE$25,28,FALSE)*$F28) -> 0 | P61: =IF($C28=""," ",VLOOKUP($C28,Mineralfutter!$A$11:$BE$25,29,FALSE)*$F28) -> 0 | Q61: =IF($C28=""," ",VLOOKUP($C28,Mineralfutter!$A$11:$BE$25,30,FALSE)*$F28) -> 5025 | R61: =IF($C28=""," ",VLOOKUP($C28,Mineralfutter!$A$11:$BE$25,31,FALSE)*$F28) -> 1005 | S61: =IF($C28=""," ",VLOOKUP($C28,Mineralfutter!$A$11:$BE$25,32,FALSE)*$F28) -> 51 | T61: =IF($C28=""," ",VLOOKUP($C28,Mineralfutter!$A$11:$BE$25,33,FALSE)*$F28) -> 254.4628732 | U61: =IF($C28=""," ",VLOOKUP($C28,Mineralfutter!$A$11:$BE$25,34,FALSE)*$F28) -> 97.68956081 | Z61: =IF($C28=""," ",VLOOKUP($C28,Mineralfutter!$A$11:$BE$25,35,FALSE)*$F28) -> 0.06315535536 | AA61: =IF($C28=""," ",VLOOKUP($C28,Mineralfutter!$A$11:$BE$25,36,FALSE)*$F28) -> 0.06391762523 | AB61: =IF($C28=""," ",VLOOKUP($C28,Mineralfutter!$A$11:$BE$25,37,FALSE)*$F28) -> 0 | AC61: =IF($C28=""," ",VLOOKUP($C28,Mineralfutter!$A$11:$BE$25,37,FALSE)*$F28) -> 0 | AD61: =IF($C28=""," ",VLOOKUP($C28,Mineralfutter!$A$11:$BE$25,38,FALSE)*$F28) -> 0
B62: =B29 ->  | C62: =IF(C29=""," ",C29) ->  | E62: =IF(E29=""," ",E29) ->  | F62: =IF(F29=""," ",F29) ->  | G62: =IF($C29=""," ",VLOOKUP($C29,Mineralfutter!$A$11:$BE$25,10,FALSE)*$F29) ->  | H62: =IF($C29=""," ",VLOOKUP($C29,Mineralfutter!$A$11:$BE$25,10,FALSE)*$F29) ->  | I62: =IF($C29=""," ",VLOOKUP($C29,Mineralfutter!$A$11:$BE$25,21,FALSE)*$F29) ->  | J62: =IF($C29=""," ",VLOOKUP($C29,Mineralfutter!$A$11:$BE$25,22,FALSE)*$F29) ->  | K62: =IF($C29=""," ",VLOOKUP($C29,Mineralfutter!$A$11:$BE$25,23,FALSE)*$F29) ->  | L62: =IF($C29=""," ",VLOOKUP($C29,Mineralfutter!$A$11:$BE$25,24,FALSE)*$F29) ->  | N62: =IF($C29=""," ",VLOOKUP($C29,Mineralfutter!$A$11:$BE$25,27,FALSE)*$F29) ->  | O62: =IF($C29=""," ",VLOOKUP($C29,Mineralfutter!$A$11:$BE$25,28,FALSE)*$F29) ->  | P62: =IF($C29=""," ",VLOOKUP($C29,Mineralfutter!$A$11:$BE$25,29,FALSE)*$F29) ->  | Q62: =IF($C29=""," ",VLOOKUP($C29,Mineralfutter!$A$11:$BE$25,30,FALSE)*$F29) ->  | R62: =IF($C29=""," ",VLOOKUP($C29,Mineralfutter!$A$11:$BE$25,31,FALSE)*$F29) ->  | S62: =IF($C29=""," ",VLOOKUP($C29,Mineralfutter!$A$11:$BE$25,32,FALSE)*$F29) ->  | T62: =IF($C29=""," ",VLOOKUP($C29,Mineralfutter!$A$11:$BE$25,33,FALSE)*$F29) ->  | U62: =IF($C29=""," ",VLOOKUP($C29,Mineralfutter!$A$11:$BE$25,34,FALSE)*$F29) ->  | Z62: =IF($C29=""," ",VLOOKUP($C29,Mineralfutter!$A$11:$BE$25,35,FALSE)*$F29) ->  | AA62: =IF($C29=""," ",VLOOKUP($C29,Mineralfutter!$A$11:$BE$25,36,FALSE)*$F29) ->  | AB62: =IF($C29=""," ",VLOOKUP($C29,Mineralfutter!$A$11:$BE$25,37,FALSE)*$F29) ->  | AC62: =IF($C29=""," ",VLOOKUP($C29,Mineralfutter!$A$11:$BE$25,37,FALSE)*$F29) ->  | AD62: =IF($C29=""," ",VLOOKUP($C29,Mineralfutter!$A$11:$BE$25,38,FALSE)*$F29) -> 
C63: Summe | E63: =AC30 -> 21.45195 | F63: =IF(SUM(F13:F29,F36:F37)=0," ",SUM(F13:F29,F36:F37)) -> 1 | G63: =IF(F30=" "," ",SUM(G46:G62,Q36*$F36,Q37*$F37*0.525)) -> 2.343794 | H63: =IF(F30=" "," ",SUM(H46:H62,R36*$F36,R37*$F37*0.525)) -> 2.10364613 | I63: =IF(F30=" "," ",SUM(I46:I62)) -> 24.66195 | J63: =IF(F30=" "," ",SUM(J46:J62)) -> 477.4215 | K63: =IF(F30=" "," ",SUM(K46:K62)) -> 31.925 | L63: =IF(F30=" "," ",SUM(L46:L62,F36*650)) -> 46.148 | M63: =IF(G30=" "," ",SUM(M46:M62)) -> 153.10245 | N63: =IF(F30=" "," ",SUM(N46:N62)) -> 13.55176897 | O63: =IF(F30=" "," ",SUM(O46:O62)) -> 12.13583276 | P63: =IF(F30=" "," ",SUM(P46:P62)) -> 1.418036207 | Q63: =IF(F30=" "," ",SUM(Q46:Q62)) -> 5025 | R63: =IF(F30=" "," ",SUM(R46:R62)) -> 1005 | S63: =IF(F30=" "," ",SUM(S46:S62)) -> 51 | T63: =IF(F30=" "," ",SUM(T46:T62)) -> 264.4931285 | U63: =IF(F30=" "," ",SUM(U46:U62)) -> 514.4125904 | V63: =IF(F30=" "," ",SUM(V46:V62)) -> 80.434962 | W63: =IF(H30=" "," ",SUM(W46:W62)) -> 241.0301988 | X63: =IF(I30=" "," ",SUM(X46:X62)) -> 46.19737919 | Y63: =IF(H30=" "," ",SUM(Y46:Y62)) -> 630.52395 | Z63: =IF(K30=" "," ",SUM(Z46:Z62)) -> 8.792567249 | AA63: =IF(J30=" "," ",SUM(AA46:AA62)) -> 9.08047148 | AB63: =IF(AA30=" "," ",SUM(AB46:AB62,AK36*$F36,AK37*$F37*0.525)) -> 5.76328 | AC63: =IF(N30=" "," ",SUM(AC46:AC62)) -> 0 | AD63: =IF(M30=" "," ",SUM(AD46:AD62)) -> 0
C64: Summe auf 88% TM umgerechnet | E64: =AC31 -> 21.35258767 | F64: =F30 -> 1 | G64: =IF($F31=" "," ",ROUND($I31*G63/$I30*$F31,1)) -> 2.3 | H64: =IF($F31=" "," ",ROUND($I31*H63/$I30*$F31,1)) -> 2.1 | I64: =IF($F31=" "," ",ROUND($I31*I63/$I30*$F31,0)) -> 25 | J64: =IF($F31=" "," ",ROUND($I31*J63/$I30*$F31,0)) -> 475 | K64: =IF($F31=" "," ",ROUND($I31*K63/$I30*$F31,0)) -> 32 | L64: =IF($F31=" "," ",ROUND($I31*L63/$I30*$F31,0)) -> 46 | M64: =IF($F31=" "," ",ROUND($I31*M63/$I30*$F31,0)) -> 152 | N64: =IF($F31=" "," ",ROUND($I31*N63/$I30*$F31,1)) -> 13.5 | O64: =IF($F31=" "," ",ROUND($I31*O63/$I30*$F31,1)) -> 12.1 | P64: =IF($F31=" "," ",ROUND($I31*P63/$I30*$F31,1)) -> 1.4 | Q64: =IF($F31=" "," ",ROUND($I31*Q63/$I30*$F31,0)) -> 5002 | R64: =IF($F31=" "," ",ROUND($I31*R63/$I30*$F31,0)) -> 1000 | S64: =IF($F31=" "," ",ROUND($I31*S63/$I30*$F31,0)) -> 51 | T64: =IF($F31=" "," ",ROUND($I31*T63/$I30*$F31,0)) -> 263 | U64: =IF($F31=" "," ",ROUND($I31*U63/$I30*$F31,0)) -> 512 | V64: =IF($F31=" "," ",ROUND($I31*V63/$I30*$F31,1)) -> 80.1 | W64: 239.9 | X64: 46 | Y64: 627.6 | Z64: 8.8 | AA64: 9 | AB64: 5.7 | AC64: =IF($F31=" "," ",ROUND($I31*AC63/$I30*$F31,2)) -> 0 | AD64: =IF($F31=" "," ",ROUND($I31*AD63/$I30*$F31,2)) -> 0
B65: OW-Nr. | C65: aus Tabelle Orientierungswerte in g
B66: =B33 -> 19 | C66: =IF(C33=""," ",C33) -> Mittelmast ab 60 Kg LM für 850 g TZ* | E66: - | F66: =F30 -> 1 | G66: =IF($C33=""," ",ROUND(VLOOKUP($C$33,Orientierungswerte!$A$13:$AZ$126,30,FALSE)*$F$33,1)) -> 2.5 | H66: =IF($C33=""," ",ROUND(VLOOKUP($C$33,Orientierungswerte!$A$13:$AZ$126,31,FALSE)*$F$33,1)) -> 2.2 | I66: =IF($C33=""," ",ROUND(VLOOKUP($C$33,Orientierungswerte!$A$13:$AZ$126,33,FALSE)*$F$33,0)) -> 0 | J66: =IF($C33=""," ",ROUND(VLOOKUP($C$33,Orientierungswerte!$A$13:$AZ$126,34,FALSE)*$F$33,0)) -> 0 | K66: =IF($C33=""," ",ROUND(VLOOKUP($C$33,Orientierungswerte!$A$13:$AZ$126,35,FALSE)*$F$33,0)) -> 0 | L66: =IF($C33=""," ",ROUND(VLOOKUP($C$33,Orientierungswerte!$A$13:$AZ$126,36,FALSE)*$F$33,0)) -> 0 | M66: =IF($C33=""," ",ROUND(VLOOKUP($C$33,Orientierungswerte!$A$13:$AZ$126,36,FALSE)*$F$33,0)) -> 0 | N66: =IF($C33=""," ",ROUND(VLOOKUP($C$33,Orientierungswerte!$A$13:$AZ$126,37,FALSE)*$F$33,1)) -> 17.5 | O66: =IF($C33=""," ",ROUND(VLOOKUP($C$33,Orientierungswerte!$A$13:$AZ$126,38,FALSE)*$F$33,1)) -> 9.7 | P66: =IF($C33=""," ",ROUND(VLOOKUP($C$33,Orientierungswerte!$A$13:$AZ$126,39,FALSE)*$F$33,1)) -> 0 | Q66: =IF($C33=""," ",ROUND(VLOOKUP($C$33,Orientierungswerte!$A$13:$AZ$126,40,FALSE)*$F$33,0)) -> 5000 | R66: =IF($C33=""," ",ROUND(VLOOKUP($C$33,Orientierungswerte!$A$13:$AZ$126,41,FALSE)*$F$33,0)) -> 1000 | S66: =IF($C33=""," ",ROUND(VLOOKUP($C$33,Orientierungswerte!$A$13:$AZ$126,42,FALSE)*$F$33,0)) -> 50 | T66: =IF($C33=""," ",ROUND(VLOOKUP($C$33,Orientierungswerte!$A$13:$AZ$126,43,FALSE)*$F$33,1)) -> 0 | U66: =IF($C33=""," ",ROUND(VLOOKUP($C$33,Orientierungswerte!$A$13:$AZ$126,44,FALSE)*$F$33,1)) -> 0 | V66: =IF($C33=""," ",ROUND(VLOOKUP($C$33,Orientierungswerte!$A$13:$AZ$126,47,FALSE)*$F$33,1)) -> 0 | W66: =IF($C33=""," ",ROUND(VLOOKUP($C$33,Orientierungswerte!$A$13:$AZ$126,46,FALSE)*$F$33,1)) -> 120 | X66: =IF($C33=""," ",ROUND(VLOOKUP($C$33,Orientierungswerte!$A$13:$AZ$126,45,FALSE)*$F$33,1)) -> 70 | Y66: =IF($C33=""," ",ROUND(VLOOKUP($C$33,Orientierungswerte!$A$13:$AZ$126,49,FALSE)*$F$33,1)) -> 0 | Z66: =IF($C33=""," ",ROUND(VLOOKUP($C$33,Orientierungswerte!$A$13:$AZ$126,48,FALSE)*$F$33,1)) -> 9.6 | AA66: =IF($C33=""," ",ROUND(VLOOKUP($C$33,Orientierungswerte!$A$13:$AZ$126,49,FALSE)*$F$33,1)) -> 0 | AC66: =IF($C33=""," ",ROUND(VLOOKUP($C$33,Orientierungswerte!$A$13:$AZ$126,50,FALSE)*$F$33,2)) -> 1 | AD66: =IF($C33=""," ",ROUND(VLOOKUP($C$33,Orientierungswerte!$A$13:$AZ$126,51,FALSE)*$F$33,2)) -> 0.25
C67: Differenz Mischung zu Orientierungswert | E67: - | F67: =IF($C$33=""," ",ROUND((1-F31)*-1,4)) -> 0 | G67: =IF($C$33=""," ",ROUND(G64-G66,1)) -> -0.2 | H67: =IF($C$33=""," ",ROUND(H64-H66,1)) -> -0.1 | I67: =IF($C$33=""," ",ROUND(I64-I66,0)) -> 25 | J67: =IF($C$33=""," ",ROUND(J64-J66,0)) -> 475 | K67: =IF($C$33=""," ",ROUND(K64-K66,0)) -> 32 | L67: =IF($C$33=""," ",ROUND(L64-L66,0)) -> 46 | M67: =IF($C$33=""," ",ROUND(M64-M66,0)) -> 152 | N67: =IF($C$33=""," ",ROUND(N64-N66,1)) -> -4 | O67: =IF($C$33=""," ",ROUND(O64-O66,1)) -> 2.4 | P67: =IF($C$33=""," ",ROUND(P64-P66,1)) -> 1.4 | Q67: =IF($C$33=""," ",ROUND(Q64-Q66,0)) -> 2 | R67: 0 | S67: 1 | T67: 263 | U67: 512 | V67: 80 | W67: 120 | X67: =IF($C$33=""," ",ROUND(X64-X66,0)) -> -24 | Y67: =IF($C$33=""," ",ROUND(Y64-Y66,0)) -> 628 | Z67: =IF($C$33=""," ",Z64-Z66) -> -0.8 | AA67: =IF($C$33=""," ",AA64-AA66) -> 9 | AB67: =IF($C$33=""," ",ROUND(AB64-AB66,1)) -> 5.7 | AC67: =IF($C$33=""," ",ROUND(AC64-AC66,2)) -> -1 | AD67: =IF($C$33=""," ",ROUND(AD64-AD66,2)) -> -0.25

Sheet Ausdruck (3)
L9: Datum: | M9: =Futterberechnung!$Z$5 -> 2018-08-01
B10: Betrieb: | C10: ='Futterberechnung (3)'!H5 -> Mustermann
B11: Futtermischung für: | C11: =IF('Futterberechnung (3)'!H7="","",'Futterberechnung (3)'!H7) -> Mittelmast ab 60 Kg LM für 850 g TZ* | H11: =IF('Futterberechnung (3)'!P7="","",'Futterberechnung (3)'!P7) -> Getreide = Richtpreise Ernte 2017/18
C12: ='Futterberechnung (3)'!J8 -> 
B14: Futtermittel | C14: Preis / dt | D14: Anteile in % FM | E14: Anteile bei 88% TM | F14: in Mischer | H14: Inhaltsstoffe in 1 kg Futtermittel | L14: Soll | M14: Differenz
B15: =IF('Futterberechnung (3)'!C13="","",'Futterberechnung (3)'!C13) -> eigener Weizen 10% RP Ø 2018 | C15: =IF('Futterberechnung (3)'!E13="","",'Futterberechnung (3)'!E13) -> 17.42 | D15: =IF('Futterberechnung (3)'!F13="","",'Futterberechnung (3)'!F13) -> 0.45 | E15: =IF('Futterberechnung (3)'!G13="","",'Futterberechnung (3)'!G13) -> 0.4479156652 | F15: =IF('Futterberechnung (3)'!H13="","",'Futterberechnung (3)'!H13) -> 450 | I15: in | J15: in der FM | K15: in 88% TM | L15: in 88% TM
B16: =IF('Futterberechnung (3)'!C14="","",'Futterberechnung (3)'!C14) -> eigene Gerste 10% RP Ø 2018 | C16: =IF('Futterberechnung (3)'!E14="","",'Futterberechnung (3)'!E14) -> 16.39 | D16: =IF('Futterberechnung (3)'!F14="","",'Futterberechnung (3)'!F14) -> 0.405 | E16: =IF('Futterberechnung (3)'!G14="","",'Futterberechnung (3)'!G14) -> 0.4031240987 | F16: =IF('Futterberechnung (3)'!H14="","",'Futterberechnung (3)'!H14) -> 405 | H16: TM | I16: g | J16: =IF('Futterberechnung (3)'!I30="","",'Futterberechnung (3)'!I30) -> 884.095 | K16: =IF('Futterberechnung (3)'!I31="","",'Futterberechnung (3)'!I31) -> 880
B17: =IF('Futterberechnung (3)'!C15="","",'Futterberechnung (3)'!C15) -> Sojaschrot HP 47% RP | C17: =IF('Futterberechnung (3)'!E15="","",'Futterberechnung (3)'!E15) -> 38 | D17: =IF('Futterberechnung (3)'!F15="","",'Futterberechnung (3)'!F15) -> 0.11 | E17: =IF('Futterberechnung (3)'!G15="","",'Futterberechnung (3)'!G15) -> 0.1107347061 | F17: =IF('Futterberechnung (3)'!H15="","",'Futterberechnung (3)'!H15) -> 110 | H17: MES EFF* | I17: MJ | J17: =IF('Futterberechnung (3)'!$M$30="","",'Futterberechnung (3)'!$M$30) -> 13.00142592 | K17: =IF('Futterberechnung (3)'!$M$31="","",'Futterberechnung (3)'!$M$31) -> 12.94 | L17: =IF('Futterberechnung (3)'!$M$33="","",'Futterberechnung (3)'!$M$33) -> 13 | M17: =IF('Futterberechnung (3)'!$M$34="","",'Futterberechnung (3)'!$M$34) -> -0.06
B18: =IF('Futterberechnung (3)'!C16="","",'Futterberechnung (3)'!C16) -> Rapsöl / Pflanzenöl DLG 2014 | C18: =IF('Futterberechnung (3)'!E16="","",'Futterberechnung (3)'!E16) -> 97 | D18: =IF('Futterberechnung (3)'!F16="","",'Futterberechnung (3)'!F16) -> 0.005 | E18: =IF('Futterberechnung (3)'!G16="","",'Futterberechnung (3)'!G16) -> 0.005649845322 | F18: =IF('Futterberechnung (3)'!H16="","",'Futterberechnung (3)'!H16) -> 5 | H18: MES MFF* | I18: MJ | J18: =IF('Futterberechnung (3)'!$N$30="","",'Futterberechnung (3)'!$N$30) -> 12.99618248 | K18: =IF('Futterberechnung (3)'!$N$31="","",'Futterberechnung (3)'!$N$31) -> 12.94 | L18: =IF('Futterberechnung (3)'!$N$33="","",'Futterberechnung (3)'!$N$33) -> 13 | M18: =IF('Futterberechnung (3)'!$N$34="","",'Futterberechnung (3)'!$N$34) -> -0.06
B19: =IF('Futterberechnung (3)'!C17="","",'Futterberechnung (3)'!C17) ->  | C19: =IF('Futterberechnung (3)'!E17="","",'Futterberechnung (3)'!E17) ->  | D19: =IF('Futterberechnung (3)'!F17="","",'Futterberechnung (3)'!F17) ->  | E19: =IF('Futterberechnung (3)'!G17="","",'Futterberechnung (3)'!G17) ->  | F19: =IF('Futterberechnung (3)'!H17="","",'Futterberechnung (3)'!H17) ->  | H19: Rohprotein (XP) | I19: g | J19: =IF('Futterberechnung (3)'!$J$30="","",'Futterberechnung (3)'!$J$30) -> 139.6378743 | K19: =IF('Futterberechnung (3)'!$J$31="","",'Futterberechnung (3)'!$J$31) -> 139 | L19: =IF('Futterberechnung (3)'!$J$33="","",'Futterberechnung (3)'!$J$33) -> 150 | M19: =IF('Futterberechnung (3)'!$J$34="","",'Futterberechnung (3)'!$J$34) -> -11
B20: =IF('Futterberechnung (3)'!C18="","",'Futterberechnung (3)'!C18) ->  | C20: =IF('Futterberechnung (3)'!E18="","",'Futterberechnung (3)'!E18) ->  | D20: =IF('Futterberechnung (3)'!F18="","",'Futterberechnung (3)'!F18) ->  | E20: =IF('Futterberechnung (3)'!G18="","",'Futterberechnung (3)'!G18) ->  | F20: =IF('Futterberechnung (3)'!H18="","",'Futterberechnung (3)'!H18) ->  | H20: Lys | I20: g | J20: =IF('Futterberechnung (3)'!$O$30="","",'Futterberechnung (3)'!$O$30) -> 8.459098 | K20: =IF('Futterberechnung (3)'!$O$31="","",'Futterberechnung (3)'!$O$31) -> 8.4 | L20: =IF('Futterberechnung (3)'!$O$33="","",'Futterberechnung (3)'!$O$33) -> 8.8 | M20: =IF('Futterberechnung (3)'!$O$34="","",'Futterberechnung (3)'!$O$34) -> -0.4
B21: =IF('Futterberechnung (3)'!C19="","",'Futterberechnung (3)'!C19) ->  | C21: =IF('Futterberechnung (3)'!E19="","",'Futterberechnung (3)'!E19) ->  | D21: =IF('Futterberechnung (3)'!F19="","",'Futterberechnung (3)'!F19) ->  | E21: =IF('Futterberechnung (3)'!G19="","",'Futterberechnung (3)'!G19) ->  | F21: =IF('Futterberechnung (3)'!H19="","",'Futterberechnung (3)'!H19) ->  | H21: pcv Lys | I21: g | J21: =IF('Futterberechnung (3)'!$P$30="","",'Futterberechnung (3)'!$P$30) -> 7.52137344 | K21: =IF('Futterberechnung (3)'!$P$31="","",'Futterberechnung (3)'!$P$31) -> 7.5 | L21: =IF('Futterberechnung (3)'!$P$33="","",'Futterberechnung (3)'!$P$33) -> 7.7 | M21: =IF('Futterberechnung (3)'!$P$34="","",'Futterberechnung (3)'!$P$34) -> -0.2
B22: =IF('Futterberechnung (3)'!C20="","",'Futterberechnung (3)'!C20) ->  | C22: =IF('Futterberechnung (3)'!E20="","",'Futterberechnung (3)'!E20) ->  | D22: =IF('Futterberechnung (3)'!F20="","",'Futterberechnung (3)'!F20) ->  | E22: =IF('Futterberechnung (3)'!G20="","",'Futterberechnung (3)'!G20) ->  | F22: =IF('Futterberechnung (3)'!H20="","",'Futterberechnung (3)'!H20) ->  | H22: Met | I22: g | J22: =IF('Futterberechnung (3)'!$G$63="","",'Futterberechnung (3)'!$G$63) -> 2.343794 | K22: =IF('Futterberechnung (3)'!$G$64="","",'Futterberechnung (3)'!$G$64) -> 2.3 | L22: =IF('Futterberechnung (3)'!$G$66="","",'Futterberechnung (3)'!$G$66) -> 2.5 | M22: =IF('Futterberechnung (3)'!$G67="","",'Futterberechnung (3)'!$G$67) -> -0.2
B23: =IF('Futterberechnung (3)'!C21="","",'Futterberechnung (3)'!C21) ->  | C23: =IF('Futterberechnung (3)'!E21="","",'Futterberechnung (3)'!E21) ->  | D23: =IF('Futterberechnung (3)'!F21="","",'Futterberechnung (3)'!F21) ->  | E23: =IF('Futterberechnung (3)'!G21="","",'Futterberechnung (3)'!G21) ->  | F23: =IF('Futterberechnung (3)'!H21="","",'Futterberechnung (3)'!H21) ->  | H23: pcv Met | I23: g | J23: =IF('Futterberechnung (3)'!$H$63="","",'Futterberechnung (3)'!$H$63) -> 2.10364613 | K23: =IF('Futterberechnung (3)'!$H$64="","",'Futterberechnung (3)'!$H$64) -> 2.1 | L23: =IF('Futterberechnung (3)'!$H$66="","",'Futterberechnung (3)'!$H$66) -> 2.2 | M23: =IF('Futterberechnung (3)'!$H67="","",'Futterberechnung (3)'!$H$67) -> -0.1
B24: =IF('Futterberechnung (3)'!C22="","",'Futterberechnung (3)'!C22) ->  | C24: =IF('Futterberechnung (3)'!E22="","",'Futterberechnung (3)'!E22) ->  | D24: =IF('Futterberechnung (3)'!F22="","",'Futterberechnung (3)'!F22) ->  | E24: =IF('Futterberechnung (3)'!G22="","",'Futterberechnung (3)'!G22) ->  | F24: =IF('Futterberechnung (3)'!H22="","",'Futterberechnung (3)'!H22) ->  | H24: Met + Cys | I24: g | J24: =IF('Futterberechnung (3)'!$Q$30="","",'Futterberechnung (3)'!$Q$30) -> 5.330962 | K24: =IF('Futterberechnung (3)'!$Q$31="","",'Futterberechnung (3)'!$Q$31) -> 5.3 | L24: =IF('Futterberechnung (3)'!$Q$33="","",'Futterberechnung (3)'!$Q$33) -> 4.7 | M24: =IF('Futterberechnung (3)'!$Q$34="","",'Futterberechnung (3)'!$Q$34) -> 0.6
B25: =IF('Futterberechnung (3)'!C23="","",'Futterberechnung (3)'!C23) ->  | C25: =IF('Futterberechnung (3)'!E23="","",'Futterberechnung (3)'!E23) ->  | D25: =IF('Futterberechnung (3)'!F23="","",'Futterberechnung (3)'!F23) ->  | E25: =IF('Futterberechnung (3)'!G23="","",'Futterberechnung (3)'!G23) ->  | F25: =IF('Futterberechnung (3)'!H23="","",'Futterberechnung (3)'!H23) ->  | H25: pcv Met + Cys | I25: g | J25: =IF('Futterberechnung (3)'!$R$30="","",'Futterberechnung (3)'!$R$30) -> 4.664074468 | K25: =IF('Futterberechnung (3)'!$R$31="","",'Futterberechnung (3)'!$R$31) -> 4.6 | L25: =IF('Futterberechnung (3)'!$R$33="","",'Futterberechnung (3)'!$R$33) -> 4.2 | M25: =IF('Futterberechnung (3)'!$R$34="","",'Futterberechnung (3)'!$R$34) -> 0.4
B26: =IF('Futterberechnung (3)'!C24="","",'Futterberechnung (3)'!C24) -> Ergänzungsfutter | C26: =IF('Futterberechnung (3)'!E24="","",'Futterberechnung (3)'!E24) ->  | D26: =IF('Futterberechnung (3)'!F24="","",'Futterberechnung (3)'!F24) ->  | E26: =IF('Futterberechnung (3)'!G24="","",'Futterberechnung (3)'!G24) ->  | F26: =IF('Futterberechnung (3)'!H24="","",'Futterberechnung (3)'!H24) ->  | H26: Thr | I26: g | J26: =IF('Futterberechnung (3)'!$S$30="","",'Futterberechnung (3)'!$S$30) -> 5.5582395 | K26: =IF('Futterberechnung (3)'!$S$31="","",'Futterberechnung (3)'!$S$31) -> 5.5 | L26: =IF('Futterberechnung (3)'!$S$33="","",'Futterberechnung (3)'!$S$33) -> 5.5 | M26: =IF('Futterberechnung (3)'!$S$34="","",'Futterberechnung (3)'!$S$34) -> 0
B27: =IF('Futterberechnung (3)'!C25="","",'Futterberechnung (3)'!C25) ->  | C27: =IF('Futterberechnung (3)'!E25="","",'Futterberechnung (3)'!E25) ->  | D27: =IF('Futterberechnung (3)'!F25="","",'Futterberechnung (3)'!F25) ->  | E27: =IF('Futterberechnung (3)'!G25="","",'Futterberechnung (3)'!G25) ->  | F27: =IF('Futterberechnung (3)'!H25="","",'Futterberechnung (3)'!H25) ->  | H27: pcv Thr | I27: g | J27: =IF('Futterberechnung (3)'!$T$30="","",'Futterberechnung (3)'!$T$30) -> 4.78922742 | K27: =IF('Futterberechnung (3)'!$T$31="","",'Futterberechnung (3)'!$T$31) -> 4.8 | L27: =IF('Futterberechnung (3)'!$T$33="","",'Futterberechnung (3)'!$T$33) -> 5 | M27: =IF('Futterberechnung (3)'!$T$34="","",'Futterberechnung (3)'!$T$34) -> -0.2
B28: =IF('Futterberechnung (3)'!C26="","",'Futterberechnung (3)'!C26) ->  | C28: =IF('Futterberechnung (3)'!E26="","",'Futterberechnung (3)'!E26) ->  | D28: =IF('Futterberechnung (3)'!F26="","",'Futterberechnung (3)'!F26) ->  | E28: =IF('Futterberechnung (3)'!G26="","",'Futterberechnung (3)'!G26) ->  | F28: =IF('Futterberechnung (3)'!H26="","",'Futterberechnung (3)'!H26) ->  | H28: Trp | I28: g | J28: =IF('Futterberechnung (3)'!$U$30="","",'Futterberechnung (3)'!$U$30) -> 1.7839315 | K28: =IF('Futterberechnung (3)'!$U$31="","",'Futterberechnung (3)'!$U$31) -> 1.8 | L28: =IF('Futterberechnung (3)'!$U$33="","",'Futterberechnung (3)'!$U$33) -> 1.6 | M28: =IF('Futterberechnung (3)'!$U$34="","",'Futterberechnung (3)'!$U$34) -> 0.2
B29: =IF('Futterberechnung (3)'!C27="","",'Futterberechnung (3)'!C27) -> Mineralfutter | C29: =IF('Futterberechnung (3)'!E27="","",'Futterberechnung (3)'!E27) ->  | D29: =IF('Futterberechnung (3)'!F27="","",'Futterberechnung (3)'!F27) ->  | E29: =IF('Futterberechnung (3)'!G27="","",'Futterberechnung (3)'!G27) ->  | F29: =IF('Futterberechnung (3)'!H27="","",'Futterberechnung (3)'!H27) ->  | H29: pcv Trp | I29: g | J29: =IF('Futterberechnung (3)'!$V$30="","",'Futterberechnung (3)'!$V$30) -> 1.49925704 | K29: =IF('Futterberechnung (3)'!$V$31="","",'Futterberechnung (3)'!$V$31) -> 1.5 | L29: =IF('Futterberechnung (3)'!$V$33="","",'Futterberechnung (3)'!$V$33) -> 1.4 | M29: =IF('Futterberechnung (3)'!$V$34="","",'Futterberechnung (3)'!$V$34) -> 0.1
B30: =IF('Futterberechnung (3)'!C28="","",'Futterberechnung (3)'!C28) -> Opti. MinFu MM 850g TZ 3,0% + Phytase 17/18 | C30: =IF('Futterberechnung (3)'!E28="","",'Futterberechnung (3)'!E28) -> 77 | D30: =IF('Futterberechnung (3)'!F28="","",'Futterberechnung (3)'!F28) -> 0.03 | E30: =IF('Futterberechnung (3)'!G28="","",'Futterberechnung (3)'!G28) -> 0.03257568474 | F30: =IF('Futterberechnung (3)'!H28="","",'Futterberechnung (3)'!H28) -> 30 | H30: Rohfaser (XF) | I30: g | J30: =IF('Futterberechnung (3)'!$L$30="","",'Futterberechnung (3)'!$L$30) -> 40.10045 | K30: =IF('Futterberechnung (3)'!$L$31="","",'Futterberechnung (3)'!$L$31) -> 40 | L30: =IF('Futterberechnung (3)'!$L$33="","",'Futterberechnung (3)'!$L$33) -> 45 | M30: =IF('Futterberechnung (3)'!$L$34="","",'Futterberechnung (3)'!$L$34) -> -5
B31: =IF('Futterberechnung (3)'!C29="","",'Futterberechnung (3)'!C29) ->  | C31: =IF('Futterberechnung (3)'!E29="","",'Futterberechnung (3)'!E29) ->  | D31: =IF('Futterberechnung (3)'!F29="","",'Futterberechnung (3)'!F29) ->  | E31: =IF('Futterberechnung (3)'!G29="","",'Futterberechnung (3)'!G29) ->  | F31: =IF('Futterberechnung (3)'!H29="","",'Futterberechnung (3)'!H29) ->  | H31: NDFom | I31: g | J31: =IF('Futterberechnung (3)'!$W$63="","",'Futterberechnung (3)'!$W$63) -> 241.0301988 | K31: =IF('Futterberechnung (3)'!$W$64="","",'Futterberechnung (3)'!$W$64) -> 239.9 | L31: =IF('Futterberechnung (3)'!$W$66=0,"",'Futterberechnung (3)'!$W$66) -> 120 | M31: =IF($L$31="","",'Futterberechnung (3)'!$W$67) -> 120
B32: Futterkosten / Summe / Mischergröße | C32: =IF('Futterberechnung (3)'!E30="","",'Futterberechnung (3)'!E30) -> 21.45195 | D32: =IF('Futterberechnung (3)'!F30="","",'Futterberechnung (3)'!F30) -> 1 | F32: =IF(F15="","",SUM(F15:F31)) -> 1000 | H32: ADFom | I32: g | J32: =IF('Futterberechnung (3)'!$X$63="","",'Futterberechnung (3)'!$X$63) -> 46.19737919 | K32: =IF('Futterberechnung (3)'!$X$64="","",'Futterberechnung (3)'!$X$64) -> 46 | L32: =IF('Futterberechnung (3)'!$X$66=0,"",'Futterberechnung (3)'!$X$66) -> 70 | M32: =IF($L$32="","",'Futterberechnung (3)'!$X$67) -> -24
B33: Futterkosten auf 88% TM umgerechnet | C33: =IF('Futterberechnung (3)'!E31="","",'Futterberechnung (3)'!E31) -> 21.35258767 | F33: =IF(Futterberechnung!H31="","",Futterberechnung!H31) ->  | H33: BfS | I33: g | J33: =IF('Futterberechnung (3)'!$V$63="","",'Futterberechnung (3)'!$V$63) -> 80.434962 | K33: =IF('Futterberechnung (3)'!$V$64="","",'Futterberechnung (3)'!$V$64) -> 80.1 | L33: =IF('Futterberechnung (3)'!$V$66=0,"",'Futterberechnung (3)'!$V$66) ->  | M33: =IF($L$33="","",'Futterberechnung (3)'!$V$67) -> 
H34: Ca | I34: g | J34: =IF('Futterberechnung (3)'!$W$30="","",'Futterberechnung (3)'!$W$30) -> 5.189885935 | K34: =IF('Futterberechnung (3)'!$W$31="","",'Futterberechnung (3)'!$W$31) -> 5.2 | L34: =IF('Futterberechnung (3)'!$W$33="","",'Futterberechnung (3)'!$W$33) -> 5.1 | M34: =IF('Futterberechnung (3)'!$W$34="","",'Futterberechnung (3)'!$W$34) -> 0.1
H35: P | I35: g | J35: =IF('Futterberechnung (3)'!$X$30="","",'Futterberechnung (3)'!$X$30) -> 3.639822435 | K35: =IF('Futterberechnung (3)'!$X$31="","",'Futterberechnung (3)'!$X$31) -> 3.6 | L35: =IF('Futterberechnung (3)'!$X$33="","",'Futterberechnung (3)'!$X$33) -> 4.1 | M35: =IF('Futterberechnung (3)'!$X$34="","",'Futterberechnung (3)'!$X$34) -> -0.5
H36: v.P | I36: g | J36: =IF('Futterberechnung (3)'!$Y$30="","",'Futterberechnung (3)'!$Y$30) -> 1.823803974 | K36: =IF('Futterberechnung (3)'!$Y$31="","",'Futterberechnung (3)'!$Y$31) -> 1.8 | L36: =IF('Futterberechnung (3)'!$Y$33="","",'Futterberechnung (3)'!$Y$33) -> 2.4 | M36: =IF('Futterberechnung (3)'!$Y$34="","",'Futterberechnung (3)'!$Y$34) -> -0.6
H37: v.P + Phytase | I37: g | J37: =IF('Futterberechnung (3)'!$Z$30="","",'Futterberechnung (3)'!$Z$30) -> 2.439616826 | K37: =IF('Futterberechnung (3)'!$Z$31="","",'Futterberechnung (3)'!$Z$31) -> 2.4 | L37: =IF('Futterberechnung (3)'!$Z$33="","",'Futterberechnung (3)'!$Z$33) -> 2.4 | M37: =IF('Futterberechnung (3)'!$Z$34="","",'Futterberechnung (3)'!$Z$34) -> 0
H38: Na | I38: g | J38: =IF('Futterberechnung (3)'!$AB$30="","",'Futterberechnung (3)'!$AB$30) -> 1.820049276 | K38: =IF('Futterberechnung (3)'!$AB$31="","",'Futterberechnung (3)'!$AB$31) -> 1.8 | L38: =IF('Futterberechnung (3)'!$AB$33="","",'Futterberechnung (3)'!$AB$33) -> 1.7 | M38: =IF(Futterberechnung!$AB$34="","",'Futterberechnung (3)'!$AB$34) -> 0.1
H39: Mg | I39: g | J39: =IF('Futterberechnung (3)'!$AA$30="","",'Futterberechnung (3)'!$AA$30) -> 1.250897157 | K39: =IF('Futterberechnung (3)'!$AA$31="","",'Futterberechnung (3)'!$AA$31) -> 1.2 | L39: =IF('Futterberechnung (3)'!$AA$33="","",'Futterberechnung (3)'!$AA$33) -> 1 | M39: =IF('Futterberechnung (3)'!$AA$34="","",'Futterberechnung (3)'!$AA$34) -> 0.2
H40: Polyensäuren | I40: g | J40: =IF('Futterberechnung (3)'!$N$63="","",'Futterberechnung (3)'!$N$63) -> 13.55176897 | K40: =IF('Futterberechnung (3)'!$N$64="","",'Futterberechnung (3)'!$N$64) -> 13.5 | L40: =IF('Futterberechnung (3)'!$N$66="","",'Futterberechnung (3)'!$N$66) -> 17.5 | M40: =IF('Futterberechnung (3)'!$N$67="","",'Futterberechnung (3)'!$N$67) -> -4
H41: Vit. A | I41: IE | J41: =IF('Futterberechnung (3)'!$Q$63="","",'Futterberechnung (3)'!$Q$63) -> 5025 | K41: =IF('Futterberechnung (3)'!$Q$64="","",'Futterberechnung (3)'!$Q$64) -> 5002 | L41: =IF('Futterberechnung (3)'!$Q$66="","",'Futterberechnung (3)'!$Q$66) -> 5000 | M41: =IF('Futterberechnung (3)'!$Q$67="","",'Futterberechnung (3)'!$Q$67) -> 2
H42: Vit. D3 | I42: IE | J42: =IF('Futterberechnung (3)'!$R$63="","",'Futterberechnung (3)'!$R$63) -> 1005 | K42: =IF('Futterberechnung (3)'!$R$64="","",'Futterberechnung (3)'!$R$64) -> 1000 | L42: =IF('Futterberechnung (3)'!$R$66="","",'Futterberechnung (3)'!$R$66) -> 1000 | M42: =IF('Futterberechnung (3)'!$R$67="","",'Futterberechnung (3)'!$R$67) -> 0
H43: Vit. E | I43: mg | J43: =IF('Futterberechnung (3)'!$S$63="","",'Futterberechnung (3)'!$S$63) -> 51 | K43: =IF('Futterberechnung (3)'!$S$64="","",'Futterberechnung (3)'!$S$64) -> 51 | L43: =IF('Futterberechnung (3)'!$S$66="","",'Futterberechnung (3)'!$S$66) -> 50 | M43: =IF('Futterberechnung (3)'!$S$67="","",'Futterberechnung (3)'!$S$67) -> 1
B45: Aminosäurenverhältnis (AS-Verältnis) | C45: pcv M + C | D45: pcv Thr | E45: pcv Trp | H45: Ca / P | I45: /1 | J45: =IF(K45="","",K45) -> 1.425862395 | K45: =IF('Futterberechnung (3)'!$T$40="","",'Futterberechnung (3)'!$T$40) -> 1.425862395 | L45: =IF('Futterberechnung (3)'!$T$41="","",'Futterberechnung (3)'!$T$41) -> 1.26 | M45: =IF(K45="","",K45-L45) -> 0.1658623952
B46: AS-Verhältnis in der Ration pcv Lysin 1 / | C46: =IF('Futterberechnung (3)'!N40="","",'Futterberechnung (3)'!N40) -> 0.6201094129 | D46: =IF('Futterberechnung (3)'!P40="","",'Futterberechnung (3)'!P40) -> 0.6367490536 | E46: =IF('Futterberechnung (3)'!R40="","",'Futterberechnung (3)'!R40) -> 0.1993328814 | H46: Ca / vP | I46: /1 | J46: 2.845638023 | K46: =IF('Futterberechnung (3)'!$X$40="","",'Futterberechnung (3)'!$X$40) -> 2.845638023 | L46: =IF('Futterberechnung (3)'!$X$41="","",'Futterberechnung (3)'!$X$41) -> 2.12 | M46: 0.7256380231
B47: Orientierungswert AS-Verhältnis pcv Lysin 1 / | C47: =IF('Futterberechnung (3)'!N41="","",'Futterberechnung (3)'!N41) -> 0.54 | D47: =IF('Futterberechnung (3)'!P41="","",'Futterberechnung (3)'!P41) -> 0.63 | E47: =IF('Futterberechnung (3)'!R41="","",'Futterberechnung (3)'!R41) -> 0.18 | H47: Ca / vP + Phytase | I47: /1 | J47: 2.127336506 | K47: =IF('Futterberechnung (3)'!$X$39="","",'Futterberechnung (3)'!$X$39) -> 2.127336506 | L47: =IF('Futterberechnung (3)'!$X$41="","",'Futterberechnung (3)'!$X$41) -> 2.12 | M47: 0.007336505971
B48: Differenz | C48: =IF(C46="","",C46-C47) -> 0.08010941294 | D48: =IF(D46="","",D46-D47) -> 0.006749053641 | E48: =IF(E46="","",E46-E47) -> 0.01933288142 | H48: Lys / MES EFF* | I48: g/MJ | J48: 0.6491499227 | K48: =IF('Futterberechnung (3)'!$F$40="","",'Futterberechnung (3)'!$F$40) -> 0.6491499227 | L48: =IF('Futterberechnung (3)'!$F$41="","",'Futterberechnung (3)'!$F$41) -> 0.67 | M48: -0.02085007728
H49: pcv Lys / MES EFF* | I49: g/MJ | J49: 0.5795981453 | K49: =IF('Futterberechnung (3)'!$I$40="","",'Futterberechnung (3)'!$I$40) -> 0.5795981453 | L49: =IF('Futterberechnung (3)'!$I$41="","",'Futterberechnung (3)'!$I$41) -> 0.59 | M49: -0.01040185471
H50: Lys in 100g RP | I50: g | J50: 5.395683453 | K50: =IF('Futterberechnung (3)'!$AA$40="","",'Futterberechnung (3)'!$AA$40) -> 5.395683453 | L50: =IF('Futterberechnung (3)'!$AA$41="","",'Futterberechnung (3)'!$AA$41) -> 5.13 | M50: 0.2656834532
H51: Kosten / 10 MJ MES EFF* | J51: =IF('Futterberechnung (3)'!$M$31="","",$C$32/100/'Futterberechnung (3)'!$M$30*10) -> 0.1649969021 | K51: =IF('Futterberechnung (3)'!$M$31="","",$C$33/100/'Futterberechnung (3)'!$M$31*10) -> 0.1650122695
H53: * EFF=Einzelfutterformel und MFF=Mischfutterformel (EFF ist genauer!)
B54: KAB oder DCAB oder BE in 100% TM der Ration | C54: =IF('Futterberechnung (3)'!T64="","",'Futterberechnung (3)'!T64/88*100) -> 298.8636364
B55: Harn-pH bei Fütterung dieser Ration | C55: =IF(C54="","",6.19+0.0031*C54+3*10^-6*C54^2) -> 7.384435692
B57: Basenüberschuß (BE) | D57: Harn pH
B58: 100 % TM | C58: in 88 %TM
B59: 500 | C59: =B59*0.88 -> 440 | D59: 8.5
B60: 400 | C60: =B60*0.88 -> 352 | D60: 7.9
B61: 300 | C61: 264 | D61: 7.4
B62: 200 | C62: 176 | D62: 6.9
B63: 100 | C63: 88 | D63: 6.5
B64: 0 | C64: 0 | D64: 6.2
B65: -100 | C65: -88 | D65: 5.9
B66: -200 | C66: -176 | D66: 5.7
B67: -400 | C67: -352 | D67: 5.4

Sheet Futterberechnung (4)
Z3: 2018 Version 1
B4: Rheinischer Erzeugerring für Mastschweine e.V.
E5: Betrieb: | H5: Mustermann | X5: Datum: | Z5: 2018-08-01
E6: Berater: | H6: =Futterberechnung!H6 -> ………………………………………………………. | X6: Tel.Nr.: | Z6: =Futterberechnung!Z6 -> ……………………………
E7: Futtermischung für: | H7: =C33&" " -> Endmast ab 90 Kg LM für 850 g TZ* | P7: Getreide = Richtpreise Ernte 2017/18 | X7: Tel.Nr.: | Z7: =Futterberechnung!Z7 -> ……………………………
E8: Mischergröße in t: | H8: =Futterberechnung!H8 -> 1 | J8: =IF(OR(B10="m",B10="w",'Futterkurve Mast'!T6="HP"),Orientierungswerte!D35,"") ->  | X8: gültig bis: | Z8: =Futterberechnung!Z8 -> ……………………………
B10: =IF(Futterberechnung!B10=0,"",Futterberechnung!B10) ->  | C10: Geschlecht
E11: Netto-Preis | F11: Anteil in FM | G11: Anteil bei 88% TM | H11: in Mi-scher | I11: TM | J11: Roh-pro-tein XP | K11: pcv XP | L11: Roh-faser XF | M11: ME EFF | N11: ME MFF | O11: Lys | P11: pcv Lys | Q11: M&C | R11: pcv M+C | S11: Thr | T11: pcv Thr | U11: Trp | V11: pcv Trp | W11: Ca | X11: P | Y11: v. P | Z11: v. P m. Phy | AA11: Mg | AB11: Na | AC11: €/dt
B12: FM-Nr. | C12: Futtermittel + % RP in der FM | E12: €/dt | F12: % | G12: % | H12: kg | I12: Anteil in g/kg | M12: MJ/kg | O12: Anteile in g je kg | AC12: Anteil
B13: =IF($C13=""," ",VLOOKUP($C13,Futtermittel!$A$8:$CG$171,2,FALSE)) -> 49 | C13: =IF(Futterberechnung!C13="","",Futterberechnung!C13) -> eigener Weizen 10% RP Ø 2018 | E13: =IF(Futterberechnung!E13="","",Futterberechnung!E13) -> 17.42 | F13: 0.49 | G13: =IF(F13="","",I13/I$30) -> 0.4880560948 | H13: =IF(F13=""," ",$H$8*F13*1000) -> 490 | I13: =IF($C13=""," ",VLOOKUP($C13,Futtermittel!$A$8:$CG$171,8,FALSE)*$F13) -> 431.2 | J13: =IF($C13=""," ",VLOOKUP($C13,Futtermittel!$A$8:$CG$171,9,FALSE)*$F13) -> 48.5296 | K13: =IF($C13=""," ",VLOOKUP($C13,Futtermittel!$A$8:$CG$171,10,FALSE)*$F13) -> 43.67664 | L13: =IF($C13=""," ",VLOOKUP($C13,Futtermittel!$A$8:$CG$171,11,FALSE)*$F13) -> 12.9213 | M13: =IF($C13=""," ",VLOOKUP($C13,Futtermittel!$A$8:$CG$171,12,FALSE)*$F13) -> 6.67734956 | N13: =IF($C13=""," ",VLOOKUP(C13,Futtermittel!$A$8:$CG$171,13,FALSE)*$F13) -> 6.71301568 | O13: =IF($C13=""," ",VLOOKUP($C13,Futtermittel!$A$8:$CG$171,14,FALSE)*$F13) -> 1.558592 | P13: =IF($C13=""," ",VLOOKUP($C13,Futtermittel!$A$8:$CG$171,15,FALSE)*$F13) -> 1.37156096 | Q13: =IF($C13=""," ",VLOOKUP($C13,Futtermittel!$A$8:$CG$171,16,FALSE)*$F13) -> 1.798888 | R13: =IF($C13=""," ",VLOOKUP($C13,Futtermittel!$A$8:$CG$171,17,FALSE)*$F13) -> 1.624995493 | S13: =IF($C13=""," ",VLOOKUP($C13,Futtermittel!$A$8:$CG$171,18,FALSE)*$F13) -> 1.264592 | T13: =IF($C13=""," ",VLOOKUP($C13,Futtermittel!$A$8:$CG$171,19,FALSE)*$F13) -> 1.1381328 | U13: =IF($C13=""," ",VLOOKUP($C13,Futtermittel!$A$8:$CG$171,20,FALSE)*$F13) -> 0.681296 | V13: =IF($C13=""," ",VLOOKUP($C13,Futtermittel!$A$8:$CG$171,21,FALSE)*$F13) -> 0.59954048 | W13: =IF($C13=""," ",VLOOKUP($C13,Futtermittel!$A$8:$CG$171,22,FALSE)*$F13) -> 0.343 | X13: =IF($C13=""," ",VLOOKUP($C13,Futtermittel!$A$8:$CG$171,23,FALSE)*$F13) -> 1.617 | Y13: =IF($C13=""," ",VLOOKUP($C13,Futtermittel!$A$8:$CG$171,24,FALSE)*$F13) -> 0.9702 | Z13: =IF($C13=""," ",VLOOKUP($C13,Futtermittel!$A$8:$CG$171,25,FALSE)*$F13) -> 1.05105 | AA13: =IF($C13=""," ",VLOOKUP($C13,Futtermittel!$A$8:$CG$171,26,FALSE)*$F13) -> 0.539 | AB13: =IF($C13=""," ",VLOOKUP($C13,Futtermittel!$A$8:$CG$171,27,FALSE)*$F13) -> 0.098 | AC13: =IFERROR(IF(E13*F13=0," ",E13*F13),"") -> 8.5358
B14: =IF($C14=""," ",VLOOKUP($C14,Futtermittel!$A$8:$CG$171,2,FALSE)) -> 11 | C14: =IF(Futterberechnung!C14="","",Futterberechnung!C14) -> eigene Gerste 10% RP Ø 2018 | E14: =IF(Futterberechnung!E14="","",Futterberechnung!E14) -> 16.39 | F14: 0.424 | G14: =IF(F14="","",I14/I$30) -> 0.4223179269 | H14: =IF(F14=""," ",$H$8*F14*1000) -> 424 | I14: =IF($C14=""," ",VLOOKUP($C14,Futtermittel!$A$8:$CG$171,8,FALSE)*$F14) -> 373.12 | J14: =IF($C14=""," ",VLOOKUP($C14,Futtermittel!$A$8:$CG$171,9,FALSE)*$F14) -> 41.18312 | K14: =IF($C14=""," ",VLOOKUP($C14,Futtermittel!$A$8:$CG$171,10,FALSE)*$F14) -> 30.0636776 | L14: =IF($C14=""," ",VLOOKUP($C14,Futtermittel!$A$8:$CG$171,11,FALSE)*$F14) -> 23.57016 | M14: =IF($C14=""," ",VLOOKUP($C14,Futtermittel!$A$8:$CG$171,12,FALSE)*$F14) -> 5.305318313 | N14: =IF($C14=""," ",VLOOKUP(C14,Futtermittel!$A$8:$CG$171,13,FALSE)*$F14) -> 5.297080514 | O14: =IF($C14=""," ",VLOOKUP($C14,Futtermittel!$A$8:$CG$171,14,FALSE)*$F14) -> 1.3748624 | P14: =IF($C14=""," ",VLOOKUP($C14,Futtermittel!$A$8:$CG$171,15,FALSE)*$F14) -> 1.003649552 | Q14: =IF($C14=""," ",VLOOKUP($C14,Futtermittel!$A$8:$CG$171,16,FALSE)*$F14) -> 1.7018936 | R14: =IF($C14=""," ",VLOOKUP($C14,Futtermittel!$A$8:$CG$171,17,FALSE)*$F14) -> 1.425111957 | S14: =IF($C14=""," ",VLOOKUP($C14,Futtermittel!$A$8:$CG$171,18,FALSE)*$F14) -> 1.4898936 | T14: =IF($C14=""," ",VLOOKUP($C14,Futtermittel!$A$8:$CG$171,19,FALSE)*$F14) -> 1.132319136 | U14: =IF($C14=""," ",VLOOKUP($C14,Futtermittel!$A$8:$CG$171,20,FALSE)*$F14) -> 0.4966312 | V14: =IF($C14=""," ",VLOOKUP($C14,Futtermittel!$A$8:$CG$171,21,FALSE)*$F14) -> 0.377439712 | W14: =IF($C14=""," ",VLOOKUP($C14,Futtermittel!$A$8:$CG$171,22,FALSE)*$F14) -> 0.1828288 | X14: =IF($C14=""," ",VLOOKUP($C14,Futtermittel!$A$8:$CG$171,23,FALSE)*$F14) -> 1.484 | Y14: =IF($C14=""," ",VLOOKUP($C14,Futtermittel!$A$8:$CG$171,24,FALSE)*$F14) -> 0.6678 | Z14: =IF($C14=""," ",VLOOKUP($C14,Futtermittel!$A$8:$CG$171,25,FALSE)*$F14) -> 0.9646 | AA14: =IF($C14=""," ",VLOOKUP($C14,Futtermittel!$A$8:$CG$171,26,FALSE)*$F14) -> 0.4664 | AB14: =IF($C14=""," ",VLOOKUP($C14,Futtermittel!$A$8:$CG$171,27,FALSE)*$F14) -> 0.06433103448 | AC14: 6.94936
B15: =IF($C15=""," ",VLOOKUP($C15,Futtermittel!$A$8:$CG$171,2,FALSE)) -> 100 | C15: =IF(Futterberechnung!C15="","",Futterberechnung!C15) -> Sojaschrot HP 47% RP | E15: =IF(Futterberechnung!E15="","",Futterberechnung!E15) -> 38 | F15: 0.051 | G15: =IF(F15="","",I15/I$30) -> 0.05137492148 | H15: 51 | I15: =IF($C15=""," ",VLOOKUP($C15,Futtermittel!$A$8:$CG$171,8,FALSE)*$F15) -> 45.39 | J15: =IF($C15=""," ",VLOOKUP($C15,Futtermittel!$A$8:$CG$171,9,FALSE)*$F15) -> 23.97 | K15: =IF($C15=""," ",VLOOKUP($C15,Futtermittel!$A$8:$CG$171,10,FALSE)*$F15) -> 19.6554 | L15: =IF($C15=""," ",VLOOKUP($C15,Futtermittel!$A$8:$CG$171,11,FALSE)*$F15) -> 2.652 | M15: =IF($C15=""," ",VLOOKUP($C15,Futtermittel!$A$8:$CG$171,12,FALSE)*$F15) -> 0.706713273 | N15: =IF($C15=""," ",VLOOKUP(C15,Futtermittel!$A$8:$CG$171,13,FALSE)*$F15) -> 0.705910329 | O15: =IF($C15=""," ",VLOOKUP($C15,Futtermittel!$A$8:$CG$171,14,FALSE)*$F15) -> 1.467170318 | P15: =IF($C15=""," ",VLOOKUP($C15,Futtermittel!$A$8:$CG$171,15,FALSE)*$F15) -> 1.276438177 | Q15: =IF($C15=""," ",VLOOKUP($C15,Futtermittel!$A$8:$CG$171,16,FALSE)*$F15) -> 0.67379925 | R15: =IF($C15=""," ",VLOOKUP($C15,Futtermittel!$A$8:$CG$171,17,FALSE)*$F15) -> 0.5612229445 | S15: =IF($C15=""," ",VLOOKUP($C15,Futtermittel!$A$8:$CG$171,18,FALSE)*$F15) -> 1.031011364 | T15: =IF($C15=""," ",VLOOKUP($C15,Futtermittel!$A$8:$CG$171,19,FALSE)*$F15) -> 0.8866697727 | U15: =IF($C15=""," ",VLOOKUP($C15,Futtermittel!$A$8:$CG$171,20,FALSE)*$F15) -> 0.3170693182 | V15: =IF($C15=""," ",VLOOKUP($C15,Futtermittel!$A$8:$CG$171,21,FALSE)*$F15) -> 0.2726796136 | W15: =IF($C15=""," ",VLOOKUP($C15,Futtermittel!$A$8:$CG$171,22,FALSE)*$F15) -> 0.1623886064 | X15: =IF($C15=""," ",VLOOKUP($C15,Futtermittel!$A$8:$CG$171,23,FALSE)*$F15) -> 0.3418494927 | Y15: =IF($C15=""," ",VLOOKUP($C15,Futtermittel!$A$8:$CG$171,24,FALSE)*$F15) -> 0.1367397971 | Z15: =IF($C15=""," ",VLOOKUP($C15,Futtermittel!$A$8:$CG$171,25,FALSE)*$F15) -> 0.2563871195 | AA15: =IF($C15=""," ",VLOOKUP($C15,Futtermittel!$A$8:$CG$171,26,FALSE)*$F15) -> 0.1439114094 | AB15: =IF($C15=""," ",VLOOKUP($C15,Futtermittel!$A$8:$CG$171,27,FALSE)*$F15) -> 0.0086241 | AC15: 1.938
B16: =IF($C16=""," ",VLOOKUP($C16,Futtermittel!$A$8:$CG$171,2,FALSE)) -> 140 | C16: =IF(Futterberechnung!C16="","",Futterberechnung!C16) -> Rapsöl / Pflanzenöl DLG 2014 | E16: =IF(Futterberechnung!E16="","",Futterberechnung!E16) -> 97 | F16: 0.005 | G16: 0.005653618259 | H16: 5 | I16: =IF($C16=""," ",VLOOKUP($C16,Futtermittel!$A$8:$CG$171,8,FALSE)*$F16) -> 4.995 | J16: =IF($C16=""," ",VLOOKUP($C16,Futtermittel!$A$8:$CG$171,9,FALSE)*$F16) -> 0 | K16: =IF($C16=""," ",VLOOKUP($C16,Futtermittel!$A$8:$CG$171,10,FALSE)*$F16) -> 0 | L16: =IF($C16=""," ",VLOOKUP($C16,Futtermittel!$A$8:$CG$171,11,FALSE)*$F16) -> 0 | M16: =IF($C16=""," ",VLOOKUP($C16,Futtermittel!$A$8:$CG$171,12,FALSE)*$F16) -> 0.19462996 | N16: =IF($C16=""," ",VLOOKUP(C16,Futtermittel!$A$8:$CG$171,13,FALSE)*$F16) -> 0.16216003 | O16: =IF($C16=""," ",VLOOKUP($C16,Futtermittel!$A$8:$CG$171,14,FALSE)*$F16) -> 0 | P16: =IF($C16=""," ",VLOOKUP($C16,Futtermittel!$A$8:$CG$171,15,FALSE)*$F16) -> 0 | Q16: =IF($C16=""," ",VLOOKUP($C16,Futtermittel!$A$8:$CG$171,16,FALSE)*$F16) -> 0 | R16: =IF($C16=""," ",VLOOKUP($C16,Futtermittel!$A$8:$CG$171,17,FALSE)*$F16) -> 0 | S16: =IF($C16=""," ",VLOOKUP($C16,Futtermittel!$A$8:$CG$171,18,FALSE)*$F16) -> 0 | T16: =IF($C16=""," ",VLOOKUP($C16,Futtermittel!$A$8:$CG$171,19,FALSE)*$F16) -> 0 | U16: =IF($C16=""," ",VLOOKUP($C16,Futtermittel!$A$8:$CG$171,20,FALSE)*$F16) -> 0 | V16: =IF($C16=""," ",VLOOKUP($C16,Futtermittel!$A$8:$CG$171,21,FALSE)*$F16) -> 0 | W16: =IF($C16=""," ",VLOOKUP($C16,Futtermittel!$A$8:$CG$171,22,FALSE)*$F16) -> 0 | X16: =IF($C16=""," ",VLOOKUP($C16,Futtermittel!$A$8:$CG$171,23,FALSE)*$F16) -> 0 | Y16: =IF($C16=""," ",VLOOKUP($C16,Futtermittel!$A$8:$CG$171,24,FALSE)*$F16) -> 0 | Z16: =IF($C16=""," ",VLOOKUP($C16,Futtermittel!$A$8:$CG$171,25,FALSE)*$F16) -> 0 | AA16: =IF($C16=""," ",VLOOKUP($C16,Futtermittel!$A$8:$CG$171,26,FALSE)*$F16) -> 0 | AB16: =IF($C16=""," ",VLOOKUP($C16,Futtermittel!$A$8:$CG$171,27,FALSE)*$F16) -> 0 | AC16: 0.485
B17: =IF($C17=""," ",VLOOKUP($C17,Futtermittel!$A$8:$CG$171,2,FALSE)) ->  | C17: =IF(Futterberechnung!C17="","",Futterberechnung!C17) ->  | E17: =IF(Futterberechnung!E17="","",Futterberechnung!E17) ->  | I17: =IF($C17=""," ",VLOOKUP($C17,Futtermittel!$A$8:$CG$171,8,FALSE)*$F17) ->  | J17: =IF($C17=""," ",VLOOKUP($C17,Futtermittel!$A$8:$CG$171,9,FALSE)*$F17) ->  | K17: =IF($C17=""," ",VLOOKUP($C17,Futtermittel!$A$8:$CG$171,10,FALSE)*$F17) ->  | L17: =IF($C17=""," ",VLOOKUP($C17,Futtermittel!$A$8:$CG$171,11,FALSE)*$F17) ->  | M17: =IF($C17=""," ",VLOOKUP($C17,Futtermittel!$A$8:$CG$171,12,FALSE)*$F17) ->  | N17: =IF($C17=""," ",VLOOKUP(C17,Futtermittel!$A$8:$CG$171,13,FALSE)*$F17) ->  | O17: =IF($C17=""," ",VLOOKUP($C17,Futtermittel!$A$8:$CG$171,14,FALSE)*$F17) ->  | P17: =IF($C17=""," ",VLOOKUP($C17,Futtermittel!$A$8:$CG$171,15,FALSE)*$F17) ->  | Q17: =IF($C17=""," ",VLOOKUP($C17,Futtermittel!$A$8:$CG$171,16,FALSE)*$F17) ->  | R17: =IF($C17=""," ",VLOOKUP($C17,Futtermittel!$A$8:$CG$171,17,FALSE)*$F17) ->  | S17: =IF($C17=""," ",VLOOKUP($C17,Futtermittel!$A$8:$CG$171,18,FALSE)*$F17) ->  | T17: =IF($C17=""," ",VLOOKUP($C17,Futtermittel!$A$8:$CG$171,19,FALSE)*$F17) ->  | U17: =IF($C17=""," ",VLOOKUP($C17,Futtermittel!$A$8:$CG$171,20,FALSE)*$F17) ->  | V17: =IF($C17=""," ",VLOOKUP($C17,Futtermittel!$A$8:$CG$171,21,FALSE)*$F17) ->  | W17: =IF($C17=""," ",VLOOKUP($C17,Futtermittel!$A$8:$CG$171,22,FALSE)*$F17) ->  | X17: =IF($C17=""," ",VLOOKUP($C17,Futtermittel!$A$8:$CG$171,23,FALSE)*$F17) ->  | Y17: =IF($C17=""," ",VLOOKUP($C17,Futtermittel!$A$8:$CG$171,24,FALSE)*$F17) ->  | Z17: =IF($C17=""," ",VLOOKUP($C17,Futtermittel!$A$8:$CG$171,25,FALSE)*$F17) ->  | AA17: =IF($C17=""," ",VLOOKUP($C17,Futtermittel!$A$8:$CG$171,26,FALSE)*$F17) ->  | AB17: =IF($C17=""," ",VLOOKUP($C17,Futtermittel!$A$8:$CG$171,27,FALSE)*$F17) ->  | AC17: =IFERROR(IF(E17*F17=0," ",E17*F17),"") -> 
